Workbook

Sheet Prvi_list
A1: VERZIJA: 9.12.2024
A17: POROČILO O OBRATOVALNEM MONITORINGU ZA KOMUNALNO ČISTILNO NAPRAVO
A20: =IF(Poročilo_3!B3<>"",Poročilo_3!B3,"") -> CČN KRANJ
A24: ="Za leto " & Poročilo_1!B3 -> Za leto 2024

Sheet Drugi_list
A1: Naslov: | B1: Poročilo o obratovalnem monitoringu za komunalno čistilno napravo CČN KRANJ za leto 2024
A5: Izvajalec: | B5: NACIONALNI LABORATORIJ ZA ZDRAVJE, OKOLJE IN HRANO
B6: Center za okolje in zdravje
B7: Oddelek za odpadne vode
B8: Enota Kranj
B9: Gosposvetska ulica 12
B10: 4000 Kranj
A14: Naročnik: | B14: KOMUNALA KRANJ, Javno podjetje, d.o.o.
B15: Ulica Mirka Vadnova 1
B16: 4000 Kranj
A20: Evidenčna oznaka: | B20: 2700-15/28723-25/LP-KR4
A24: Delovni nalog: | B24: Pogodba št. 123/N-CČN/2023 z dne 22.12.2023
A28: Izvajalci naloge:
A30: Nosilec: | B30: Nina Oman, univ.dipl.kem.
A33: Sodelavci: | B33: Karl Zupanc
B34: Jernej Zupanec
A39: Kranj, | B39: 2025-01-28
B43: ODDELEK ZA ODPADNE VODE
B44: Vodja:
B46: Tatjana Jurša, dipl.inž.kem.tehnol., spec.

Sheet Poročilo_1
A1: POROČILO O MONITORINGU ODPADNIH VOD
A3: OBČASNE ALI TRAJNE MERITVE ZA LETO | B3: 2024
A4: PODATKI O UPRAVLJAVCU ČN
A5: Naziv upravljavca: | B5: KOMUNALA KRANJ, Javno podjetje, d.o.o.
A6: Naslov upravljavca
A7: Naselje: | B7: KRANJ
A8: Ulica: | B8: MIRKA VADNOVA
A9: Hišna številka: | B9: 1
A10: Poštna številka: | B10: 4000
A11: Ime pošte: | B11: KRANJ
A12: Matična številka upravljavca: | B12: 5067731
A13: Identifikacijska številka za DDV: | B13: 72495421
A14: Šifra dejavnosti upravljavca: | B14: 37
A15: Kontaktna oseba: | B15: ANA ŠIVIC
A16: telefon: | B16: 030 425 451
A18: elektronski naslov: | B18: ana.sivic@komunala-kranj.si
A20: PODATKI O IZVAJALCU MONITORINGA
A21: Naziv izvajalca monitoringa: | B21: NLZOH Kranj
A22: Naslov izvajalca monitoringa
A23: Naselje:
A24: Ulica: | B24: Gosposvetska ulica
A25: Hišna številka: | B25: 12
A26: Poštna številka: | B26: 4000 | D26: 18
A27: Ime pošte: | B27: Kranj
A28: Identifikacijska številka za DDV: | B28: 19651295
A29: Šifra dejavnosti izvajalca monitoringa: | B29: 71200
A30: Kontaktna oseba: | B30: NINA OMAN
A31: telefon: | B31: 04 2017 156, gsm: 031 697 578
A33: elektronski naslov: | B33: nina.oman@nlzoh.si
A35: PODATKI O IZVAJALCU JAVNE SLUŽBE ODVAJANJA IN ČIŠČENJA ODPADNIH VOD
A37: Naziv izvajalca javne službe: | B37: KOMUNALA KRANJ, JAVNO PODJETJE, D.O.O.
A38: Naslov izvajalca javne službe
A39: Naselje: | B39: Kranj
A40: Ulica in hišna številka: | B40: ULICA MIRKA VADNOVA 1
A41: Poštna številka: | B41: 4000 | D41: 0
A42: Ime pošte: | B42: KRANJ
A43: Identifikacijska številka za DDV: | B43: 72495421
A44: Kontaktna oseba: | B44: Marko Margetič
A45: telefon: | B45: 041 343 134
B46: (04)2811301
A47: elektronski naslov: | B47: marko.margetic@komunala-kranj.si
A49: PODATKI O DIGITALNEM PODPISNIKU
A50: Obrazec digitalno podpisal (ime in priimek): | B50: Nina Oman
A51: Serijska št. digitalnega potrdila podpisnika: | B51: 2475532416030
A53: Kraj: | B53: Kranj,
A54: Datum: | B54: 2025-01-28
A56: Ime in priimek zakonitega zastopnika | B56: Ime in priimek zakonitega zastopnika
A57: izvajalca monitoringa | B57: upravljavca čistilne naprave
A58: dr. Romana Martinčič, spec. manag., direktorica | B58: Matjaž Berčon, direktor

Sheet Poročilo_2
A1: 1. Glavne tehnične značilnosti čistilne naprave
A2: 1.1 Opis tehnologije čiščenja (tehnološka shema procesa je obvezna priloga in se doda na list Priloge)
A3: Nova komunalna čistilna naprava Kranj ima zmogljivost 95.000 PE. Izbrani proces obdelave odpadne vode je enostopenjska biološka faza s sistemom prezračevanja nitrifikacije-denitrifikacije s kemičnim obarjanjem fosforja, primarnim usedalnikom in anaerobno stabilizacijo blata v mezofilnem gnilišču (35–40 °C). Na novi čistilni napravi so, zaradi zmanjšanja emisij hrupa in smradu v okolico, popolnoma zaprti vhodno črpališče, objekt z grabljami, peskolov in maščobnik ter primarni usedalnik. Odpadni zrak se vodi na biofilter in ustrezno obdela. Prispevno področje s katerega se odpadne vode odvajajo na novo KČN Kranj vključuje Mestno občino Kranj, Občino Šenčur in Občino Naklo. Prebivalci Kranja, Naklega in Šenčurja skupaj predstavljajo 58.951 PE. Poleg komunalnih odpadnih vod se na novi napravi čistijo tudi industrijske odpadne vode ter izcedne vode iz zaprtega odlagališča nenevarnih odpadkov Tenetiše. Del obremenitve predstavljajo tudi dovozi grezničnih gošč ter blata in malih komunalnih čistilnih naprav. Pregled predvidenih populacijskih enot za KČN Kranj: Prebivalci gospodinjstev (zaokroženo): 61.190 PE Industrija, obremenitev 650 mg BPK5/l: 20.000 PE Obrt: 8.500 PE Greznice: 2.000 PE Izcedne vode: 1.315 PE Skupaj: 93.005 PE Rezerva za prihodnost: 1.995 PE Velikost nove naprave: 95.000 PE Pred čistilno napravo je pod nivojem zemljišča zgrajen deževni bazen, s črpališčem razbremenjevanja za zmanjšanje maksimalnega pretoka odpadne vode skozi čistilno napravo in za preprečitev prelivov neobdelane odpadne vode v reko Savo. Deževni bazen je na vhodu opremljen z elektromotornimi grobimi grabljami za odstranjevanje grobih delcev. Po končanem deževnem dotoku se vsebina deževnega bazena prečrpa s potopno črpalko v dovodni kanal z dotokom na KČN Kranj. Izpiralna enota omogoča, da se delci, ki so ostali v bazenu po tem, ko je deževni dogodek končan, izperejo iz bazena z namenom, da se prepreči nastanek smradu. Vgradnja deževnega bazena omejuje zmogljivost hidravlične obdelave odpadne vode KČN Kranj na 2,736 m3/h ali 760 l/s.
A4: OPIS LINIJE VODE Obstoječi dovodni kanal kanalizacije je podaljšan od iztoka v obstoječe vhodno črpališče do iztoka v novozgrajeno vhodno črpališče. Zaradi hidravličnih nivojev je zmogljivost akumulacije vode v obstoječih bioloških reaktorjih in sekundarnih usedalnikih omejena. Zato je investitor zahteval, da mora biti pred vhodnim črpališčem postavljen deževni bazen, zmogljivosti 3.910 m3. Neposredno pred vhodnim črpališčem je za odstranjevanje večjih naplavin nameščen lovilec kamenja. Opremljen je s puhalom in cevnim sistemom za dovod tlačnega zraka skozi betonsko odprtino. Dovod tlačnega zraka proizvaja obtok, ki preprečuje usedanje organskih zmesi v lovilcu kamenja. Vhodno črpališče sestoji iz treh polžnih črpalk premera 2 m. Vsaka polžna črpalka lahko črpa maksimalni pretok odpadne vode skozi čistilno napravo (760 l/s). Dve polžni črpalki sta delovni, ena pa služi kot rezerva. Polžne črpalke črpajo odpadno vodo iz skupnega črpališča in jo iztočijo v skupni betonski kanal na žlebu polžnih črpalk. Vhodno črpališče je pokrito zaradi zmanjšanja emisij smradu in hrupa v okolico. Odpadni zrak se ustrezno obdela na biofiltru. Vhodno črpališče črpa odpadno vodo na nivo, ki omogoča gravitacijski pretok odpadne vode skozi čistilno napravo in gravitacijski iztok v reko Savo. Prelivni prag pred iztokom v reko Savo je izbran tako, da omogoča nemoten iztok prečiščene vode iz KČN v reko Savo. Mehanske grablje so povezane z vhodnim črpališčem z 1,2 m širokim betonskim kanalom. Pretok je hidravlično razdeljen na 2 kanala finih grabelj, vsakega širine 1,2 m. Odpadki iz avtomatskih finih grabelj se z vijačnim transporterjem transportirajo na pralni in kompaktirni sistem za obdelavo odpadkov. Objekt z grabljami je pokrit tako, da so emisije smradu omejene na minimum in da je odpadni zrak obdelan na biofiltru. Prostori pod grabljami so namenjeni za sprejem gošče iz greznic, blatnenice in centrata. Odpadna voda nadaljuje pot v dvolinijski sistem peskolova in ločevalnik maščob s križnim pretokom. Pretok je z razdelilno komoro, ki je strukturno priključena na peskolov in ločevalnik maščob, hidravlično razdeljen na 2 liniji. Obe liniji, tako peskolov kot lovilec maščob, se iztekata v skupno iztočno komoro. PE cev premera 1000 mm povezuje iztočno komoro s primarnim usedalnikom. S primarnim usedanjem naj bi odstranili 50–70 % suspendiranih delcev in med 25–40 % BPK, saj je postopek zasnovan za učinkovito delovanje.
A5: Plavajoče blato, ki plava na površini linije primarnega usedalnika, se usmeri v odtočni kanal za plavajoče blato na koncu pritoka primarnega usedalnika s posnemalom plavajočih snovi (eno za vsako linijo). Odtočni kanal izteka v komoro za plavajoče blato, ki se nahaja pod pritočnimi kanali na liniji primarnega usedalnika. Biološka stopnja čiščenja Za biološko obdelavo odpadne vode je predviden sistem, ki sestoji iz 3 kaskadnih linij, vsaka s 3 bazeni, to je skupno 9 bazenov (vsak 15,5 m x 15,5 m in globine 6,25 m). V primerjavi s konvencionalnim sistemom z aktivnim blatom ima ta tehnologija višjo koncentracijo suhe snovi v reaktorjih. S povišano koncentracijo aktivne biomase se lahko potrebna prostornina biološke faze zmanjša za 20 %, v primerjavi s konvencionalnim sistemom z aktivnim blatom. Prednosti manjših volumnov so manjše emisije snovi v zrak, nižja investicija in nižji obratovalni stroški. Vsaka linija sestoji iz 3 bazenov, vsak ima prostornino 1.562 m3, pri čemer je: • prvi bazen anoksični bazen, opremljen s strojnim mešalnim sistemom, namenjen za denitrifikacijo; • drugi bazen poljubni bazen, opremljen s strojnim mešalnim sistemom in sistemom prezračevanja, ki lahko deluje anoksično ali aerobno za denitrifikacijo ali nitrifikacijo; • tretji bazen aerobni bazen, opremljen s sistemom prezračevanja, namenjen za nitrifikacijo. Razdelilnik bazenov biološke stopnje enakomerno porazdeli pretok vode v 3 komore, ki so priključene na 3 linije prezračevalnega bazena s PE cevmi premera 600 mm. Pri normalnem obratovanju se pretok porazdeli v 33,3 % v vsako linijo, vendar se lahko pritok zaustavi ali zmanjša z vstavljanjem blokad v sitemu prezračevanja prezračevalnega bazena. Povratno aktivno biološko blato iz sekundarnega usedalnika se delno odvaja v denitrifikacijski bazen prve kaskadne linije, višek pa v anaerobno obdelavo. Znotraj vsake kaskadne linije je od nitrifikacijskega bazena do denitrifikacijskega bazena vgrajeno notranje kroženje, da se zagotovi povratek z nitrati obogatene odpadne vode v območje denitrifikacije in da se poveča zmogljivost denitrifikacije. Mešanje denitrifikacijskih in poljubnih bazenov se bo izvajalo z denitrifikacijskimi mešali. Izbira tega tipa mešala omogoča pokrivanje sistema prezračevanja v poljubnih bazenih. Nitrifikacijski bazen zadnje kaskade ima izpust v iztočni kanal, od koder PE cev premera 1.000 mm povezuje prezračevalni bazen z razdelilnikom sekundarnih usedalnikov.
A6: V vsaki kaskadi lahko bazeni DN/N 1,2, DN/N 2,2 in DN/N 3,2 obratujejo bodisi kot bazeni nitrifikacije ali denitrifikacije, kar omogoča visoko prilagodljivost sistema. Vsaka kaskada je sestavljena iz bazena, ki je namenjen izključno za denitrifikacijo, iz bazena za nitrifikacijo in iz pojubnega bazena, ki se lahko bodisi prezračuje in uporabi kot nitrifikacijski bazen ali deluje anoksično kot denifitrifikacijski bazen. Delovanje poljubnega denitrifikacijskega/nitrifikacijskega bazena določa koncentracija amonija v obdelani odpadni vodi. Vsak bazen, ki se lahko prezračuje (vsi nitrifikacijski bazeni, vključno s poljubnimi bazeni), ima ločeno linijo oskrbe z zrakom za vsako linijo. Krmilni ventil za zrak je vgrajen na liniji zraka v vsakem bazenu in krmili pretok zraka v vsak bazen. Vsaka rešetka prenosnika (prenosniki s finimi mehurčki) se lahko krmili z ročnim ventilom. Puhala (turbokompresorji) so frekvenčno vodeni s spremenljivim tlačnim nadzorom; merjenje tlaka je vgrajeno v cev za dovajanje zraka iz kompresorske postaje v strojnici v prezračevalni bazen. Krmilni ventili so vodeni z: – merjenjem koncentracije O2 v vsakem nitrifikacijskem bazenu in želeno vrednostjo kisika ~1,5 mg/l, – merjenjem koncentracije NH4-N v iztočnem kanalu iz biološke stopnje. Obtočne črpalke (propelerske črpalke) so vodene z merjenjem koncentracije NO3-N na prelivnem mestu iz vsakega denitrifikacijskega bazena, npr. merjenje NO3-N v denitrifikacijskem bazenu prve kaskadne linije uravnava obtočno črpalko iz nitrifikacijskega bazena v prvi kaskadni liniji in tako dalje. Odstranjevanje fosforja Fosfor se v večini odstranjuje biološko, viški pa z obarjanjem z FeCl3 pred primarnim usedalnikom v kanalu ali pred sekundarnim usedanjem (v razdelilniku pred sekundarnim usedanjem). Po izračunih bo treba dnevno dodajati približno 244 kg Fe3+ (1,25 m3/d, 40 % FeCl3 raztopine), da se doseže povprečna koncentracija P v prečiščeni odpadni vodi pod 2 mg/l. Razdelilnik in črpališče sekundarnega blata Dovod vode v posamezne sekundarne usedalnike je predviden po štirih podzemnih cevovodih, ki jih je mogoče zapirati z ročnimi ventili. Dovod sekundarnega blata iz sekundarnih usedalnikov v črpališče blata je po štirih podzemnih cevovodih, po katerih se sekundarno blato gravitacijsko odvaja v štiri prelivne komore.
A7: Prelivne komore so opremljene s štirimi elektromotornimi prelivniki, s katerimi se uravnava višina preliva v črpališče blata. V črpališču blata (dva ločena črpalna bazena) je vgrajenih šest potopnih centrifugalnih črpalk, ki črpajo sekundarno blato po šestih tlačnih cevovodih v jašek iztoka sekundarnega blata. Od tu se sekundarno blato gravitacijsko preliva nazaj v prezračevalni bazen. Naknadni usedalnik Izveden je 47,5 m dolg in 10 m širok pravokotni naknadni usedalnik s 4 linijami, s horizontalnim pretokom (globina 4,5 m). Vsaka linija je predvidena za pretok 190 l/s (25 % skupnega pritoka), sistem sekundarnega usedanja pa je hidravlično sposoben prevzeti celotni pretok (760 l/s) v času, ko ena linija ne obratuje, to je 3 linije s pretokom 253 l/s vsaka. Umirjevalno korito dotoka v sekundarni usedalnik tvorijo štiri PE cevi premera 500 mm, ki so vgrajene na dnu štirih iztočnih komor, ki vodijo vodo v ceveh, poravnanih v obliki U, v linije sekundarnih usedalnikov. Cevi v obliki U vstopajo v ozke pritočne komore na vstopu v vsako linijo sekundarnega usedalnika iz dna, tako se omogoči enakomeren pretok na linije. Sekundarno blato se useda na dnu vsake linije sekundarnega usedanja in se potiska v poglobljeni del sekundarnega usedalnika s strgali za blato (eno za vsako linijo). Plavajoče blato oz. plavajoče snovi, ki plavajo na površini linij sekundarnega usedalnika, se usmerijo v korito za odvajanje plavajočega blata, na koncu sekundarnega usedanja s sistemom za odstranjevanje plavajočega blata oz. plavajočih snovi (eden za vsako linijo). Plavajoče blato oz. plavajoče snovi iztekajo v dva črpalna jaška, od tu pa se s potopnima črpalkama črpajo v zalogovnik zgoščenega blata. Sekundarno blato, ki se zbira v vsakem lijaku sekundarnih usedalnikov, gravitira v štiri komore razdelilnika povratnega aktivnega blata; ena komora za vsako linijo. Razdelilnik povratnega aktivnega blata je priključen na razdelilnik sekundarnih usedalnikov. Globinska filtracija Filtracijski kanali so priključeni na stopnjo sekundarnega usedanja. Nameščene so štiri v celoti potopljene filtracijske enote v 4 ločenih kanalih, ena za vsako linijo sekundarnega usedanja. Vsak filter je predviden za pretok 190 l/s (25 % skupnega pritoka), filtracijski sistem pa je sposoben prevzeti celoten pretok (760 l/s) v času, ko en filter/ena linija sekundarnega usedanja ne obratuje.
A8: Prečiščena odpadna voda iz sekundarnega usedalnika teče skozi filter v filtrne segmente. Iz cevi, ki se nahaja v sredini filtrirnega segmenta, teče voda brez suspendiranih delcev v iztočni kanal. Delci se zadržijo na površini filtra. V filtracijskih kanalih se z nivojskimi senzorji sproži avtomatski sistem za povratno spiranje, ki zazna povečanje hidravličnega upora na površini filtra. Filtri za kakršnekoli posege čiščenja ne potrebujejo kemikalij. UV-dezinfekcija Iztočni kanali iz vsake filtrske enote vodijo v skupno kineto, ki je na razpolago za vgradnjo sistema UV-dezinfekcije, če bo to potrebno v prihodnosti. Kanal UV-dezinfekcije je strukturno priključen na filtracijo in fazo sekundarnega usedanja. Če se bo vgradila, se bo za enoto UV-dezinfekcije vgradil nizkotlačni UV-sistem, ki deluje neprekinjeno. Meritev pretoka na iztoku in iztočni objekt Preden očiščena odpadna voda izteka v reko Savo, se pretok meri s pomočjo magnetnega merilca pretoka. Iztočni objekt je izveden kot armiranobetonska konstrukcija, na spodnjem delu in obeh stranskih robovih temeljena na globokem pragu. RAVNANJE Z BLATOM Primarno blato in odvišno biološko blato se bo z namenom stabilizacije blata in zmanjšanja količine blata anaerobno obdelalo v mezofilnem gnilišču (35–40 °C). Postavljeno bo eno gnilišče z razpoložljivo prostornino pribl. 4.400 m3 in zadrževalnim časom blata 29 dni. Pred vstopom v gnilišče je predvideno strojno predzgoščanje. Bioplin se bo dovajal na kogeneracijske enote za sočasno proizvodnjo toplotne in električne energije, ki se bo porabila za procese čiščenja. Pregnito blato iz gnilišča se bo preko zalogovnikov blata dovajalo na dehidracijo. Dehidrirano blato bo prevzemal pooblaščeni prevzemnik. Sprejem grezničnih gošč in blata iz malih komunalnih čistilnih naprav Objekt za sprejem gošče iz greznic je izveden z dvema sprejemnima mestoma, enim za sprejem greznične gošče ter drugim za sprejem maščob in identifikacijskim sistemom. Med iztokom se merita pretok in kakovost (prevodnost pH/T/el.) iztočenega blata. Ustrezne grablje odstranijo tuj material in grobe delce. Poleg objekta za sprejem gošče iz greznic bo zunaj grabelj postavljena tudi postaja za sprejem maščob. Avtomatizirani ventili sprožijo iztok maščob v zalogovnik goste gošče iz greznic v kleti strojnice. Tam se maščobe in gosto blato iz greznic homogenizirajo z mešalnim sistemom in prečrpajo v zalogovnik zgoščenega blata v kleti strojnice za nadaljnjo anaerobno obdelavo. Onesnažen zrak iz obeh bazenov za sprejem gošče iz greznic, iz naprave za sprejem gošče iz greznic in iz pralnika odpadkov iz grabelj se odsesava v zračni biofilter linije vode.
A10: 1.2 Objekti naprave in njihove prostornine
A11: Deževni bazen: 3.960 m3,
A12: Vhodno črpališče: 50 m3
A13: Tri kaskadne linije s po tremi bazeni, skupno 9 bazenov (vsak 15,5 m x 15,5 m in globine 6,25 m = 1.501,56 m): 13.514,06 m3,
A14: Naknadni usedalnik (47,5 m x 10 m x globina 4,5 m): 2.137,5 m3.
A18: 1.3 Rekonstrukcija naprave
A19: =IF(Poročilo_3!B9<>"","Rekonstruirana naprava je pričela z obratovanjem v letu " & Poročilo_3!B9 & " .","") -> Rekonstruirana naprava je pričela z obratovanjem v letu 2015 .
A20: V času poskusnega obratovanja, ki je bil določen od 27.10.2015 do 16.05.2016, so bile izvedene prve meritve odpadnih vod na rekonstruirani komunalni čistilni napravi Kranj (95.000 PE).
A23: 1.4 Priključena naselja in deli naselij, priključene industrijske naprave in njihov delež v skupni letni količini čiščene odpadne vode
A24: Priključena naselja so: Kranj, Kokrica, Mlaka pri Kranju, Britof, Naklo, Malo Naklo, Polica, Strahinj, Cegelnica, Spodnje Bitnje, Zgornje Bitnje, Srednje Bitnje, Šutna, Žabnica, Orehovlje, Predoslje, Milje, Šenčur, Srednja vas pri Šenčurju, Luže, Visoko, Hotemaže, Olševek, Žeje, Bistrica, Spodnje Duplje, Zgornje Duplje, Podbrezje. Priključene industrijske naprave: Savatech d.o.o., Goodyear Dunlop Sava Tires d.o.o., Iskraemeco, podjetja na lokaciji Savska loka 4 (ISD Plast, ISD Livarna, ISD Galvanika, Hidria Perles, Hidria Rotomatika) ter obrati na lokaciji Iskra Labore (Intec Tiv,Grašič d.o.o. cinkanje in prašno lakiranje), Gorenjski Tisk v likvidaciji, Exoterm, Surovina, Dinos in drugi manjši obrati: skupaj ~10 % obremenitve. Podroben seznam podjetij je v zavihku priloge.
A25: Prispevno področje s katerega se odpadne vode odvajajo na novo KČN Kranj vključuje Mestno občino Kranj, Občino Šenčur in Občino Naklo.
A29: 1.5 Opombe
A30: Opomba k obratovanju KČN V letu 2024 Podatek v zavihku Poročilo 3, vrstica 47 je preverjen s strani zavezanca in je točen.
A31: Količina blata je preverjena s strani zavezanca in je točna.
A32: Na CČN smo imeli 23 dni zmanjšanega obratovanja, razlogi za to so: Servis sekundarnega usedalnika s praznjenjem vseh štirih linij zaradi okvare talnih posnemal Servis biološke stopnje, praznjenje bazena N3.3. (popravilo talnih difuzorjev) Servis globinske filtracije na iztoku iz naprave
A34: 1.6 Razlog za izvajanje prvih meritev
A38: 1.7 Dokumenti
A39: 1.7.1 Vodno soglasje (številka in datum)
A41: 1.7.2 Okoljevarstveno dovoljenje za emisije v vode (številka in datum)
A43: 1.7.3 Strokovna ocena vplivov emisije snovi in toplote pri odvajanju odpadnih voda iz 28. člena Uredbe o emisiji snovi in toplote pri odvajanju odpadnih voda v vode in javno kanalizacijo (Ur. l. RS, št. 64/12, 64/14 in 98/15) (evidenčna številka, datum izdaje in izdelovalec)
A45: 1.7.4 Gradbeno dovoljenje (številka, datum izdaje in upravni organ, ki jo je izdal)
A47: 1.7.5 Odločba o poskusnem obratovanju (številka, datum izdaje in upravni organ, ki jo je izdal)

Sheet Poročilo_3
A1: 2. Osnovni podatki o ČN
A3: IME ČN | B3: CČN KRANJ
A4: Zmogljivost (PE): | B4: 95000
A5: Tip naprave: | B5: komunalna
A6: Dodatno čiščenje:
A7: Recipient: | B7: SAVA
A8: Leto pričetka obratovanja: | B8: 2015
A9: Leto začetka obratovanja rekonstruirane naprave: | B9: 2015
A10: Vrednotenje iztoka odpadne vode: | B10: 7 OVD
A11: Predvideno leto prilagoditve obstoječe ČN: | B11: 2015
A12: Hidravlični zadrževalni čas: | B12: 24
A13: NASLOV:
A14: Ulica: | B14: SAVSKA LOKA
A15: Hišna številka: | B15: 31
A16: Poštna številka: | B16: 4000
A17: Pošta: | B17: KRANJ
A18: Občina: | B18: Kranj
A19: KONTAKTNA OSEBA:
A20: Ime in priimek: | B20: ANA ŠIVIC
A21: telefon: | B21: 030 425 451
A22: elektronski naslov: | B22: ana.sivic@komunala-kranj.si
A23: PODROČJE, KI GA POKRIVA ČN:
A24: Naselja, deli naselij: | B24: Kranj, Kokrica, Mlaka pri Kranju, Britof, Naklo, Malo Naklo, Polica, Strahinj, Cegelnica, Spodnje Bitnje, Zgornje Bitnje, Srednje Bitnje, Šutna, Žabnica, Orehovlje, Predoslje, Milje, Šenčur, Srednja vas pri Šenčurju, Luže, Visoko, Hotemaže, Olševek, Žeje, Bistrica, Spodnje Duplje, Zgornje Duplje, Podbrezje
A25: Vrsta kanalizacije: | B25: delno mešan
A26: Izvor odpadnih vod: | B26: javna kanalizacija, industrija ~10 % obremenitve
A27: Večji nepriključeni onesnaževalci: | B27: -
A28: LOKACIJSKE INFORMACIJE:
A29: Iztok na prispevne površine občutljivih območij zaradi evtrofikacije: | B29: NE
A30: Iztok na občutljivo območje (PRISPEVNO območje kopalnih voda): | B30: NE
A31: Iztok na občutljivo območje (VPLIVNO območje kopalnih voda): | B31: NE
A32: Transverzalna (prečna) Mercatorjeva koordinata iztoka | C32: =IF(B32="NE","Na zavihku Poročilo_4 pojasnite zakaj se trajne meritve pretoka ne izvajajo!","") -> 
A33: n: | B33: 120424
A34: e: | B34: 451370
A35: Transverzalna (prečna) Mercatorjeva koordinata CENTROIDA čistilne naprave
A36: n: | B36: 120346
A37: e: | B37: 451357
A38: Transverzalna (prečna) Mercatorjeva koordinata merilnega mesta na IZTOKU
A39: n: | B39: 120390
A40: e: | B40: 451367
A41: Transverzalna (prečna) Mercatorjeva koordinata merilnega mesta na VTOKU
A42: n: | B42: 120350
A43: e: | B43: 451427
A44: PODATKI ZA TEKOČE LETO OBRATOVANJA:
A45: Št. priključenih prebivalcev na ČN: | B45: 54035
A46: Št. priključenih prebivalcev na kanalizacijski sistem: | B46: 54035
A47: Število dni normalnega obratovanja: | B47: 343
A48: Količina čiščene vode (1000 m3): | B48: 4334.824
A49: Čas vzorčenja reprezentativnega vzorca (ure): | B49: 24
A50: Ali se izvajajo trajne meritve pretoka: | B50: DA
A51: Ali je merilno mesto urejeno: | B51: NE
A52: Pojasilo glede neurejenosti merilnega mesta: | B52: izvedba merilnega mesta ne dopušča izvedbe meritev v odprtih kanalih s strani pooblaščenega izvajalca obratovalnega monitoringa

Sheet Aglomeracije
A1: 2.1 Aglomeracije iz katerih se odvajajo komunalne odpadne vode na ČN
A2: ID aglomeracije | B2: ime aglomeracije | C2: velikost aglomeracije (PE) | D2: Ali je aglomeracija priključena na ČN
A3: 20594 | B3: Kranj 2019 | C3: 58617 | D3: DA
A4: 3944 | B4: Šenčur 2019 | C4: 4114 | D4: DA
A5: 3809 | B5: Duplje 2019 | C5: 1106 | D5: DA
A6: 3812 | B6: Bistrica 2019 | C6: 1056 | D6: DA
A7: 3954 | B7: Luže 2019 | C7: 317 | D7: DA
A8: 3956 | B8: Olševek 2019 | C8: 373 | D8: DA
A9: 3805 | B9: Naklo 2019 | C9: 2842 | D9: DA
A10: 3804 | B10: Strahinj 2019 | C10: 732 | D10: DA

Sheet Blato
A1: 2.2 BLATO
C3: SHEMATIČNI PRIKAZ:
A5: ODPADNE SNOVI IZ GREZNIC, KČN IN MKČN
A6: ali se sprejemajo: | B6: DA
A7: količina (m3): | B7: 7951
A8: povpr. suha snov (%): | B8: 0.02
A9: ali gre za ocenjeni odstotek povpr. suhe snovi: | B9: DA
A11: BIOLOŠKO RAZGRADLJIVI ODPADKI
A12: ali se sprejemajo: | B12: NE
A13: količina (m3):
A14: povpr. suha snov (%):
A15: ali gre za ocenjeni odstotek povpr. suhe snovi:
A17: NASTALO BLATO PRED OBDELAVO
A18: letna količina nastalega blata (m3): | B18: 35544
A19: povpr. suha snov nastalega blata (%): | B19: 0.02483
A20: ali gre za ocenjeni odstotek povpr. suhe snovi: | B20: NE
A21: letna količina nastalega blata (tone SS): | B21: =B18*B19 -> 882.55752
A23: ODVOZ NA DRUGO ČN (neobdelano ali obdelano blato) | C23: ODVOZ na ČN | D23: ODVOZ na ČN | E23: ODVOZ na ČN
A24: količina (m3): | B24: =C24+D24+E24 -> 0
A25: povpr. suha snov blata (%): | B25: =IF((C24+D24+E24)>0,((C24*C25)+(D24*D25)+(E24*E25))/(C24+D24+E24),0) -> 0
A26: ali gre za ocenjeni odstotek povpr. suhe snovi: | B26: =IF(OR(C26="DA",D26="DA",E26="DA"),"DA",IF(AND(C26="NE",D26="NE",E26="NE"),"NE",IF(AND(C26="",D26="",E26=""),"","NE"))) -> 
A27: količina (tone SS): | B27: =B24*B25 -> 0 | C27: =C24*C25 -> 0 | D27: =D24*D25 -> 0 | E27: =E24*E25 -> 0
A28: ime ČN na katero se blato odvaža: | B28: =IF(OR(C27>0,D27>0,E27>0),IF(E27=MAX(C27:E27),E28,IF(D27=MAX(C27:E27),D28,C28)),"") -> 
A30: OBDELANO BLATO | C30: KONTROLE BILANCE BLATA:
A31: letna količina blata po obdelavi (tone): | B31: 3315.74 | C31: 1. Iz podanih podatkov sledi, da je količina blata oddanega kot odpadek (celica B46 / celica B32) enaka: | F31: =IF(B32>0,ROUND((B46)/B32,1),0) & " ton." -> 3315,7 ton.
A32: povpr. suha snov v blatu (%): | B32: 0.2943 | C32: Vsako pošiljko blata, ki je oddan kot odpadek, spremlja evidenčni list. Preverite, ali se vpisana količina ujema s količino oddanega odpadnega blata iz tabele 2 iz vašega poročila o nastalih odpadkih in zagotovitvi ravnanja z njimi (ODP-nastajanje). Če se podatki ne ujemajo, jih uskladite.
A33: ali gre za ocenjeni odstotek povpr. suhe snovi: | B33: NE
A34: letna količina blata (tone SS): | B34: =B31*B32 -> 975.822282 | C34: POJASNILO za 1. kontrolo:
A35: ali se izkorišča bioplin: | B35: DA
A36: količina bioplina (1000 m3): | B36: 596.15 | C36: 2. Količina nastalega blata (celica B21) je: | F36: =B21 & " ton SS." -> 882,55752 ton SS.
A37: ali se izvaja dehidracija: | B37: DA | C37: Ta se mora ujemati z vsoto količin blata odpeljanega na drugo ČN (celica B27) in količin blata po obdelavi (celica B34), ki pa znaša: | F37: =B27+B34 & " ton SS." -> 975,822282 ton SS.
C38: Če se podatki ne ujemajo ponovno preverite vpisane podatke. Zaradi zaokroževanja je dovoljeno malenkostno odstopanje.
A39: NADALJNJE RAVNANJE Z BLATOM (odpadkom) | C39: POJASNILO za 2. kontrolo:
A40: na odlagališča (tone SS):
A41: na kmetijske povšine (tone SS): | C41: 3. Vsota količin blata po obdelavi (celica B34) in količin blata, ki je ostalo na ČN iz prejšnjih let (celica B50) je: | F41: =B34+B50 & " ton SS." -> 975,822282 ton SS.
A42: kompostirano in vnešeno na kmetijska zemljišča (tone SS): | C42: Ta se mora ujemati z vsoto količin blata oddanega kot odpadek (celica B46) in blata, ki ostane na ČN (celica B47) kar znaša: | F42: =B46+B47 & " ton SS." -> 975,82 ton SS.
A43: odvažanje na sežig (tone SS): | B43: 894.66 | C43: Če se podatki ne ujemajo, ponovno preverite vpisane podatke. Zaradi zaokroževanja je dovoljeno malenkostno odstopanje.
A44: drugo (tone SS): | B44: 81.16 | C44: POJASNILO za 3. kontrolo:
A45: Pojasnilo na kakšen način se ravna z blatom (v primeru, da ste izponili rubriko "drugo" A44): | B45: Kompostiranje v nerazvrščeni kompost z odlaganjem na deponijo.
A46: celotna količina blata oddanega kot odpadek (tone SS): | B46: =SUM(B40:B44) -> 975.82 | C46: 4. Vsota količin blata po obdelavi (celica B34) in blata odpeljanega na drugo ČN (celica B27) znaša: | F46: =B34+B27 & " ton SS." -> 975,822282 ton SS.
A47: ostanek na ČN (tone SS) | C47: ="Pri obravnavani ČN s " & Poročilo_3!B45 & " priključenih prebivalcev to znese:" -> Pri obravnavani ČN s 54035 priključenih prebivalcev to znese: | F47: =IF(Poročilo_3!B45>0,ROUND((((B34+B27)*1000)/Poročilo_3!B45),1),0) & " kg SS / preb. / leto." -> 18,1 kg SS / preb. / leto.
C48: Povprečje EU je 22,5 kg suhe snovi na enega preb. na leto. V primeru, da vaši podatki niso v okvirju od 10 do 50 kg SS / preb. / leto preverite vpisane podatke.
A49: BLATO, KI JE OSTALO NA ČN IZ PREJŠNJIH LET
A50: količina (tone SS): | C50: POJASNILO za 4. kontrolo:
A54: OBDELAVA BLATA
A55: stabilizacija - anaerobna: | B55: DA
A56: stabilizacija - aerobna: | B56: NE
A57: sušenje - zalogovnik: | B57: NE
A58: sušenje - sušilna greda: | B58: NE

Sheet Poročilo_4
A1: 3. Letna količina čiščene odpadne vode
A2: =IF(AND(Poročilo_1!B3<>"", Poročilo_3!B48<>""),"V letu " & Poročilo_1!B3 & " se je na čistilni napravi čistilo " & Poročilo_3!B48*1000 & " m3 odpadne vode.","") -> V letu 2024 se je na čistilni napravi čistilo 4334824 m3 odpadne vode.
A4: 4. Obseg in vrsta meritev in analiz
A6: 4.1 Nabor parametrov
A7: Obseg laboratorijske analize odvzetih vzorcev odpadne vode je bil določen skladno z določili Okoljevarstvenega dovoljenja št.: 35441-29/2013-6 z dne: 29.11.2013, Odločbah št. 35444-71/2016-2 z dne 16.2.2017 in št. 35472-54/2017-10 z dne 25.7.2018: - vtok: KPK, BPK5, neraztopljene snovi, celotni fosfor, amonijev dušik in celotni dušik, ki je vsota dušika po Kjeldahlu (N-organski+N-NH4), nitratnega dušika (N-NO3) in nitritnega dušika (N-NO2), - iztok: KPK, BPK5, neraztopljene snovi, amonijev dušik, celotni fosfor in celotni dušik, ki je vsota dušika po Kjeldahlu (N-organski+N-NH4), nitratnega dušika (N-NO3) in nitritnega dušika (N-NO2). Skladno z OVD so bili pri štirih meritvah odpadne vode v sklopu vseh meritev na iztoku iz KČN dodani tudi EPRTR parametri: baker, cink in adsorbljivi organski halogeni (AOX): 3., 9., 15., in 20. meritev.
A8: 4.2 Frekvenca vzorčenja in čas vzorčenja
A9: Število meritev odpadne vode in obseg meritev smo določili glede na zahteve Okoljevarstvenega dovoljenja št.: 35441-29/2013-6 z dne: 29.11.2013, Odločbah št. 35444-71/2016-2 z dne 16.2.2017 in št. 35472-54/2017-10 z dne 25.7.2018: 24-krat RV 24 h/leto v sklopu obratovalnega monitoringa. V letu 2024 smo tako izvedli 24 meritev v sklopu obratovalnega monitoringa. Pri izvedbi meritev odpadnih vod na vtoku in iztoku iz ČN v sklopu obratovalnega monitoringa smo odvzeli reprezentativne vzorce v obdobju (RV 24 h) v času pretoka odpadne vode preko ČN. Na vtoku na ČN je bil vzorec odvzet na vstopu v ČN v mehanski stopnji, na iztoku iz ČN pa v iztočnem kanalu.
A10: 4.3 Meritve pretoka odpadne vode v času vzorčenja
B11: FALSE
B12: TRUE
B13: FALSE
A14: Na merilnih mestih na vtoku in iztoku iz ČN ni omogočeno dodatno merjenje pretoka v odprtem kanalu, zato se količina vode v času vzorčenja pridobi s popisom števca zavezanca.
A15: 4.4 Trajne meritve pretoka odpadne vode
A16: =IF(ISBLANK(Poročilo_3!B4),"",IF(Poročilo_3!B4<2000,"Trajne meritve pretoka odpadne vode za ČN manjšo od 2000 PE niso predpisane.","Trajne meritve pretoka odpadne vode za ČN enako ali večjo od 2000 PE so predpisane.")) -> Trajne meritve pretoka odpadne vode za ČN enako ali večjo od 2000 PE so predpisane.
A17: Trajne meritve se izvajajo na vtoku in iztoku iz ČN in so v zavihku Trajne meritve.
A19: 5. Mesto in čas vzorčenja in analiz
A20: Zaporedna številka: 1 Naziv merilnega mesta: vtok na KČN Kranj (mehanska stopnja) GKX = 119863, GKY = 451798 Transverzalna (prečna) Mercatorjeva koordinata: n=120350, e=451427 Zemljišče parc. št.: 581/4 k.o. Drulovka Iztok v vode: /
A21: Zaporedna številka: 2 Naziv merilnega mesta: iztok iz KČN Kranj (na iztoku iz ČN za merilnim mestom za merjenje pretoka) GKX = 119903, GKY = 451738 Transverzalna (prečna) Mercatorjeva koordinata: n= 120390, e=451367 Zemljišče parc. št.: 521/4 k.o. Čirče Iztok v vode-iztok V1: reka Sava GKX = 119937, GKY = 451741 Transverzalna (prečna) Mercatorjeva koordinata: n=120424, 451370 Zemljišče parc. št.: 521/5 k.o. Čirče
A24: 6. Pojasnilo v zvezi z upoštevanjem hidravličnega zadrževalnega časa (16. člen Pravilnika o prvih meritvah in obratovalnem monitoringu odpadnih voda)
A25: Dejanski hidravlični zadržavalni čas je (v urah): 24 Pri izvajanju vzorčenj na vtoku/iztoku smo upoštevali zadrževalni čas 24 h, ki predstavlja dejanski povprečni zadrževalni čas glede na količino obdelane odpadne vode in skupni volumen bazenov KČN (~20.000 m3).
A29: 7. Navedite letnico naslednjega monitoringa odpadnih voda
A30: 2025

Sheet Poročilo_5
A2: 7. UPORABLJENE MERILNE METODE
A3: Zap. št. | B3: Parameter | C3: Meja zaznavnosti (LOD) | D3: Meja določljivosti (LOQ) | E3: Merilna metoda | F3: Akreditirana metoda (DA/NE) | G3: Ime podizvajalca
A4: 1 | B4: Temperatura vode (°C) | E4: SIST DIN 38404-4:2000 | F4: da
A5: 2 | B5: pH | E5: SIST EN ISO 10523: 2012 | F5: da
A6: 3 | B6: Neraztopljene snovi (mg/L) | C6: 1 | D6: 2 | E6: SIST ISO 11923:1998 | F6: da
A7: 26 | B7: Amonij (mg/L) | C7: 0.3 | D7: 0.5 | E7: SIST ISO 5664:1996 | F7: da
A8: 38 | B8: Kemijska potreba po kisiku - KPK (K2Cr2O7) (mg/L) | C8: 3 | D8: 5 | E8: SIST ISO 15705:2010 | F8: da
A9: 39 | B9: Biokemijska potreba po kisiku (BPK5) (mg/L) | C9: 1.7 | D9: 5 | E9: ISO 5815-1:2019 modificirana | F9: da
A10: 33 | B10: Celotni fosfor (mg/L) | C10: 0.03 | D10: 0.05 | E10: SIST EN ISO 6878:2004, poglavje 8, modificiran | F10: da
A11: 60 | B11: Celotni dušik (mg/L) | C11: 0.15 | D11: 1 | E11: SIST EN ISO 20236:2022 | F11: da
A12: 28 | B12: Nitratni dušik (mg/l)
A13: 27 | B13: Nitritni dušik * (mg/l)
A14: 61 | B14: Kjeldahlov dušik (mg/l)
A15: 4 | B15: Usedljive snovi (ml/L) | C15: 0.05 | D15: 0.1 | E15: DIN 38409-H9-2:1980 | F15: da
A16: 200 | B16: Količina vode (popis števca) (m3) | E16: Interna metoda | F16: ne
A17: 1015 | B17: Temperatura aeracijskega bazena (°C) | E17: SIST DIN 38404-4:2000 | F17: da
A18: 3 | B18: Neraztopljene snovi (mg/L) | C18: 1 | D18: 2 | E18: SIST EN 872:2005 | F18: da
A19: 11 | B19: Baker (mg/L) | C19: 0.003 | D19: 0.01 | E19: ISO 17294-2:2023 | F19: da
A20: 11 | B20: Baker (mg/L) | C20: 0.003 | D20: 0.01 | E20: ISO 17294-2:2016 | F20: da
A21: 13 | B21: Cink (mg/L) | C21: 0.003 | D21: 0.01 | E21: ISO 17294-2:2016 | F21: da
A22: 13 | B22: Cink (mg/L) | C22: 0.003 | D22: 0.01 | E22: ISO 17294-2:2023 | F22: da
A23: 43 | B23: Adsorbljivi organski halogeni (AOX) (mg/L) | C23: 0.01 | D23: 0.02 | E23: SIST EN ISO 9562:2005 | F23: da
A24: 12002 | B24: shranjevanje vzorcev | E24: ISO 5667-3:2012 | F24: da
A25: 12001 | B25: vzorčenje | E25: ISO 5667-10: 1996 | F25: da

Sheet Poročilo_6
AE1: Mejna vrednost za amonijev in celotni dušik se uporablja pri temperaturi odpadne vode 12°C in več na iztoku aeracijskega bazena. V primeru nižje temperature se mejna vrednost za citirana parametra ne uporablja in se ju ne vrednoti.
A2: 8. Podatki o meritvah na vtoku in iztoku komunalne ali skupne čistilne naprave | K2: =IF(Poročilo_3!B3="","",Poročilo_3!B3) -> CČN KRANJ
A3: Čas vzorčenja reprezentativnega vzorca (ure): | E3: =IF(Poročilo_3!$B$49="","",Poročilo_3!$B$49) -> 24 | F3: Skupna letna količina odpadne vode na ČN (1000 m3) | M3: =IF(Poročilo_3!B48="","",Poročilo_3!B48) -> 4334.824
A4: Ali se izvajajo trajne meritve pretoka: | E4: =IF(Poročilo_3!B50="","",Poročilo_3!B50) -> DA | F4: Iztok ČN v (ime vodotoka): | J4: =IF(Poročilo_3!B7="","",Poročilo_3!B7) -> SAVA
A5: Število dni obratovanja čistilne naprave (dni): | E5: =IF(Poročilo_3!B47="","",Poročilo_3!B47) -> 343 | F5: Velikost naprave (PE): | I5: =IF(Poročilo_3!B4="","",Poročilo_3!B4) -> 95000
A6: Po katerem členu uredbe KČN se vrednoti iztok odpadne vode: | G6: =IF(Poročilo_3!B10="","",Poročilo_3!B10) -> 7 OVD
A7: Zap. št. | B7: Naziv | D7: Mejna | J7: Št. vzorčenja | Q7: Zap. št. | R7: Naziv | X7: Št. vzorčenja | AE7: Povprečna | AF7: Minim. | AG7: Maks. | AH7: Vsota | AI7: letna količina emisije (kg/leto)
A8: param. | B8: parametra | D8: vrednost | E8: 1 | F8: 2 | G8: 3 | H8: 4 | I8: 5 | J8: 6 | K8: 7 | L8: 8 | M8: 9 | N8: 10 | O8: 11 | P8: 12 | Q8: param. | R8: parametra | S8: 13 | T8: 14 | U8: 15 | V8: 16 | W8: 17 | X8: 18 | Y8: 19 | Z8: 20 | AA8: 21 | AB8: 22 | AC8: 23 | AD8: 24 | AE8: vrednost | AF8: vrednost | AG8: vrednost
A9: identifikacija vzorca | C9: vtok | D9: / | E9: 186 | F9: 3717 | G9: 10498 | H9: 16672 | I9: 20696 | J9: 28128 | K9: 33614 | L9: 40705 | M9: 45781 | N9: 52283 | O9: 59838 | P9: 68578 | Q9: identifikacija vzorca | S9: 71625 | T9: 78150 | U9: 82617 | V9: 85887 | W9: 91269 | X9: 96734 | Y9: 105033 | Z9: 109239 | AA9: 117520 | AB9: 122838 | AC9: 129629 | AD9: 135538 | AE9: / | AF9: / | AG9: / | AH9: / | AI9: /
A10: identifikacija vzorca | C10: iztok | D10: / | E10: 187 | F10: 3718 | G10: 10499 | H10: 16673 | I10: 20697 | J10: 28129 | K10: 33615 | L10: 40706 | M10: 45782 | N10: 52284 | O10: 59839 | P10: 68579 | Q10: identifikacija vzorca | S10: 71626 | T10: 78151 | U10: 82618 | V10: 85888 | W10: 91270 | X10: 96735 | Y10: 105034 | Z10: 109240 | AA10: 117521 | AB10: 122839 | AC10: 129630 | AD10: 135539 | AE10: / | AF10: / | AG10: / | AH10: / | AI10: /
B11: datum vzorč. | C11: vtok | D11: / | E11: 02.01.24 | F11: 16.01.24 | G11: 04.02.24 | H11: 20.02.24 | I11: 04.03.24 | J11: 19.03.24 | K11: 02.04.24 | L11: 17.04.24 | M11: 07.05.24 | N11: 19.05.24 | O11: 04.06.24 | P11: 25.06.24 | R11: datum vzorč. | S11: 07.07.24 | T11: 23.07.24 | U11: 05.08.24 | V11: 18.08.24 | W11: 02.09.24 | X11: 15.09.24 | Y11: 02.10.24 | Z11: 14.10.24 | AA11: 04.11.24 | AB11: 17.11.24 | AC11: 03.12.24 | AD11: 2024-12-15 | AE11: / | AF11: / | AG11: / | AH11: / | AI11: /
B12: (dd.mm.ll) | C12: iztok | D12: / | E12: 03.01.24 | F12: 17.01.24 | G12: 05.02.24 | H12: 21.02.24 | I12: 05.03.24 | J12: 20.03.24 | K12: 03.04.24 | L12: 18.04.24 | M12: 08.05.24 | N12: 20.05.24 | O12: 05.06.24 | P12: 26.06.24 | R12: (dd.mm.ll) | S12: 08.07.24 | T12: 24.07.24 | U12: 06.08.24 | V12: 19.08.24 | W12: 03.09.24 | X12: 16.09.24 | Y12: 03.10.24 | Z12: 15.10.24 | AA12: 05.11.24 | AB12: 18.11.24 | AC12: 04.12.24 | AD12: 2024-12-16 | AE12: / | AF12: / | AG12: / | AH12: / | AI12: /
B13: čas pričetka vzor. | C13: vtok | D13: / | E13: 13:49:00 | F13: 07:00:00 | G13: 07:35:00 | H13: 06:45:00 | I13: 06:45:00 | J13: 07:00:00 | K13: 07:10:00 | L13: 10:10:00 | M13: 06:45:00 | N13: 07:30:00 | O13: 06:45:00 | P13: 09:45:00 | R13: čas vzorč. | S13: 07:35:00 | T13: 06:40:00 | U13: 07:00:00 | V13: 09:30:00 | W13: 06:40:00 | X13: 06:45:00 | Y13: 07:15:00 | Z13: 11:30:00 | AA13: 06:55:00 | AB13: 08:30:00 | AC13: 06:30:00 | AD13: 10:35:00 | AE13: / | AF13: / | AG13: / | AH13: / | AI13: /
B14: (hh:mm) | C14: iztok | D14: / | E14: 13:49:00 | F14: 07:00:00 | G14: 07:35:00 | H14: 06:45:00 | I14: 06:45:00 | J14: 07:00:00 | K14: 07:10:00 | L14: 10:10:00 | M14: 06:45:00 | N14: 07:30:00 | O14: 06:45:00 | P14: 09:45:00 | R14: (hh:mm) | S14: 07:35:00 | T14: 06:40:00 | U14: 07:00:00 | V14: 09:30:00 | W14: 06:40:00 | X14: 06:45:00 | Y14: 07:15:00 | Z14: 11:30:00 | AA14: 06:55:00 | AB14: 08:30:00 | AC14: 06:30:00 | AD14: 10:35:00 | AE14: / | AF14: / | AG14: / | AH14: / | AI14: /
A15: 200 | B15: Količ. odpad. vode | C15: vtok | D15: / | E15: 11450 | F15: 11450 | G15: 8900 | H15: 8300 | I15: 11250 | J15: 9880 | K15: 10800 | L15: 12400 | M15: 13650 | N15: 10000 | O15: 12400 | P15: 13504 | Q15: 200 | R15: Količ. odpad. vode | S15: 12432 | T15: 9950 | U15: 7336 | V15: 9650 | W15: 8700 | X15: 10150 | Y15: 19350 | Z15: 10250 | AA15: 10870 | AB15: 12350 | AC15: 9450 | AD15: 8250 | AE15: 10946.75 | AF15: / | AG15: / | AH15: / | AI15: /
B16: v času vzor. (m3) | C16: iztok | D16: / | E16: 11450 | F16: 11450 | G16: 8900 | H16: 8300 | I16: 11250 | J16: 9880 | K16: 10800 | L16: 12400 | M16: 13650 | N16: 10000 | O16: 12400 | P16: 13504 | R16: v času vzor. (m3) | S16: 12432 | T16: 9950 | U16: 7336 | V16: 9650 | W16: 8700 | X16: 10150 | Y16: 19350 | Z16: 10250 | AA16: 10870 | AB16: 12350 | AC16: 9450 | AD16: 8250 | AE16: 10946.75 | AF16: / | AG16: / | AH16: / | AI16: /
A17: 1 | B17: Temperatura | C17: vtok | D17: / | E17: 10.1 | F17: 9.8 | G17: 9.1 | H17: 10 | I17: 10.4 | J17: 11.3 | K17: 10.4 | L17: 12.8 | M17: 13.8 | N17: 14.2 | O17: 15.3 | P17: 17.1 | Q17: 1 | R17: Temperatura | S17: 18.6 | T17: 19.6 | U17: 19.7 | V17: 19.6 | W17: 20.6 | X17: 16.7 | Y17: 13.4 | Z17: 16.2 | AA17: 15.1 | AB17: 13.3 | AC17: 11.7 | AD17: 10.8 | AE17: 14.1007369 | AF17: 9.1 | AG17: 20.6 | AH17: 339.6
C18: iztok | E18: 10.8 | F18: 10.9 | G18: 10 | H18: 12.2 | I18: 12.3 | J18: 12.8 | K18: 13.2 | L18: 13.2 | M18: 15.5 | N18: 16.8 | O18: 15.6 | P18: 18.3 | S18: 19.1 | T18: 21.3 | U18: 20.8 | V18: 22.5 | W18: 21.4 | X18: 18.1 | Y18: 13.9 | Z18: 15.4 | AA18: 15 | AB18: 12.9 | AC18: 12.8 | AD18: 12.6 | AE18: 15.19867845 | AF18: 10 | AG18: 22.5 | AH18: 367.4 | AI18: =IF($M$3="",0,AE18*$M$3) -> 65883.59612
A19: 2 | B19: pH | C19: vtok | D19: / | E19: 8.5 | F19: 7.8 | G19: 8.1 | H19: 7.8 | I19: 7.9 | J19: 8 | K19: 7.5 | L19: 7.2 | M19: 7.2 | N19: 7.4 | O19: 7.8 | P19: 7.8 | Q19: 2 | R19: pH | S19: 7.5 | T19: 7.7 | U19: 7.8 | V19: 7.4 | W19: 7.6 | X19: 7.7 | Y19: 7.5 | Z19: 7.9 | AA19: 7.9 | AB19: 8.1 | AC19: 7.8 | AD19: 7.7 | AE19: 7.719167028 | AF19: 7.2 | AG19: 8.5 | AH19: 185.6
C20: iztok | E20: 6.9 | F20: 6.9 | G20: 6.9 | H20: 6.8 | I20: 6.8 | J20: 6.9 | K20: 6.9 | L20: 7.1 | M20: 6.7 | N20: 6.8 | O20: 7 | P20: 6.8 | S20: 6.9 | T20: 7 | U20: 6.9 | V20: 6.9 | W20: 6.9 | X20: 7 | Y20: 6.8 | Z20: 6.9 | AA20: 7.3 | AB20: 6.9 | AC20: 6.9 | AD20: 7.2 | AE20: 6.913636467 | AF20: 6.7 | AG20: 7.3 | AH20: 166.1 | AI20: =IF($M$3="",0,AE20*$M$3) -> 29969.39729
A21: 3 | B21: Neraztop. Sn. | C21: vtok | D21: / | E21: 580 | F21: 1000 | G21: 330 | H21: 660 | I21: 450 | J21: 620 | K21: 620 | L21: 390 | M21: 770 | N21: 340 | O21: 360 | P21: 380 | Q21: 3 | R21: Neraztop. Sn. | S21: 570 | T21: 390 | U21: 540 | V21: 490 | W21: 710 | X21: 240 | Y21: 380 | Z21: 490 | AA21: 610 | AB21: 530 | AC21: 490 | AD21: 520 | AE21: 515.6553315 | AF21: 240 | AG21: 1000 | AH21: 12460
B22: (mg/l) | C22: iztok | D22: 35 | E22: 2 | F22: 4.6 | G22: 2.5 | H22: 2.2 | I22: 3.6 | J22: 2 | K22: 2 | L22: 3 | M22: 14 | N22: 2 | O22: 2 | P22: 2 | R22: (mg/l) | S22: 2 | T22: 2 | U22: LOD | V22: 2 | W22: 15 | X22: LOD | Y22: LOD | Z22: LOD | AA22: 2 | AB22: 2 | AC22: 2 | AD22: 2 | AE22: 2.845616562 | AF22: 0 | AG22: 15 | AH22: 64.9 | AI22: =IF($M$3="",0,AE22*$M$3) -> 12335.24697
A23: 26 | B23: Amonijev dušik | C23: vtok | D23: / | E23: 47.8 | F23: 47.9 | G23: 68.1 | H23: 57.4 | I23: 45.4 | J23: 13 | K23: 50.2 | L23: 48.2 | M23: 46.3 | N23: 35.4 | O23: 30.1 | P23: 18.4 | Q23: 26 | R23: Amonijev dušik | S23: 30.9 | T23: 32.9 | U23: 43.6 | V23: 40.1 | W23: 46 | X23: 45.9 | Y23: 11.1 | Z23: 20 | AA23: 47.9 | AB23: 56.7 | AC23: 62.3 | AD23: 47.3 | AE23: 39.84850907 | AF23: 11.1 | AG23: 68.1 | AH23: 992.9
B24: (mg/l) | C24: iztok | D24: 10 | E24: 1.49 | F24: 1.63 | G24: 1.51 | H24: 1.49 | I24: 1.06 | J24: 0.953 | K24: 0.701 | L24: 1.66 | M24: 4.79 | N24: 1.13 | O24: 1.12 | P24: 0.841 | R24: (mg/l) | S24: 0.869 | T24: 0.841 | U24: 0.827 | V24: 0.616 | W24: 0.532 | X24: 0.5 | Y24: 0.644 | Z24: 0.953 | AA24: 0.757 | AB24: 0.588 | AC24: 0.5 | AD24: 1.26 | AE24: 1.159856708 | AF24: 0.3 | AG24: 4.79 | AH24: 27.062 | AI24: =IF($M$3="",0,AE24*$M$3) -> 5027.774694
A25: 38 | B25: KPK | C25: vtok | D25: / | E25: 425 | F25: 1040 | G25: 764 | H25: 791 | I25: 674 | J25: 1710 | K25: 1180 | L25: 576 | M25: 1420 | N25: 1090 | O25: 472 | P25: 779 | Q25: 38 | R25: KPK | S25: 614 | T25: 640 | U25: 954 | V25: 1000 | W25: 968 | X25: 353 | Y25: 479 | Z25: 797 | AA25: 729 | AB25: 728 | AC25: 1040 | AD25: 1330 | AE25: 833.4514734 | AF25: 353 | AG25: 1710 | AH25: 20553
B26: (mg/l) | C26: iztok | D26: 110 | E26: 10 | F26: 20 | G26: 19 | H26: 20 | I26: 18 | J26: 19 | K26: 15 | L26: 17 | M26: 21 | N26: 17 | O26: 15 | P26: 16 | R26: (mg/l) | S26: 17 | T26: 18 | U26: 16 | V26: 20 | W26: 19 | X26: 15 | Y26: 10 | Z26: 15 | AA26: 16 | AB26: 20 | AC26: 18 | AD26: 18 | AE26: 16.76857667 | AF26: 10 | AG26: 21 | AH26: 409 | AI26: =IF($M$3="",0,AE26*$M$3) -> 72688.8286
B27: (%) | C27: učinek | E27: 97.64705882 | F27: 98.07692308 | G27: 97.51308901 | H27: 97.47155499 | I27: 97.32937685 | J27: 98.88888889 | K27: 98.72881356 | L27: 97.04861111 | M27: 98.52112676 | N27: 98.44036697 | O27: 96.8220339 | P27: 97.94608472 | R27: (%) | S27: 97.23127036 | T27: 97.1875 | U27: 98.32285115 | V27: 98 | W27: 98.03719008 | X27: 95.75070822 | Y27: 97.91231733 | Z27: 98.11794228 | AA27: 97.80521262 | AB27: 97.25274725 | AC27: 98.26923077 | AD27: 98.64661654 | AE27: 97.98805603 | AF27: 0 | AG27: 0 | AH27: 0
A28: 39 | B28: BPK5 | C28: vtok | D28: / | E28: 210 | F28: 520 | G28: 380 | H28: 380 | I28: 320 | J28: 840 | K28: 580 | L28: 280 | M28: 700 | N28: 540 | O28: 220 | P28: 380 | Q28: 39 | R28: BPK5 | S28: 300 | T28: 320 | U28: 460 | V28: 500 | W28: 480 | X28: 170 | Y28: 230 | Z28: 380 | AA28: 360 | AB28: 360 | AC28: 520 | AD28: 660 | AE28: 408.8830779 | AF28: 170 | AG28: 840 | AH28: 10090
B29: (mg/l) | C29: iztok | D29: 20 | E29: 5 | F29: 5 | G29: 5 | H29: 5 | I29: 5 | J29: 5 | K29: 5 | L29: 5 | M29: 5 | N29: 5 | O29: 5 | P29: 5 | R29: (mg/l) | S29: 5 | T29: 5 | U29: 5 | V29: 5 | W29: 5 | X29: 5 | Y29: 5 | Z29: 5 | AA29: 5 | AB29: 5 | AC29: 5 | AD29: 5 | AE29: 3.35 | AF29: 1.7 | AG29: 5 | AH29: 80.4 | AI29: =IF($M$3="",0,AE29*$M$3) -> 14521.6604
B30: (%) | C30: učinek | E30: 98.4047619 | F30: 99.35576923 | G30: 99.11842105 | H30: 99.11842105 | I30: 98.953125 | J30: 99.60119048 | K30: 99.42241379 | L30: 98.80357143 | M30: 99.52142857 | N30: 99.37962963 | O30: 98.47727273 | P30: 99.11842105 | R30: (%) | S30: 98.88333333 | T30: 98.953125 | U30: 99.27173913 | V30: 99.33 | W30: 99.30208333 | X30: 98.02941176 | Y30: 98.54347826 | Z30: 99.11842105 | AA30: 99.06944444 | AB30: 99.06944444 | AC30: 99.35576923 | AD30: 99.49242424 | AE30: 99.18069488 | AF30: =IF(IFERROR(MATCH("lod",S30:AD30,0),0)>0,0,MIN(S30:AD30)) -> 98.02941176 | AG30: =MAX(E30:P30,S30:AD30) -> 99.60119048
A31: 33 | B31: Celotni fosfor | C31: vtok | D31: / | E31: 11.2 | F31: 22.2 | G31: 11 | H31: 12.5 | I31: 10.1 | J31: 15.5 | K31: 5.59 | L31: 9.24 | M31: 12.6 | N31: 8.34 | O31: 5.29 | P31: 10.5 | Q31: 0 | R31: Celotni fosfor | S31: 7.1 | T31: 7.3 | U31: 11.6 | V31: 11.3 | W31: 12.8 | X31: 9.16 | Y31: 4.81 | Z31: 11 | AA31: 12.8 | AB31: 9.84 | AC31: 11.9 | AD31: 6.42 | AE31: 10.20033838 | AF31: 4.81 | AG31: 22.2 | AH31: 250.09
B32: (mg/l) | C32: iztok | D32: 2 | E32: 1.16 | F32: 1.2 | G32: 1.41 | H32: 1.38 | I32: 1.69 | J32: 1.35 | K32: 0.79 | L32: 0.72 | M32: 1.66 | N32: 1.38 | O32: 1.42 | P32: 1.37 | R32: (mg/l) | S32: 1.29 | T32: 1.45 | U32: 1.38 | V32: 1.35 | W32: 0.668 | X32: 1.12 | Y32: 0.767 | Z32: 1.26 | AA32: 1.41 | AB32: 1.27 | AC32: 1.24 | AD32: 1.26 | AE32: 1.237350469 | AF32: 0.668 | AG32: 1.69 | AH32: 29.995 | AI32: =IF($M$3="",0,AE32*$M$3) -> 5363.696511
B33: (%) | C33: učinek | E33: 89.64285714 | F33: 94.59459459 | G33: 87.18181818 | H33: 88.96 | I33: 83.26732673 | J33: 91.29032258 | K33: 85.86762075 | L33: 92.20779221 | M33: 86.82539683 | N33: 83.45323741 | O33: 73.15689981 | P33: 86.95238095 | R33: (%) | S33: 81.83098592 | T33: 80.1369863 | U33: 88.10344828 | V33: 88.05309735 | W33: 94.78125 | X33: 87.77292576 | Y33: 84.05405405 | Z33: 88.54545455 | AA33: 88.984375 | AB33: 87.09349593 | AC33: 89.57983193 | AD33: 80.37383178 | AE33: 87.86951547 | AF33: =IF(IFERROR(MATCH("lod",S33:AD33,0),0)>0,0,MIN(S33:AD33)) -> 80.1369863 | AG33: =MAX(E33:P33,S33:AD33) -> 94.78125
A34: 60 | B34: Celotni dušik | C34: vtok | D34: / | E34: 68 | F34: 80 | G34: 85 | H34: 75 | I34: 62 | J34: 79 | K34: 69 | L34: 61 | M34: 58 | N34: 46 | O34: 35 | P34: 63 | Q34: 60 | R34: Celotni dušik | S34: 44 | T34: 46 | U34: 55 | V34: 52 | W34: 63 | X34: 58 | Y34: 20 | Z34: 59 | AA34: 61 | AB34: 73 | AC34: 88 | AD34: 57 | AE34: 58.97747429 | AF34: 20 | AG34: 88 | AH34: 1457
B35: (mg/l) | C35: iztok | D35: 15 | E35: 3.5 | F35: 11 | G35: 6.9 | H35: 10 | I35: 8.9 | J35: 10 | K35: 7.4 | L35: 14 | M35: 22 | N35: 4.3 | O35: 4.9 | P35: 4.3 | R35: (mg/l) | S35: 2.6 | T35: 3.7 | U35: 4.5 | V35: 4.2 | W35: 4 | X35: 3.4 | Y35: 3.3 | Z35: 7.5 | AA35: 5.3 | AB35: 8.8 | AC35: 12 | AD35: 6.8 | AE35: 7.2834342 | AF35: 2.6 | AG35: 22 | AH35: 173.3 | AI35: =IF($M$3="",0,AE35*$M$3) -> 31572.40537
B36: (%) | C36: učinek | E36: 94.85294118 | F36: 86.25 | G36: 91.88235294 | H36: 86.66666667 | I36: 85.64516129 | J36: 87.34177215 | K36: 89.27536232 | L36: 77.04918033 | M36: 62.06896552 | N36: 90.65217391 | O36: 86 | P36: 93.17460317 | R36: (%) | S36: 94.09090909 | T36: 91.95652174 | U36: 91.81818182 | V36: 91.92307692 | W36: 93.65079365 | X36: 94.13793103 | Y36: 83.5 | Z36: 87.28813559 | AA36: 91.31147541 | AB36: 87.94520548 | AC36: 86.36363636 | AD36: 88.07017544 | AE36: 87.65048133 | AF36: =IF(IFERROR(MATCH("lod",S36:AD36,0),0)>0,0,MIN(S36:AD36)) -> 83.5 | AG36: =MAX(E36:P36,S36:AD36) -> 94.85294118
A37: 28 | B37: Nitratni dušik | C37: vtok | D37: / | Q37: 28 | R37: Nitratni dušik | AE37: 0 | AF37: 0 | AG37: 0 | AH37: 0
B38: (mg/l) | C38: iztok | R38: (mg/l) | AE38: 0 | AF38: 0 | AG38: 0 | AH38: 0 | AI38: =IF($M$3="",0,AE38*$M$3) -> 0
A39: 27 | B39: Nitritni dušik | C39: vtok | D39: / | Q39: 27 | R39: Nitritni dušik | AE39: 0 | AF39: 0 | AG39: 0 | AH39: 0
B40: (mg/l) | C40: iztok | R40: (mg/l) | AE40: 0 | AF40: 0 | AG40: 0 | AH40: 0 | AI40: =IF($M$3="",0,AE40*$M$3) -> 0
A41: 61 | B41: Kjeldahlov dušik | C41: vtok | D41: / | Q41: 61 | R41: Kjeldahlov dušik | AE41: 0 | AF41: 0 | AG41: 0 | AH41: 0
B42: (mg/l) | C42: iztok | R42: (mg/l) | AE42: 0 | AF42: 0 | AG42: 0 | AH42: 0 | AI42: =IF($M$3="",0,AE42*$M$3) -> 0
A43: 4 | B43: Usedljive sn. | C43: vtok | D43: / | Q43: 4 | R43: Usedljive sn. | AE43: 0 | AF43: 0 | AG43: 0 | AH43: 0
B44: (ml/l) | C44: iztok | E44: 0.1 | F44: 0.1 | G44: 0.1 | H44: 0.1 | I44: 0.1 | J44: 0.1 | K44: 0.1 | L44: 0.1 | M44: 0.1 | N44: 0.1 | O44: 0.1 | P44: 0.1 | R44: (ml/l) | S44: 0.1 | T44: 0.1 | U44: 0.1 | V44: 0.1 | W44: 0.1 | X44: 0.1 | Y44: 0.1 | Z44: 0.1 | AA44: 0.1 | AB44: 0.1 | AC44: 0.1 | AE44: 0.1 | AF44: 0.1 | AG44: 0.1 | AH44: 2.3 | AI44: =IF($M$3="",0,AE44*$M$3) -> 433.4824
A45: 1015 | B45: Temperatura aeracijskega bazena | C45: vtok | D45: / | Q45: 1015 | R45: Temperatura aeracijskega bazena | AE45: 0 | AF45: 0 | AG45: 0 | AH45: 0
B46: (st C) | C46: iztok | E46: 11.2 | F46: 11.6 | G46: 10.5 | H46: 12.5 | I46: 12.6 | J46: 13.4 | K46: 13.6 | L46: 13.6 | M46: 15.9 | N46: 17 | O46: 16 | P46: 18.5 | R46: (st C) | S46: 18.8 | T46: 20.7 | U46: 20.5 | V46: 21.6 | W46: 20.9 | X46: 18.9 | Y46: 13.9 | Z46: 15.7 | AA46: 15.5 | AB46: 13.4 | AC46: 13.2 | AE46: 15.49862303 | AF46: 10.5 | AG46: 21.6 | AH46: 359.5 | AI46: =IF($M$3="",0,AE46*$M$3) -> 67183.80308
A47: 11 | B47: Baker | C47: vtok | D47: / | Q47: 11 | R47: Baker | AE47: 0 | AF47: 0 | AG47: 0 | AH47: 0
B48: (mg/L) | C48: iztok | D48: 0.5 | G48: LOD | M48: 0.01 | R48: (mg/L) | U48: 0.01 | Z48: LOD | AE48: 0.004147100106 | AF48: 0 | AG48: 0.01 | AH48: 0.013 | AI48: =IF($M$3="",0,AE48*$M$3) -> 17.97694907
A49: 13 | B49: Cink | C49: vtok | D49: / | Q49: 13 | R49: Cink | AE49: 0 | AF49: 0 | AG49: 0 | AH49: 0
B50: (mg/L) | C50: iztok | D50: 2 | G50: 0.027 | M50: 0.025 | R50: (mg/L) | U50: 0.021 | Z50: 0.016 | AE50: 0.0224139426 | AF50: 0.016 | AG50: 0.027 | AH50: 0.089 | AI50: =IF($M$3="",0,AE50*$M$3) -> 97.1604963
A51: 43 | B51: Adsorbljivi organski halogeni (AOX) | C51: vtok | D51: / | Q51: 43 | R51: Adsorbljivi organski halogeni (AOX) | AE51: 0 | AF51: 0 | AG51: 0 | AH51: 0
B52: (mg/L) | C52: iztok | D52: 0.5 | G52: 0.083 | M52: 0.032 | R52: (mg/L) | U52: 0.06 | Z52: 0.08 | AE52: 0.06068517042 | AF52: 0.032 | AG52: 0.083 | AH52: 0.255 | AI52: =IF($M$3="",0,AE52*$M$3) -> 263.0595332

Sheet Poročilo_7
A1: Za izračun letnega povprečja čiščenja mora biti vnesen tudi podatek o številu dni obratovanja ČN (na listu Poročilo_3 celica B47)!
A2: Učinek čiščenja ČN (%) | B2: letni povprečni
A3: Po KPK | B3: =IF(OR(Poročilo_6!AE27=0,Poročilo_6!E5=""),"",Poročilo_6!AE27*Poročilo_6!E5/365) -> 92.08192662
A4: Po BPK5 | B4: =IF(OR(Poročilo_6!AE30=0,Poročilo_6!E5=""),"",Poročilo_6!AE30*Poročilo_6!E5/365) -> 93.20268039
A5: Po celotnem fosforju | B5: =IF(OR(Poročilo_6!AE33=0,Poročilo_6!E5=""),"",Poročilo_6!AE33*Poročilo_6!E5/365) -> 82.5732707
A6: Po celotnem dušiku | B6: =IF(OR(Poročilo_6!AE36=0,Poročilo_6!E5=""),"",Poročilo_6!AE36*Poročilo_6!E5/365) -> 82.36743862
A8: 9. Vrednotenje izmerjene emisije
A9: 9.1 Vrednotenje po 10. členu Uredbe o emisiji snovi in toplote pri odvajanju odpadnih voda v vode in javno kanalizacijo (Uradni list RS, št. 64/12, 64/14 in 98/15) (preseganje mejnih vrednosti)
A10: Vrednotenje emisije snovi in ugotavljanje čezmerne obremenitve okolja za komunalno ČN: 10. in 11. člen, Uredbe o emisiji snovi in toplote pri odvajanju odpadnih vod v vode in javno kanalizacijo (Ur. l. RS, št. 64/12, 64/14, 98/15, 44/22 - ZVO-2, 75/22, 157/22). Pri opravljenih meritvah so bila ugotovljena preseganja mejnih vrednosti parametrov komunalne čistilne naprave, določenih v okoljevarstvenem dovoljenju št.: 35441-29/2013-6 z dne: 29.11.2013, Odločbah št. 35444-71/2016-2 z dne 16.2.2017 in št. 35472-54/2017-10 z dne 25.7.2018 in sicer pri eni predpisani občasni meritvi (pri 9. občasni meritvi). Preseganje je bilo ugotovljeno pri enem parametru, pri parametru celotni dušik (Izmerjena vrednost je bila 22m/l, MV=15mg/l, preseganje je bilo 46%).
A11: Pri vseh ostalih opravljenih meritvah ni bilo ugotovljenega preseganje predpisanih mejnih vrednosti (MV). Pri vseh ostalih meritvah in parametrih, vključno z EPRTR parametri, pa so izmerjene vrednosti ustrezale predpisanim MV.
A12: 9.2 Vrednotenje po 11. členu Uredbe o emisiji snovi in toplote pri odvajanju odpadnih voda v vode in javno kanalizacijo (Uradni list RS, št. 64/12, 64/14 in 98/15) (ugotavljanje čezmerne obremenitve)
A13: KČN, pri kateri je predpisano več kot 12 meritev letno povzroča čezmerno obremenitev okolja, če: ▪ena od izmerjenih vrednosti kateregakoli parametra, za katerega je mejna vrednost določena v Uredbi o odvajanju in čiščenju komunalne odpadne vode (Ur. l. RS, št. 98/15, 76/17, 81/19, 194/21 in 44/22 – ZVO-2) - Uredba KOV, presega predpisano mejno vrednost za več kot 100%, ▪v treh ali več meritvah izmerjena vrednost istega parametra presega predpisano mejno vrednost za 50% in manj, ▪je letna povprečna vrednost učinka čiščenja manjša od predpisane mejne vrednosti letnega povprečnega učinka čiščenja KČN, če je v OVD za to KČN določeno, da se namesto mejne vrednosti parametra onesnaženosti uporablja učinek čiščenja. V letu 2024 je bila izmerjena ena prekoračitev MV glede na OVD, pri eni od 24 predpisanih meritvah. Vsi prekoračeni parametri so parametri Uredbe KOV in noben parameter, ki je določen z uredbo KOV ni bil prekoračen za več kot 100%.
A14: Na podlagi določil navedenega 11. člena in opravljenih meritev se pri komunalni čistilni napravi Kranj, ne ugotavlja čezmerna obremenitev okolja.
A15: Mejna vrednost za amonijev in celotni dušik se uporablja pri temperaturi odpadne vode 12°C in več na iztoku aeracijskega bazena. V primeru nižje temperature se mejna vrednost za citirana parametra ne uporablja in se ju ne vrednoti.

Sheet Parametri (hidden)
A1: IDParameter | B1: ImeParametra | C1: Izrazen | D1: Enota
A2: 73 | B2: 1,1,1 Trikloroetan | C2: Cl | D2: mg/l
A3: 875 | B3: 1,1,1,2-tetrakloroetan | C3: Cl | D3: mg/l
A4: 820 | B4: 1,1,1-trikloro-22 bis (p-klorofenik) etan | D4: mg/l
A5: 98 | B5: 1,1,2,2 - Tetrakloroetan | C5: Cl | D5: mg/l
A6: 874 | B6: 1,1,2-trikloroetan | C6: Cl | D6: mg/l
A7: 873 | B7: 1,1-dikloroetan | C7: Cl | D7: mg/l
A8: 3009 | B8: 1,1-Dikloroeten | C8: Cl | D8: mg/l
A9: 112 | B9: 1,2,3,4,5,6 - Heksaklorocikloheksan (HCH) | C9: HCH | D9: mg/l
A10: 861 | B10: 1,2,3-triklorobenzen | D10: mg/l
A11: 862 | B11: 1,2,4-triklorobenzen | D11: mg/l
A12: 186 | B12: 1,2,4-trimetilbenzen | D12: mg/l
A13: 879 | B13: 1,2-dibromometan | C13: Cl | D13: mg/l
A14: 72 | B14: 1,2-Dikloroetan | C14: Cl | D14: mg/l
A15: 863 | B15: 1,3,5-triklorobenzen | D15: mg/l
A16: 187 | B16: 1,3,5-trimetilbenzen | D16: mg/l
A17: 179 | B17: 1,4-Dioksan | D17: mg/l
A18: 177 | B18: 1-Butanol | D18: mg/l
A19: 174 | B19: 1-Propanol | D19: mg/l
A20: 845 | B20: 2,2',4,4',5,5'-heksaBDE (BDE-153) | D20: mg/l
A21: 846 | B21: 2,2',4,4',5,6'-heksaBDE (BDE-154) | D21: mg/l
A22: 844 | B22: 2,2',4,4',5-pentaBDE (BDE-99) | D22: mg/l
A23: 847 | B23: 2,2',4,4',6-pentaBDE (BDE-100) | D23: mg/l
A24: 843 | B24: 2,2',4,4'-tetraBDE (BDE-47) | D24: mg/l
A25: 3012 | B25: 2,4 DP (diklorprop) | C25: diklorprop | D25: mg/l
A26: 848 | B26: 2,4,4'-triBDE (BDE-28) | D26: mg/l
A27: 178 | B27: 2-Butanol | D27: mg/l
A28: 197 | B28: 2-butanon | D28: mg/l
A29: 175 | B29: 2-Propanol | D29: mg/l
A30: 222 | B30: 4-(1,1,3,3-tetrametil butil) fenol dietoksilat | D30: mg/l
A31: 221 | B31: 4-(1,1,3,3-tetrametil butil) fenol monoetoksilat | D31: mg/l
A32: 220 | B32: 4-nonilfenol | D32: mg/l
A33: 219 | B33: 4-nonilfenol dietoksilat | D33: mg/l
A34: 218 | B34: 4-nonilfenol monoetoksilat | D34: mg/l
A35: 223 | B35: 4-tert-oktilfenol | D35: mg/l
A36: 133 | B36: Acenaften | D36: mg/l
A37: 132 | B37: Acenaftilen | D37: mg/l
A38: 173 | B38: Aceton | D38: mg/l
A39: 198 | B39: Acetonitril | D39: mg/l
A40: 43 | B40: Adsorbljivi organski halogeni (AOX) | C40: Cl | D40: mg/l
A41: 229 | B41: Aklonifen | D41: mg/l
A42: 828 | B42: Akrilamid | D42: mg/l
A43: 801 | B43: Alaklor | D43: mg/l
A44: 86 | B44: Aldrin | D44: mg/l
A45: 856 | B45: alfa-HCH | D45: mg/l
A46: 9 | B46: Aluminij | C46: Al | D46: mg/l
A47: 1090 | B47: Aluminij-faktor(g/t) | C47: Al | D47: g/t
A48: 1091 | B48: Aluminij-faktor(kg/t) | C48: Al | D48: kg/t
A49: 1093 | B49: Aluminij-količina(g) | C49: Al | D49: g
A50: 1092 | B50: Aluminij-količina(kg) | C50: Al | D50: kg
A51: 26 | B51: Amonijev dušik | C51: N | D51: mg/l
A52: 50 | B52: Antimon | C52: Sb | D52: mg/l
A53: 136 | B53: Antracen | D53: mg/l
A54: 1431 | B54: AOX-faktor(g/t) | C54: AOX | D54: g/t
A55: 1430 | B55: AOX-faktor(kg/t) | C55: Cl | D55: kg/t
A56: 1433 | B56: AOX-količina(g) | C56: AOX | D56: g
A57: 1432 | B57: AOX-količina(kg) | C57: Cl | D57: kg
A58: 10 | B58: Arzen | C58: As | D58: mg/l
A59: 1101 | B59: Arzen-faktor(g/t) | C59: As | D59: g/t
A60: 1100 | B60: Arzen-faktor(kg/t) | C60: As | D60: kg/t
A61: 1103 | B61: Arzen-količina(g) | C61: As | D61: g
A62: 1102 | B62: Arzen-količina(kg) | C62: As | D62: kg
A63: 803 | B63: Atrazin | D63: mg/l
A64: 151 | B64: Azbest | D64: mg/l
A65: 11 | B65: Baker | C65: Cu | D65: mg/l
A66: 1111 | B66: Baker-faktor(g/t) | C66: Cu | D66: g/t
A67: 1112 | B67: Baker-faktor(kg/t) | C67: Cu | D67: kg/t
A68: 1113 | B68: Baker-faktor(mg/m2) | C68: Cu | D68: mg/m2
A69: 1110 | B69: Baker-faktor(mg/t) | C69: Cu | D69: mg/t
A70: 1114 | B70: Baker-količina(g) | C70: Cu | D70: g
A71: 1115 | B71: Baker-količina(kg) | C71: Cu | D71: kg
A72: 12 | B72: Barij | C72: Ba | D72: mg/l
A73: 3010 | B73: Bentazon | D73: mg/l
A74: 420 | B74: Benzen | D74: mg/l
A75: 139 | B75: Benzo(a)antracen | D75: mg/l
A76: 141 | B76: Benzo(a)piren | D76: mg/l
A77: 146 | B77: Benzo(b)fluoronaten | D77: mg/l
A78: 142 | B78: Benzo(g,h,i)perilen | D78: mg/l
A79: 140 | B79: Benzo(k)fluoranten | D79: mg/l
A80: 51 | B80: Berilij | C80: Be | D80: mg/l
A81: 857 | B81: beta-HCH | D81: mg/l
A82: 230 | B82: Bifenok | D82: mg/l
A83: 236 | B83: Bifenoks | D83: mg/l
A84: 39 | B84: Biokemijska potreba po kisiku (BPK5) | C84: O2 | D84: mg/l
A85: 7 | B85: Biološka razgradljivost | D85: %
A86: 188 | B86: Bisfenol-A | D86: mg/l
A87: 8 | B87: Bor | C87: B | D87: mg/l
A88: 1081 | B88: Bor-faktor(g/t) | C88: B | D88: g/t
A89: 1080 | B89: Bor-faktor(kg/t) | C89: B | D89: kg/t
A90: 1082 | B90: Bor-količina(g) | C90: B | D90: g
A91: 1083 | B91: Bor-količina(kg) | C91: B | D91: kg
A92: 1391 | B92: BPK5-faktor(g/t) | C92: O2 | D92: g/t
A93: 1390 | B93: BPK5-faktor(kg/t) | C93: O2 | D93: kg/t
A94: 1393 | B94: BPK5-količina(g) | C94: O2 | D94: g
A95: 1392 | B95: BPK5-količina(kg) | C95: O2 | D95: kg
A96: 825 | B96: Bromacil | D96: mg/l
A97: 827 | B97: Bromat | D97: mg/l
A98: 170 | B98: Bromirani difenileter (PBDE) | C98: PBDE | D98: mg/l
A99: 234 | B99: Bromodiklorometan | C99: Cl | D99: mg/l
A100: 877 | B100: bromoklorometan | C100: Cl | D100: mg/l
A101: 1420 | B101: BTX-faktor(g/t) | D101: g/t
A102: 1421 | B102: BTX-faktor(kg/t) | D102: kg/t
A103: 1422 | B103: BTX-količina(g) | D103: g
A104: 1423 | B104: BTX-količina(kg) | D104: kg
A105: 196 | B105: Butilacetat | D105: mg/l
A106: 29 | B106: Celotni cianid | C106: CN | D106: mg/l
A107: 60 | B107: Celotni dušik | C107: N | D107: mg/l
A108: 1600 | B108: Celotni dušik-faktor(g/t) | C108: N | D108: g/t
A109: 1601 | B109: Celotni dušik-faktor(kg/t) | C109: N | D109: kg/t
A110: 1602 | B110: Celotni dušik-količina(g) | C110: N | D110: g
A111: 1603 | B111: Celotni dušik-količina(kg) | C111: N | D111: kg
A112: 33 | B112: Celotni fosfor | C112: P | D112: mg/l
A113: 1330 | B113: Celotni fosfor-faktor(g/t) | C113: P | D113: g/t
A114: 1331 | B114: Celotni fosfor-faktor(kg/t) | C114: P | D114: kg/t
A115: 1332 | B115: Celotni fosfor-količina(g) | C115: P | D115: g
A116: 1333 | B116: Celotni fosfor-količina(kg) | C116: P | D116: kg
A117: 25 | B117: Celotni klor | C117: Cl2 | D117: mg/l
A118: 17 | B118: Celotni krom | C118: Cr | D118: mg/l
A119: 1171 | B119: Celotni krom-faktor(g/t) | C119: Cr | D119: g/t
A120: 1174 | B120: Celotni krom-faktor(kg/t) | C120: Cr | D120: kg/t
A121: 1170 | B121: Celotni krom-faktor(mg/t) | C121: Cr | D121: mg/t
A122: 1172 | B122: Celotni krom-količina(g) | C122: Cr | D122: g
A123: 1173 | B123: Celotni krom-količina(kg) | C123: Cr | D123: kg
A124: 1410 | B124: Celotni ogljikovod.-faktor(g/t) | D124: g/t
A125: 1411 | B125: Celotni ogljikovod.-faktor(kg/t) | D125: kg/t
A126: 1412 | B126: Celotni ogljikovod.-količina(g) | D126: g
A127: 1413 | B127: Celotni ogljikovod.-količina(kg) | D127: kg
A128: 41 | B128: Celotni ogljikovodiki (mineralna olja) | D128: mg/l
A129: 37 | B129: Celotni organski ogljik (TOC) | C129: C | D129: mg/l
A130: 80 | B130: Celotni pesticidi | D130: mg/l
A131: 30 | B131: Cianid - prosti | C131: CN | D131: mg/l
A132: 1300 | B132: Cianid prosti-faktor(g/t) | C132: CN | D132: g/t
A133: 1301 | B133: Cianid prosti-faktor(kg/t) | C133: CN | D133: kg/t
A134: 1302 | B134: Cianid prosti-količina(g) | C134: CN | D134: g
A135: 1303 | B135: Cianid prosti-količina(kg) | C135: CN | D135: kg
A136: 231 | B136: Cibutrin | D136: mg/l
A137: 850 | B137: ciklodienski pesticidi | D137: mg/l
A138: 13 | B138: Cink | C138: Zn | D138: mg/l
A139: 1132 | B139: Cink-faktor(g/kg) | C139: Zn | D139: g/kg
A140: 1131 | B140: Cink-faktor(g/t) | C140: Zn | D140: g/t
A141: 1136 | B141: Cink-faktor(kg/t) | C141: Zn | D141: kg/t
A142: 1133 | B142: Cink-faktor(mg/m2) | C142: Zn | D142: mg/m2
A143: 1130 | B143: Cink-faktor(mg/t) | C143: Zn | D143: mg/t
A144: 1134 | B144: Cink-količina(g) | C144: Zn | D144: g
A145: 1135 | B145: Cink-količina(kg) | C145: Zn | D145: kg
A146: 232 | B146: Cipermetrin | D146: mg/l
A147: 869 | B147: cis-1,2-dikloroeten | C147: Cl | D147: mg/l
A148: 852 | B148: DDD (p,p) | D148: mg/l
A149: 853 | B149: DDE (p,p) | D149: mg/l
A150: 851 | B150: DDT (o,p) | D150: mg/l
A151: 858 | B151: delta-HCH | D151: mg/l
A152: 830 | B152: Desetil-atrazin | D152: mg/l
A153: 206 | B153: Di(2-etilheksil)ftalat (DEHP) | C153: DEHP | D153: mg/l
A154: 143 | B154: Dibenzo(a,h)antracen | D154: mg/l
A155: 878 | B155: dibromoklorometan | C155: Cl | D155: mg/l
A156: 876 | B156: dibromometan | C156: Cl | D156: mg/l
A157: 122 | B157: Dibutil kositer oksid | C157: Sn | D157: mg/l
A158: 189 | B158: Dibutilftalat | D158: mg/l
A159: 190 | B159: Dibutilkositrov kation | C159: Sn | D159: mg/l
A160: 121 | B160: Dibutilkositrove spojine (DBT kation) | C160: DBT kation | D160: mg/l
A161: 87 | B161: Dieldrin | D161: mg/l
A162: 867 | B162: Dietilentriaminopentaocetna kislina (DTPA) | D162: mg/l
A163: 880 | B163: difenilkositrove spojine | D163: mg/l
A164: 76 | B164: Diklorometan | C164: Cl | D164: mg/l
A165: 233 | B165: Diklorvos | D165: mg/l
A166: 83 | B166: Dikofol | D166: mg/l
A167: 150 | B167: Dioksini in furani (PCDD/PCDF) (z) | C167: PCDD/PCDF | D167: mg/l
A168: 883 | B168: dioktil kositrove spojine (dioktilkositrov kation) | C168: DOT | D168: mg/l
A169: 807 | B169: Diuron | D169: mg/l
A170: 12009 | B170: Dnevna proizvodnja (bruto) (t) | C170: bruto | D170: t
A171: 12018 | B171: Dnevna proizvodnja (hl) | D171: hl
A172: 12008 | B172: Dnevna proizvodnja (neto) (t) | C172: neto | D172: t
A173: 12010 | B173: Dnevna proizvodnja (t) | D173: t
A174: 12017 | B174: Dnevna proizvodnja-faktor(hl/m3) | D174: hl/m3
A175: 12011 | B175: Dnevna proizvodnja-faktor(t/m3) | D175: t/m3
A176: 85 | B176: Drini-vsota | D176: mg/l
A177: 61 | B177: Dušik-Kjeldahl | D177: mg/l
A178: 808 | B178: Endosulfan | D178: mg/l
A179: 854 | B179: endosulfan(alfa) | D179: mg/l
A180: 855 | B180: endosulfan(beta) | D180: mg/l
A181: 88 | B181: Endrin | D181: mg/l
A182: 191 | B182: Epiklorhidrin | D182: mg/l
A183: 217 | B183: Escherichia coli | D183: cfu/100 ml
A184: 172 | B184: Etanol | D184: mg/l
A185: 176 | B185: Etilacetat | D185: mg/l
A186: 183 | B186: Etilbenzen | D186: mg/l
A187: 886 | B187: etilendiamin tetraocetna kislina (EDTA) | D187: mg/l
A188: 184 | B188: Etilenoksid | D188: mg/l
A189: 887 | B189: farmacevtske učinkovine (v) | D189: mg/l
A190: 135 | B190: Fenantren | D190: mg/l
A191: 818 | B191: Fenilureazni pesticidi | D191: mg/l
A192: 46 | B192: Fenoli | C192: C6H5OH | D192: mg/l
A193: 1460 | B193: Fenoli-faktor(g/t) | C193: C6H5OH | D193: g/t
A194: 1461 | B194: Fenoli-faktor(kg/t) | C194: C6H5OH | D194: kg/t
A195: 1462 | B195: Fenoli-količina(g) | C195: C6H5OH | D195: g
A196: 1463 | B196: Fenoli-količina(kg) | C196: C6H5OH | D196: kg
A197: 838 | B197: Fenotrin (sumitrin) | D197: mg/l
A198: 821 | B198: Fipronil | D198: mg/l
A199: 137 | B199: Fluoranten | D199: mg/l
A200: 134 | B200: Fluoren | D200: mg/l
... 286 more rows

Sheet Priloge
A1: 10. Priloge
A3: Obvezna vsebina priloge je elektronska in pisna oblika tehnološke sheme procesa.
H4: Pregledna karta prispevnih in občutljivih območij - KČN Kranj se ne nahaja za omenjenem območju.
A5: Shema nove - rekonstruirane ČN | Z5: Orto - foto posnetek lokacije nove - rekonstruirane KČN
BH6: ID_ČN | BI6: čistilna naprava | BJ6: Naselje
BH7: 213 | BI7: ČN Bašelj | BJ7: Bašelj
BH8: 2493 | BI8: CČN Kranj | BJ8: Britof
BH9: 2493 | BI9: CČN Kranj | BJ9: Cegelnica
BH10: 2493 | BI10: CČN Kranj | BJ10: Hotemaže
BH11: 2493 | BI11: CČN Kranj | BJ11: Kokrica
BH12: 2493 | BI12: CČN Kranj | BJ12: Kranj
BH13: 2493 | BI13: CČN Kranj | BJ13: Luže
BH14: 2493 | BI14: CČN Kranj | BJ14: Malo Naklo
BH15: 2493 | BI15: CČN Kranj | BJ15: Milje
BH16: 2493 | BI16: CČN Kranj | BJ16: Mlaka pri Kranju
BH17: 2493 | BI17: CČN Kranj | BJ17: Naklo
BH18: 2493 | BI18: CČN Kranj | BJ18: Olševek
BH19: 2493 | BI19: CČN Kranj | BJ19: Podbrezje
BH20: 2493 | BI20: CČN Kranj | BJ20: Polica
BH21: 2493 | BI21: CČN Kranj | BJ21: Spodnje Bitnje
BH22: 2493 | BI22: CČN Kranj | BJ22: Spodnje Duplje
BH23: 2493 | BI23: CČN Kranj | BJ23: Srednja vas pri Šenčurju
BH24: 2493 | BI24: CČN Kranj | BJ24: Srednje Bitnje
BH25: 2493 | BI25: CČN Kranj | BJ25: Strahinj
BH26: 2493 | BI26: CČN Kranj | BJ26: Šenčur
BH27: 2493 | BI27: CČN Kranj | BJ27: Šutna
BH28: 2493 | BI28: CČN Kranj | BJ28: Visoko
BH29: 2493 | BI29: CČN Kranj | BJ29: Zgornje Bitnje
BH30: 2493 | BI30: CČN Kranj | BJ30: Zgornje Duplje
BH31: 2493 | BI31: CČN Kranj | BJ31: Žabnica
BH32: 2493 | BI32: CČN Kranj | BJ32: Žeje
A50: Pretok skozi tri bazene vsake linije je usmerjen skozi spiralno oblikovano pot. Spodnja slika prikazuje
A51: porazdelitev vtoka in pretok odpadne vode skozi biološko stopnjo.
A79: ZAVEZANCI za INDUSTRIJSKO ODPADNO VODO v LETU 2024/2025
A80: LETO poročanja ARSO | B80: UPRAVLJAVEC | M80: NAPRAVA | T80: PRISTOJNI FINANČNI URAD | V80: IZVAJALEC JAVNE SLUŽBE
B81: ID_Naprave | C81: Naziv zavezanca | D81: Naselje | E81: Ulica | F81: Hišna številka | G81: Poštna številka | H81: Ime pošte | I81: ID občine upravljavca | J81: Naziv občine upravljavca | K81: Matična številka | L81: Davčna številka | M81: Naziv naprave | N81: Ulica | O81: Hišna številka | P81: Poštna številka | Q81: Ime pošte | R81: Številka občine naprave | S81: Občina naprave, ki je prejemnik dajatve | T81: OPOMBA | U81: FINANČNI URAD | V81: ID izvajalca javne službe | W81: Naziv izvajalca javne službe
A82: 2023 | B82: 321 | C82: ARRIVA D.O.O. | D82: KRANJ | E82: ULICA MIRKA VADNOVA | F82: 8 | G82: 4000 | H82: KRANJ | I82: 52 | J82: KRANJ | K82: 5263433 | L82: 31727077 | M82: ARRIVA - ENOTA JESENICE | N82: CESTA MARŠALA TITA | O82: 67 | P82: 4270 | Q82: JESENICE | R82: 41 | S82: JESENICE | U82: 5800 OT JESENICE | V82: 36 | W82: JEKO, JAVNO KOMUNALNO PODJETJE, D.O.O., JESENICE
A83: 2023 | B83: 639 | C83: MARTIN AMBROŽ S.P. | D83: LAHOVČE | E83: LAHOVČE | F83: 101 | G83: 4207 | H83: CERKLJE NA GORENJSKEM | I83: 12 | J83: CERKLJE NA GORENJSKEM | K83: 3251152 | L83: 21532761 | M83: MARTIN AMBROŽ - PE KAMNIK | N83: LJUBLJANSKA CESTA | O83: 15A | P83: 1241 | Q83: KAMNIK | R83: 43 | S83: KAMNIK | U83: 5800 OT JESENICE | V83: 7 | W83: KOMUNALNO PODJETJE KAMNIK D.O.O.
A84: 2023 | B84: 1447 | C84: ARRIVA D.O.O. | D84: KRANJ | E84: ULICA MIRKA VADNOVA | F84: 8 | G84: 4000 | H84: KRANJ | I84: 52 | J84: KRANJ | K84: 5263433 | L84: 31727077 | M84: ARRIVA - SERVISNA DELAVNICA KAMNIK | N84: PEROVO | O84: 30 | P84: 1241 | Q84: KAMNIK | R84: 43 | S84: KAMNIK | U84: 5800 OT JESENICE | V84: 7 | W84: KOMUNALNO PODJETJE KAMNIK D.O.O.
A85: 2023 | B85: 136 | C85: ISKRAEMECO D.D. | D85: KRANJ | E85: SAVSKA LOKA | F85: 4 | G85: 4000 | H85: KRANJ | I85: 52 | J85: KRANJ | K85: 5045193 | L85: 11446340 | M85: ISKRAEMECO | N85: SAVSKA LOKA | O85: 4 | P85: 4000 | Q85: KRANJ | R85: 52 | S85: KRANJ | U85: 5800 OT JESENICE | V85: 40 | W85: KOMUNALA KRANJ, JAVNO PODJETJE, D.O.O.
A86: 2023 | B86: 184 | C86: GOODYEAR DUNLOP SAVA TIRES D.O.O. | D86: KRANJ | E86: ŠKOFJELOŠKA | F86: 6 | G86: 4000 | H86: KRANJ | I86: 52 | J86: KRANJ | K86: 1196367 | L86: 55163637 | M86: GOODYEAR DUNLOP SAVA TIRES | N86: ŠKOFJELOŠKA CESTA | O86: 6 | P86: 4000 | Q86: KRANJ | R86: 52 | S86: KRANJ | U86: 5800 OT JESENICE | V86: 40 | W86: KOMUNALA KRANJ, JAVNO PODJETJE, D.O.O.
A87: 2023 | B87: 261 | C87: INTECTIV D.O.O. | D87: KRANJ | E87: LJUBLJANSKA CESTA | F87: 24 A | G87: 4000 | H87: KRANJ | I87: 52 | J87: KRANJ | K87: 1274767 | L87: 82023883 | M87: INTEC TIV | N87: LJUBLJANSKA CESTA | O87: 24A | P87: 4000 | Q87: KRANJ | R87: 52 | S87: KRANJ | U87: 5800 OT JESENICE | V87: 40 | W87: KOMUNALA KRANJ, JAVNO PODJETJE, D.O.O.
A88: 2023 | B88: 313 | C88: ARRIVA D.O.O. | D88: KRANJ | E88: ULICA MIRKA VADNOVA | F88: 8 | G88: 4000 | H88: KRANJ | I88: 52 | J88: KRANJ | K88: 5263433 | L88: 31727077 | M88: ARRIVA - ENOTA KRANJ | N88: ULICA MIRKA VADNOVA | O88: 8 | P88: 4000 | Q88: KRANJ | R88: 52 | S88: KRANJ | U88: 5800 OT JESENICE | V88: 40 | W88: KOMUNALA KRANJ, JAVNO PODJETJE, D.O.O.
A89: 2023 | B89: 346 | C89: ZVEZDA SPT D.O.O. | D89: KRANJ | E89: SAVSKA CESTA | F89: 46 | G89: 4000 | H89: KRANJ | I89: 52 | J89: KRANJ | K89: 2245850 | L89: 61058823 | M89: ZVEZDA SPT | N89: SAVSKA CESTA | O89: 46 | P89: 4000 | Q89: KRANJ | R89: 52 | S89: KRANJ | U89: 5800 OT JESENICE | V89: 40 | W89: KOMUNALA KRANJ, JAVNO PODJETJE, D.O.O.
A90: 2023 | B90: 353 | C90: IOTC D.O.O. | D90: KRANJ | E90: SAVSKA LOKA | F90: 4 | G90: 4000 | H90: KRANJ | I90: 52 | J90: KRANJ | K90: 5477166 | L90: 13939785 | M90: IOTC | N90: SAVSKA LOKA | O90: 4 | P90: 4000 | Q90: KRANJ | R90: 52 | S90: KRANJ | U90: 5800 OT JESENICE | V90: 40 | W90: KOMUNALA KRANJ, JAVNO PODJETJE, D.O.O.
A91: 2023 | B91: 456 | C91: ISKRA ESV D.D., KRANJ | D91: KRANJ | E91: SAVSKA LOKA | F91: 4 | G91: 4000 | H91: KRANJ | I91: 52 | J91: KRANJ | K91: 5045070 | L91: 16454120 | M91: ISKRA VZDRŽEVANJE | N91: SAVSKA LOKA | O91: 4 | P91: 4000 | Q91: KRANJ | R91: 52 | S91: KRANJ | U91: 5800 OT JESENICE | V91: 40 | W91: KOMUNALA KRANJ, JAVNO PODJETJE, D.O.O.
A92: 2023 | B92: 625 | C92: HALAL GUDA DONER KEBAP D.O.O. | D92: MLAKA | E92: GOLNIŠKA CESTA | F92: 102 | G92: 4000 | H92: KRANJ | I92: 52 | J92: KRANJ | K92: 6508863 | L92: 40433358 | M92: HALAL GUDA DONER KEBAP | N92: GOLNIŠKA CESTA | O92: 102 | P92: 4000 | Q92: KRANJ | R92: 52 | S92: KRANJ | U92: 5800 OT JESENICE | V92: 40 | W92: KOMUNALA KRANJ, JAVNO PODJETJE, D.O.O.
A93: 2023 | B93: 637 | C93: GALVANIZACIJA, KAJA RAČIČ S.P. | E93: ŠKOFJELOŠKA CESTA | F93: 42 | G93: 4000 | H93: KRANJ | I93: 52 | J93: KRANJ | K93: 8675945 | L93: 68713339 | M93: GALVANIZACIJA RAČIČ | N93: ŠKOFJELOŠKA CESTA | O93: 42 | P93: 4000 | Q93: KRANJ | R93: 52 | S93: KRANJ | U93: 5800 OT JESENICE | V93: 40 | W93: KOMUNALA KRANJ, JAVNO PODJETJE, D.O.O.
A94: 2023 | B94: 653 | C94: KOMUNALA KRANJ, JAVNO PODJETJE, D.O.O. | D94: KRANJ | E94: ULICA MIRKA VADNOVA | F94: 1 | G94: 4000 | H94: KRANJ | I94: 52 | J94: KRANJ | K94: 5067731 | L94: 72495421 | M94: ODLAGALIŠČE TENETIŠE | N94: TENETIŠE | O94: b.š. | P94: 4000 | Q94: KRANJ | R94: 52 | S94: KRANJ | U94: 5800 OT JESENICE | V94: 40 | W94: KOMUNALA KRANJ, JAVNO PODJETJE, D.O.O.
A95: 2023 | B95: 704 | C95: ZAVOD ZA ŠPORT KRANJ | D95: KRANJ | E95: PARTIZANSKA CESTA | F95: 37 | G95: 4000 | H95: KRANJ | I95: 52 | J95: KRANJ | K95: 1488783 | L95: 23453958 | M95: KOMPLEKS KOPALIŠČ - ŠPORTNI CENTER KRANJ | N95: PARTIZANSKA CESTA | O95: 37 | P95: 4000 | Q95: KRANJ | R95: 52 | S95: KRANJ | U95: 5800 OT JESENICE | V95: 40 | W95: KOMUNALA KRANJ, JAVNO PODJETJE, D.O.O.
A96: 2023 | B96: 719 | C96: TISKANA VEZJA LUZNAR D.O.O. | D96: HRASTJE | E96: HRASTJE | F96: 52G | G96: 4000 | H96: KRANJ | I96: 52 | J96: KRANJ | K96: 3638898 | L96: 20260261 | M96: TISKANA VEZJA LUZNAR | N96: HRASTJE | O96: 52G | P96: 4000 | Q96: KRANJ | R96: 52 | S96: KRANJ | U96: 5800 OT JESENICE | V96: 40 | W96: KOMUNALA KRANJ, JAVNO PODJETJE, D.O.O.
A97: 2023 | B97: 726 | C97: HOBOTNICA D.O.O. , KRANJ | D97: BRITOF | E97: BRITOF | F97: 204 | G97: 4000 | H97: KRANJ | I97: 52 | J97: KRANJ | K97: 5904030 | L97: 30207541 | M97: HOBOTNICA - KRANJ | N97: BRITOF | O97: 204 | P97: 4000 | Q97: KRANJ | R97: 52 | S97: KRANJ | U97: 5800 OT JESENICE | V97: 40 | W97: KOMUNALA KRANJ, JAVNO PODJETJE, D.O.O.
A98: 2023 | B98: 754 | C98: PKI BARVANJE D.O.O. | D98: KRANJ | E98: LJUBLJANSKA CESTA | F98: 24A | G98: 4000 | H98: KRANJ | I98: 52 | J98: KRANJ | K98: 8291683 | L98: 41255542 | M98: PKI BARVANJE -POVRŠINSKA OBDELAVA KOVIN | N98: LJUBLJANSKA CESTA | O98: 24A | P98: 4000 | Q98: KRANJ | R98: 52 | S98: KRANJ | T98: NOV ZAVEZANEC (prej GRAŠIČ PRAŠNO LAKIRANJE D.O.O.; DŠ 80814115) | U98: 5800 OT JESENICE | V98: 40 | W98: KOMUNALA KRANJ, JAVNO PODJETJE, D.O.O.
A99: 2023 | B99: 844 | C99: TRELLEBORG SLOVENIJA D.O.O. | D99: KRANJ | E99: ŠKOFJELOŠKA | F99: 6 | G99: 4000 | H99: KRANJ | I99: 52 | J99: KRANJ | K99: 1661205 | L99: 13267949 | M99: SAVATECH | N99: ŠKOFJELOŠKA CESTA | O99: 6 | P99: 4000 | Q99: KRANJ | R99: 52 | S99: KRANJ | U99: 5800 OT JESENICE | V99: 40 | W99: KOMUNALA KRANJ, JAVNO PODJETJE, D.O.O.
A100: 2023 | B100: 867 | C100: ISKRA ISD - GALVANIKA D.O.O. | D100: KRANJ | E100: SAVSKA LOKA | F100: 4 | G100: 4000 | H100: KRANJ | I100: 52 | J100: KRANJ | K100: 2168863 | L100: 57308071 | M100: ISKRA ISD - GALVANIKA | N100: SAVSKA LOKA | O100: 4 | P100: 4000 | Q100: KRANJ | R100: 52 | S100: KRANJ | U100: 5800 OT JESENICE | V100: 40 | W100: KOMUNALA KRANJ, JAVNO PODJETJE, D.O.O.
A101: 2023 | B101: 1243 | C101: EKOL D.O.O. | D101: STRAŽIŠČE | E101: LAZE | F101: 18A | G101: 4000 | H101: KRANJ | I101: 52 | J101: KRANJ | K101: 5368545 | L101: 13555588 | M101: EKOL PREMIČNA NAPRAVA ZA ODSTRANJEVANJE ODPADKOV | N101: LAZE | O101: 18A | P101: 4000 | Q101: KRANJ | R101: 52 | S101: KRANJ | U101: 5800 OT JESENICE | V101: 40 | W101: KOMUNALA KRANJ, JAVNO PODJETJE, D.O.O.
A102: 2023 | B102: 1257 | C102: NIKOTRANS & BEGRAD D.O.O. | D102: STRAŽIŠČE | E102: SAVSKA LOKA | F102: 23 | G102: 4000 | H102: KRANJ | I102: 52 | J102: KRANJ | K102: 5664381 | L102: 67123783 | M102: NIKOTRANS & BEGRAD | N102: SAVSKA LOKA | O102: 23 | P102: 4000 | Q102: KRANJ | R102: 52 | S102: KRANJ | U102: 5800 OT JESENICE | V102: 40 | W102: KOMUNALA KRANJ, JAVNO PODJETJE, D.O.O.
A103: 2023 | B103: 1376 | C103: FORBIZ D.O.O. | E103: STRUŽEVO | F103: 88 | G103: 4000 | H103: KRANJ | I103: 52 | J103: KRANJ | K103: 2092026 | L103: 88470334 | M103: AVTOPRALNICA FORBIZ | N103: STRUŽEVO | O103: 88 | P103: 4000 | Q103: KRANJ | R103: 52 | S103: KRANJ | U103: 5800 OT JESENICE | V103: 40 | W103: KOMUNALA KRANJ, JAVNO PODJETJE, D.O.O.
A104: 2023 | B104: 1396 | C104: EKOREL D.O.O. | D104: STRAŽIŠČE | E104: LAZE | F104: 18A | G104: 4000 | H104: KRANJ | I104: 52 | J104: KRANJ | K104: 5368545 | L104: 13555588 | M104: EKOL SKLADIŠČE NEVARNIH ODPADKOV KRANJ | N104: SAVSKA CESTA | O104: 46 | P104: 4000 | Q104: KRANJ | R104: 52 | S104: KRANJ | U104: 5800 OT JESENICE | V104: 40 | W104: KOMUNALA KRANJ, JAVNO PODJETJE, D.O.O.
A105: 2023 | B105: 1397 | C105: GORENJSKA GRADBENA DRUŽBA D.D. | D105: KRANJ | E105: JEZERSKA CESTA | F105: 20 | G105: 4000 | H105: KRANJ | I105: 52 | J105: KRANJ | K105: 5143802 | L105: 10466762 | M105: GGD - GRAMOZNICA BISTRICA | N105: JEZERSKA CESTA | O105: 20 | P105: 4000 | Q105: KRANJ | R105: 52 | S105: KRANJ | U105: 5800 OT JESENICE | V105: 40 | W105: KOMUNALA KRANJ, JAVNO PODJETJE, D.O.O.
A106: 2023 | B106: 1420 | C106: CONTITECH SLOVENIJA D.O.O. | D106: STRAŽIŠČE | E106: ŠKOFJELOŠKA CESTA | F106: 6 | G106: 4000 | H106: KRANJ | I106: 52 | J106: KRANJ | K106: 1196359 | L106: 31374794 | M106: CONTITECH SLOVENIJA | N106: ŠKOFJELOŠKA CESTA | O106: 6 | P106: 4000 | Q106: KRANJ | R106: 52 | S106: KRANJ | U106: 5800 OT JESENICE | V106: 40 | W106: KOMUNALA KRANJ, JAVNO PODJETJE, D.O.O.
A107: 2023 | B107: 421 | C107: ARRIVA D.O.O. | D107: KRANJ | E107: ULICA MIRKA VADNOVA | F107: 8 | G107: 4000 | H107: KRANJ | I107: 52 | J107: KRANJ | K107: 5263433 | L107: 31727077 | M107: ARRIVA - DELAVNICA MARIBOR | N107: MELJSKA CESTA | O107: 97 | P107: 2000 | Q107: MARIBOR | R107: 70 | S107: MARIBOR | U107: 5800 OT JESENICE | V107: 20 | W107: NIGRAD, KOMUNALNO PODJETJE D.O.O.
A108: 2023 | B108: 560 | C108: GALVANIZACIJA ZUPANČIČ D.O.O. | D108: PIVKA | E108: PIVKA | F108: 18 | G108: 4202 | H108: NAKLO | I108: 82 | J108: NAKLO | K108: 3466981 | L108: 80414877 | M108: GALVANIZACIJA ZUPANČIČ | N108: PIVKA | O108: 18 | P108: 4202 | Q108: NAKLO | R108: 82 | S108: NAKLO | U108: 5800 OT JESENICE | V108: 40 | W108: KOMUNALA KRANJ, JAVNO PODJETJE, D.O.O.
A109: 2023 | B109: 1504 | C109: GORENJSKA GRADBENA DRUŽBA D.D. | D109: KRANJ | E109: JEZERSKA CESTA | F109: 20 | G109: 4000 | H109: KRANJ | I109: 52 | J109: KRANJ | K109: 5143802 | L109: 10466762 | M109: ASFALTNA BAZA GAČA | N109: PODBREŽJE | O109: 265 | P109: 4202 | Q109: NAKLO | R109: 82 | S109: NAKLO | T109: Zavezanec s 1.1.2024 | U109: 5800 OT JESENICE | V109: 40 | W109: KOMUNALA KRANJ, JAVNO PODJETJE, D.O.O.
A110: 2023 | B110: 1196 | C110: KOMUNALA KRANJ, JAVNO PODJETJE, D.O.O. | D110: KRANJ | E110: ULICA MIRKA VADNOVA | F110: 1 | G110: 4000 | H110: KRANJ | I110: 52 | J110: KRANJ | K110: 5067731 | L110: 72495421 | M110: VODARNA BAŠELJ | N110: BAŠELJ | O110: 190 | P110: 4202 | Q110: PREDDVOR | R110: 95 | S110: PREDDVOR | U110: 5800 OT JESENICE | V110: 40 | W110: KOMUNALA KRANJ, JAVNO PODJETJE, D.O.O.
A111: 2023 | B111: 686 | C111: AVTO KADIVEC JANEZ KADIVEC S.P. | D111: ŠENČUR | E111: PIPANOVA CESTA | F111: 46 | G111: 4208 | H111: ŠENČUR | I111: 117 | J111: ŠENČUR | K111: 5886446 | L111: 53992059 | M111: AVTOSERVIS KADIVEC | N111: POSLOVNA CONA A3 | O111: 46 | P111: 4208 | Q111: ŠENČUR | R111: 117 | S111: ŠENČUR | T111: Ni VEČ ZAVEZANEC z 31. 12. 2023 | U111: 5800 OT JESENICE | V111: 40 | W111: KOMUNALA KRANJ, JAVNO PODJETJE, D.O.O.
A112: 2023 | B112: 1517 | C112: JURČIČ & CO., D.O.O. | D112: ŠENČUR | E112: POSLOVNA CONA A | F112: 45 | G112: 4208 | H112: ŠENČUR | I112: 117 | J112: ŠENČUR | K112: 5599741 | L112: 90769414 | M112: AVTOPRALNICA JURČIČ & CO | N112: POSLOVNA CONA A | O112: 45 | P112: 4208 | Q112: ŠENČUR | R112: 117 | S112: ŠENČUR | U112: 5800 OT JESENICE | V112: 40 | W112: KOMUNALA KRANJ, JAVNO PODJETJE, D.O.O.

Sheet Trajne meritve
A1: Podatki o mesečnih meritvah iztoka - CČN Kranj
B2: pretok | F2: KPK laboratorij | I2: BPK5 laboratorij | L2: fosfor | O2: fosfor laboratorij | R2: amoniak | U2: amoniak laboratorij | X2: TOC | AA2: TN | AD2: TN laboratorij | AG2: usedljive snovi laboratorij | AJ2: nerazt.snovi laboratorij | AM2: pH laboratorij | AP2: prevodnost laboratorij
B3: kumul. | C3: povpr. | D3: max. | E3: min. | F3: povpr. | G3: max. | H3: min. | I3: povpr. | J3: max. | K3: min. | L3: povpr. | M3: max. | N3: min. | O3: povpr. | P3: max. | Q3: min. | R3: povpr. | S3: max. | T3: min. | U3: povpr. | V3: max. | W3: min. | X3: povpr. | Y3: max. | Z3: min. | AA3: povpr. | AB3: max. | AC3: min. | AD3: povpr. | AE3: max. | AF3: min. | AG3: povpr. | AH3: max. | AI3: min. | AJ3: povpr. | AK3: max. | AL3: min. | AM3: povpr. | AN3: max. | AO3: min. | AP3: povpr. | AQ3: max. | AR3: min.
B4: m3 | C4: m3/dan | D4: m3/dan | E4: m3/dan | F4: mgO2/l | G4: mgO2/l | H4: mgO2/l | I4: mgO2/l | J4: mgO2/l | K4: mgO2/l | L4: mgPO4P/l | M4: mgPO4P/l | N4: mgPO4P/l | O4: mgPO4P/l | P4: mgPO4P/l | Q4: mgPO4P/l | R4: mgNH4N/l | S4: mgNH4N/l | T4: mgNH4N/l | U4: mgNH4N/l | V4: mgNH4N/l | W4: mgNH4N/l | X4: mgC/l | Y4: mgC/l | Z4: mgC/l | AA4: mgN/l | AB4: mgN/l | AC4: mgN/l | AD4: mgN/l | AE4: mgN/l | AF4: mgN/l | AG4: ml/l | AH4: ml/l | AI4: ml/l | AJ4: mg/l | AK4: mg/l | AL4: mg/l | AP4: µS/cm | AQ4: µS/cm | AR4: µS/cm
A5: 2024-01-01 | B5: 403000 | C5: 13000 | D5: 22600 | E5: 9300 | F5: 19.8 | G5: 24.5 | H5: 21.5 | I5: 1 | J5: 2 | K5: 0 | L5: 1.39 | M5: 2 | N5: 0.82 | O5: 2.11 | P5: 2.59 | Q5: 1.74 | R5: 2.02 | S5: 12.95 | T5: 0 | U5: 1.82 | V5: 5.56 | W5: 0.81 | X5: 11.63 | Y5: 112.01 | Z5: 0.28 | AA5: 12.33 | AB5: 27.09 | AC5: 2.61 | AD5: 10.68 | AE5: 20.9 | AF5: 5.2 | AG5: 0 | AH5: 1 | AI5: 0 | AJ5: 2 | AK5: 6 | AL5: 0 | AM5: 7.19 | AN5: 7.34 | AO5: 7 | AP5: 766 | AQ5: 1131 | AR5: 497
A6: 2024-02-01 | B6: 351700 | C6: 12128 | D6: 21300 | E6: 7500 | F6: 20 | G6: 24.2 | H6: 15.5 | I6: 1.3 | J6: 2 | K6: 0 | L6: 1.52 | M6: 2.62 | N6: 1.01 | O6: 1.68 | P6: 1.89 | Q6: 1.48 | R6: 1.66 | S6: 15.07 | T6: 0 | U6: 1.88 | V6: 7.22 | W6: 0.05 | X6: 8.97 | Y6: 40.54 | Z6: 6.1 | AA6: 11.54 | AB6: 25.33 | AC6: 2.56 | AD6: 10.08 | AE6: 18 | AF6: 3.69 | AG6: 0 | AH6: 0.1 | AI6: 0 | AJ6: 1.1 | AK6: 3 | AL6: 0 | AM6: 7.22 | AN6: 7.32 | AO6: 7.05 | AP6: 736 | AQ6: 911 | AR6: 523
A7: 2024-03-01 | B7: 388300 | C7: 12526 | D7: 19700 | E7: 8100 | F7: 19.5 | G7: 22.3 | H7: 14.8 | I7: 1.4 | J7: 2 | K7: 1 | L7: 1.72 | M7: 2.3 | N7: 1.07 | O7: 1.76 | P7: 2.08 | Q7: 1.37 | R7: 1.04 | S7: 5.44 | T7: 0 | U7: 0.62 | V7: 1.22 | W7: 0.13 | X7: 8.87 | Y7: 53.85 | Z7: 6.03 | AA7: 11.86 | AB7: 24.74 | AC7: 0.09 | AD7: 9.44 | AE7: 15 | AF7: 6.03 | AG7: 0 | AH7: 0 | AI7: 0 | AJ7: 1.6 | AK7: 3 | AL7: 0 | AM7: 7.14 | AN7: 7.33 | AO7: 6.78 | AP7: 694 | AQ7: 808 | AR7: 506
A8: 2024-04-01 | B8: 304000 | C8: 10133 | D8: 19700 | E8: 6800 | F8: 19.6 | G8: 21.8 | H8: 16.8 | I8: 1.4 | J8: 2 | K8: 1 | L8: 1.91 | M8: 2.97 | N8: 1.03 | O8: 1.8 | P8: 2.21 | Q8: 1.24 | R8: 0.56 | S8: 6.52 | T8: 0 | U8: 0.37 | V8: 1.21 | W8: 0.07 | X8: 8.44 | Y8: 14.06 | Z8: 6.65 | AA8: 11.65 | AB8: 21.59 | AC8: 4.65 | AD8: 9.13 | AE8: 14.6 | AF8: 6.83 | AG8: 0 | AH8: 0 | AI8: 0 | AJ8: 1.3 | AK8: 2 | AL8: 0 | AM8: 7.27 | AN8: 7.51 | AO8: 7.12 | AP8: 720 | AQ8: 832 | AR8: 563
A9: 2024-05-01 | B9: 333400 | C9: 10755 | D9: 18600 | E9: 2600 | F9: 18.6 | G9: 20.5 | H9: 16.5 | I9: 1.3 | J9: 2 | K9: 1 | L9: 1.76 | M9: 2.75 | N9: 1.16 | O9: 1.99 | P9: 2.23 | Q9: 1.7 | R9: 0.41 | S9: 3.13 | T9: 0 | U9: 0.57 | V9: 0.82 | W9: 0.41 | X9: 7.97 | Y9: 13.13 | Z9: 6.87 | AA9: 7.71 | AB9: 14.45 | AC9: 3.53 | AD9: 6.37 | AE9: 8.41 | AF9: 4.8 | AG9: 0 | AH9: 0 | AI9: 0 | AM9: 7.33 | AN9: 7.54 | AO9: 7.11 | AP9: 741 | AQ9: 820 | AR9: 634
A10: 2024-06-01 | B10: 330898 | C10: 11030 | D10: 20700 | E10: 6800 | F10: 17.9 | G10: 20.2 | H10: 16 | I10: 2 | J10: 4 | K10: 1 | L10: 1.81 | M10: 2.24 | N10: 1 | O10: 1.88 | P10: 2.11 | Q10: 1.47 | R10: 0.17 | S10: 1.29 | T10: 0 | U10: 0.16 | V10: 0.26 | W10: 0.12 | X10: 7.24 | Y10: 13.13 | Z10: 5.13 | AA10: 5.83 | AB10: 12.23 | AC10: 2.32 | AD10: 4.96 | AE10: 6.15 | AF10: 3 | AG10: 0 | AH10: 0 | AI10: 0 | AJ10: 1.5 | AK10: 3 | AL10: 1 | AM10: 7.53 | AN10: 7.72 | AO10: 7.38 | AP10: 764 | AQ10: 923 | AR10: 522
A11: 2024-07-01 | B11: 267600 | C11: 8632 | D11: 13700 | E11: 6100 | F11: 17.9 | G11: 20.2 | H11: 16.2 | I11: 2.4 | J11: 3 | K11: 1 | L11: 1.8 | M11: 2.66 | N11: 0.9 | O11: 1.99 | P11: 2.39 | Q11: 1.59 | R11: 0.3 | S11: 1.53 | T11: 0 | U11: 0.19 | V11: 0.57 | W11: 0.08 | X11: 7.8 | Y11: 9.47 | Z11: 6.87 | AA11: 5.21 | AB11: 11.76 | AC11: 1.72 | AD11: 4.24 | AE11: 5.48 | AF11: 2.82 | AG11: 0 | AH11: 0 | AI11: 0 | AJ11: 0.5 | AK11: 2 | AL11: 0 | AM11: 7.26 | AN11: 7.51 | AO11: 7.08 | AP11: 831 | AQ11: 977 | AR11: 701
A12: 2024-08-01 | B12: 249700 | C12: 8055 | D12: 13500 | E12: 6200 | F12: 17.9 | G12: 20.7 | H12: 16.4 | I12: 1.8 | J12: 3 | K12: 1 | L12: 1.44 | M12: 3.65 | N12: 0.09 | O12: 1.68 | P12: 2.23 | Q12: 1.03 | R12: 0.43 | S12: 1.47 | T12: 0 | U12: 0.21 | V12: 0.52 | W12: 0.07 | X12: 7.35 | Y12: 10.62 | Z12: 0.34 | AA12: 4.64 | AB12: 8.25 | AC12: 2.46 | AD12: 4.41 | AE12: 5.6 | AF12: 3.41 | AG12: 0 | AH12: 0 | AI12: 0 | AJ12: 0.8 | AK12: 2 | AL12: 0 | AM12: 7.36 | AN12: 7.51 | AO12: 7.26 | AP12: 861 | AQ12: 959 | AR12: 794
A13: 2024-09-01 | B13: 362600 | C13: 12087 | D13: 21400 | E13: 7400 | F13: 18.7 | G13: 24.2 | H13: 14.8 | I13: 2.1 | J13: 4 | K13: 1 | L13: 1.14 | M13: 2.18 | N13: 0.06 | O13: 1.37 | P13: 2.15 | Q13: 0.88 | R13: 0.54 | S13: 3.72 | T13: 0 | U13: 0.2 | V13: 0.41 | W13: 0.04 | X13: 7.48 | Y13: 9.44 | Z13: 5.17 | AA13: 4.63 | AB13: 11.43 | AC13: 1.03 | AD13: 4.92 | AE13: 8.17 | AF13: 3.13 | AG13: 0 | AH13: 0 | AI13: 0 | AJ13: 0.5 | AK13: 1 | AL13: 0 | AM13: 7.34 | AN13: 7.59 | AO13: 7.05 | AP13: 830 | AQ13: 1013 | AR13: 662
A14: 2024-10-01 | B14: 397800 | C14: 12832 | D14: 21100 | E14: 7200 | F14: 15.8 | G14: 17.8 | H14: 13 | I14: 1.9 | J14: 4 | K14: 1 | L14: 1.72 | M14: 3.15 | N14: 0.54 | O14: 1.69 | P14: 2.31 | Q14: 0.87 | R14: 0.52 | S14: 3.35 | T14: 0 | U14: 0.27 | V14: 1 | W14: 0.03 | X14: 6.78 | Y14: 21.75 | Z14: 4 | AA14: 6.84 | AB14: 15.37 | AC14: 0.08 | AD14: 6.36 | AE14: 9.49 | AF14: 3.49 | AG14: 0 | AH14: 0 | AI14: 0 | AJ14: 0.7 | AK14: 1 | AL14: 0 | AM14: 7.33 | AN14: 7.51 | AO14: 7.13 | AP14: 777 | AQ14: 918 | AR14: 465
A15: 2024-11-01 | B15: 288900 | C15: 9630 | D15: 19600 | E15: 6500 | F15: 19.3 | G15: 23.3 | H15: 17 | I15: 2 | J15: 3 | K15: 1 | L15: 1.76 | M15: 2.51 | N15: 1.08 | O15: 1.85 | P15: 2.14 | Q15: 1.47 | R15: 0.72 | S15: 3.18 | T15: 0.04 | U15: 0.22 | V15: 0.42 | W15: 0.09 | X15: 7.89 | Y15: 9.22 | Z15: 6.93 | AA15: 8.91 | AB15: 19.74 | AC15: 2.8 | AD15: 8.14 | AE15: 14.5 | AF15: 4.15 | AG15: 0 | AH15: 0 | AI15: 0 | AJ15: 0.6 | AK15: 1 | AL15: 0 | AM15: 7.3 | AN15: 7.71 | AO15: 7.02 | AP15: 951 | AQ15: 1034 | AR15: 875
A16: 2024-12-01 | B16: 258700 | C16: 8876 | D16: 18400 | E16: 3700 | F16: 19.5 | G16: 20.5 | H16: 18.2 | I16: 2.3 | J16: 3 | K16: 2 | L16: 1.86 | M16: 2.3 | N16: 1.1 | O16: 1.82 | P16: 2.02 | Q16: 1.48 | R16: 0.9 | S16: 2.78 | T16: 0.1 | U16: 0.47 | V16: 0.96 | W16: 0.18 | X16: 7.87 | Y16: 12.06 | Z16: 7.03 | AA16: 7.96 | AB16: 20.38 | AC16: 3.14 | AD16: 9.26 | AE16: 14.2 | AF16: 5.13 | AG16: 0 | AH16: 0 | AI16: 0 | AJ16: 0.9 | AK16: 1 | AL16: 0 | AM16: 7.25 | AN16: 7.31 | AO16: 7.17 | AP16: 971 | AQ16: 1098 | AR16: 818
A17: kumul.24 | B17: =SUM(B5:B16) -> 3936598
A18: povp.24 | C18: =AVERAGE(C5:C16) -> 10807 | F18: =AVERAGE(F5:F16) -> 18.70833333 | I18: =AVERAGE(I5:I16) -> 1.741666667 | L18: =AVERAGE(L5:L16) -> 1.6525 | O18: =AVERAGE(O5:O16) -> 1.801666667 | R18: =AVERAGE(R5:R16) -> 0.7725 | U18: =AVERAGE(U5:U16) -> 0.5816666667 | X18: =AVERAGE(X5:X16) -> 8.190833333 | AA18: =AVERAGE(AA5:AA16) -> 8.259166667 | AD18: =AVERAGE(AD5:AD16) -> 7.3325 | AG18: =AVERAGE(AG5:AG16) -> 0 | AJ18: =AVERAGE(AJ5:AJ16) -> 1.045454545 | AM18: =AVERAGE(AM5:AM16) -> 7.293333333 | AP18: =AVERAGE(AP5:AP16) -> 803.5
A19: max.24 | D19: =MAX(D5:D16) -> 22600 | G19: =MAX(G5:G16) -> 24.5 | J19: =MAX(J5:J16) -> 4 | M19: =MAX(M5:M16) -> 3.65 | P19: =MAX(P5:P16) -> 2.59 | S19: =MAX(S5:S16) -> 15.07 | V19: =MAX(V5:V16) -> 7.22 | Y19: =MAX(Y5:Y16) -> 112.01 | AB19: =MAX(AB5:AB16) -> 27.09 | AE19: =MAX(AE5:AE16) -> 20.9 | AH19: =MAX(AH5:AH16) -> 1 | AK19: =MAX(AK5:AK16) -> 6 | AN19: =MAX(AN5:AN16) -> 7.72 | AQ19: =MAX(AQ5:AQ16) -> 1131
A20: min.24 | E20: =MIN(E5:E16) -> 2600 | H20: =MIN(H5:H16) -> 13 | K20: =MIN(K5:K16) -> 0 | N20: =MIN(N5:N16) -> 0.06 | Q20: =MIN(Q5:Q16) -> 0.87 | T20: =MIN(T5:T16) -> 0 | W20: =MIN(W5:W16) -> 0.03 | Z20: =MIN(Z5:Z16) -> 0.28 | AC20: =MIN(AC5:AC16) -> 0.08 | AF20: =MIN(AF5:AF16) -> 2.82 | AI20: =MIN(AI5:AI16) -> 0 | AL20: =MIN(AL5:AL16) -> 0 | AO20: =MIN(AO5:AO16) -> 6.78 | AR20: =MIN(AR5:AR16) -> 465
A21: št.meritev | B21: online | F21: 92 | I21: 92 | L21: online | O21: 91 | R21: online | U21: 91 | X21: online | AA21: online | AD21: 91 | AG21: 91 | AJ21: 88 | AM21: 92 | AP21: 92
A38: Podatki o mesčnih meritvah dotoka - CČN Kranj
B39: pretok | F39: temp. | I39: pH | L39: KPK laboratorij | O39: BPK5 laboratorij | R39: fosfor | U39: fosfor laboratorij | X39: amonij | AA39: amonij laboratorij | AD39: usedljive snovi laboratorij | AG39: nerazt.snovi laboratorij | AJ39: cel.N laboratorij | AM39: prevodnost laboratorij
B40: kumul. | C40: povpr. | D40: max. | E40: min. | F40: povpr. | G40: max. | H40: min. | I40: povpr. | J40: max. | K40: min. | L40: povpr. | M40: max. | N40: min. | O40: povpr. | P40: max. | Q40: min. | R40: povpr. | S40: max. | T40: min. | U40: povpr. | V40: max. | W40: min. | X40: povpr. | Y40: max. | Z40: min. | AA40: povpr. | AB40: max. | AC40: min. | AD40: povpr. | AE40: max. | AF40: min. | AG40: povpr. | AH40: max. | AI40: min. | AJ40: povpr. | AK40: max. | AL40: min. | AM40: povpr. | AN40: max. | AO40: min.
B41: m3 | C41: m3/dan | D41: m3/dan | E41: m3/dan | F41: st.C | G41: st.C | H41: st.C | L41: mgO2/l | M41: mgO2/l | N41: mgO2/l | O41: mgO2/l | P41: mgO2/l | Q41: mgO2/l | R41: mgPO4P/l | S41: mgPO4P/l | T41: mgPO4P/l | U41: mgPO4P/l | V41: mgPO4P/l | W41: mgPO4P/l | X41: mgNH4N/l | Y41: mgNH4N/l | Z41: mgNH4N/l | AA41: mgNH4N/l | AB41: mgNH4N/l | AC41: mgNH4N/l | AD41: ml/l | AE41: ml/l | AF41: ml/l | AG41: mg/l | AH41: mg/l | AI41: mg/l | AJ41: mgN/l | AK41: mgN/l | AL41: mgN/l | AM41: µS/cm | AN41: µS/cm | AO41: µS/cm
A42: 2024-01-01 | B42: 431408 | C42: 13916 | D42: 24064 | E42: 8560 | F42: 9.5 | G42: 11.6 | H42: 5.5 | I42: 7.98 | J42: 8.44 | K42: 7.34 | L42: 841 | M42: 1508 | N42: 427 | O42: 309 | P42: 500 | Q42: 154 | R42: 4.17 | S42: 17.16 | T42: 0.21 | U42: 13.46 | V42: 27.8 | W42: 6.44 | X42: 37.7 | Y42: 91.72 | Z42: 0.15 | AA42: 42.63 | AB42: 50.9 | AC42: 32 | AD42: 40.8 | AE42: 150 | AF42: 10 | AG42: 539 | AH42: 1080 | AI42: 173 | AJ42: 72.7 | AK42: 110 | AL42: 51 | AM42: 1009 | AN42: 1165 | AO42: 794
A43: 2024-02-01 | B43: 360272 | C43: 12423 | D43: 20280 | E43: 8936 | F43: 9.7 | G43: 11.8 | H43: 7.3 | I43: 7.99 | J43: 8.46 | K43: 7.45 | L43: 688 | M43: 1014 | N43: 267 | O43: 299 | P43: 600 | Q43: 110 | R43: 4.6 | S43: 14.23 | T43: 0.33 | U43: 10.66 | V43: 23.1 | W43: 4.16 | X43: 44.04 | Y43: 105.15 | Z43: 5.3 | AA43: 45.18 | AB43: 59 | AC43: 11.7 | AD43: 11.4 | AE43: 18 | AF43: 4.5 | AG43: 390 | AH43: 680 | AI43: 120 | AJ43: 64.7 | AK43: 87.9 | AL43: 23.3 | AM43: 1038 | AN43: 1336 | AO43: 488
A44: 2024-03-01 | B44: 415880 | C44: 13415 | D44: 19416 | E44: 9800 | F44: 10.8 | G44: 13.1 | H44: 7.4 | I44: 7.96 | J44: 8.62 | K44: 7.46 | L44: 617 | M44: 851 | N44: 321 | O44: 286 | P44: 450 | Q44: 150 | R44: 6.46 | S44: 29.97 | T44: 0.45 | U44: 8.53 | V44: 11.9 | W44: 4.97 | X44: 40.5 | Y44: 92.2 | Z44: 4.21 | AA44: 36.59 | AB44: 52 | AC44: 15.1 | AD44: 12.9 | AE44: 15 | AF44: 9.5 | AG44: 325 | AH44: 480 | AI44: 193 | AJ44: 55.9 | AK44: 77.9 | AL44: 30.4 | AM44: 904 | AN44: 1163 | AO44: 533
A45: 2024-04-01 | B45: 343472 | C45: 11449 | D45: 20264 | E45: 8992 | F45: 12.6 | G45: 14.7 | H45: 8.2 | I45: 7.44 | J45: 8.44 | K45: 7.11 | L45: 963 | M45: 1399 | N45: 447 | O45: 423 | P45: 600 | Q45: 160 | R45: 2.61 | S45: 8.32 | T45: 0.24 | U45: 11.77 | V45: 18.5 | W45: 7.01 | X45: 49.21 | Y45: 80.28 | Z45: 7.17 | AA45: 47.51 | AB45: 65 | AC45: 27.6 | AD45: 15.8 | AE45: 38 | AF45: 2.5 | AG45: 527 | AH45: 967 | AI45: 240 | AJ45: 72.9 | AK45: 102 | AL45: 41.4 | AM45: 1028 | AN45: 1240 | AO45: 745
A46: 2024-05-01 | B46: 387264 | C46: 12492 | D46: 19472 | E46: 3096 | F46: 14.3 | G46: 16.1 | H46: 12.5 | I46: 7.47 | J46: 9.12 | K46: 7.14 | L46: 790 | M46: 958 | N46: 474 | O46: 253 | P46: 300 | Q46: 160 | R46: 3.93 | S46: 8.09 | T46: 0.21 | U46: 10.78 | V46: 14 | W46: 6.86 | X46: 44.36 | Y46: 78.6 | Z46: 8.89 | AA46: 39.27 | AB46: 55 | AC46: 25.8 | AD46: 7 | AE46: 10 | AF46: 2.5 | AJ46: 62.7 | AK46: 81.3 | AL46: 41.3 | AM46: 986 | AN46: 1086 | AO46: 845
A47: 2024-06-01 | B47: 393328 | C47: 13111 | D47: 21384 | E47: 9392 | F47: 16.4 | G47: 18.2 | H47: 13.4 | I47: 7.72 | J47: 9.51 | K47: 7.16 | L47: 856 | M47: 1420 | N47: 530 | O47: 322 | P47: 500 | Q47: 160 | R47: 4.32 | S47: 16.22 | T47: 0.21 | U47: 10.78 | V47: 13.6 | W47: 6.7 | X47: 42.16 | Y47: 73.18 | Z47: 6.55 | AA47: 37.13 | AB47: 46 | AC47: 22.8 | AD47: 8.8 | AE47: 17 | AF47: 1.9 | AG47: 352 | AH47: 573 | AI47: 227 | AJ47: 56.2 | AK47: 69.2 | AL47: 36.9 | AM47: 1064 | AN47: 1340 | AO47: 805
A48: 2024-07-01 | B48: 319488 | C48: 10306 | D48: 15784 | E48: 6816 | F48: 19 | G48: 22 | H48: 14.8 | I48: 7.55 | J48: 8.25 | K48: 7.12 | L48: 811 | M48: 989 | N48: 600 | O48: 426 | P48: 800 | Q48: 260 | R48: 5.39 | S48: 17.9 | T48: 0.27 | U48: 11.41 | V48: 14.62 | W48: 9.06 | X48: 45.35 | Y48: 134.07 | Z48: 6.95 | AA48: 34.23 | AB48: 42 | AC48: 20.8 | AD48: 10.6 | AE48: 16.6 | AF48: 6 | AG48: 372 | AH48: 520 | AI48: 260 | AJ48: 55 | AK48: 69.3 | AL48: 39.2 | AM48: 1078 | AN48: 1334 | AO48: 764
A49: 2024-08-01 | B49: 249368 | C49: 8044 | D49: 12320 | E49: 6248 | F49: 20.3 | G49: 22.5 | H49: 19.4 | I49: 7.57 | J49: 7.91 | K49: 6.8 | L49: 757 | M49: 1004 | N49: 290 | O49: 410 | P49: 600 | Q49: 200 | R49: 2.92 | S49: 14.25 | T49: 0.21 | U49: 11.35 | V49: 14.61 | W49: 9.07 | X49: 44.52 | Y49: 80.64 | Z49: 6.1 | AA49: 38.07 | AB49: 55 | AC49: 28 | AD49: 14.1 | AE49: 19 | AF49: 10 | AG49: 403 | AH49: 480 | AI49: 227 | AJ49: 60.4 | AK49: 83.5 | AL49: 47.4 | AM49: 1208 | AN49: 1471 | AO49: 1056
A50: 2024-09-01 | B50: 375448 | C50: 12515 | D50: 21456 | E50: 7296 | F50: 18.5 | G50: 21.4 | H50: 13.8 | I50: 7.64 | J50: 8.09 | K50: 6.92 | L50: 871 | M50: 1370 | N50: 554 | O50: 386 | P50: 700 | Q50: 220 | R50: 3.43 | S50: 15.09 | T50: 0.21 | U50: 11.41 | V50: 15.9 | W50: 8.59 | X50: 34.59 | Y50: 102.57 | Z50: 0.28 | AA50: 38.81 | AB50: 51 | AC50: 23.5 | AD50: 13.8 | AE50: 18 | AF50: 10 | AG50: 384 | AH50: 700 | AI50: 207 | AJ50: 61.7 | AK50: 78.5 | AL50: 42.9 | AM50: 1127 | AN50: 1351 | AO50: 791
A51: 2024-10-01 | B51: 434320 | C51: 14010 | D51: 21080 | E51: 8896 | F51: 15.8 | G51: 17.9 | H51: 11.4 | I51: 7.7 | J51: 8.4 | K51: 7.15 | L51: 766 | M51: 1208 | N51: 450 | O51: 390 | P51: 750 | Q51: 160 | R51: 3.95 | S51: 12.3 | T51: 0.23 | U51: 9.3 | V51: 11.93 | W51: 5.68 | X51: 36.31 | Y51: 107.92 | Z51: 1.88 | AA51: 33.44 | AB51: 56 | AC51: 10 | AD51: 13.3 | AE51: 19 | AF51: 5.5 | AG51: 353 | AH51: 573 | AI51: 207 | AJ51: 52.1 | AK51: 77.6 | AL51: 25.6 | AM51: 1035 | AN51: 1314 | AO51: 406
A52: 2024-11-01 | B52: 313784 | C52: 10459 | D52: 19112 | E52: 8232 | F52: 13.6 | G52: 16.6 | H52: 7.4 | I52: 7.71 | J52: 8.24 | K52: 7.15 | L52: 848 | M52: 1188 | N52: 375 | O52: 404 | P52: 600 | Q52: 140 | R52: 5.72 | S52: 16.27 | T52: 0.22 | U52: 10.49 | V52: 14.8 | W52: 5.91 | X52: 50.5 | Y52: 106.93 | Z52: 8.83 | AA52: 42.75 | AB52: 63 | AC52: 29 | AD52: 13.4 | AE52: 18 | AF52: 6 | AG52: 443 | AH52: 667 | AI52: 160 | AJ52: 63.7 | AK52: 88.8 | AL52: 45.3 | AM52: 1197 | AN52: 1621 | AO52: 928
A53: 2024-12-01 | B53: 310792 | C53: 10026 | D53: 18288 | E53: 7480 | F53: 11.2 | G53: 13.5 | H53: 6.2 | I53: 7.77 | J53: 8.34 | K53: 7.2 | L53: 894 | M53: 1095 | N53: 652 | O53: 458 | P53: 600 | Q53: 350 | R53: 4.76 | S53: 15.65 | T53: 0.24 | U53: 11.2 | V53: 14 | W53: 7.4 | X53: 50.59 | Y53: 95.51 | Z53: 12.45 | AA53: 48.39 | AB53: 62 | AC53: 30.7 | AD53: 14.5 | AE53: 19 | AF53: 12 | AG53: 440 | AH53: 573 | AI53: 340 | AJ53: 68.3 | AK53: 83.8 | AL53: 44.5 | AM53: 1326 | AN53: 1734 | AO53: 1154
A54: kumul.24 | B54: =SUM(B42:B53) -> 4334824
A55: povp.24 | C55: =AVERAGE(C42:C53) -> 11847.16667 | F55: =AVERAGE(F42:F53) -> 14.30833333 | I55: =AVERAGE(I42:I53) -> 7.708333333 | L55: =AVERAGE(L42:L53) -> 808.5 | O55: =AVERAGE(O42:O53) -> 363.8333333 | R55: =AVERAGE(R42:R53) -> 4.355 | U55: =AVERAGE(U42:U53) -> 10.92833333 | X55: =AVERAGE(X42:X53) -> 43.31916667 | AA55: =AVERAGE(AA42:AA53) -> 40.33333333 | AD55: =AVERAGE(AD42:AD53) -> 14.7 | AG55: =AVERAGE(AG42:AG53) -> 411.6363636 | AJ55: =AVERAGE(AJ42:AJ53) -> 62.19166667 | AM55: =AVERAGE(AM42:AM53) -> 1083.333333
A56: max.24 | D56: =MAX(D42:D53) -> 24064 | G56: =MAX(G42:G53) -> 22.5 | J56: =MAX(J42:J53) -> 9.51 | M56: =MAX(M42:M53) -> 1508 | P56: =MAX(P42:P53) -> 800 | S56: =MAX(S42:S53) -> 29.97 | V56: =MAX(V42:V53) -> 27.8 | Y56: =MAX(Y42:Y53) -> 134.07 | AB56: =MAX(AB42:AB53) -> 65 | AE56: =MAX(AE42:AE53) -> 150 | AH56: =MAX(AH42:AH53) -> 1080 | AK56: =MAX(AK42:AK53) -> 110 | AN56: =MAX(AN42:AN53) -> 1734
A57: min.24 | E57: =MIN(E42:E53) -> 3096 | H57: =MIN(H42:H53) -> 5.5 | K57: =MIN(K42:K53) -> 6.8 | N57: =MIN(N42:N53) -> 267 | Q57: =MIN(Q42:Q53) -> 110 | T57: =MIN(T42:T53) -> 0.21 | W57: =MIN(W42:W53) -> 4.16 | Z57: =MIN(Z42:Z53) -> 0.15 | AC57: =MIN(AC42:AC53) -> 10 | AF57: =MIN(AF42:AF53) -> 1.9 | AI57: =MIN(AI42:AI53) -> 120 | AL57: =MIN(AL42:AL53) -> 23.3 | AO57: =MIN(AO42:AO53) -> 406
A58: št.meritev | B58: online | F58: online | I58: online | L58: 89 | O58: 89 | R58: online | U58: 89 | X58: online | AA58: 90 | AD58: 90 | AG58: 87 | AJ58: 89 | AM58: 90
A75: Dnevni - mesečni podatki o trajnih meritvah za CČN Kranj
J77: VTOK | N77: Septika | O77: VTOK | S77: VTOK | AD77: VTOK | AK77: Mehansko predčiščenje | AU77: IZTOK | BC77: IZTOK | BN77: IZTOK | BU77: Deževni bazen
A78: Slovenčeva 95, 1000 Ljubljana Slovenia | J78: Pretok | N78: Pretok | O78: KPK | P78: BPK | Q78: Neraztopljene snovi | R78: Usedljive snovi | S78: Temperatura | V78: pH | Z78: Fosfor | AD78: Prevodnost | AE78: Celotni dušik | AF78: NO3-N | AG78: Amoniak | AK78: KPK | AL78: BPK | AM78: Neraztopljene snovi | AN78: Usedljive snovi | AO78: Fosfor | AP78: pH | AQ78: Prevodnost | AR78: Celotni dušik | AS78: NO3-N | AT78: Amoniak | AU78: Pretok | AY78: KPK | AZ78: BPK | BA78: Neraztopljene snovi | BB78: Usedljive snovi | BC78: pH | BD78: Fosfor | BH78: Totalni ogljik | BK78: Totalni dušik | BN78: Prevodnost | BO78: Celotni dušik | BP78: NO3-N | BQ78: Amoniak | BU78: KPK | BV78: BPK | BW78: Neraztopljene snovi | BX78: Usedljive snovi | BY78: Fosfor | BZ78: pH | CA78: Prevodnost | CB78: Celotni dušik | CC78: NO3-N | CD78: Amoniak
I80: Tag: | J80: LT 05.01 in LT 05.02 | N80: FT 15.01 | O80: Laboratori | P80: Laboratori | Q80: Laboratori | R80: Laboratori | S80: AT 05.03 | V80: pH 05.03 | Y80: Laboratori | Z80: PO4P 05.06 | AC80: Laboratori | AD80: Laboratori | AE80: Laboratori | AF80: Laboratori | AG80: NH4N 08.10 | AJ80: Laboratori | AK80: Laboratori | AL80: Laboratori | AM80: Laboratori | AN80: Laboratori | AO80: Laboratori | AP80: Laboratori | AQ80: Laboratori | AR80: Laboratori | AS80: Laboratori | AT80: Laboratori | AU80: FT 13.01 | AY80: Laboratori | AZ80: Laboratori | BA80: Laboratori | BB80: Laboratori | BC80: Laboratori | BD80: PO4P 07.02 | BG80: Laboratori | BH80: TOC 14.01 | BK80: TN 14.01 | BN80: Laboratori | BO80: Laboratori | BP80: Laboratori | BQ80: NH4N 08.11 | BT80: Laboratori | BU80: Laboratori | BV80: Laboratori | BW80: Laboratori | BX80: Laboratori | BY80: Laboratori | BZ80: Laboratori | CA80: Laboratori | CB80: Laboratori | CC80: Laboratori | CD80: Laboratori
I81: Enote | J81: m³ | K81: m³/h | L81: m³/h | M81: m³/h | N81: m³ | O81: mg/l | P81: mg/l | Q81: mg/l | R81: ml/l | S81: °C | T81: °C | U81: °C | Z81: mg/l | AA81: mg/l | AB81: mg/l | AC81: mg/l | AD81: µS/cm | AE81: mg/l | AF81: mg/l | AG81: mg/l | AH81: mg/l | AI81: mg/l | AJ81: mg/l | AK81: mg/l | AL81: mg/l | AM81: mg/l | AN81: ml/l | AO81: mg/l | AQ81: µS/cm | AR81: mg/l | AS81: mg/l | AT81: mg/l | AU81: m³ | AV81: m³/h | AW81: m³/h | AX81: m³/h | AY81: mg/l | AZ81: mg/l | BA81: mg/l | BB81: ml/l | BD81: mg/l | BE81: mg/l | BF81: mg/l | BG81: mg/l | BH81: mgC/l | BI81: mgC/l | BJ81: mgC/l | BK81: mgN/l | BL81: mgN/l | BM81: mgN/l | BN81: µS/cm | BO81: mg/l | BP81: mg/l | BQ81: mg/l | BR81: mg/l | BS81: mg/l | BT81: mg/l | BU81: mg/l | BV81: mg/l | BW81: mg/l | BX81: ml/l | BY81: mg/l | CA81: µS/cm | CB81: mg/l | CC81: mg/l | CD81: mg/l
A85: Datum | B85: Dan | J85: Kumulativa | K85: Minimalno | L85: Maksimalno | M85: Povprečje | N85: Kumulativa | O85: Vrednost | P85: Vrednost | Q85: Vrednost | R85: Vrednost | S85: Minimalno | T85: Maksimalno | U85: Povprečje | V85: Minimalno | W85: Maksimalno | X85: Povprečje | Y85: Vrednost | Z85: Minimalno | AA85: Maksimalno | AB85: Povprečje | AC85: Vrednost | AD85: Vrednost | AE85: Vrednost | AF85: Vrednost | AG85: Minimalno | AH85: Maksimalno | AI85: Povprečje | AJ85: Vrednost | AK85: Vrednost | AL85: Vrednost | AM85: Vrednost | AN85: Vrednost | AO85: Vrednost | AP85: Vrednost | AQ85: Vrednost | AR85: Vrednost | AS85: Vrednost | AT85: Vrednost | AU85: Kumulativa | AV85: Minimalno | AW85: Maksimalno | AX85: Povprečje | AY85: Vrednost | AZ85: Vrednost | BA85: Vrednost | BB85: Vrednost | BC85: Vrednost | BD85: Minimalno | BE85: Maksimalno | BF85: Povprečje | BG85: Vrednost | BH85: Minimalno | BI85: Maksimalno | BJ85: Povprečje | BK85: Minimalno | BL85: Maksimalno | BM85: Povprečje | BN85: Vrednost | BO85: Vrednost | BP85: Vrednost | BQ85: Minimalno | BR85: Maksimalno | BS85: Povprečje | BT85: Vrednost | BU85: Vrednost | BV85: Vrednost | BW85: Vrednost | BX85: Vrednost | BY85: Vrednost | BZ85: Vrednost | CA85: Vrednost | CB85: Vrednost | CC85: Vrednost | CD85: Vrednost
A86: 2024-01-01 | B86: =IF(A86>0,A86,"") -> 2024-01-01 | J86: 17384 | K86: 624.9662435 | L86: 1069.367277 | M86: 905.4332814 | N86: 0 | S86: 6.312454732 | T86: 9.768483925 | U86: 8.551535718 | V86: 7.643248574 | W86: 8.225444555 | X86: 7.944056009 | Z86: 5.931498051 | AA86: 5.931498051 | AB86: 5.931498051 | AG86: 7.340124639 | AH86: 29.9028463 | AI86: 17.89481484 | AU86: 19100 | AV86: 525.4267721 | AW86: 981.879303 | AX86: 795.5095836 | BD86: 1.382528702 | BE86: 1.9483506 | BF86: 1.575942056 | BH86: 7.944791667 | BI86: 11.95598958 | BJ86: 9.688671875 | BK86: 2.68729744 | BL86: 6.758157031 | BM86: 4.231803297 | BQ86: 0.001328509668 | BR86: 1.200849887 | BS86: 0.3462917161 | BU86: 117 | BV86: 65 | BW86: 60 | BX86: 0.7 | BY86: 1.46 | BZ86: 7.057 | CA86: 265 | CB86: 10.2 | CD86: 6.07
A87: 2024-01-02 | B87: =IF(A87>0,A87,"") -> 2024-01-02 | J87: 11352 | K87: 362.6036819 | L87: 758.0946177 | M87: 590.8998829 | N87: 0 | S87: 8.551000086 | T87: 10.71074753 | U87: 9.656753159 | V87: 7.908996741 | W87: 8.286618185 | X87: 8.064301181 | Z87: 5.931498051 | AA87: 5.931498051 | AB87: 5.931498051 | AG87: 19.96714449 | AH87: 46.0742499 | AI87: 32.24697588 | AU87: 11800 | AV87: 282.5339712 | AW87: 636.9899821 | AX87: 490.6013121 | BD87: 1.361611964 | BE87: 1.724287349 | BF87: 1.506651392 | BH87: 7.306510417 | BI87: 8.737239583 | BJ87: 7.73140191 | BK87: 3.768328619 | BL87: 6.08020366 | BM87: 4.575272087 | BQ87: 0.05873253755 | BR87: 1.650443347 | BS87: 0.6764544953
A88: 2024-01-03 | B88: 2024-01-03 | J88: 10880 | K88: 381.0305725 | L88: 678.4119395 | M88: 566.9284886 | N88: 0 | O88: 774 | P88: 300 | Q88: 593 | R88: 15 | S88: 9.300807714 | T88: 10.88662039 | U88: 10.1711528 | V88: 7.754404998 | W88: 8.313104582 | X88: 7.956902043 | Y88: 7.613 | Z88: 0.2235789448 | AA88: 6.496091859 | AB88: 3.168247854 | AC88: 14.8 | AD88: 923 | AE88: 70.9 | AG88: 26.18366594 | AH88: 50.14159177 | AI88: 37.91017108 | AJ88: 48 | AK88: 196 | AL88: 70 | AM88: 84 | AN88: 0.1 | AO88: 5.5 | AP88: 7.59 | AQ88: 731 | AR88: 37.2 | AT88: 30.2 | AU88: 11100 | AV88: 274.3055247 | AW88: 582.1758911 | AX88: 464.147469 | AY88: 19.1 | AZ88: 1 | BA88: 1 | BB88: 0 | BC88: 7.041 | BD88: 0.9634106994 | BE88: 1.682024399 | BF88: 1.247366778 | BG88: 2.59 | BH88: 7.733072917 | BI88: 9.033854167 | BJ88: 8.132606337 | BK88: 3.918094381 | BL88: 7.063453738 | BM88: 6.117629627 | BN88: 586 | BO88: 6.35 | BQ88: 0.09468917859 | BR88: 1.5470409 | BS88: 0.9839847773 | BT88: 1.35
A89: 2024-01-04 | B89: 2024-01-04 | J89: 9944 | K89: 298.6424568 | L89: 673.230129 | M89: 517.8219623 | N89: 10 | S89: 9.542667834 | T89: 11.42656404 | U89: 10.65598325 | V89: 7.739828149 | W89: 8.208462985 | X89: 7.96103179 | Z89: 0.3612725476 | AA89: 4.107429083 | AB89: 1.6245705 | AG89: 25.07997245 | AH89: 74.20658112 | AI89: 48.53744062 | AU89: 10200 | AV89: 225.8752675 | AW89: 533.2935181 | AX89: 424.5642881 | AY89: 16.6 | AZ89: 0 | BA89: 0 | BB89: 0 | BC89: 7.18 | BD89: 0.9115909914 | BE89: 1.766794401 | BF89: 1.353878686 | BG89: 2.08 | BH89: 7.792447917 | BI89: 24.08697917 | BJ89: 9.529611545 | BK89: 4.973719231 | BL89: 10.234782 | BM89: 6.858147183 | BN89: 615 | BO89: 6.22 | BQ89: 0.1046404553 | BR89: 2.446957509 | BS89: 0.9678738464 | BT89: 1.13
A90: 2024-01-05 | B90: 2024-01-05 | J90: 12736 | K90: 278.9617068 | L90: 1156.225884 | M90: 662.8214992 | N90: 0 | O90: 815 | P90: 450 | Q90: 387 | R90: 15 | S90: 9.018362554 | T90: 11.09071986 | U90: 10.16143479 | V90: 7.3407504 | W90: 8.282778708 | X90: 7.821516768 | Y90: 7.711 | Z90: 0.5949489896 | AA90: 5.100513945 | AB90: 2.041718087 | AC90: 10.11 | AD90: 1131 | AE90: 73.3 | AG90: 19.32934907 | AH90: 74.48536377 | AI90: 42.06790659 | AJ90: 50.9 | AK90: 302 | AL90: 150 | AM90: 58 | AN90: 0 | AO90: 6.4 | AP90: 7.595 | AQ90: 972 | AR90: 51 | AT90: 38.8 | AU90: 13400 | AV90: 181.1884928 | AW90: 958.2790385 | AX90: 561.6175944 | AY90: 16.9 | AZ90: 1 | BA90: 1 | BB90: 0 | BC90: 7.161 | BD90: 1.682835664 | BE90: 1.998448529 | BF90: 1.826786432 | BG90: 2.26 | BH90: 8.926041667 | BI90: 19.22265625 | BJ90: 11.20381944 | BK90: 8.107688236 | BL90: 13.06186005 | BM90: 11.02825085 | BN90: 666 | BO90: 7 | BQ90: 0.02323267202 | BR90: 2.456148597 | BS90: 1.242613334 | BT90: 1.25
A91: 2024-01-06 | B91: 2024-01-06 | J91: 20064 | K91: 1012.994314 | L91: 1071.862937 | M91: 1044.589719 | N91: 0 | S91: 6.669378082 | T91: 8.443262116 | U91: 7.559500065 | V91: 7.558588568 | W91: 7.961601281 | X91: 7.806027217 | Z91: 1.104680061 | AA91: 1.104680061 | AB91: 1.104680061 | AG91: 5.885499287 | AH91: 19.40442263 | AI91: 9.668736011 | AU91: 22600 | AV91: 884.1507161 | AW91: 982.6207601 | AX91: 941.033971 | BD91: 1.222785129 | BE91: 1.908736064 | BF91: 1.476263488 | BH91: 7.503645833 | BI91: 14.13828125 | BJ91: 10.71705729 | BK91: 4.20529747 | BL91: 12.75126667 | BM91: 7.668682478 | BQ91: 0.002936103339 | BR91: 1.477779859 | BS91: 0.2378923261
A92: 2024-01-07 | B92: 2024-01-07 | J92: 17448 | K92: 769.5650065 | L92: 1064.648431 | M92: 909.2985394 | N92: 0 | S92: 8.391719834 | T92: 10.52700192 | U92: 9.455524312 | V92: 7.941674431 | W92: 8.276072105 | X92: 8.066874076 | Z92: 0.3393808613 | AA92: 1.104680061 | AB92: 0.8740975169 | AG92: 10.66100755 | AH92: 32.51552534 | AI92: 20.30471953 | AU92: 19100 | AV92: 692.9614766 | AW92: 949.3995443 | AX92: 796.0717048 | BD92: 0.9552172045 | BE92: 1.212974469 | BF92: 1.088439032 | BH92: 6.625520833 | BI92: 8.347916667 | BJ92: 7.233865017 | BK92: 2.610938056 | BL92: 5.849485016 | BM92: 3.922752588 | BQ92: 0.03529264946 | BR92: 1.65825963 | BS92: 0.6106597858
A93: 2024-01-08 | B93: 2024-01-08 | J93: 13320 | K93: 497.8804977 | L93: 794.6301117 | M93: 694.0678831 | N93: 0 | O93: 427 | P93: 154 | Q93: 173 | R93: 15 | S93: 8.956282123 | T93: 10.43661769 | U93: 9.733253211 | V93: 7.76949958 | W93: 8.326323684 | X93: 8.03371842 | Y93: 7.995 | Z93: 0.2054632306 | AA93: 2.975004266 | AB93: 1.111126263 | AC93: 7.43 | AD93: 794 | AE93: 51 | AG93: 16.37514474 | AH93: 39.51670901 | AI93: 28.93564906 | AJ93: 34.3 | AK93: 139 | AL93: 31 | AM93: 42 | AN93: 0.4 | AO93: 3.31 | AP93: 7.652 | AQ93: 638 | AR93: 26.4 | AT93: 18 | AU93: 14100 | AV93: 407.8233317 | AW93: 699.0559469 | AX93: 587.7097484 | AY93: 14.5 | AZ93: 1 | BA93: 3 | BB93: 0 | BC93: 7.001 | BD93: 0.8853784561 | BE93: 1.213307679 | BF93: 1.030193232 | BG93: 1.88 | BH93: 0.2833333333 | BI93: 8.753385417 | BJ93: 4.400585937 | BK93: 3.126422485 | BL93: 5.760000674 | BM93: 4.604615864 | BN93: 497 | BO93: 5.23 | BQ93: 0.01741991056 | BR93: 1.011771329 | BS93: 0.5599681078 | BT93: 0.81 | BU93: 63.7 | BV93: 18 | BW93: 26 | BX93: 0.1 | BY93: 0.67 | BZ93: 7.21 | CA93: 319 | CB93: 5.02 | CD93: 1.77
A94: 2024-01-09 | B94: 2024-01-09 | J94: 12920 | K94: 411.9863993 | L94: 830.4398112 | M94: 672.5593954 | N94: 0 | S94: 8.927145131 | T94: 10.35739317 | U94: 9.793180223 | V94: 7.931792569 | W94: 8.338049873 | X94: 8.074596027 | Z94: 0.290580301 | AA94: 9.864393234 | AB94: 2.591049148 | AG94: 21.3980519 | AH94: 60.30117054 | AI94: 39.03893984 | AU94: 12500 | AV94: 335.9555603 | AW94: 659.3785767 | AX94: 524.8292225 | BD94: 0.8874868453 | BE94: 1.474197674 | BF94: 1.137155859 | BH94: 0.2778645833 | BI94: 9.282291667 | BJ94: 5.530132378 | BK94: 3.107016118 | BL94: 9.137578932 | BM94: 4.99728582 | BQ94: 0.02765778375 | BR94: 2.923515002 | BS94: 1.16512904
A95: 2024-01-10 | B95: 2024-01-10 | J95: 12760 | K95: 432.7256933 | L95: 811.3064219 | M95: 665.1018538 | N95: 10 | O95: 525 | P95: 180 | Q95: 260 | R95: 13 | S95: 9.021883059 | T95: 10.64977527 | U95: 10.06697097 | V95: 7.812521974 | W95: 8.195298322 | X95: 8.015008946 | Y95: 7.673 | Z95: 0.7925221125 | AA95: 9.615114347 | AB95: 3.072234756 | AC95: 7.6 | AD95: 1004 | AE95: 61.2 | AG95: 32.07095648 | AH95: 79.03577957 | AI95: 55.25982807 | AJ95: 42.4 | AK95: 243 | AL95: 90 | AM95: 64 | AN95: 0.8 | AO95: 5.18 | AP95: 7.657 | AQ95: 991 | AR95: 55 | AT95: 43.4 | AU95: 12100 | AV95: 272.2258077 | AW95: 788.6646016 | AX95: 504.3266865 | AY95: 18 | AZ95: 1 | BA95: 1 | BB95: 0 | BC95: 7.343 | BD95: 1.369550025 | BE95: 1.596049597 | BF95: 1.469515832 | BG95: 1.98 | BH95: 7.832291667 | BI95: 9.5859375 | BJ95: 8.46311849 | BK95: 8.243532038 | BL95: 18.50095444 | BM95: 12.34727432 | BN95: 653 | BO95: 7.34 | BQ95: 0.5742628833 | BR95: 7.538663141 | BS95: 3.358277475 | BT95: 1.03
A96: 2024-01-11 | B96: 2024-01-11 | J96: 12160 | K96: 419.2177828 | L96: 811.5716543 | M96: 633.7485708 | N96: 0 | S96: 9.337813425 | T96: 10.53531014 | U96: 10.08849532 | V96: 7.858998275 | W96: 8.383548816 | X96: 8.092067052 | Z96: 4.200304846 | AA96: 11.22643661 | AB96: 6.927967808 | AG96: 29.927677 | AH96: 79.48767662 | AI96: 46.50281249 | AU96: 11000 | AV96: 215.8564636 | AW96: 578.7398437 | AX96: 457.8013196 | BD96: 1.337111038 | BE96: 1.579790952 | BF96: 1.458373834 | BH96: 8.212760417 | BI96: 8.990104167 | BJ96: 8.600065104 | BK96: 16.90870425 | BL96: 21.53142376 | BM96: 20.03975518 | BQ96: 0.8199381073 | BR96: 6.154458205 | BS96: 2.531098031
A97: 2024-01-12 | B97: 2024-01-12 | J97: 11984 | K97: 418.7813446 | L97: 771.7375549 | M97: 623.5502242 | N97: 0 | O97: 593 | P97: 300 | Q97: 333 | R97: 14 | S97: 9.224866867 | T97: 10.77193505 | U97: 10.03480706 | V97: 7.868648624 | W97: 8.353731823 | X97: 8.043720329 | Y97: 7.625 | Z97: 6.244801998 | AA97: 6.244801998 | AB97: 6.244801998 | AC97: 8.15 | AD97: 997 | AE97: 65.3 | AG97: 30.95801175 | AH97: 52.79408582 | AI97: 41.62995422 | AJ97: 48 | AK97: 243 | AL97: 110 | AM97: 74 | AN97: 0.5 | AO97: 5.24 | AP97: 7.566 | AQ97: 908 | AR97: 43.7 | AT97: 33 | AU97: 10500 | AV97: 221.9871033 | AW97: 553.0056193 | AX97: 438.8299376 | AY97: 19.9 | AZ97: 1 | BA97: 2 | BB97: 0 | BC97: 7.139 | BD97: 1.337148176 | BE97: 1.574427732 | BF97: 1.463295218 | BG97: 2.32 | BH97: 8.238020833 | BI97: 11.30494792 | BJ97: 9.284353299 | BK97: 13.29314151 | BL97: 21.43232931 | BM97: 17.22692298 | BN97: 772 | BO97: 18.8 | BQ97: 0.5264555812 | BR97: 1.778795999 | BS97: 1.215977045 | BT97: 2.96
A98: 2024-01-13 | B98: 2024-01-13 | J98: 12440 | K98: 382.0457161 | L98: 877.0688588 | M98: 648.8984514 | N98: 0 | S98: 9.235843198 | T98: 10.73034768 | U98: 10.10508788 | V98: 7.876548807 | W98: 8.417714914 | X98: 8.034991688 | Z98: 6.244801998 | AA98: 6.244801998 | AB98: 6.244801998 | AG98: 32.67573293 | AH98: 55.15634435 | AI98: 40.42911269 | AU98: 10300 | AV98: 195.420988 | AW98: 594.5276062 | AX98: 426.5520739 | BD98: 1.26702168 | BE98: 1.505595336 | BF98: 1.410442617 | BH98: 9.139583333 | BI98: 10.54244792 | BJ98: 9.619075521 | BK98: 7.05862573 | BL98: 13.37850119 | BM98: 9.180934364 | BQ98: 0.02619523772 | BR98: 1.603512088 | BS98: 0.8968776623
A99: 2024-01-14 | B99: 2024-01-14 | J99: 12264 | K99: 372.8491486 | L99: 860.9953705 | M99: 638.2417638 | N99: 0 | S99: 9.047284985 | T99: 11.26383823 | U99: 10.12071667 | V99: 7.900774892 | W99: 8.414430078 | X99: 8.032155385 | Z99: 6.244801998 | AA99: 6.244801998 | AB99: 6.244801998 | AG99: 32.35345523 | AH99: 58.31119461 | AI99: 42.36110716 | AU99: 9900 | AV99: 178.8917582 | AW99: 595.1605611 | AX99: 415.1709016 | BD99: 1.251656055 | BE99: 1.52890708 | BF99: 1.418309494 | BH99: 8.740625 | BI99: 9.752604167 | BJ99: 9.060438368 | BK99: 4.435781749 | BL99: 6.851578903 | BM99: 5.399037806 | BQ99: 0.01499066989 | BR99: 1.600831217 | BS99: 0.7435426937
A100: 2024-01-15 | B100: 2024-01-15 | J100: 12144 | K100: 371.4867859 | L100: 816.0566101 | M100: 632.1637663 | N100: 0 | O100: 575 | P100: 218 | Q100: 393 | R100: 12 | S100: 9.62912569 | T100: 11.4178995 | U100: 10.54422246 | V100: 7.858907588 | W100: 8.390798187 | X100: 8.054550733 | Y100: 7.667 | Z100: 1.379500389 | AA100: 6.244801998 | AB100: 4.305438718 | AC100: 7.93 | AD100: 980 | AE100: 54.8 | AG100: 31.43327916 | AH100: 84.66676153 | AI100: 52.84383082 | AJ100: 37.7 | AK100: 274 | AL100: 115 | AM100: 52 | AN100: 0 | AO100: 5.82 | AP100: 7.583 | AQ100: 1113 | AR100: 46.1 | AT100: 34.1 | AU100: 9800 | AV100: 180.2480988 | AW100: 537.2540283 | AX100: 408.8096829 | AY100: 22.7 | AZ100: 1 | BA100: 1 | BB100: 0 | BC100: 7.268 | BD100: 1.186870503 | BE100: 1.507261199 | BF100: 1.362577837 | BG100: 2.33 | BH100: 8.646614583 | BI100: 59.15442708 | BJ100: 21.87135417 | BK100: 3.768141174 | BL100: 13.83412623 | BM100: 7.11250854 | BN100: 783 | BO100: 5.2 | BQ100: 0.00760107728 | BR100: 1.942711929 | BS100: 0.828514955 | BT100: 0.86
A101: 2024-01-16 | B101: 2024-01-16 | J101: 12648 | K101: 416.5605677 | L101: 824.2235758 | M101: 659.4879255 | N101: 10 | S101: 9.718138345 | T101: 11.58435736 | U101: 10.5439503 | V101: 7.768916837 | W101: 8.279329666 | X101: 7.919909886 | Z101: 1.379500389 | AA101: 17.16095924 | AB101: 3.637125753 | AG101: 35.23920282 | AH101: 91.72374268 | AI101: 52.2903921 | AU101: 9600 | AV101: 186.4149099 | AW101: 529.6042847 | AX101: 401.178028 | BD101: 1.072091792 | BE101: 1.273906259 | BF101: 1.172017123 | BH101: 10.1671875 | BI101: 32.21536458 | BJ101: 13.6093967 | BK101: 7.681875738 | BL101: 14.11739152 | BM101: 9.981840671 | BQ101: 0.02936726281 | BR101: 2.236721516 | BS101: 1.096420588
A102: 2024-01-17 | B102: 2024-01-17 | J102: 16176 | K102: 398.7847219 | L102: 1263.078705 | M102: 841.9016617 | N102: 0 | O102: 1371 | P102: 500 | Q102: 953 | R102: 100 | S102: 8.205936082 | T102: 10.67823316 | U102: 9.806842511 | V102: 7.50910755 | W102: 8.246385113 | X102: 7.908093561 | Y102: 7.456 | AC102: 26.1 | AD102: 1165 | AE102: 102 | AG102: 30.43069601 | AH102: 70.07533137 | AI102: 44.97760851 | AJ102: 47 | AU102: 13300 | AV102: 138.4729279 | AW102: 918.4027344 | AX102: 554.6754119 | BD102: 0.8154953976 | BE102: 1.160053591 | BF102: 0.9511393489 | BH102: 9.377604167 | BI102: 38.90052083 | BJ102: 15.69328342 | BK102: 12.07992272 | BL102: 17.71237631 | BM102: 14.52955966 | BQ102: 0.01816948258 | BR102: 3.640763036 | BS102: 1.261700283
A103: 2024-01-18 | B103: 2024-01-18 | J103: 24064 | K103: 1196.305938 | L103: 1310.46971 | M103: 1254.590142 | N103: 0 | S103: 6.329965917 | T103: 9.720557578 | U103: 7.9225517 | V103: 7.414430014 | W103: 8.049900126 | X103: 7.754475368 | AG103: 6.368546025 | AH103: 37.99871076 | AI103: 20.68711913 | AK103: 130 | AL103: 50 | AM103: 68 | AN103: 1.3 | AO103: 3.07 | AP103: 7.47 | AQ103: 412 | AR103: 27.3 | AT103: 18.4 | AU103: 20900 | AV103: 823.1155599 | AW103: 903.4649516 | AX103: 870.1457811 | AY103: 23.4 | AZ103: 1 | BA103: 4 | BB103: 0.1 | BC103: 7.135 | BD103: 0.8405696015 | BE103: 1.295566916 | BF103: 1.087121469 | BG103: 1.74 | BH103: 23.65859375 | BI103: 112.0148437 | BJ103: 47.59312066 | BK103: 12.2385008 | BL103: 24.34401712 | BM103: 17.15545229 | BN103: 895 | BO103: 13.5 | BQ103: 0.1290705542 | BR103: 3.247010461 | BS103: 1.33983666 | BT103: 1.25 | BU103: 139 | BV103: 35 | BW103: 76 | BX103: 1.3 | BY103: 1.49 | BZ103: 7.363 | CA103: 226 | CB103: 9.32 | CD103: 5.12
A104: 2024-01-19 | B104: 2024-01-19 | J104: 21264 | K104: 106.0209298 | L104: 1309.148338 | M104: 1106.757971 | N104: 0 | S104: 5.512950222 | T104: 9.456338755 | U104: 7.609902163 | V104: 7.478284033 | W104: 8.012176824 | X104: 7.796714324 | AG104: 10.11503898 | AH104: 32.49251763 | AI104: 20.56728852 | AU104: 18800 | AV104: 43.51126709 | AW104: 928.2406942 | AX104: 783.1684241 | BD104: 1.227851748 | BE104: 1.503335696 | BF104: 1.379615335 | BH104: 10.41067708 | BI104: 47.98645833 | BJ104: 22.57067057 | BK104: 11.87189164 | BL104: 16.06664171 | BM104: 15.09868853 | BQ104: 0.03614130591 | BR104: 2.231139926 | BS104: 1.434758385
A105: 2024-01-20 | B105: 2024-01-20 | J105: 19432 | K105: 805.8473155 | L105: 1262.748356 | M105: 1012.290115 | N105: 0 | S105: 7.615251533 | T105: 9.848970016 | U105: 8.659139663 | V105: 7.752582033 | W105: 8.335711892 | X105: 8.006669651 | AG105: 13.16478427 | AH105: 38.17897383 | AI105: 24.3933127 | AU105: 16700 | AV105: 511.1400269 | AW105: 909.7221761 | AX105: 698.9240881 | BD105: 1.300069843 | BE105: 1.487569187 | BF105: 1.431481049 | BH105: 7.99375 | BI105: 31.29427083 | BJ105: 13.05636936 | BK105: 8.304891316 | BL105: 14.67740736 | BM105: 11.58395203 | BQ105: 1.039008602 | BR105: 2.473384221 | BS105: 1.875183413
A106: 2024-01-21 | B106: 2024-01-21 | J106: 16544 | K106: 617.9759801 | L106: 1041.326675 | M106: 861.2268488 | N106: 0 | S106: 7.675026313 | T106: 9.895735725 | U106: 8.83915712 | V106: 7.636772943 | W106: 8.429166985 | X106: 7.982229475 | AG106: 0.1517773355 | AH106: 28.14671707 | AI106: 4.434019873 | AU106: 13800 | AV106: 370.7682068 | AW106: 704.0472677 | AX106: 577.0188015 | BD106: 1.317171844 | BE106: 1.502490443 | BF106: 1.440117992 | BH106: 7.5953125 | BI106: 14.89140625 | BJ106: 9.719042969 | BK106: 7.897031879 | BL106: 11.71865695 | BM106: 9.635924671 | BQ106: 0.5284498572 | BR106: 3.918599129 | BS106: 1.89051887
A107: 2024-01-22 | B107: 2024-01-22 | J107: 15736 | K107: 606.6719706 | L107: 944.6952098 | M107: 819.4438392 | N107: 0 | O107: 601 | P107: 200 | Q107: 440 | R107: 10 | S107: 7.657674646 | T107: 9.722030576 | U107: 8.909352214 | V107: 7.752206572 | W107: 8.419708633 | X107: 8.086720865 | Y107: 7.56 | AC107: 6.44 | AD107: 975 | AE107: 51.7 | AG107: 1.831779583 | AH107: 43 | AI107: 25.18494868 | AJ107: 32 | AK107: 175 | AL107: 60 | AM107: 52 | AN107: 0.7 | AO107: 3.25 | AP107: 7.623 | AQ107: 887 | AR107: 31 | AT107: 21.1 | AU107: 12800 | AV107: 318.3774323 | AW107: 648.726825 | AX107: 531.4918515 | AY107: 18.7 | AZ107: 0 | BA107: 1 | BB107: 0 | BC107: 7.26 | BD107: 1.392988801 | BE107: 1.543611892 | BF107: 1.464121983 | BG107: 1.99 | BH107: 8.134114583 | BI107: 11.89895833 | BJ107: 9.457259115 | BK107: 6.243235064 | BL107: 13.71454776 | BM107: 9.080639467 | BN107: 1131 | BO107: 8.84 | BQ107: 1.170805971 | BR107: 8.26657486 | BS107: 3.920241462 | BT107: 1.61
A108: 2024-01-23 | B108: 2024-01-23 | J108: 15496 | K108: 580.8400823 | L108: 970.7441172 | M108: 807.2878461 | N108: 0 | S108: 7.943181022 | T108: 9.895824258 | U108: 8.997541681 | V108: 7.880365475 | W108: 8.415501722 | X108: 8.128436116 | AG108: 43 | AH108: 43 | AI108: 43 | AU108: 12800 | AV108: 304.0725993 | AW108: 689.9052043 | AX108: 534.209046 | BD108: 1.355276489 | BE108: 1.561342935 | BF108: 1.469168927 | BH108: 8.353125 | BI108: 9.79296875 | BJ108: 8.993771701 | BK108: 12.88298529 | BL108: 18.4957044 | BM108: 16.40910465 | BQ108: 1.416576217 | BR108: 6.557277028 | BS108: 3.719844561
A109: 2024-01-24 | B109: 2024-01-24 | J109: 15160 | K109: 517.5781235 | L109: 953.7350515 | M109: 789.3925392 | N109: 0 | S109: 7.828329706 | T109: 9.891154003 | U109: 9.023527652 | V109: 7.820835582 | W109: 8.401158174 | X109: 8.072708095 | AG109: 43 | AH109: 43 | AI109: 43 | AU109: 12600 | AV109: 285.4274862 | AW109: 687.4276245 | AX109: 524.3861518 | BD109: 1.375818014 | BE109: 1.612965828 | BF109: 1.4625935 | BH109: 8.744010417 | BI109: 14.39817708 | BJ109: 10.10279948 | BK109: 15.47812626 | BL109: 22.85297038 | BM109: 20.2539388 | BQ109: 2.21652995 | BR109: 8.828995132 | BS109: 5.347604115
A110: 2024-01-25 | B110: 2024-01-25 | J110: 16304 | K110: 492.233314 | L110: 1221.293882 | M110: 848.9203529 | N110: 0 | O110: 1221 | P110: 392 | Q110: 773 | R110: 64 | S110: 8.483456532 | T110: 10.07150544 | U110: 9.306250715 | V110: 7.540167602 | W110: 8.21312898 | X110: 7.957438134 | Y110: 7.513 | AC110: 18.2 | AD110: 1133 | AE110: 86.4 | AG110: 43 | AH110: 43 | AI110: 43 | AJ110: 45 | AK110: 210 | AL110: 80 | AM110: 80 | AN110: 0.4 | AO110: 5.24 | AP110: 7.527 | AQ110: 961 | AR110: 38.6 | AT110: 26.8 | AU110: 13500 | AV110: 225.9295176 | AW110: 913.140153 | AX110: 564.5065922 | AY110: 24.5 | AZ110: 2 | BA110: 6 | BB110: 0.1 | BC110: 7.325 | BD110: 1.365233926 | BE110: 1.607169708 | BF110: 1.495499792 | BG110: 2.18 | BH110: 9.18828125 | BI110: 13.80703125 | BJ110: 10.41741536 | BK110: 15.80465708 | BL110: 25.6220644 | BM110: 23.28770642 | BN110: 959 | BO110: 20.9 | BQ110: 4.045894098 | BR110: 10.40274488 | BS110: 7.245935267 | BT110: 5.56
A111: 2024-01-26 | B111: 2024-01-26 | J111: 12888 | K111: 478.5976064 | L111: 1012.893029 | M111: 671.4178615 | N111: 0 | S111: 8.700299708 | T111: 10.53542401 | U111: 9.504230835 | V111: 7.835939646 | W111: 8.327009964 | X111: 8.022754967 | AG111: 18.30294221 | AH111: 55.00121206 | AI111: 44.7922815 | AU111: 11800 | AV111: 210.3768575 | AW111: 673.3036357 | AX111: 493.3697451 | BD111: 1.320850706 | BE111: 1.561487635 | BF111: 1.479507207 | BH111: 8.649739583 | BI111: 12.08828125 | BJ111: 9.90562066 | BK111: 21.29868892 | BL111: 27.09032962 | BM111: 24.7755893 | BQ111: 3.349847408 | BR111: 12.94841067 | BS111: 7.553718996
A112: 2024-01-27 | B112: 2024-01-27 | J112: 9880 | K112: 262.3143311 | L112: 743.68007 | M112: 514.8884571 | N112: 0 | S112: 8.449763966 | T112: 9.861741638 | U112: 9.354498441 | V112: 7.504931092 | W112: 8.386104838 | X112: 7.845832921 | AG112: 33.45106176 | AH112: 54.90091019 | AI112: 39.61951238 | AU112: 10200 | AV112: 39.60501709 | AW112: 692.9976461 | AX112: 423.8612526 | BD112: 1.177384832 | BE112: 1.7326039 | BF112: 1.485804854 | BH112: 8.778125 | BI112: 11.1078125 | BJ112: 9.824186198 | BK112: 20.62861053 | BL112: 26.03882968 | BM112: 24.54779441 | BQ112: 1.394011174 | BR112: 11.33273211 | BS112: 4.101204548
A113: 2024-01-28 | B113: 2024-01-28 | J113: 9952 | K113: 284.8934202 | L113: 751.3454885 | M113: 517.8600403 | N113: 0 | S113: 8.496880102 | T113: 10.4590285 | U113: 9.52258581 | V113: 7.497026793 | W113: 8.17611688 | X113: 7.75176221 | AG113: 31.99360142 | AH113: 58.61689351 | AI113: 41.458573 | AU113: 10700 | AV113: 184.6607147 | AW113: 633.1199015 | AX113: 445.8504853 | BD113: 1.335813665 | BE113: 1.800053946 | BF113: 1.493464282 | BH113: 8.995052083 | BI113: 11.46015625 | BJ113: 9.650434028 | BK113: 13.46484485 | BL113: 22.98501682 | BM113: 18.78795238 | BQ113: 0.9648974409 | BR113: 2.460298514 | BS113: 1.497414055
A114: 2024-01-29 | B114: 2024-01-29 | J114: 8816 | K114: 227.2135401 | L114: 585.6409144 | M114: 459.5907064 | N114: 0 | O114: 1508 | P114: 400 | Q114: 1080 | R114: 150 | S114: 8.623925527 | T114: 10.21765863 | U114: 9.458075062 | V114: 7.787757492 | W114: 8.442980019 | X114: 8.069616345 | Y114: 7.462 | AC114: 27.8 | AD114: 990 | AE114: 110 | AG114: 33.92314167 | AH114: 72.69665375 | AI114: 48.78010244 | AJ114: 41 | AK114: 502 | AL114: 160 | AM114: 264 | AN114: 23 | AO114: 9.38 | AP114: 7.523 | AQ114: 897 | AR114: 55.7 | AT114: 32 | AU114: 9300 | AV114: 139.1239716 | AW114: 528.2841146 | AX114: 391.1456566 | AY114: 23.2 | AZ114: 2 | BA114: 2 | BB114: 0 | BC114: 7.202 | BD114: 1.24414443 | BE114: 1.620591348 | BF114: 1.460293395 | BG114: 1.85 | BH114: 9.347135417 | BI114: 13.84296875 | BJ114: 10.05572917 | BK114: 10.7394853 | BL114: 16.71304801 | BM114: 13.60691702 | BN114: 865 | BO114: 18.1 | BQ114: 0.1954313144 | BR114: 2.594447855 | BS114: 1.222377163 | BT114: 2.18
A115: 2024-01-30 | B115: 2024-01-30 | J115: 8560 | K115: 225.8246531 | L115: 582.0360708 | M115: 445.5824594 | N115: 0 | S115: 8.490115611 | T115: 10.14220913 | U115: 9.449344761 | V115: 7.856293766 | W115: 8.33558801 | X115: 8.030912414 | AG115: 37.69188919 | AH115: 84.03744863 | AI115: 59.69509606 | AU115: 9300 | AV115: 154.0979268 | AW115: 529.0436646 | AX115: 387.6146604 | BD115: 1.291704728 | BE115: 1.59842755 | BF115: 1.466894654 | BH115: 8.872135417 | BI115: 11.20677083 | BJ115: 9.413205295 | BK115: 9.50934461 | BL115: 13.61114175 | BM115: 11.65622159 | BQ115: 0.02493083834 | BR115: 2.57284681 | BS115: 1.341858875
A116: 2024-01-31 | B116: 2024-01-31 | J116: 8688 | K116: 231.9516774 | L116: 592.3032369 | M116: 452.4453234 | N116: 0 | S116: 8.640508954 | T116: 10.56015228 | U116: 9.607424961 | V116: 7.768272829 | W116: 8.294415855 | X116: 7.974241297 | Z116: 2.357087286 | AA116: 17.16095924 | AB116: 9.777087732 | AG116: 36.47357063 | AH116: 74.90578588 | AI116: 57.31986251 | AU116: 9400 | AV116: 125.2350759 | AW116: 531.5031576 | AX116: 391.0507127 | BD116: 1.287892524 | BE116: 1.702888445 | BF116: 1.497662951 | BH116: 8.9125 | BI116: 9.849739583 | BJ116: 9.306130642 | BK116: 14.32870413 | BL116: 17.78414173 | BM116: 16.41452844 | BQ116: 0.1125088839 | BR116: 2.654874237 | BS116: 1.500698127
B117: Povprečje | J117: =IF(OR(J86,J87,J88,J89,J90,J91,J92,J93,J94,J95,J96,J97,J98,J99,J100,J101,J102,J103,J104,J105,J106,J107,J108,J109,J109,J110,J111<>""),AVERAGE(J86:J116),"") -> 13916.3871 | M117: =IF(OR(M86,M87,M88,M89,M90,M91,M92,M93,M94,M95,M96,M97,M98,M99,M100,M101,M102,M103,M104,M105,M106,M107,M108,M109,M109,M110,M111<>""),AVERAGE(M86:M116),"") -> 724.8132055 | N117: 0.9677419355 | O117: 841 | P117: 309.4 | Q117: 538.5 | R117: 40.8 | U117: =IF(OR(U86,U87,U88,U89,U90,U91,U92,U93,U94,U95,U96,U97,U98,U99,U100,U101,U102,U103,U104,U105,U106,U107,U108,U109,U109,U110,U111<>""),AVERAGE(U86:U116),"") -> 9.458483661 | X117: =IF(OR(X86,X87,X88,X89,X90,X91,X92,X93,X94,X95,X96,X97,X98,X99,X100,X101,X102,X103,X104,X105,X106,X107,X108,X109,X109,X110,X111<>""),AVERAGE(X86:X116),"") -> 7.977743009 | Y117: =IF(OR(Y86,Y87,Y88,Y89,Y90,Y91,Y92,Y93,Y94,Y95,Y96,Y97,Y98,Y99,Y100,Y101,Y102,Y103,Y104,Y105,Y106,Y107,Y108,Y109,Y109,Y110,Y111<>""),AVERAGE(Y86:Y116),"") -> 7.6275 | AB117: =IF(OR(AB86,AB87,AB88,AB89,AB90,AB91,AB92,AB93,AB94,AB95,AB96,AB97,AB98,AB99,AB100,AB101,AB102,AB103,AB104,AB105,AB106,AB107,AB108,AB109,AB109,AB110,AB111<>""),AVERAGE(AB86:AB116),"") -> 4.166632135 | AC117: =IF(OR(AC86,AC87,AC88,AC89,AC90,AC91,AC92,AC93,AC94,AC95,AC96,AC97,AC98,AC99,AC100,AC101,AC102,AC103,AC104,AC105,AC106,AC107,AC108,AC109,AC109,AC110,AC111<>""),AVERAGE(AC86:AC116),"") -> 13.456 | AD117: =IF(OR(AD86,AD87,AD88,AD89,AD90,AD91,AD92,AD93,AD94,AD95,AD96,AD97,AD98,AD99,AD100,AD101,AD102,AD103,AD104,AD105,AD106,AD107,AD108,AD109,AD109,AD110,AD111<>""),AVERAGE(AD86:AD116),"") -> 1009.2 | AE117: =IF(OR(AE86,AE87,AE88,AE89,AE90,AE91,AE92,AE93,AE94,AE95,AE96,AE97,AE98,AE99,AE100,AE101,AE102,AE103,AE104,AE105,AE106,AE107,AE108,AE109,AE109,AE110,AE111<>""),AVERAGE(AE86:AE116),"") -> 72.66 | AF117: =IF(OR(AF86,AF87,AF88,AF89,AF90,AF91,AF92,AF93,AF94,AF95,AF96,AF97,AF98,AF99,AF100,AF101,AF102,AF103,AF104,AF105,AF106,AF107,AF108,AF109,AF109,AF110,AF111<>""),AVERAGE(AF86:AF116),"") ->  | AI117: =IF(OR(AI86,AI87,AI88,AI89,AI90,AI91,AI92,AI93,AI94,AI95,AI96,AI97,AI98,AI99,AI100,AI101,AI102,AI103,AI104,AI105,AI106,AI107,AI108,AI109,AI109,AI110,AI111<>""),AVERAGE(AI86:AI116),"") -> 37.70426182 | AJ117: 42.63 | AK117: 241.4 | AL117: 91.6 | AM117: 83.8 | AN117: 2.72 | AO117: 5.239 | AP117: 7.5786 | AQ117: 851 | AR117: 41.2 | AT117: 29.58 | AU117: 13000 | AX117: =IF(OR(AX86,AX87,AX88,AX89,AX90,AX91,AX92,AX93,AX94,AX95,AX96,AX97,AX98,AX99,AX100,AX101,AX102,AX103,AX104,AX105,AX106,AX107,AX108,AX109,AX109,AX110,AX111<>""),AVERAGE(AX86:AX116),"") -> 542.2636189 | AY117: 19.77272727 | AZ117: 1 | BA117: 2 | BB117: 0.01818181818 | BC117: 7.186818182 | BF117: =IF(OR(BF86,BF87,BF88,BF89,BF90,BF91,BF92,BF93,BF94,BF95,BF96,BF97,BF98,BF99,BF100,BF101,BF102,BF103,BF104,BF105,BF106,BF107,BF108,BF109,BF109,BF110,BF111<>""),AVERAGE(BF86:BF116),"") -> 1.389086956 | BG117: =IF(OR(BG86,BG87,BG88,BG89,BG90,BG91,BG92,BG93,BG94,BG95,BG96,BG97,BG98,BG99,BG100,BG101,BG102,BG103,BG104,BG105,BG106,BG107,BG108,BG109,BG109,BG110,BG111<>""),AVERAGE(BG86:BG116),"") -> 2.109090909 | BJ117: =IF(OR(BJ86,BJ87,BJ88,BJ89,BJ90,BJ91,BJ92,BJ93,BJ94,BJ95,BJ96,BJ97,BJ98,BJ99,BJ100,BJ101,BJ102,BJ103,BJ104,BJ105,BJ106,BJ107,BJ108,BJ109,BJ109,BJ110,BJ111<>""),AVERAGE(BJ86:BJ116),"") -> 11.62692232 | BM117: =IF(OR(BM86,BM87,BM88,BM89,BM90,BM91,BM92,BM93,BM94,BM95,BM96,BM97,BM98,BM99,BM100,BM101,BM102,BM103,BM104,BM105,BM106,BM107,BM108,BM109,BM109,BM110,BM111<>""),AVERAGE(BM86:BM116),"") -> 12.32634462 | BN117: =IF(OR(BN86,BN87,BN88,BN89,BN90,BN91,BN92,BN93,BN94,BN95,BN96,BN97,BN98,BN99,BN100,BN101,BN102,BN103,BN104,BN105,BN106,BN107,BN108,BN109,BN109,BN110,BN111<>""),AVERAGE(BN86:BN116),"") -> 765.6363636 | BO117: =IF(OR(BO86,BO87,BO88,BO89,BO90,BO91,BO92,BO93,BO94,BO95,BO96,BO97,BO98,BO99,BO100,BO101,BO102,BO103,BO104,BO105,BO106,BO107,BO108,BO109,BO109,BO110,BO111<>""),AVERAGE(BO86:BO116),"") -> 10.68 | BP117: =IF(OR(BP86,BP87,BP88,BP89,BP90,BP91,BP92,BP93,BP94,BP95,BP96,BP97,BP98,BP99,BP100,BP101,BP102,BP103,BP104,BP105,BP106,BP107,BP108,BP109,BP109,BP110,BP111<>""),AVERAGE(BP86:BP116),"") ->  | BS117: =IF(OR(BS86,BS87,BS88,BS89,BS90,BS91,BS92,BS93,BS94,BS95,BS96,BS97,BS98,BS99,BS100,BS101,BS102,BS103,BS104,BS105,BS106,BS107,BS108,BS109,BS109,BS110,BS111<>""),AVERAGE(BS86:BS116),"") -> 2.023047441 | BT117: 1.817272727 | BU117: 106.5666667 | BV117: 39.33333333 | BW117: 54 | BX117: 0.7 | BY117: 1.206666667 | BZ117: 7.21 | CA117: 270 | CB117: 8.18 | CD117: 4.32
B118: Skupno: | J118: =IF(OR(J86,J87,J88,J89,J90,J91,J92,J93,J94,J95,J96,J97,J98,J99,J100,J101,J102,J103,J104,J105,J106,J107,J108,J109,J109,J110,J111<>""),SUM(J86:J116),"") -> 431408 | N118: =IF(OR(N86,N87,N88,N89,N90,N91,N92,N93,N94,N95,N96,N97,N98,N99,N100,N101,N102,N103,N104,N105,N106,N107,N108,N109,N109,N110,N111<>""),SUM(N86:N116),"") -> 30 | AU118: =IF(OR(AU86,AU87,AU88,AU89,AU90,AU91,AU92,AU93,AU94,AU95,AU96,AU97,AU98,AU99,AU100,AU101,AU102,AU103,AU104,AU105,AU106,AU107,AU108,AU109,AU109,AU110,AU111<>""),SUM(AU86:AU116),"") -> 403000
B119: Min: | J119: =IF(OR(J86,J87,J88,J89,J90,J91,J92,J93,J94,J95,J96,J97,J98,J99,J100,J101,J102,J103,J104,J105,J106,J107,J108,J109,J109,J110,J111<>""),MIN(J86:J116),"") -> 8560 | K119: 106.0209298 | L119: 582.0360708 | M119: 445.5824594 | N119: 0 | O119: 427 | P119: 154 | Q119: 173 | R119: 10 | S119: 5.512950222 | T119: 8.443262116 | U119: 7.559500065 | V119: 7.3407504 | W119: 7.961601281 | X119: 7.75176221 | Y119: 7.456 | Z119: 0.2054632306 | AA119: 1.104680061 | AB119: 0.8740975169 | AC119: 6.44 | AD119: 794 | AE119: 51 | AG119: 0.1517773355 | AH119: 19.40442263 | AI119: 4.434019873 | AJ119: 32 | AK119: =IF(OR(AK86,AK87,AK88,AK89,AK90,AK91,AK92,AK93,AK94,AK95,AK96,AK97,AK98,AK99,AK100,AK101,AK102,AK103,AK104,AK105,AK106,AK107,AK108,AK109,AK109,AK110,AK111<>""),MIN(AK86:AK116),"") -> 130 | AL119: =IF(OR(AL86,AL87,AL88,AL89,AL90,AL91,AL92,AL93,AL94,AL95,AL96,AL97,AL98,AL99,AL100,AL101,AL102,AL103,AL104,AL105,AL106,AL107,AL108,AL109,AL109,AL110,AL111<>""),MIN(AL86:AL116),"") -> 31 | AM119: 42 | AN119: 0 | AO119: 3.07 | AP119: 7.47 | AQ119: 412 | AR119: 26.4 | AT119: 18 | AU119: 9300 | AV119: 39.60501709 | AW119: 528.2841146 | AX119: 387.6146604 | AY119: 14.5 | AZ119: 0 | BA119: 0 | BB119: 0 | BC119: 7.001 | BD119: 0.8154953976 | BE119: 1.160053591 | BF119: 0.9511393489 | BG119: 1.74 | BH119: 0.2778645833 | BI119: 8.347916667 | BJ119: 4.400585937 | BK119: 2.610938056 | BL119: 5.760000674 | BM119: 3.922752588 | BN119: 497 | BO119: 5.2 | BQ119: 0.001328509668 | BR119: 1.011771329 | BS119: 0.2378923261 | BT119: 0.81 | BU119: 63.7 | BV119: =IF(OR(BV86,BV87,BV88,BV89,BV90,BV91,BV92,BV93,BV94,BV95,BV96,BV97,BV98,BV99,BV100,BV101,BV102,BV103,BV104,BV105,BV106,BV107,BV108,BV109,BV109,BV110,BV111<>""),MIN(BV86:BV116),"") -> 18 | BW119: 26 | BX119: 0.1 | BY119: 0.67 | BZ119: 7.057 | CA119: 226 | CB119: 5.02 | CD119: 1.77
B120: Max: | J120: =IF(OR(J86,J87,J88,J89,J90,J91,J92,J93,J94,J95,J96,J97,J98,J99,J100,J101,J102,J103,J104,J105,J106,J107,J108,J109,J109,J110,J111<>""),MAX(J86:J116),"") -> 24064 | K120: 1196.305938 | L120: 1310.46971 | M120: 1254.590142 | N120: 10 | O120: 1508 | P120: 500 | Q120: 1080 | R120: 150 | S120: 9.718138345 | T120: 11.58435736 | U120: 10.65598325 | V120: 7.941674431 | W120: 8.442980019 | X120: 8.128436116 | Y120: 7.995 | Z120: 6.244801998 | AA120: 17.16095924 | AB120: 9.777087732 | AC120: 27.8 | AD120: 1165 | AE120: 110 | AG120: 43 | AH120: 91.72374268 | AI120: 59.69509606 | AJ120: 50.9 | AK120: =IF(OR(AK86,AK87,AK88,AK89,AK90,AK91,AK92,AK93,AK94,AK95,AK96,AK97,AK98,AK99,AK100,AK101,AK102,AK103,AK104,AK105,AK106,AK107,AK108,AK109,AK109,AK110,AK111<>""),MAX(AK86:AK116),"") -> 502 | AL120: =IF(OR(AL86,AL87,AL88,AL89,AL90,AL91,AL92,AL93,AL94,AL95,AL96,AL97,AL98,AL99,AL100,AL101,AL102,AL103,AL104,AL105,AL106,AL107,AL108,AL109,AL109,AL110,AL111<>""),MAX(AL86:AL116),"") -> 160 | AM120: 264 | AN120: 23 | AO120: 9.38 | AP120: 7.657 | AQ120: 1113 | AR120: 55.7 | AT120: 43.4 | AU120: 22600 | AV120: 884.1507161 | AW120: 982.6207601 | AX120: 941.033971 | AY120: 24.5 | AZ120: 2 | BA120: 6 | BB120: 0.1 | BC120: 7.343 | BD120: 1.682835664 | BE120: 1.998448529 | BF120: 1.826786432 | BG120: 2.59 | BH120: 23.65859375 | BI120: 112.0148437 | BJ120: 47.59312066 | BK120: 21.29868892 | BL120: 27.09032962 | BM120: 24.7755893 | BN120: 1131 | BO120: 20.9 | BQ120: 4.045894098 | BR120: 12.94841067 | BS120: 7.553718996 | BT120: 5.56 | BU120: 139 | BV120: =IF(OR(BV86,BV87,BV88,BV89,BV90,BV91,BV92,BV93,BV94,BV95,BV96,BV97,BV98,BV99,BV100,BV101,BV102,BV103,BV104,BV105,BV106,BV107,BV108,BV109,BV109,BV110,BV111<>""),MAX(BV86:BV116),"") -> 65 | BW120: 76 | BX120: 1.3 | BY120: 1.49 | BZ120: 7.363 | CA120: 319 | CB120: 10.2 | CD120: 6.07
J122: VTOK | N122: Septika | O122: VTOK | S122: VTOK | AD122: VTOK | AK122: Mehansko predčiščenje | AU122: IZTOK | BC122: IZTOK | BN122: IZTOK | BU122: Deževni bazen
A123: Slovenčeva 95, 1000 Ljubljana Slovenia | J123: Pretok | N123: Pretok | O123: KPK | P123: BPK | Q123: Neraztopljene snovi | R123: Usedljive snovi | S123: Temperatura | V123: pH | Z123: Fosfor | AD123: Prevodnost | AE123: Celotni dušik | AF123: NO3-N | AG123: Amoniak | AK123: KPK | AL123: BPK | AM123: Neraztopljene snovi | AN123: Usedljive snovi | AO123: Fosfor | AP123: pH | AQ123: Prevodnost | AR123: Celotni dušik | AS123: NO3-N | AT123: Amoniak | AU123: Pretok | AY123: KPK | AZ123: BPK | BA123: Neraztopljene snovi | BB123: Usedljive snovi | BC123: pH | BD123: Fosfor | BH123: Totalni ogljik | BK123: Totalni dušik | BN123: Prevodnost | BO123: Celotni dušik | BP123: NO3-N | BQ123: Amoniak | BU123: KPK | BV123: BPK | BW123: Neraztopljene snovi | BX123: Usedljive snovi | BY123: Fosfor | BZ123: pH | CA123: Prevodnost | CB123: Celotni dušik | CC123: NO3-N | CD123: Amoniak
I125: Tag: | J125: LT 05.01 in LT 05.02 | N125: FT 15.01 | O125: Laboratori | P125: Laboratori | Q125: Laboratori | R125: Laboratori | S125: AT 05.03 | V125: pH 05.03 | Y125: Laboratori | Z125: PO4P 05.06 | AC125: Laboratori | AD125: Laboratori | AE125: Laboratori | AF125: Laboratori | AG125: NH4N 08.10 | AJ125: Laboratori | AK125: Laboratori | AL125: Laboratori | AM125: Laboratori | AN125: Laboratori | AO125: Laboratori | AP125: Laboratori | AQ125: Laboratori | AR125: Laboratori | AS125: Laboratori | AT125: Laboratori | AU125: FT 13.01 | AY125: Laboratori | AZ125: Laboratori | BA125: Laboratori | BB125: Laboratori | BC125: Laboratori | BD125: PO4P 07.02 | BG125: Laboratori | BH125: TOC 14.01 | BK125: TN 14.01 | BN125: Laboratori | BO125: Laboratori | BP125: Laboratori | BQ125: NH4N 08.11 | BT125: Laboratori | BU125: Laboratori | BV125: Laboratori | BW125: Laboratori | BX125: Laboratori | BY125: Laboratori | BZ125: Laboratori | CA125: Laboratori | CB125: Laboratori | CC125: Laboratori | CD125: Laboratori
I126: Enote | J126: m³ | K126: m³/h | L126: m³/h | M126: m³/h | N126: m³ | O126: mg/l | P126: mg/l | Q126: mg/l | R126: ml/l | S126: °C | T126: °C | U126: °C | Z126: mg/l | AA126: mg/l | AB126: mg/l | AC126: mg/l | AD126: µS/cm | AE126: mg/l | AF126: mg/l | AG126: mg/l | AH126: mg/l | AI126: mg/l | AJ126: mg/l | AK126: mg/l | AL126: mg/l | AM126: mg/l | AN126: ml/l | AO126: mg/l | AQ126: µS/cm | AR126: mg/l | AS126: mg/l | AT126: mg/l | AU126: m³ | AV126: m³/h | AW126: m³/h | AX126: m³/h | AY126: mg/l | AZ126: mg/l | BA126: mg/l | BB126: ml/l | BD126: mg/l | BE126: mg/l | BF126: mg/l | BG126: mg/l | BH126: mgC/l | BI126: mgC/l | BJ126: mgC/l | BK126: mgN/l | BL126: mgN/l | BM126: mgN/l | BN126: µS/cm | BO126: mg/l | BP126: mg/l | BQ126: mg/l | BR126: mg/l | BS126: mg/l | BT126: mg/l | BU126: mg/l | BV126: mg/l | BW126: mg/l | BX126: ml/l | BY126: mg/l | CA126: µS/cm | CB126: mg/l | CC126: mg/l | CD126: mg/l
A130: Datum | B130: Dan | J130: Kumulativa | K130: Minimalno | L130: Maksimalno | M130: Povprečje | N130: Kumulativa | O130: Vrednost | P130: Vrednost | Q130: Vrednost | R130: Vrednost | S130: Minimalno | T130: Maksimalno | U130: Povprečje | V130: Minimalno | W130: Maksimalno | X130: Povprečje | Y130: Vrednost | Z130: Minimalno | AA130: Maksimalno | AB130: Povprečje | AC130: Vrednost | AD130: Vrednost | AE130: Vrednost | AF130: Vrednost | AG130: Minimalno | AH130: Maksimalno | AI130: Povprečje | AJ130: Vrednost | AK130: Vrednost | AL130: Vrednost | AM130: Vrednost | AN130: Vrednost | AO130: Vrednost | AP130: Vrednost | AQ130: Vrednost | AR130: Vrednost | AS130: Vrednost | AT130: Vrednost | AU130: Kumulativa | AV130: Minimalno | AW130: Maksimalno | AX130: Povprečje | AY130: Vrednost | AZ130: Vrednost | BA130: Vrednost | BB130: Vrednost | BC130: Vrednost | BD130: Minimalno | BE130: Maksimalno | BF130: Povprečje | BG130: Vrednost | BH130: Minimalno | BI130: Maksimalno | BJ130: Povprečje | BK130: Minimalno | BL130: Maksimalno | BM130: Povprečje | BN130: Vrednost | BO130: Vrednost | BP130: Vrednost | BQ130: Minimalno | BR130: Maksimalno | BS130: Povprečje | BT130: Vrednost | BU130: Vrednost | BV130: Vrednost | BW130: Vrednost | BX130: Vrednost | BY130: Vrednost | BZ130: Vrednost | CA130: Vrednost | CB130: Vrednost | CC130: Vrednost | CD130: Vrednost
A131: 2024-02-01 | B131: =IF(A131>0,A131,"") -> 2024-02-01 | J131: 8936 | K131: 224.7709292 | L131: 648.8594681 | M131: 465.1684652 | N131: 0 | O131: 738 | P131: 280 | Q131: 387 | R131: 13 | S131: 8.835177771 | T131: 10.33652395 | U131: 9.616481943 | V131: 7.830119109 | W131: 8.349695889 | X131: 8.030070043 | Y131: 7.749 | Z131: 3.773028739 | AA131: 6.813139804 | AB131: 4.873150755 | AC131: 11.16 | AD131: 1306 | AE131: 77 | AG131: 44.05307706 | AH131: 76.90774231 | AI131: 59.58591303 | AJ131: 58 | AK131: 332 | AL131: 110 | AM131: 112 | AN131: 2 | AO131: 8.79 | AP131: 7.561 | AQ131: 1115 | AR131: 61.3 | AT131: 44 | AU131: 9000 | AV131: 158.9626556 | AW131: 532.2265422 | AX131: 376.6554593 | AY131: 21.4 | AZ131: 2 | BA131: 1 | BB131: 0 | BC131: 7.144 | BD131: 1.296020373 | BE131: 1.652291584 | BF131: 1.494206881 | BG131: 1.71 | BH131: 8.453125 | BI131: 11.10234375 | BJ131: 9.551475694 | BK131: 15.23554777 | BL131: 19.66017316 | BM131: 18.38542699 | BN131: 911 | BO131: 16.7 | BQ131: 1.021833692 | BR131: 3.759764608 | BS131: 2.033025759 | BT131: 1.56
A132: 2024-02-02 | B132: =IF(A132>0,A132,"") -> 2024-02-02 | J132: 9216 | K132: 251.6637708 | L132: 597.000383 | M132: 480.3631547 | N132: 0 | S132: 8.898954217 | T132: 10.7501123 | U132: 9.745683621 | V132: 7.754536279 | W132: 8.291932615 | X132: 7.956084297 | Z132: 4.261695862 | AA132: 6.302011275 | AB132: 5.340359403 | AG132: 41.42388802 | AH132: 83.108859 | AI132: 61.78213235 | AU132: 9100 | AV132: 134.0603099 | AW132: 507.6316284 | AX132: 378.5686476 | BD132: 1.314762171 | BE132: 1.751673543 | BF132: 1.497197135 | BH132: 8.41796875 | BI132: 9.353385417 | BJ132: 8.742382812 | BK132: 12.82143834 | BL132: 19.4105169 | BM132: 17.91397975 | BQ132: 0.8674198866 | BR132: 3.580946823 | BS132: 2.120139439
A133: 2024-02-03 | B133: 2024-02-03 | J133: 9008 | K133: 236.2413175 | L133: 651.3069056 | M133: 469.3692912 | N133: 0 | S133: 8.800874964 | T133: 10.03396688 | U133: 9.557159645 | V133: 7.804939612 | W133: 8.460913992 | X133: 7.984595292 | Z133: 4.318196615 | AA133: 5.928742862 | AB133: 5.018177862 | AG133: 42.21534996 | AH133: 65.07560654 | AI133: 48.57331102 | AU133: 8900 | AV133: 127.0254415 | AW133: 533.49245 | AX133: 373.6044529 | BD133: 1.248588483 | BE133: 1.671301285 | BF133: 1.489888551 | BH133: 8.608333333 | BI133: 9.09765625 | BJ133: 8.815809462 | BK133: 10.60237592 | BL133: 19.77093887 | BM133: 17.0314972 | BQ133: 0.4170345878 | BR133: 2.468681961 | BS133: 1.341598036
A134: 2024-02-04 | B134: 2024-02-04 | J134: 9184 | K134: 210.0622107 | L134: 674.5804377 | M134: 478.4534325 | N134: 0 | S134: 8.672275035 | T134: 10.67551908 | U134: 9.738716745 | V134: 7.840973425 | W134: 8.394092067 | X134: 7.975360433 | Z134: 3.92339805 | AA134: 8.392097179 | AB134: 5.365988007 | AG134: 40.53223635 | AH134: 64.42169736 | AI134: 46.76019974 | AU134: 9200 | AV134: 118.5619008 | AW134: 575.3761312 | AX134: 383.7084109 | BD134: 1.180343852 | BE134: 1.608127087 | BF134: 1.354190134 | BH134: 8.739583333 | BI134: 9.2609375 | BJ134: 8.973036024 | BK134: 7.125891288 | BL134: 14.1057669 | BM134: 10.07744029 | BQ134: 0.03501930709 | BR134: 1.790465852 | BS134: 0.9230884576
A135: 2024-02-05 | B135: 2024-02-05 | J135: 9000 | K135: 216.1602988 | L135: 616.2905029 | M135: 468.897086 | N135: 0 | O135: 854 | P135: 400 | Q135: 307 | R135: 15 | S135: 8.954448589 | T135: 10.22710001 | U135: 9.724112182 | V135: 7.81689376 | W135: 8.38602101 | X135: 8.04465551 | Y135: 7.664 | Z135: 2.60766935 | AA135: 7.8182621 | AB135: 4.657372353 | AC135: 10.84 | AD135: 1116 | AE135: 78.6 | AG135: 39.33804614 | AH135: 81.07902044 | AI135: 51.29197957 | AJ135: 57 | AK135: 337 | AL135: 200 | AM135: 68 | AN135: 0.4 | AO135: 6.7 | AP135: 7.622 | AQ135: 988 | AR135: 52.6 | AT135: 38 | AU135: 8600 | AV135: 124.6563772 | AW135: 487.3589111 | AX135: 356.9787788 | BD135: 1.120952298 | BE135: 1.442589517 | BF135: 1.225564154 | BH135: 8.809114583 | BI135: 11.5515625 | BJ135: 9.963878038 | BK135: 5.781656996 | BL135: 8.872547722 | BM135: 7.456006652 | BQ135: 0.02282542953 | BR135: 2.17303737 | BS135: 0.9980298988
A136: 2024-02-06 | B136: 2024-02-06 | J136: 9600 | K136: 240.318767 | L136: 633.0150477 | M136: 499.869991 | N136: 0 | S136: 9.034143035 | T136: 10.63815413 | U136: 9.840571675 | V136: 7.821444257 | W136: 8.324781402 | X136: 7.953011093 | Z136: 1.031126499 | AA136: 8.648341815 | AB136: 5.042234541 | AG136: 38.96292343 | AH136: 74.90909449 | AI136: 55.98635223 | AU136: 9000 | AV136: 119.7916473 | AW136: 526.1139791 | AX136: 374.3037229 | AY136: 24.2 | AZ136: 1 | BA136: 0 | BB136: 0 | BC136: 7.045 | BD136: 1.00613566 | BE136: 1.88805902 | BF136: 1.52509578 | BG136: 1.48 | BH136: 9.756770833 | BI136: 10.56510417 | BJ136: 10.04501953 | BK136: 6.030563275 | BL136: 9.361547883 | BM136: 8.103155092 | BN136: 837 | BO136: 7.48 | BQ136: 0.05020347207 | BR136: 2.536684036 | BS136: 1.315575445 | BT136: 1.22
A137: 2024-02-07 | B137: 2024-02-07 | J137: 9320 | K137: 264.0263303 | L137: 604.4053813 | M137: 485.5491842 | N137: 0 | S137: 9.193411477 | T137: 10.32931593 | U137: 9.912094805 | V137: 7.787046464 | W137: 8.366475312 | X137: 8.025625693 | Z137: 3.273416217 | AA137: 5.529254913 | AB137: 4.893082944 | AG137: 35.61679247 | AH137: 77.80821304 | AI137: 59.03097144 | AU137: 7500 | AV137: 0.8391072591 | AW137: 489.2216187 | AX137: 313.8270762 | BD137: 1.505581303 | BE137: 2.218723218 | BF137: 1.821651026 | BH137: 10.02786458 | BI137: 11.00026042 | BJ137: 10.35623915 | BK137: 9.974297555 | BL137: 13.06879787 | BM137: 11.91154973 | BQ137: 0.09387299667 | BR137: 4.174214284 | BS137: 1.806219251
A138: 2024-02-08 | B138: 2024-02-08 | J138: 9256 | K138: 270.0617256 | L138: 653.9954651 | M138: 481.6527796 | N138: 0 | S138: 9.228417905 | T138: 10.51066647 | U138: 9.96454393 | V138: 7.869154636 | W138: 8.348603169 | X138: 8.014534925 | Z138: 5.529254913 | AA138: 5.529254913 | AB138: 5.529254913 | AG138: 39.95525996 | AH138: 61.58735154 | AI138: 49.46641223 | AU138: 8800 | AV138: 150.7522959 | AW138: 516.4930278 | AX138: 366.1152155 | BD138: 1.621658246 | BE138: 1.981193225 | BF138: 1.781101654 | BH138: 10.04010417 | BI138: 10.5625 | BJ138: 10.29211155 | BK138: 12.14953216 | BL138: 16.26454795 | BM138: 14.70714752 | BQ138: 0.1435512592 | BR138: 3.687277754 | BS138: 1.233669273
A139: 2024-02-09 | B139: 2024-02-09 | J139: 17096 | K139: 318.4268913 | L139: 1091.893324 | M139: 890.5528588 | N139: 0 | S139: 7.924034786 | T139: 10.33933624 | U139: 9.041462156 | V139: 7.447228376 | W139: 7.938371134 | X139: 7.812230152 | Z139: 5.529254913 | AA139: 5.529254913 | AB139: 5.529254913 | AG139: 15.97711906 | AH139: 44.2892278 | AI139: 32.03606483 | AU139: 17300 | AV139: 223.451943 | AW139: 923.3398092 | AX139: 724.1836009 | BD139: 1.633341748 | BE139: 1.896307957 | BF139: 1.766351938 | BH139: 9.8515625 | BI139: 11.0109375 | BJ139: 10.42823351 | BK139: 7.496532043 | BL139: 13.83361038 | BM139: 10.52268638 | BQ139: 0.09952736249 | BR139: 1.944581185 | BS139: 1.123997743
A140: 2024-02-10 | B140: 2024-02-10 | J140: 19032 | K140: 878.7061137 | L140: 1089.407301 | M140: 991.755176 | N140: 0 | S140: 7.510049462 | T140: 9.408376916 | U140: 8.579929794 | V140: 7.630390986 | W140: 8.403702323 | X140: 7.996910514 | Z140: 5.529254913 | AA140: 5.529254913 | AB140: 5.529254913 | AG140: 7.056463448 | AH140: 34.72039324 | AI140: 19.18175345 | AU140: 19800 | AV140: 708.9481608 | AW140: 918.9995138 | AX140: 823.2323516 | BD140: 1.495416379 | BE140: 1.779984182 | BF140: 1.64797302 | BH140: 7.754947917 | BI140: 9.733072917 | BJ140: 8.47438151 | BK140: 5.378391171 | BL140: 10.29407921 | BM140: 7.974723393 | BQ140: 0.001592081541 | BR140: 1.690311038 | BS140: 0.7747316215
A141: 2024-02-11 | B141: 2024-02-11 | J141: 20280 | K141: 1025.528065 | L141: 1078.050245 | M141: 1055.659939 | N141: 0 | S141: 7.362899176 | T141: 8.711333927 | U141: 8.157106346 | V141: 7.633528797 | W141: 8.073627996 | X141: 7.860347401 | Z141: 5.529254913 | AA141: 5.529254913 | AB141: 5.529254913 | AG141: 5.303047697 | AH141: 15.55916416 | AI141: 11.52294688 | AU141: 21300 | AV141: 859.2845418 | AW141: 929.2353556 | AX141: 890.8148465 | BD141: 1.322430305 | BE141: 1.664116706 | BF141: 1.438636784 | BH141: 6.403125 | BI141: 8.223177083 | BJ141: 7.248936632 | BK141: 3.141422478 | BL141: 7.107891115 | BM141: 4.564750616 | BQ141: 0.001927371488 | BR141: 1.071101137 | BS141: 0.1288617249 | BU141: 77.6 | BV141: 34 | BW141: 28 | BX141: 0 | BY141: 0.81 | BZ141: 7.489 | CA141: 319 | CB141: 10 | CD141: 4.61
A142: 2024-02-12 | B142: 2024-02-12 | J142: 16760 | K142: 679.4704834 | L142: 1056.331978 | M142: 873.167335 | N142: 0 | O142: 267 | P142: 110 | Q142: 120 | R142: 4.5 | S142: 7.45528028 | T142: 9.373846674 | U142: 8.548076379 | V142: 7.994054174 | W142: 8.369671726 | X142: 8.152832535 | Y142: 7.462 | Z142: 0.6220690012 | AA142: 14.23231983 | AB142: 4.66030562 | AC142: 4.16 | AD142: 488 | AE142: 23.3 | AG142: 11.46715233 | AH142: 41.67238515 | AI142: 24.83276176 | AJ142: 11.7 | AK142: 186 | AL142: 95 | AM142: 54 | AN142: 0.2 | AO142: 3.59 | AP142: 7.393 | AQ142: 637 | AR142: 24.7 | AT142: 15.3 | AU142: 16900 | AV142: 554.4342936 | AW142: 916.8655538 | AX142: 706.2151489 | AY142: 16.8 | AZ142: 1 | BA142: 1 | BB142: 0 | BC142: 7.256 | BD142: 1.269245438 | BE142: 1.660949399 | BF142: 1.463106816 | BG142: 1.68 | BH142: 6.095052083 | BI142: 7.14921875 | BJ142: 6.350683594 | BK142: 2.561484893 | BL142: 7.688203684 | BM142: 4.105141221 | BN142: 523 | BO142: 3.69 | BQ142: 0.0017873042 | BR142: 1.966242737 | BS142: 0.7755491189 | BT142: 0.05
A143: 2024-02-13 | B143: 2024-02-13 | J143: 14024 | K143: 519.5023122 | L143: 846.5518901 | M143: 730.2274199 | N143: 0 | S143: 7.885406756 | T143: 10.43027253 | U143: 9.200418865 | V143: 7.942696293 | W143: 8.293568595 | X143: 8.094830676 | Z143: 1.8210392 | AA143: 6.499282797 | AB143: 3.597806965 | AG143: 17.32079926 | AH143: 57.20642039 | AI143: 38.71311821 | AU143: 13900 | AV143: 414.3156514 | AW143: 683.1054281 | AX143: 577.327745 | BD143: 1.614869418 | BE143: 1.826333825 | BF143: 1.700817001 | BH143: 6.759375 | BI143: 8.297395833 | BJ143: 7.215722656 | BK143: 5.313516251 | BL143: 10.0259072 | BM143: 7.163822949 | BQ143: 0.05508878541 | BR143: 4.567085838 | BS143: 1.851365673
A144: 2024-02-14 | B144: 2024-02-14 | J144: 12968 | K144: 397.8587962 | L144: 1054.897279 | M144: 676.1158099 | N144: 0 | O144: 569 | P144: 200 | Q144: 420 | R144: 9 | S144: 8.643449291 | T144: 10.25173465 | U144: 9.626502983 | V144: 7.489837686 | W144: 8.431356557 | X144: 8.024074331 | Y144: 7.671 | Z144: 3.788694247 | AA144: 8.464141814 | AB144: 5.688282605 | AC144: 7.68 | AD144: 997 | AE144: 57.8 | AG144: 24.29116482 | AH144: 63.01225917 | AI144: 43.25914057 | AJ144: 39 | AK144: 182 | AL144: 65 | AM144: 56 | AN144: 0.1 | AO144: 3.66 | AP144: 7.661 | AQ144: 811 | AR144: 35.5 | AT144: 24.3 | AU144: 12700 | AV144: 264.3228912 | AW144: 860.2972616 | AX144: 529.0994211 | AY144: 15.5 | AZ144: 0 | BA144: 0 | BB144: 0 | BC144: 7.178 | BD144: 1.524805069 | BE144: 1.849844392 | BF144: 1.640248095 | BG144: 1.89 | BH144: 7.525 | BI144: 8.31875 | BJ144: 8.001736111 | BK144: 11.04520419 | BL144: 15.03159485 | BM144: 12.92556933 | BN144: 613 | BO144: 10.6 | BQ144: 0.6723714948 | BR144: 4.804832141 | BS144: 2.848383813 | BT144: 3.13
A145: 2024-02-15 | B145: 2024-02-15 | J145: 11080 | K145: 372.6466034 | L145: 727.1411987 | M145: 576.9223795 | N145: 0 | S145: 8.843073797 | T145: 10.65982768 | U145: 9.941693035 | V145: 7.937818734 | W145: 8.26664559 | X145: 8.068143197 | Z145: 1.439084411 | AA145: 9.122860988 | AB145: 4.240182159 | AG145: 27.23788929 | AH145: 69.06896464 | AI145: 51.39130311 | AU145: 11400 | AV145: 247.3596354 | AW145: 612.9376139 | AX145: 475.3327277 | BD145: 1.439184622 | BE145: 1.680958311 | BF145: 1.543061423 | BH145: 8.426041667 | BI145: 9.2578125 | BJ145: 8.743391927 | BK145: 13.55461038 | BL145: 16.89811068 | BM145: 15.66691711 | BQ145: 0.8224583964 | BR145: 4.54507664 | BS145: 2.925204711
A146: 2024-02-16 | B146: 2024-02-16 | J146: 10272 | K146: 288.6598173 | L146: 699.262148 | M146: 535.0668301 | N146: 0 | S146: 9.149597915 | T146: 10.85352845 | U146: 10.19234886 | V146: 7.934273163 | W146: 8.379505968 | X146: 8.07345116 | Z146: 1.537806749 | AA146: 9.418663025 | AB146: 4.665596772 | AG146: 34.95591469 | AH146: 76.63865191 | AI146: 57.80035295 | AU146: 10800 | AV146: 220.739268 | AW146: 583.2609741 | AX146: 452.8544598 | BD146: 1.320901483 | BE146: 1.642546445 | BF146: 1.498087074 | BH146: 9.11640625 | BI146: 9.61953125 | BJ146: 9.277593316 | BK146: 14.68256353 | BL146: 19.56370433 | BM146: 17.26159293 | BQ146: 0.2673044751 | BR146: 4.376646296 | BS146: 2.327329701
A147: 2024-02-17 | B147: 2024-02-17 | J147: 10000 | K147: 286.9888117 | L147: 718.7234741 | M147: 520.8330295 | N147: 0 | S147: 9.404547056 | T147: 10.78701766 | U147: 10.26519728 | V147: 7.836600526 | W147: 8.38120993 | X147: 8.002216516 | Z147: 0.9841455221 | AA147: 7.067863464 | AB147: 3.625921018 | AG147: 37.49991881 | AH147: 57.61646055 | AI147: 44.38938746 | AU147: 9700 | AV147: 220.7211843 | AW147: 567.8168132 | AX147: 406.3878672 | BD147: 1.357233459 | BE147: 1.692778814 | BF147: 1.491435077 | BH147: 9.53828125 | BI147: 9.836979167 | BJ147: 9.667165799 | BK147: 12.14325096 | BL147: 21.12281396 | BM147: 17.88725702 | BQ147: 0.177219787 | BR147: 3.679197598 | BS147: 1.18978475
A148: 2024-02-18 | B148: 2024-02-18 | J148: 9488 | K148: 240.3621709 | L148: 683.3212758 | M148: 493.8446405 | N148: 0 | S148: 9.614515241 | T148: 11.14909259 | U148: 10.50947381 | V148: 7.81017735 | W148: 8.391689444 | X148: 7.946852907 | Z148: 0.5453526974 | AA148: 7.483630657 | AB148: 3.311877992 | AG148: 37.94908212 | AH148: 61.44370461 | AI148: 45.08525955 | AU148: 8900 | AV148: 119.6469686 | AW148: 539.2071493 | AX148: 369.1579286 | BD148: 1.333857067 | BE148: 1.583624202 | BF148: 1.484635838 | BH148: 9.596354167 | BI148: 10.01432292 | BJ148: 9.753971354 | BK148: 6.561188189 | BL148: 13.46409461 | BM148: 9.073883593 | BQ148: 0.009981954315 | BR148: 1.50737983 | BS148: 0.559732681
A149: 2024-02-19 | B149: 2024-02-19 | J149: 9120 | K149: 267.2598368 | L149: 626.4564016 | M149: 474.9423355 | N149: 0 | O149: 694 | P149: 320 | Q149: 353 | R149: 13 | S149: 9.720484606 | T149: 10.96484523 | U149: 10.50925048 | V149: 7.712971441 | W149: 8.265210724 | X149: 7.911370197 | Y149: 7.688 | Z149: 0.7352001071 | AA149: 7.483630657 | AB149: 3.355847238 | AC149: 9.17 | AD149: 1098 | AE149: 68.7 | AG149: 40.70831706 | AH149: 72.18246282 | AI149: 51.98839648 | AJ149: 50 | AK149: 337 | AL149: 190 | AM149: 94 | AN149: 0.3 | AO149: 6.43 | AP149: 7.661 | AQ149: 968 | AR149: 53.6 | AT149: 40 | AU149: 8500 | AV149: 141.9813182 | AW149: 485.4781311 | AX149: 353.0126908 | AY149: 22.7 | AZ149: 1 | BA149: 2 | BB149: 0.1 | BC149: 7.276 | BD149: 1.188722948 | BE149: 1.595609148 | BF149: 1.362667767 | BG149: 1.76 | BH149: 9.249739583 | BI149: 14.75182292 | BJ149: 9.780632933 | BK149: 4.869235039 | BL149: 8.074407323 | BM149: 6.192177402 | BN149: 793 | BO149: 6.97 | BQ149: 0.02009515027 | BR149: 1.859987215 | BS149: 0.7320299044 | BT149: 0.36
A150: 2024-02-20 | B150: 2024-02-20 | J150: 9136 | K150: 247.1981092 | L150: 621.129921 | M150: 475.8737804 | N150: 0 | S150: 9.800348568 | T150: 11.82695185 | U150: 10.69715311 | V150: 7.634384727 | W150: 8.055538273 | X150: 7.782555949 | Z150: 2.157660484 | AA150: 8.478428841 | AB150: 4.184150191 | AG150: 40.09920438 | AH150: 79.45735168 | AI150: 57.65618869 | AU150: 8300 | AV150: 136.7729848 | AW150: 479.2209005 | AX150: 348.8761736 | BD150: 1.129206826 | BE150: 1.392966708 | BF150: 1.292718027 | BH150: 9.233854167 | BI150: 9.604947917 | BJ150: 9.445193142 | BK150: 5.165063127 | BL150: 8.517188263 | BM150: 6.982559301 | BQ150: 0.001767590458 | BR150: 2.333437761 | BS150: 0.6820708184
A151: 2024-02-21 | B151: 2024-02-21 | J151: 9224 | K151: 253.1901034 | L151: 626.5745539 | M151: 480.1606084 | N151: 0 | O151: 1014 | P151: 600 | Q151: 680 | R151: 11 | S151: 9.960482883 | T151: 11.30450638 | U151: 10.68681314 | V151: 7.69625059 | W151: 8.239705992 | X151: 7.917060167 | Y151: 7.473 | Z151: 2.043569585 | AA151: 8.478428841 | AB151: 4.680798347 | AC151: 12.95 | AD151: 1336 | AE151: 78.5 | AG151: 43.19693718 | AH151: 79.94309107 | AI151: 61.71390112 | AJ151: 58 | AU151: 8300 | AV151: 128.8338928 | AW151: 481.8431417 | AX151: 346.0323867 | BD151: 1.190815051 | BE151: 1.44701287 | BF151: 1.301851205 | BH151: 9.451041667 | BI151: 9.894791667 | BJ151: 9.655577257 | BK151: 8.077875805 | BL151: 12.52640721 | BM151: 9.952535949 | BQ151: 0.0173108705 | BR151: 2.888516168 | BS151: 1.324155326
A152: 2024-02-22 | B152: 2024-02-22 | J152: 10848 | K152: 250.1880775 | L152: 1091.787218 | M152: 564.8684623 | N152: 0 | S152: 9.953850635 | T152: 11.28491421 | U152: 10.72909955 | V152: 7.703598626 | W152: 8.128400326 | X152: 7.865532185 | Z152: 4.389381409 | AA152: 4.389381409 | AB152: 4.389381409 | AG152: 39.58471705 | AH152: 86.39066722 | AI152: 62.75017871 | AK152: 396 | AL152: 210 | AM152: 130 | AN152: 0.2 | AO152: 8.72 | AP152: 7.648 | AQ152: 1095 | AR152: 57.9 | AT152: 43 | AU152: 9400 | AV152: 127.6403137 | AW152: 857.4760905 | AX152: 391.7424434 | AY152: 23.5 | AZ152: 2 | BA152: 1 | BB152: 0 | BC152: 7.298 | BD152: 1.255423478 | BE152: 1.981896826 | BF152: 1.646536396 | BG152: 1.58 | BH152: 9.713541667 | BI152: 10.90859375 | BJ152: 10.02705078 | BK152: 9.770063321 | BL152: 17.17800124 | BM152: 13.29715527 | BN152: 884 | BO152: 10.8 | BQ152: 0.07752574918 | BR152: 3.434855143 | BS152: 1.576758689 | BT152: 0.95
A153: 2024-02-23 | B153: 2024-02-23 | J153: 19312 | K153: 50.7161458 | L153: 1111.889946 | M153: 1006.260846 | N153: 0 | S153: 7.274106455 | T153: 9.44360431 | U153: 8.128976277 | V153: 7.70316352 | W153: 8.206113863 | X153: 7.81579169 | Z153: 4.389381409 | AA153: 4.389381409 | AB153: 4.389381409 | AG153: 11.79211839 | AH153: 36.75391439 | AI153: 22.93192297 | AU153: 18000 | AV153: 0.8246398926 | AW153: 919.1442057 | AX153: 753.3853807 | BD153: 1.353581051 | BE153: 1.835041591 | BF153: 1.6181192 | BH153: 8.256510417 | BI153: 40.54322917 | BJ153: 12.94185113 | BK153: 9.971250947 | BL153: 19.3751729 | BM153: 15.06373547 | BQ153: 0.00409376341 | BR153: 2.905745228 | BS153: 1.338154475 | BU153: 290 | BV153: 90 | BW153: 214 | BX153: 3.5 | BY153: 3.24 | BZ153: 7.117 | CA153: 345 | CB153: 22.3 | CD153: 11.7
A154: 2024-02-24 | B154: 2024-02-24 | J154: 19272 | K154: 802.6403361 | L154: 1107.323013 | M154: 1003.400382 | N154: 0 | S154: 7.589010255 | T154: 9.754120509 | U154: 8.745584932 | V154: 7.829609887 | W154: 8.394000975 | X154: 8.083203491 | Z154: 4.389381409 | AA154: 4.389381409 | AB154: 4.389381409 | AG154: 6.980135481 | AH154: 28.39894956 | AI154: 17.79941803 | AU154: 19800 | AV154: 669.6144063 | AW154: 932.6352336 | AX154: 823.8962023 | BD154: 1.309748491 | BE154: 1.505699108 | BF154: 1.429978049 | BH154: 6.653125 | BI154: 8.107291667 | BJ154: 7.146473524 | BK154: 8.31196955 | BL154: 14.03292287 | BM154: 10.9392079 | BQ154: 0.001398592492 | BR154: 1.614480853 | BS154: 0.7481307645
A155: 2024-02-25 | B155: 2024-02-25 | J155: 14000 | K155: 489.4314219 | L155: 883.5961558 | M155: 729.5392041 | N155: 0 | S155: 8.415053384 | T155: 10.73987315 | U155: 9.555196632 | V155: 7.998531644 | W155: 8.427029896 | X155: 8.130858304 | Z155: 3.55337882 | AA155: 12.74888611 | AB155: 4.92872216 | AG155: 17.00561654 | AH155: 43.91928476 | AI155: 28.45284184 | AU155: 13700 | AV155: 363.6609945 | AW155: 711.4076599 | AX155: 571.3184171 | BD155: 1.391906714 | BE155: 1.522331401 | BF155: 1.465123805 | BH155: 7.03203125 | BI155: 7.957552083 | BJ155: 7.235514323 | BK155: 5.620360088 | BL155: 8.080407047 | BM155: 6.812438231 | BQ155: 0.001918627415 | BR155: 1.789892062 | BS155: 0.8066255206
A156: 2024-02-26 | B156: 2024-02-26 | J156: 12288 | K156: 411.4486877 | L156: 778.4047048 | M156: 639.7130369 | N156: 0 | O156: 471 | P156: 180 | Q156: 253 | R156: 8 | S156: 8.786341953 | T156: 10.53252405 | U156: 9.812768409 | V156: 7.931492027 | W156: 8.350742674 | X156: 8.088370086 | Y156: 7.558 | Z156: 1.012937784 | AA156: 12.74888611 | AB156: 4.961313243 | AC156: 6.19 | AD156: 805 | AE156: 45.5 | AG156: 22.67801838 | AH156: 66.83098488 | AI156: 38.36951598 | AJ156: 28.7 | AK156: 172 | AL156: 60 | AM156: 58 | AN156: 0.5 | AO156: 3.72 | AP156: 7.618 | AQ156: 747 | AR156: 32.5 | AT156: 23.2 | AU156: 11800 | AV156: 295.2292857 | AW156: 601.8337321 | AX156: 492.7028789 | AY156: 16.6 | AZ156: 1 | BA156: 3 | BB156: 0 | BC156: 7.273 | BD156: 1.317098101 | BE156: 1.600014583 | BF156: 1.47154956 | BG156: 1.65 | BH156: 7.371875 | BI156: 7.833333333 | BJ156: 7.574229601 | BK156: 5.119829146 | BL156: 8.969344568 | BM156: 6.569571072 | BN156: 601 | BO156: 6.38 | BQ156: 0.001756623839 | BR156: 2.779414972 | BS156: 1.189453811 | BT156: 0.57
A157: 2024-02-27 | B157: 2024-02-27 | J157: 16080 | K157: 386.1111079 | L157: 1103.32513 | M157: 837.6562279 | N157: 0 | S157: 9.068193865 | T157: 10.18534476 | U157: 9.473118546 | V157: 7.741260187 | W157: 8.385545969 | X157: 7.965645807 | Z157: 0.396753639 | AA157: 5.050463168 | AB157: 2.394928576 | AG157: 18.24884275 | AH157: 46.94549224 | AI157: 33.53477238 | AU157: 15800 | AV157: 243.2182943 | AW157: 923.4844889 | AX157: 659.9037872 | BD157: 1.291742456 | BE157: 1.572737499 | BF157: 1.473541464 | BH157: 7.640885417 | BI157: 8.553645833 | BJ157: 7.945638021 | BK157: 6.820219421 | BL157: 12.04532906 | BM157: 8.847951969 | BQ157: 0.002274391158 | BR157: 2.17335095 | BS157: 1.152828256 | BU157: 231 | BV157: 70 | BW157: 116 | BX157: 0.4 | BY157: 2.55 | BZ157: 6.901 | CA157: 409 | CB157: 16.8 | CD157: 5.76
A158: 2024-02-28 | B158: 2024-02-28 | J158: 14384 | K158: 433.7504812 | L158: 1284.772858 | M158: 749.8380415 | N158: 0 | S158: 9.111474307 | T158: 11.0801812 | U158: 10.18147651 | V158: 7.719838675 | W158: 8.271382809 | X158: 8.027045097 | Z158: 0.3780047297 | AA158: 8.744799288 | AB158: 3.987114424 | AG158: 19.36301346 | AH158: 105.1480278 | AI158: 50.82402898 | AU158: 13900 | AV158: 305.8629598 | AW158: 926.0886454 | AX158: 579.1437297 | BD158: 1.356333792 | BE158: 2.615983967 | BF158: 1.652910052 | BH158: 7.451822917 | BI158: 8.752604167 | BJ158: 7.914518229 | BK158: 10.51687582 | BL158: 24.49242344 | BM158: 14.23534669 | BQ158: 0.3362444709 | BR158: 15.07017527 | BS158: 7.06768852
A159: 2024-02-29 | B159: 2024-02-29 | J159: 12088 | K159: 363.0425313 | L159: 794.8374776 | M159: 629.1336092 | N159: 10 | O159: 897 | P159: 300 | Q159: 600 | R159: 18 | S159: 9.545758804 | T159: 11.12276088 | U159: 10.51245617 | V159: 7.930457211 | W159: 8.414590454 | X159: 8.109257124 | Y159: 7.715 | Z159: 0.3288172781 | AA159: 8.282192349 | AB159: 4.670524926 | AC159: 23.1 | AD159: 1158 | AE159: 87.9 | AG159: 28.7520305 | AH159: 71.70611941 | AI159: 50.52666521 | AJ159: 59 | AK159: 196 | AL159: 50 | AM159: 54 | AN159: 0.3 | AO159: 6.63 | AP159: 7.682 | AQ159: 891 | AR159: 38.4 | AT159: 26.8 | AU159: 11400 | AV159: 268.3195669 | AW159: 627.4775452 | AX159: 475.6981847 | AY159: 19.2 | AZ159: 2 | BA159: 1 | BB159: 0 | BC159: 7.32 | BD159: 1.381667634 | BE159: 1.599030987 | BF159: 1.514363574 | BG159: 1.72 | BH159: 8.224739583 | BI159: 8.9265625 | BJ159: 8.538237847 | BK159: 19.14956358 | BL159: 25.32557939 | BM159: 23.13312634 | BN159: 728 | BO159: 18 | BQ159: 1.479337656 | BR159: 11.67115412 | BS159: 5.267124814 | BT159: 7.22
B162: Povprečje | J162: =IF(OR(J131,J132,J133,J134,J135,J136,J137,J138,J139,J140,J141,J142,J143,J144,J145,J146,J147,J148,J149,J150,J151,J152,J153,J154,J154,J155,J156<>""),AVERAGE(J131:J161),"") -> 12423.17241 | M162: =IF(OR(M131,M132,M133,M134,M135,M136,M137,M138,M139,M140,M141,M142,M143,M144,M145,M146,M147,M148,M149,M150,M151,M152,M153,M154,M154,M155,M156<>""),AVERAGE(M131:M161),"") -> 647.0639771 | N162: 0.3448275862 | O162: 688 | P162: 298.75 | Q162: 390 | R162: 11.4375 | U162: =IF(OR(U131,U132,U133,U134,U135,U136,U137,U138,U139,U140,U141,U142,U143,U144,U145,U146,U147,U148,U149,U150,U151,U152,U153,U154,U154,U155,U156<>""),AVERAGE(U131:U161),"") -> 9.696326476 | X162: =IF(OR(X131,X132,X133,X134,X135,X136,X137,X138,X139,X140,X141,X142,X143,X144,X145,X146,X147,X148,X149,X150,X151,X152,X153,X154,X154,X155,X156<>""),AVERAGE(X131:X161),"") -> 7.990086785 | Y162: =IF(OR(Y131,Y132,Y133,Y134,Y135,Y136,Y137,Y138,Y139,Y140,Y141,Y142,Y143,Y144,Y145,Y146,Y147,Y148,Y149,Y150,Y151,Y152,Y153,Y154,Y154,Y155,Y156<>""),AVERAGE(Y131:Y161),"") -> 7.6225 | AB162: =IF(OR(AB131,AB132,AB133,AB134,AB135,AB136,AB137,AB138,AB139,AB140,AB141,AB142,AB143,AB144,AB145,AB146,AB147,AB148,AB149,AB150,AB151,AB152,AB153,AB154,AB154,AB155,AB156<>""),AVERAGE(AB131:AB161),"") -> 4.60099662 | AC162: =IF(OR(AC131,AC132,AC133,AC134,AC135,AC136,AC137,AC138,AC139,AC140,AC141,AC142,AC143,AC144,AC145,AC146,AC147,AC148,AC149,AC150,AC151,AC152,AC153,AC154,AC154,AC155,AC156<>""),AVERAGE(AC131:AC161),"") -> 10.65625 | AD162: =IF(OR(AD131,AD132,AD133,AD134,AD135,AD136,AD137,AD138,AD139,AD140,AD141,AD142,AD143,AD144,AD145,AD146,AD147,AD148,AD149,AD150,AD151,AD152,AD153,AD154,AD154,AD155,AD156<>""),AVERAGE(AD131:AD161),"") -> 1038 | AE162: =IF(OR(AE131,AE132,AE133,AE134,AE135,AE136,AE137,AE138,AE139,AE140,AE141,AE142,AE143,AE144,AE145,AE146,AE147,AE148,AE149,AE150,AE151,AE152,AE153,AE154,AE154,AE155,AE156<>""),AVERAGE(AE131:AE161),"") -> 64.6625 | AF162: =IF(OR(AF131,AF132,AF133,AF134,AF135,AF136,AF137,AF138,AF139,AF140,AF141,AF142,AF143,AF144,AF145,AF146,AF147,AF148,AF149,AF150,AF151,AF152,AF153,AF154,AF154,AF155,AF156<>""),AVERAGE(AF131:AF161),"") ->  | AI162: =IF(OR(AI131,AI132,AI133,AI134,AI135,AI136,AI137,AI138,AI139,AI140,AI141,AI142,AI143,AI144,AI145,AI146,AI147,AI148,AI149,AI150,AI151,AI152,AI153,AI154,AI154,AI155,AI156<>""),AVERAGE(AI131:AI161),"") -> 44.04266175 | AJ162: 45.175 | AK162: 267.25 | AL162: 122.5 | AM162: 78.25 | AN162: 0.5 | AO162: 6.03 | AP162: 7.60575 | AQ162: 906.5 | AR162: 44.5625 | AT162: 31.825 | AU162: 12127.58621 | AX162: =IF(OR(AX131,AX132,AX133,AX134,AX135,AX136,AX137,AX138,AX139,AX140,AX141,AX142,AX143,AX144,AX145,AX146,AX147,AX148,AX149,AX150,AX151,AX152,AX153,AX154,AX154,AX155,AX156<>""),AVERAGE(AX131:AX161),"") -> 506.0027633 | AY162: 19.9875 | AZ162: 1.25 | BA162: 1.125 | BB162: 0.0125 | BC162: 7.22375 | BF162: =IF(OR(BF131,BF132,BF133,BF134,BF135,BF136,BF137,BF138,BF139,BF140,BF141,BF142,BF143,BF144,BF145,BF146,BF147,BF148,BF149,BF150,BF151,BF152,BF153,BF154,BF154,BF155,BF156<>""),AVERAGE(BF131:BF161),"") -> 1.520434741 | BG162: =IF(OR(BG131,BG132,BG133,BG134,BG135,BG136,BG137,BG138,BG139,BG140,BG141,BG142,BG143,BG144,BG145,BG146,BG147,BG148,BG149,BG150,BG151,BG152,BG153,BG154,BG154,BG155,BG156<>""),AVERAGE(BG131:BG161),"") -> 1.68375 | BJ162: =IF(OR(BJ131,BJ132,BJ133,BJ134,BJ135,BJ136,BJ137,BJ138,BJ139,BJ140,BJ141,BJ142,BJ143,BJ144,BJ145,BJ146,BJ147,BJ148,BJ149,BJ150,BJ151,BJ152,BJ153,BJ154,BJ154,BJ155,BJ156<>""),AVERAGE(BJ131:BJ161),"") -> 8.96919605 | BM162: =IF(OR(BM131,BM132,BM133,BM134,BM135,BM136,BM137,BM138,BM139,BM140,BM141,BM142,BM143,BM144,BM145,BM146,BM147,BM148,BM149,BM150,BM151,BM152,BM153,BM154,BM154,BM155,BM156<>""),AVERAGE(BM131:BM161),"") -> 11.5433915 | BN162: =IF(OR(BN131,BN132,BN133,BN134,BN135,BN136,BN137,BN138,BN139,BN140,BN141,BN142,BN143,BN144,BN145,BN146,BN147,BN148,BN149,BN150,BN151,BN152,BN153,BN154,BN154,BN155,BN156<>""),AVERAGE(BN131:BN161),"") -> 736.25 | BO162: =IF(OR(BO131,BO132,BO133,BO134,BO135,BO136,BO137,BO138,BO139,BO140,BO141,BO142,BO143,BO144,BO145,BO146,BO147,BO148,BO149,BO150,BO151,BO152,BO153,BO154,BO154,BO155,BO156<>""),AVERAGE(BO131:BO161),"") -> 10.0775 | BP162: =IF(OR(BP131,BP132,BP133,BP134,BP135,BP136,BP137,BP138,BP139,BP140,BP141,BP142,BP143,BP144,BP145,BP146,BP147,BP148,BP149,BP150,BP151,BP152,BP153,BP154,BP154,BP155,BP156<>""),AVERAGE(BP131:BP161),"") ->  | BS162: =IF(OR(BS131,BS132,BS133,BS134,BS135,BS136,BS137,BS138,BS139,BS140,BS141,BS142,BS143,BS144,BS145,BS146,BS147,BS148,BS149,BS150,BS151,BS152,BS153,BS154,BS154,BS155,BS156<>""),AVERAGE(BS131:BS161),"") -> 1.660734758 | BT162: 1.8825 | BU162: 199.5333333 | BV162: 64.66666667 | BW162: 119.3333333 | BX162: 1.3 | BY162: 2.2 | BZ162: 7.169 | CA162: 357.6666667 | CB162: 16.36666667 | CD162: 7.356666667
B163: Skupno: | J163: =IF(OR(J131,J132,J133,J134,J135,J136,J137,J138,J139,J140,J141,J142,J143,J144,J145,J146,J147,J148,J149,J150,J151,J152,J153,J154,J154,J155,J156<>""),SUM(J131:J161),"") -> 360272 | N163: =IF(OR(N131,N132,N133,N134,N135,N136,N137,N138,N139,N140,N141,N142,N143,N144,N145,N146,N147,N148,N149,N150,N151,N152,N153,N154,N154,N155,N156<>""),SUM(N131:N161),"") -> 10 | AU163: =IF(OR(AU131,AU132,AU133,AU134,AU135,AU136,AU137,AU138,AU139,AU140,AU141,AU142,AU143,AU144,AU145,AU146,AU147,AU148,AU149,AU150,AU151,AU152,AU153,AU154,AU154,AU155,AU156<>""),SUM(AU131:AU161),"") -> 351700
B164: Min: | J164: =IF(OR(J131,J132,J133,J134,J135,J136,J137,J138,J139,J140,J141,J142,J143,J144,J145,J146,J147,J148,J149,J150,J151,J152,J153,J154,J154,J155,J156<>""),MIN(J131:J161),"") -> 8936 | K164: 50.7161458 | L164: 597.000383 | M164: 465.1684652 | N164: 0 | O164: 267 | P164: 110 | Q164: 120 | R164: 4.5 | S164: 7.274106455 | T164: 8.711333927 | U164: 8.128976277 | V164: 7.447228376 | W164: 7.938371134 | X164: 7.782555949 | Y164: 7.462 | Z164: 0.3288172781 | AA164: 4.389381409 | AB164: 2.394928576 | AC164: 4.16 | AD164: 488 | AE164: 23.3 | AG164: 5.303047697 | AH164: 15.55916416 | AI164: 11.52294688 | AJ164: 11.7 | AK164: =IF(OR(AK131,AK132,AK133,AK134,AK135,AK136,AK137,AK138,AK139,AK140,AK141,AK142,AK143,AK144,AK145,AK146,AK147,AK148,AK149,AK150,AK151,AK152,AK153,AK154,AK154,AK155,AK156<>""),MIN(AK131:AK161),"") -> 172 | AL164: =IF(OR(AL131,AL132,AL133,AL134,AL135,AL136,AL137,AL138,AL139,AL140,AL141,AL142,AL143,AL144,AL145,AL146,AL147,AL148,AL149,AL150,AL151,AL152,AL153,AL154,AL154,AL155,AL156<>""),MIN(AL131:AL161),"") -> 50 | AM164: 54 | AN164: 0.1 | AO164: 3.59 | AP164: 7.393 | AQ164: 637 | AR164: 24.7 | AT164: 15.3 | AU164: 7500 | AV164: 0.8246398926 | AW164: 479.2209005 | AX164: 313.8270762 | AY164: 15.5 | AZ164: 0 | BA164: 0 | BB164: 0 | BC164: 7.045 | BD164: 1.00613566 | BE164: 1.392966708 | BF164: 1.225564154 | BG164: 1.48 | BH164: 6.095052083 | BI164: 7.14921875 | BJ164: 6.350683594 | BK164: 2.561484893 | BL164: 7.107891115 | BM164: 4.105141221 | BN164: 523 | BO164: 3.69 | BQ164: 0.001398592492 | BR164: 1.071101137 | BS164: 0.1288617249 | BT164: 0.05 | BU164: 77.6 | BV164: =IF(OR(BV131,BV132,BV133,BV134,BV135,BV136,BV137,BV138,BV139,BV140,BV141,BV142,BV143,BV144,BV145,BV146,BV147,BV148,BV149,BV150,BV151,BV152,BV153,BV154,BV154,BV155,BV156<>""),MIN(BV131:BV161),"") -> 34 | BW164: 28 | BX164: 0 | BY164: 0.81 | BZ164: 6.901 | CA164: 319 | CB164: 10 | CD164: 4.61
B165: Max: | J165: =IF(OR(J131,J132,J133,J134,J135,J136,J137,J138,J139,J140,J141,J142,J143,J144,J145,J146,J147,J148,J149,J150,J151,J152,J153,J154,J154,J155,J156<>""),MAX(J131:J161),"") -> 20280 | K165: 1025.528065 | L165: 1284.772858 | M165: 1055.659939 | N165: 10 | O165: 1014 | P165: 600 | Q165: 680 | R165: 18 | S165: 9.960482883 | T165: 11.82695185 | U165: 10.72909955 | V165: 7.998531644 | W165: 8.460913992 | X165: 8.152832535 | Y165: 7.749 | Z165: 5.529254913 | AA165: 14.23231983 | AB165: 5.688282605 | AC165: 23.1 | AD165: 1336 | AE165: 87.9 | AG165: 44.05307706 | AH165: 105.1480278 | AI165: 62.75017871 | AJ165: 59 | AK165: =IF(OR(AK131,AK132,AK133,AK134,AK135,AK136,AK137,AK138,AK139,AK140,AK141,AK142,AK143,AK144,AK145,AK146,AK147,AK148,AK149,AK150,AK151,AK152,AK153,AK154,AK154,AK155,AK156<>""),MAX(AK131:AK161),"") -> 396 | AL165: =IF(OR(AL131,AL132,AL133,AL134,AL135,AL136,AL137,AL138,AL139,AL140,AL141,AL142,AL143,AL144,AL145,AL146,AL147,AL148,AL149,AL150,AL151,AL152,AL153,AL154,AL154,AL155,AL156<>""),MAX(AL131:AL161),"") -> 210 | AM165: 130 | AN165: 2 | AO165: 8.79 | AP165: 7.682 | AQ165: 1115 | AR165: 61.3 | AT165: 44 | AU165: 21300 | AV165: 859.2845418 | AW165: 932.6352336 | AX165: 890.8148465 | AY165: 24.2 | AZ165: 2 | BA165: 3 | BB165: 0.1 | BC165: 7.32 | BD165: 1.633341748 | BE165: 2.615983967 | BF165: 1.821651026 | BG165: 1.89 | BH165: 10.04010417 | BI165: 40.54322917 | BJ165: 12.94185113 | BK165: 19.14956358 | BL165: 25.32557939 | BM165: 23.13312634 | BN165: 911 | BO165: 18 | BQ165: 1.479337656 | BR165: 15.07017527 | BS165: 7.06768852 | BT165: 7.22 | BU165: 290 | BV165: =IF(OR(BV131,BV132,BV133,BV134,BV135,BV136,BV137,BV138,BV139,BV140,BV141,BV142,BV143,BV144,BV145,BV146,BV147,BV148,BV149,BV150,BV151,BV152,BV153,BV154,BV154,BV155,BV156<>""),MAX(BV131:BV161),"") -> 90 | BW165: 214 | BX165: 3.5 | BY165: 3.24 | BZ165: 7.489 | CA165: 409 | CB165: 22.3 | CD165: 11.7
J167: VTOK | N167: Septika | O167: VTOK | S167: VTOK | AD167: VTOK | AK167: Mehansko predčiščenje | AU167: IZTOK | BC167: IZTOK | BN167: IZTOK | BU167: Deževni bazen
A168: Slovenčeva 95, 1000 Ljubljana Slovenia | J168: Pretok | N168: Pretok | O168: KPK | P168: BPK | Q168: Neraztopljene snovi | R168: Usedljive snovi | S168: Temperatura | V168: pH | Z168: Fosfor | AD168: Prevodnost | AE168: Celotni dušik | AF168: NO3-N | AG168: Amoniak | AK168: KPK | AL168: BPK | AM168: Neraztopljene snovi | AN168: Usedljive snovi | AO168: Fosfor | AP168: pH | AQ168: Prevodnost | AR168: Celotni dušik | AS168: NO3-N | AT168: Amoniak | AU168: Pretok | AY168: KPK | AZ168: BPK | BA168: Neraztopljene snovi | BB168: Usedljive snovi | BC168: pH | BD168: Fosfor | BH168: Totalni ogljik | BK168: Totalni dušik | BN168: Prevodnost | BO168: Celotni dušik | BP168: NO3-N | BQ168: Amoniak | BU168: KPK | BV168: BPK | BW168: Neraztopljene snovi | BX168: Usedljive snovi | BY168: Fosfor | BZ168: pH | CA168: Prevodnost | CB168: Celotni dušik | CC168: NO3-N | CD168: Amoniak
I170: Tag: | J170: LT 05.01 in LT 05.02 | N170: FT 15.01 | O170: Laboratori | P170: Laboratori | Q170: Laboratori | R170: Laboratori | S170: AT 05.03 | V170: pH 05.03 | Y170: Laboratori | Z170: PO4P 05.06 | AC170: Laboratori | AD170: Laboratori | AE170: Laboratori | AF170: Laboratori | AG170: NH4N 08.10 | AJ170: Laboratori | AK170: Laboratori | AL170: Laboratori | AM170: Laboratori | AN170: Laboratori | AO170: Laboratori | AP170: Laboratori | AQ170: Laboratori | AR170: Laboratori | AS170: Laboratori | AT170: Laboratori | AU170: FT 13.01 | AY170: Laboratori | AZ170: Laboratori | BA170: Laboratori | BB170: Laboratori | BC170: Laboratori | BD170: PO4P 07.02 | BG170: Laboratori | BH170: TOC 14.01 | BK170: TN 14.01 | BN170: Laboratori | BO170: Laboratori | BP170: Laboratori | BQ170: NH4N 08.11 | BT170: Laboratori | BU170: Laboratori | BV170: Laboratori | BW170: Laboratori | BX170: Laboratori | BY170: Laboratori | BZ170: Laboratori | CA170: Laboratori | CB170: Laboratori | CC170: Laboratori | CD170: Laboratori
I171: Enote | J171: m³ | K171: m³/h | L171: m³/h | M171: m³/h | N171: m³ | O171: mg/l | P171: mg/l | Q171: mg/l | R171: ml/l | S171: °C | T171: °C | U171: °C | Z171: mg/l | AA171: mg/l | AB171: mg/l | AC171: mg/l | AD171: µS/cm | AE171: mg/l | AF171: mg/l | AG171: mg/l | AH171: mg/l | AI171: mg/l | AJ171: mg/l | AK171: mg/l | AL171: mg/l | AM171: mg/l | AN171: ml/l | AO171: mg/l | AQ171: µS/cm | AR171: mg/l | AS171: mg/l | AT171: mg/l | AU171: m³ | AV171: m³/h | AW171: m³/h | AX171: m³/h | AY171: mg/l | AZ171: mg/l | BA171: mg/l | BB171: ml/l | BD171: mg/l | BE171: mg/l | BF171: mg/l | BG171: mg/l | BH171: mgC/l | BI171: mgC/l | BJ171: mgC/l | BK171: mgN/l | BL171: mgN/l | BM171: mgN/l | BN171: µS/cm | BO171: mg/l | BP171: mg/l | BQ171: mg/l | BR171: mg/l | BS171: mg/l | BT171: mg/l | BU171: mg/l | BV171: mg/l | BW171: mg/l | BX171: ml/l | BY171: mg/l | CA171: µS/cm | CB171: mg/l | CC171: mg/l | CD171: mg/l
A175: Datum | B175: Dan | J175: Kumulativa | K175: Minimalno | L175: Maksimalno | M175: Povprečje | N175: Kumulativa | O175: Vrednost | P175: Vrednost | Q175: Vrednost | R175: Vrednost | S175: Minimalno | T175: Maksimalno | U175: Povprečje | V175: Minimalno | W175: Maksimalno | X175: Povprečje | Y175: Vrednost | Z175: Minimalno | AA175: Maksimalno | AB175: Povprečje | AC175: Vrednost | AD175: Vrednost | AE175: Vrednost | AF175: Vrednost | AG175: Minimalno | AH175: Maksimalno | AI175: Povprečje | AJ175: Vrednost | AK175: Vrednost | AL175: Vrednost | AM175: Vrednost | AN175: Vrednost | AO175: Vrednost | AP175: Vrednost | AQ175: Vrednost | AR175: Vrednost | AS175: Vrednost | AT175: Vrednost | AU175: Kumulativa | AV175: Minimalno | AW175: Maksimalno | AX175: Povprečje | AY175: Vrednost | AZ175: Vrednost | BA175: Vrednost | BB175: Vrednost | BC175: Vrednost | BD175: Minimalno | BE175: Maksimalno | BF175: Povprečje | BG175: Vrednost | BH175: Minimalno | BI175: Maksimalno | BJ175: Povprečje | BK175: Minimalno | BL175: Maksimalno | BM175: Povprečje | BN175: Vrednost | BO175: Vrednost | BP175: Vrednost | BQ175: Minimalno | BR175: Maksimalno | BS175: Povprečje | BT175: Vrednost | BU175: Vrednost | BV175: Vrednost | BW175: Vrednost | BX175: Vrednost | BY175: Vrednost | BZ175: Vrednost | CA175: Vrednost | CB175: Vrednost | CC175: Vrednost | CD175: Vrednost
A176: 2024-03-01 | B176: =IF(A176>0,A176,"") -> 2024-03-01 | J176: 15176 | K176: 362.362559 | L176: 1165.663583 | M176: 790.399042 | N176: 0 | S176: 9.31922466 | T176: 10.97520212 | U176: 10.16455137 | V176: 7.483395163 | W176: 8.273731295 | X176: 7.913790886 | Z176: 3.205949573 | AA176: 7.018450075 | AB176: 5.13545001 | AG176: 28.5276715 | AH176: 72.80019124 | AI176: 41.82001422 | AU176: 14700 | AV176: 220.6850169 | AW176: 928.3130351 | AX176: 614.8146293 | BD176: 1.420700375 | BE176: 1.837377942 | BF176: 1.654745535 | BH176: 8.3671875 | BI176: 9.819791667 | BJ176: 8.996875 | BK176: 15.24628202 | BL176: 24.73992354 | BM176: 21.93163993 | BQ176: 0.6170481602 | BR176: 5.435583814 | BS176: 3.111834736
A177: 2024-03-02 | B177: =IF(A177>0,A177,"") -> 2024-03-02 | J177: 13264 | K177: 412.8833885 | L177: 1024.643137 | M177: 690.3028927 | N177: 0 | S177: 9.502439229 | T177: 10.95363866 | U177: 10.33675669 | V177: 7.871496137 | W177: 8.397680219 | X177: 8.058516937 | Z177: 2.351353431 | AA177: 5.825663924 | AB177: 3.676304503 | AG177: 25.92567355 | AH177: 51.13310591 | AI177: 33.9024581 | AU177: 12900 | AV177: 255.1721354 | AW177: 778.4649434 | AX177: 536.81547 | BD177: 1.610936479 | BE177: 1.835529451 | BF177: 1.751354041 | BH177: 8.268489583 | BI177: 9.054427083 | BJ177: 8.543728299 | BK177: 13.6431571 | BL177: 21.82073523 | BM177: 18.21180973 | BQ177: 1.088400428 | BR177: 4.058870864 | BS177: 1.692035914
A178: 2024-03-03 | B178: 2024-03-03 | J178: 14000 | K178: 475.4991308 | L178: 1057.315778 | M178: 729.7721927 | N178: 0 | S178: 8.780202087 | T178: 11.4152819 | U178: 10.35246363 | V178: 7.606536396 | W178: 8.499849431 | X178: 8.02931388 | Z178: 0.6568216681 | AA178: 4.9540658 | AB178: 2.317244917 | AG178: 10.52069764 | AH178: 47.55557334 | AI178: 31.91777665 | AU178: 14500 | AV178: 380.3710592 | AW178: 919.0176066 | AX178: 605.4687171 | BD178: 1.604938537 | BE178: 1.781696616 | BF178: 1.696178015 | BH178: 8.093229167 | BI178: 9.1078125 | BJ178: 8.543250868 | BK178: 6.78375082 | BL178: 13.38004799 | BM178: 8.725539853 | BQ178: 0.003230306852 | BR178: 1.550579749 | BS178: 0.8424791097
A179: 2024-03-04 | B179: 2024-03-04 | J179: 10960 | K179: 317.8771212 | L179: 709.5027934 | M179: 570.6437451 | N179: 0 | O179: 507 | P179: 240 | Q179: 207 | R179: 10 | S179: 9.873636834 | T179: 11.53231265 | U179: 10.81954708 | V179: 7.807535156 | W179: 8.443567117 | X179: 8.048567489 | Y179: 7.506 | Z179: 0.4531767209 | AA179: 8.156567574 | AB179: 2.801779131 | AC179: 6.41 | AD179: 897 | AE179: 47.6 | AG179: 29.62712701 | AH179: 78.16904831 | AI179: 45.68424532 | AJ179: 32 | AK179: 215 | AL179: 90 | AM179: 50 | AN179: 0.1 | AO179: 4.09 | AP179: 7.565 | AQ179: 1086 | AR179: 40.5 | AT179: 26.9 | AU179: 10700 | AV179: 221.4807383 | AW179: 562.210616 | AX179: 443.0993839 | AY179: 21.5 | AZ179: 1 | BA179: 1 | BB179: 0 | BC179: 7.299 | BD179: 1.294219605 | BE179: 1.749598221 | BF179: 1.4466375 | BG179: 1.81 | BH179: 6.849479167 | BI179: 8.811458333 | BJ179: 8.283138021 | BK179: 0.09075023333 | BL179: 10.39673525 | BM179: 6.394930383 | BN179: 671 | BO179: 6.92 | BQ179: 0.001978836255 | BR179: 2.064351286 | BS179: 0.8585723754 | BT179: 0.38
A180: 2024-03-05 | B180: 2024-03-05 | J180: 13096 | K180: 326.6951192 | L180: 1137.109377 | M180: 682.5607219 | N180: 0 | O180: 851 | P180: 450 | Q180: 480 | R180: 14 | S180: 9.535795784 | T180: 11.61837843 | U180: 10.75089125 | V180: 7.51704812 | W180: 8.226680104 | X180: 7.849529486 | Y180: 7.463 | Z180: 3.023671591 | AA180: 11.11078787 | AB180: 5.929044602 | AC180: 11.9 | AD180: 1163 | AE180: 68.9 | AG180: 14.49274038 | AH180: 71.11104418 | AI180: 45.07386026 | AJ180: 45 | AU180: 11800 | AV180: 187.1382884 | AW180: 949.7612406 | AX180: 492.7277447 | BD180: 1.158104241 | BE180: 1.599335392 | BF180: 1.240387541 | BH180: 6.025260417 | BI180: 10.9359375 | BJ180: 8.309624566 | BK180: 5.327203782 | BL180: 11.77912601 | BM180: 7.945946087 | BQ180: 0.001554267073 | BR180: 2.572720095 | BS180: 0.9067605563
A181: 2024-03-06 | B181: 2024-03-06 | J181: 15128 | K181: 445.4981654 | L181: 1166.022864 | M181: 787.8196915 | N181: 0 | S181: 9.766343339 | T181: 11.19548775 | U181: 10.60559348 | V181: 7.541910958 | W181: 8.310585785 | X181: 7.995660632 | Z181: 2.857876106 | AA181: 7.656586854 | AB181: 5.553478317 | AG181: 12.33753616 | AH181: 58.75630817 | AI181: 36.24719891 | AK181: 153 | AL181: 50 | AM181: 56 | AN181: 0 | AO181: 4.67 | AP181: 7.47 | AQ181: 748 | AR181: 28.4 | AT181: 19 | AU181: 14300 | AV181: 265.534549 | AW181: 880.6423238 | AX181: 596.9479108 | AY181: 22.3 | AZ181: 2 | BA181: 2 | BB181: 0 | BC181: 6.777 | BD181: 1.065884387 | BE181: 1.911164959 | BF181: 1.592129794 | BG181: 1.37 | BH181: 7.628645833 | BI181: 53.84973958 | BJ181: 13.43385417 | BK181: 9.548344644 | BL181: 15.53761063 | BM181: 12.00819431 | BN181: 706 | BO181: 10 | BQ181: 0.002359311469 | BR181: 2.035788308 | BS181: 1.164974526 | BT181: 0.49 | BU181: 188 | BV181: 70 | BW181: 98 | BX181: 1.2 | BY181: 1.49 | BZ181: 7.121 | CA181: 349 | CB181: 10.8 | CD181: 3.02
A182: 2024-03-07 | B182: 2024-03-07 | J182: 13384 | K182: 412.4204274 | L182: 1139.824454 | M182: 696.4332337 | N182: 0 | S182: 9.555331707 | T182: 11.48309778 | U182: 10.82821838 | V182: 7.58420163 | W182: 8.442899084 | X182: 8.010592961 | Z182: 4.003727221 | AA182: 7.9794686 | AB182: 6.253914106 | AG182: 23.63270359 | AH182: 66.94338913 | AI182: 47.13359886 | AU182: 12300 | AV182: 268.5365784 | AW182: 935.0404744 | AX182: 512.6606222 | BD182: 1.704784483 | BE182: 2.083607227 | BF182: 1.849507565 | BH182: 7.795052083 | BI182: 8.673697917 | BJ182: 8.08984375 | BK182: 10.82526644 | BL182: 18.2568291 | BM182: 14.78842489 | BQ182: 0.04415868719 | BR182: 2.596045593 | BS182: 1.160972284
A183: 2024-03-08 | B183: 2024-03-08 | J183: 17080 | K183: 650.8101796 | L183: 1121.320405 | M183: 889.8808202 | N183: 0 | S183: 7.753376484 | T183: 11.15086172 | U183: 9.663250243 | V183: 7.527975353 | W183: 8.389867322 | X183: 7.95902742 | Z183: 2.602070224 | AA183: 7.621146798 | AB183: 4.841637303 | AG183: 9.60844547 | AH183: 57.50945803 | AI183: 33.07645004 | AU183: 15000 | AW183: 894.1152608 | AX183: 627.6840072 | BD183: 1.743948046 | BE183: 1.980106169 | BF183: 1.850335584 | BH183: 7.92734375 | BI183: 41.14609375 | BJ183: 12.49865451 | BK183: 8.239688222 | BL183: 18.29493853 | BM183: 14.53902638 | BQ183: 0.00660415767 | BR183: 2.446265141 | BS183: 1.290129406
A184: 2024-03-09 | B184: 2024-03-09 | J184: 18000 | K184: 467.5081965 | L184: 1187.131078 | M184: 937.4845243 | N184: 0 | S184: 8.002807943 | T184: 10.03301338 | U184: 9.079106272 | V184: 7.728166763 | W184: 8.044503355 | X184: 7.910883111 | Z184: 3.416311471 | AA184: 5.238243492 | AB184: 4.194452691 | AG184: 12.52468904 | AH184: 29.30619513 | AI184: 21.68375304 | AU184: 18100 | AV184: 342.393634 | AW184: 927.2279683 | AX184: 753.6402196 | BD184: 1.726982238 | BE184: 1.866505212 | BF184: 1.804180679 | BH184: 7.13515625 | BI184: 8.520052083 | BJ184: 7.849500868 | BK184: 8.428828971 | BL184: 17.1141572 | BM184: 13.15478025 | BQ184: 0.06581667643 | BR184: 1.62736388 | BS184: 0.5450593323
A185: 2024-03-10 | B185: 2024-03-10 | J185: 17072 | K185: 476.5118596 | L185: 1167.368342 | M185: 889.9061382 | N185: 0 | S185: 7.353656173 | T185: 9.775764513 | U185: 9.030003641 | V185: 7.526277486 | W185: 8.339737495 | X185: 7.86885514 | Z185: 2.186359411 | AA185: 7.602184812 | AB185: 4.287582989 | AG185: 4.212753208 | AH185: 35.71226056 | AI185: 21.69479905 | AU185: 17000 | AV185: 329.8068309 | AW185: 978.4070801 | AX185: 709.8162253 | BD185: 1.704314848 | BE185: 1.888643752 | BF185: 1.796471528 | BH185: 6.75625 | BI185: 7.347916667 | BJ185: 7.102473958 | BK185: 6.322734992 | BL185: 8.725500615 | BM185: 7.609127747 | BQ185: 0.001401111369 | BR185: 1.727670813 | BS185: 0.5699829393 | BU185: 64.3 | BV185: 12 | BW185: 50 | BX185: 0.1 | BY185: 0.87 | BZ185: 7.523 | CA185: 237 | CB185: 6.4 | CD185: 3.53
A186: 2024-03-11 | B186: 2024-03-11 | J186: 19416 | K186: 841.9704803 | L186: 1106.732244 | M186: 1011.00682 | N186: 0 | O186: 321 | P186: 150 | Q186: 193 | R186: 9.5 | S186: 8.196427202 | T186: 10.07604815 | U186: 9.203473784 | V186: 7.663574553 | W186: 8.290568113 | X186: 7.995330817 | Y186: 7.43 | Z186: 2.350016499 | AA186: 6.988351234 | AB186: 4.476045985 | AC186: 4.97 | AD186: 533 | AE186: 30.4 | AG186: 5.472782644 | AH186: 47.41526546 | AI186: 22.518261 | AJ186: 15.1 | AK186: 111 | AL186: 40 | AM186: 54 | AN186: 0.8 | AO186: 2.77 | AP186: 7.802 | AQ186: 758 | AR186: 24.5 | AT186: 14.5 | AU186: 19700 | AV186: 686.6138204 | AW186: 905.4904195 | AX186: 819.3396651 | AY186: 14.8 | AZ186: 1 | BA186: 2 | BB186: 0 | BC186: 7.252 | BD186: 1.403170061 | BE186: 1.862515875 | BF186: 1.64378664 | BG186: 1.87 | BH186: 6.199479167 | BI186: 7.416666667 | BJ186: 6.640028212 | BK186: 4.095094268 | BL186: 10.70986032 | BM186: 6.715168673 | BN186: 506 | BO186: 6.43 | BQ186: 0.001763350392 | BR186: 1.983556227 | BS186: 0.8677092521 | BT186: 0.19
A187: 2024-03-12 | B187: 2024-03-12 | J187: 15048 | K187: 538.4114583 | L187: 1160.713247 | M187: 783.539795 | N187: 0 | S187: 8.958794959 | T187: 11.08423548 | U187: 10.07438177 | V187: 7.871100044 | W187: 8.279053434 | X187: 8.029616343 | Z187: 2.320898159 | AA187: 11.2342182 | AB187: 7.144701355 | AG187: 16.63496272 | AH187: 54.41803805 | AI187: 36.55857171 | AU187: 14500 | AV187: 395.4173604 | AW187: 843.2616821 | AX187: 604.8395292 | BD187: 1.375590475 | BE187: 1.760625374 | BF187: 1.587958391 | BH187: 6.651822917 | BI187: 7.319010417 | BJ187: 7.007085503 | BK187: 7.088063304 | BL187: 12.80911042 | BM187: 9.32129969 | BQ187: 0.0201847233 | BR187: 2.364517919 | BS187: 1.002931371
A188: 2024-03-13 | B188: 2024-03-13 | J188: 13224 | K188: 472.2511551 | L188: 828.4818654 | M188: 688.3501698 | N188: 0 | S188: 9.443450737 | T188: 11.06393612 | U188: 10.39115284 | V188: 7.800035214 | W188: 8.397736279 | X188: 8.107427121 | Z188: 5.837346999 | AA188: 11.35807026 | AB188: 7.695162041 | AG188: 12.44075911 | AH188: 58.09663239 | AI188: 41.79606607 | AU188: 12500 | AV188: 308.0150197 | AW188: 648.9257426 | AX188: 523.0720127 | BD188: 1.371944396 | BE188: 1.605838418 | BF188: 1.489031284 | BH188: 6.931510417 | BI188: 7.80859375 | BJ188: 7.231933594 | BK188: 10.65515703 | BL188: 18.30675122 | BM188: 14.68296589 | BQ188: 0.098002005 | BR188: 2.519220165 | BS188: 1.364609824
A189: 2024-03-14 | B189: 2024-03-14 | J189: 12176 | K189: 403.549382 | L189: 784.9561147 | M189: 634.868503 | N189: 0 | O189: 610 | P189: 260 | Q189: 347 | R189: 14 | S189: 9.601995595 | T189: 11.38327314 | U189: 10.6751494 | V189: 7.706227072 | W189: 8.322505776 | X189: 8.026078792 | Y189: 7.618 | Z189: 6.177566147 | AA189: 13.37390423 | AB189: 9.029829316 | AC189: 8.74 | AD189: 997 | AE189: 57.9 | AG189: 25.63312213 | AH189: 70.99655406 | AI189: 51.28445568 | AJ189: 39 | AK189: 213 | AL189: 90 | AM189: 64 | AN189: 0.3 | AO189: 4.99 | AP189: 7.554 | AQ189: 876 | AR189: 35.5 | AT189: 25.3 | AU189: 11200 | AV189: 252.9658285 | AW189: 599.5912659 | AX189: 469.039325 | AY189: 16.3 | AZ189: 2 | BA189: 2 | BB189: 0 | BC189: 7.23 | BD189: 1.374810227 | BE189: 1.910596452 | BF189: 1.648943621 | BG189: 1.58 | BH189: 7.51328125 | BI189: 8.357552083 | BJ189: 7.866395399 | BK189: 13.81106367 | BL189: 20.69812646 | BM189: 17.02716518 | BN189: 663 | BO189: 15 | BQ189: 0.05266000442 | BR189: 3.980422072 | BS189: 1.656688072 | BT189: 0.776
A190: 2024-03-15 | B190: 2024-03-15 | J190: 10976 | K190: 320.076195 | L190: 712.176888 | M190: 571.4886937 | N190: 0 | S190: 10.23451767 | T190: 11.84938124 | U190: 11.23077258 | V190: 7.923663457 | W190: 8.303343884 | X190: 8.021971273 | Z190: 5.636682192 | AA190: 14.48343868 | AB190: 9.909279102 | AG190: 33.65901477 | AH190: 80.98593877 | AI190: 55.60206003 | AU190: 9800 | AV190: 197.808138 | AW190: 526.8192708 | AX190: 405.8340308 | BD190: 1.655069166 | BE190: 2.035740236 | BF190: 1.858336824 | BH190: 8.15546875 | BI190: 8.998177083 | BJ190: 8.499435764 | BK190: 17.52501691 | BL190: 22.23811016 | BM190: 20.21982933 | BQ190: 0.1588059932 | BR190: 3.071759733 | BS190: 1.700019234
A191: 2024-03-16 | B191: 2024-03-16 | J191: 11456 | K191: 308.6998431 | L191: 1155.338538 | M191: 596.4177616 | N191: 0 | S191: 10.60097583 | T191: 11.95191971 | U191: 11.24058592 | V191: 7.565799761 | W191: 8.31896081 | X191: 7.955711914 | Z191: 6.809285323 | AA191: 10.87508988 | AB191: 8.017779059 | AG191: 22.80407422 | AH191: 56.18829142 | AI191: 39.80132783 | AU191: 10400 | AV191: 164.9667053 | AW191: 842.3393799 | AX191: 434.2033202 | BD191: 1.705445766 | BE191: 2.004266949 | BF191: 1.861279598 | BQ191: 0.05264537185 | BR191: 2.430721617 | BS191: 0.9187365352
A192: 2024-03-17 | B192: 2024-03-17 | J192: 10152 | K192: 283.2802864 | L192: 724.4381714 | M192: 528.5263726 | N192: 0 | S192: 10.46068745 | T192: 12.25031001 | U192: 11.39233252 | V192: 7.833263469 | W192: 8.368866078 | X192: 8.001356978 | Z192: 6.579670358 | AA192: 10.83072751 | AB192: 8.541527661 | AG192: 36.30957158 | AH192: 60.78181267 | AI192: 43.2786344 | AU192: 8900 | AV192: 132.920988 | AW192: 552.26415 | AX192: 372.8192866 | BD192: 1.601567489 | BE192: 1.941343494 | BF192: 1.831227654 | BQ192: 0.001949556103 | BR192: 1.201931667 | BS192: 0.3541704446
A193: 2024-03-18 | B193: 2024-03-18 | J193: 10176 | K193: 279.9599724 | L193: 751.4901596 | M193: 530.1079627 | N193: 0 | O193: 624 | P193: 300 | Q193: 407 | R193: 15 | S193: 10.90263305 | T193: 12.00458894 | U193: 11.55375891 | V193: 7.71626219 | W193: 8.234269079 | X193: 7.882312478 | Y193: 7.498 | Z193: 8.009103457 | AA193: 11.01871319 | AB193: 8.902533055 | AC193: 9 | AD193: 1033 | AE193: 60.3 | AG193: 36.46206868 | AH193: 69.44034246 | AI193: 49.06238279 | AJ193: 41 | AK193: 276 | AL193: 140 | AM193: 68 | AN193: 0.2 | AO193: 6.25 | AP193: 7.491 | AQ193: 898 | AR193: 44.9 | AT193: 33.4 | AU193: 8800 | AV193: 111.9429759 | AW193: 546.9834819 | AX193: 368.5505925 | BD193: 1.420429985 | BE193: 1.913474552 | BF193: 1.61474747 | BQ193: 0.001980384812 | BR193: 1.626175388 | BS193: 0.4629351429
A194: 2024-03-19 | B194: 2024-03-19 | J194: 9800 | K194: 330.9510015 | L194: 650.1181513 | M194: 510.1216866 | N194: 0 | S194: 11.25120045 | T194: 12.43803091 | U194: 11.65256267 | V194: 7.721776589 | W194: 8.207401085 | X194: 7.875634572 | Z194: 7.037668538 | AA194: 11.12888989 | AB194: 8.87716203 | AG194: 33.80996577 | AH194: 83.23198954 | AI194: 53.91389232 | AU194: 8500 | AV194: 172.8696248 | AW194: 496.6181681 | AX194: 355.9645412 | AY194: 18.8 | AZ194: 1 | BA194: 1 | BB194: 0 | BC194: 7.332 | BD194: 1.312630773 | BE194: 1.61706905 | BF194: 1.479204415 | BG194: 1.65 | BH194: 9.104166667 | BI194: 9.535677083 | BJ194: 9.276508247 | BK194: 5.354016304 | BL194: 8.374735196 | BM194: 6.727955791 | BN194: 792 | BO194: 6.92 | BQ194: 0.001519334391 | BR194: 2.045732572 | BS194: 0.6379794344 | BT194: 0.24
A195: 2024-03-20 | B195: 2024-03-20 | J195: 9960 | K195: 282.7859754 | L195: 698.6159292 | M195: 519.2298395 | N195: 0 | S195: 11.13604294 | T195: 13.12613177 | U195: 11.90228121 | V195: 7.634911195 | W195: 8.32958436 | X195: 7.808151289 | Z195: 7.796656768 | AA195: 11.13643241 | AB195: 9.026616589 | AG195: 41.71669725 | AH195: 80.72811165 | AI195: 57.44460191 | AU195: 8800 | AV195: 143.9525309 | AW195: 516.7462158 | AX195: 364.9834269 | BD195: 1.096046456 | BE195: 1.639064157 | BF195: 1.277292221 | BH195: 9.046614583 | BI195: 9.563020833 | BJ195: 9.300303819 | BK195: 6.235781972 | BL195: 11.24212592 | BM195: 9.840084778 | BQ195: 0.03312688029 | BR195: 1.944189171 | BS195: 0.8815609789
A196: 2024-03-21 | B196: 2024-03-21 | J196: 11744 | K196: 279.4150263 | L196: 1210.568577 | M196: 611.6146613 | N196: 0 | S196: 11.36343404 | T196: 12.59044018 | U196: 11.99017303 | V196: 7.50428408 | W196: 8.141201274 | X196: 7.804114442 | Z196: 7.525473237 | AA196: 11.38480144 | AB196: 9.364728075 | AG196: 40.87681611 | AH196: 92.19635824 | AI196: 66.28961031 | AU196: 10600 | AV196: 156.7020945 | AW196: 908.4562642 | AX196: 441.8568267 | BD196: 1.081470221 | BE196: 1.971189249 | BF196: 1.677146354 | BH196: 9.398177083 | BI196: 11.23229167 | BJ196: 9.796647135 | BK196: 9.625875854 | BL196: 17.04712629 | BM196: 13.35602633 | BQ196: 0.1401915501 | BR196: 3.138743897 | BS196: 1.215548077
A197: 2024-03-22 | B197: 2024-03-22 | J197: 9840 | K197: 282.7787435 | L197: 631.1969508 | M197: 512.0240744 | N197: 0 | S197: 11.49386319 | T197: 12.75514874 | U197: 12.06889753 | V197: 7.750613372 | W197: 8.312633149 | X197: 7.938271838 | Z197: 7.192999951 | AA197: 12.05189018 | AB197: 9.149767889 | AG197: 39.90780729 | AH197: 75.63878543 | AI197: 57.48052913 | AU197: 8100 | AV197: 132.7039764 | AW197: 448.5857666 | AX197: 338.9764247 | BD197: 1.631881547 | BE197: 1.971728293 | BF197: 1.862651779 | BH197: 9.915364583 | BI197: 16.26484375 | BJ197: 10.42825521 | BK197: 14.51629772 | BL197: 18.70115786 | BM197: 17.00173749 | BQ197: 0.06468104012 | BR197: 1.994978795 | BS197: 1.015141464
A198: 2024-03-23 | B198: 2024-03-23 | J198: 12560 | K198: 289.5254631 | L198: 1231.025749 | M198: 654.6140548 | N198: 0 | S198: 8.566704639 | T198: 12.69670808 | U198: 11.51911095 | V198: 7.456912168 | W198: 8.253189452 | X198: 7.79238776 | Z198: 6.565468065 | AA198: 12.29669031 | AB198: 9.301055854 | AG198: 10.08089229 | AH198: 69.15688375 | AI198: 46.35781249 | AU198: 10800 | AV198: 127.9296661 | AW198: 913.574176 | AX198: 451.9434524 | BD198: 1.654716392 | BE198: 2.127084855 | BF198: 1.879024413 | BH198: 9.911197917 | BI198: 10.55625 | BJ198: 10.11298828 | BK198: 11.74954766 | BL198: 16.98243882 | BM198: 15.05860848 | BQ198: 0.00163439847 | BR198: 1.797917461 | BS198: 0.6979964453
A199: 2024-03-24 | B199: 2024-03-24 | J199: 13560 | K199: 468.7596446 | L199: 1066.845097 | M199: 705.6533102 | N199: 0 | S199: 9.436052752 | T199: 11.95202875 | U199: 10.72792815 | V199: 7.846391106 | W199: 8.407622512 | X199: 7.998434979 | Z199: 5.436635303 | AA199: 10.17781825 | AB199: 7.331443409 | AG199: 11.03058763 | AH199: 44.7340957 | AI199: 29.09808181 | AU199: 12800 | AV199: 336.100237 | AW199: 867.0970398 | AX199: 533.9166802 | BD199: 1.55440468 | BE199: 1.913811153 | BF199: 1.729827669 | BH199: 8.710416667 | BI199: 10.4234375 | BJ199: 9.315874566 | BK199: 6.217406829 | BL199: 11.61009477 | BM199: 7.837094496 | BQ199: 0.001826658767 | BR199: 0.9275763134 | BS199: 0.2814458209
A200: 2024-03-25 | B200: 2024-03-25 | J200: 11760 | K200: 366.3170319 | L200: 957.3181946 | M200: 612.9549234 | N200: 0 | O200: 778 | P200: 380 | Q200: 333 | R200: 15 | S200: 10.23972149 | T200: 12.08191214 | U200: 11.26384238 | V200: 7.707349523 | W200: 8.621421719 | X200: 8.01626863 | Y200: 7.813 | Z200: 3.65886513 | AA200: 8.249246033 | AB200: 6.105835103 | AC200: 10.81 | AD200: 946 | AE200: 77.9 | AG200: 20.10013315 | AH200: 64.67306646 | AI200: 40.2184677 | AJ200: 52 | AK200: 208 | AL200: 100 | AM200: 60 | AN200: 0.3 | AO200: 4.45 | AP200: 7.61 | AQ200: 751 | AR200: 40 | AT200: 23.2 | AU200: 10400 | AV200: 185.203245 | AW200: 736.8344523 | AX200: 433.1423643 | AY200: 22.1 | AZ200: 1 | BA200: 0 | BB200: 0 | BC200: 6.931 | BD200: 1.760186921 | BE200: 2.023406446 | BF200: 1.881864407 | BG200: 1.93 | BH200: 8.525520833 | BI200: 9.008333333 | BJ200: 8.758116319 | BK200: 4.810782131 | BL200: 10.14525092 | BM200: 7.036740932 | BN200: 709 | BO200: 6.03 | BQ200: 0.001789901953 | BR200: 2.20961951 | BS200: 0.7985448771 | BT200: 0.13
A201: 2024-03-26 | B201: 2024-03-26 | J201: 9856 | K201: 16.93672825 | L201: 1082.392931 | M201: 512.5356647 | N201: 0 | S201: 10.5331755 | T201: 12.39651697 | U201: 11.4575531 | V201: 7.846114763 | W201: 8.345571423 | X201: 8.067309981 | Z201: 4.434013569 | AA201: 8.942144934 | AB201: 6.290421351 | AG201: 28.28461234 | AH201: 67.98407796 | AI201: 44.08158084 | AU201: 8600 | AW201: 820.5294739 | AX201: 359.9734202 | BD201: 1.690292448 | BE201: 2.001875468 | BF201: 1.87275589 | BH201: 8.82265625 | BI201: 15.73125 | BJ201: 9.778374566 | BK201: 5.544329039 | BL201: 10.16156321 | BM201: 7.835102353 | BQ201: 0.001972071128 | BR201: 2.556164614 | BS201: 0.5877461432
A202: 2024-03-27 | B202: 2024-03-27 | J202: 14016 | K202: 338.6718742 | L202: 1133.998838 | M202: 730.5172738 | N202: 0 | S202: 10.05422277 | T202: 12.05967504 | U202: 11.33690593 | V202: 7.557669981 | W202: 8.311604611 | X202: 7.935265728 | Z202: 4.144795585 | AA202: 29.96782583 | AB202: 10.44049801 | AG202: 21.37556003 | AH202: 75.29161797 | AI202: 50.2050479 | AU202: 13000 | AV202: 131.2752981 | AW202: 997.0883504 | AX202: 542.1390928 | BD202: 1.471995986 | BE202: 2.298102228 | BF202: 1.950616929 | BH202: 9.336979167 | BI202: 12.86822917 | BJ202: 9.968934462 | BK202: 9.305203915 | BL202: 17.60967307 | BM202: 12.44018844 | BQ202: 0.1519893969 | BR202: 4.771977011 | BS202: 2.159661601
A203: 2024-03-28 | B203: 2024-03-28 | J203: 17608 | K203: 442.4213928 | L203: 1137.085264 | M203: 916.8804619 | N203: 0 | O203: 629 | P203: 220 | Q203: 307 | R203: 13 | S203: 8.296474425 | T203: 11.5643607 | U203: 10.23692564 | V203: 7.703661013 | W203: 8.300528161 | X203: 7.974642541 | Y203: 7.522 | Z203: 1.898577062 | AA203: 7.184917967 | AB203: 4.421125059 | AC203: 7.87 | AD203: 762 | AE203: 48.3 | AG203: 14.2499766 | AH203: 57.75456848 | AI203: 29.32806831 | AJ203: 32 | AK203: 182 | AL203: 70 | AM203: 64 | AN203: 0.5 | AO203: 4.36 | AP203: 7.592 | AQ203: 741 | AR203: 33.6 | AT203: 24.5 | AU203: 17300 | AV203: 293.5293416 | AW203: 909.0892192 | AX203: 717.1954522 | AY203: 20.9 | AZ203: 2 | BA203: 3 | BB203: 0 | BC203: 7.152 | BD203: 1.772381274 | BE203: 1.953224814 | BF203: 1.85502916 | BG203: 2.08 | BH203: 8.38359375 | BI203: 9.9703125 | BJ203: 9.26890191 | BK203: 14.11945413 | BL203: 17.72067308 | BM203: 16.61745619 | BN203: 808 | BO203: 14.8 | BQ203: 0.5367186502 | BR203: 3.001374869 | BS203: 1.809917362 | BT203: 2.14 | BU203: 38.6 | BV203: 8 | BW203: 20 | BX203: 0 | BY203: 0.36 | BZ203: 7.591 | CA203: 284 | CB203: 4 | CD203: 1.74
A204: 2024-03-29 | B204: 2024-03-29 | J204: 17664 | K204: 801.193573 | L204: 1103.990642 | M204: 920.2701985 | N204: 0 | S204: 9.38297917 | T204: 11.18554277 | U204: 10.45532156 | V204: 7.941017254 | W204: 8.3465693 | X204: 8.055644633 | Z204: 1.614643393 | AA204: 5.719169688 | AB204: 3.512904634 | AG204: 9.8781902 | AH204: 34.73589134 | AI204: 24.39706444 | AU204: 16900 | AV204: 598.83172 | AW204: 909.0168762 | AX204: 708.2677411 | BD204: 1.716851608 | BE204: 1.904666267 | BF204: 1.829161238 | BH204: 7.384375 | BI204: 8.1484375 | BJ204: 7.626595052 | BK204: 10.56506338 | BL204: 14.89031347 | BM204: 12.51144042 | BQ204: 0.1617503268 | BR204: 1.590908738 | BS204: 0.824037438
A205: 2024-03-30 | B205: 2024-03-30 | J205: 13528 | K205: 473.483311 | L205: 908.8903341 | M205: 731.0778937 | N205: 0 | S205: 10.1072323 | T205: 11.65000008 | U205: 11.06866093 | V205: 7.873826551 | W205: 8.42252601 | X205: 7.999814731 | Z205: 2.49780342 | AA205: 6.078726709 | AB205: 3.849864299 | AG205: 19.07484573 | AH205: 44.81182206 | AI205: 28.63115971 | AU205: 12300 | AV205: 324.7974192 | AW205: 688.5669434 | AX205: 531.8776538 | BD205: 1.755726457 | BE205: 1.920809672 | BF205: 1.841035897 | BH205: 7.588541667 | BI205: 8.16484375 | BJ205: 7.749283854 | BK205: 5.403891309 | BL205: 10.42340695 | BM205: 7.470496825 | BQ205: 0.001966054551 | BR205: 1.278571709 | BS205: 0.3646063327
A206: 2024-03-31 | B206: 2024-03-31 | J206: 14200 | K206: 419.3287013 | L206: 1191.975304 | M206: 771.6359679 | N206: 0 | S206: 10.32891517 | T206: 11.73628319 | U206: 11.19080813 | V206: 7.620747375 | W206: 8.274980672 | X206: 7.907113364 | Z206: 1.520111392 | AA206: 5.373512149 | AB206: 3.834966407 | AG206: 17.80397205 | AH206: 49.65309041 | AI206: 29.8803317 | AU206: 13100 | AV206: 247.7936656 | AW206: 901.9820109 | AX206: 569.8729362 | BD206: 1.780412654 | BE206: 1.924254686 | BF206: 1.874475674 | BH206: 7.8390625 | BI206: 10.15416667 | BJ206: 8.173607337 | BK206: 4.086422571 | BL206: 6.768703683 | BM206: 5.152005393 | BQ206: 0.01037815609 | BR206: 1.302620349 | BS206: 0.3821986641
B207: Povprečje | J207: =IF(OR(J176,J177,J178,J179,J180,J181,J182,J183,J184,J185,J186,J187,J188,J189,J190,J191,J192,J193,J194,J195,J196,J197,J198,J199,J199,J200,J201<>""),AVERAGE(J176:J206),"") -> 13415.48387 | M207: =IF(OR(M176,M177,M178,M179,M180,M181,M182,M183,M184,M185,M186,M187,M188,M189,M190,M191,M192,M193,M194,M195,M196,M197,M198,M199,M199,M200,M201<>""),AVERAGE(M176:M206),"") -> 700.601261 | N207: 0 | O207: 617.1428571 | P207: 285.7142857 | Q207: 324.8571429 | R207: 12.92857143 | U207: =IF(OR(U176,U177,U178,U179,U180,U181,U182,U183,U184,U185,U186,U187,U188,U189,U190,U191,U192,U193,U194,U195,U196,U197,U198,U199,U199,U200,U201<>""),AVERAGE(U176:U206),"") -> 10.78267616 | X207: =IF(OR(X176,X177,X178,X179,X180,X181,X182,X183,X184,X185,X186,X187,X188,X189,X190,X191,X192,X193,X194,X195,X196,X197,X198,X199,X199,X200,X201<>""),AVERAGE(X176:X206),"") -> 7.962503166 | Y207: =IF(OR(Y176,Y177,Y178,Y179,Y180,Y181,Y182,Y183,Y184,Y185,Y186,Y187,Y188,Y189,Y190,Y191,Y192,Y193,Y194,Y195,Y196,Y197,Y198,Y199,Y199,Y200,Y201<>""),AVERAGE(Y176:Y206),"") -> 7.55 | AB207: =IF(OR(AB176,AB177,AB178,AB179,AB180,AB181,AB182,AB183,AB184,AB185,AB186,AB187,AB188,AB189,AB190,AB191,AB192,AB193,AB194,AB195,AB196,AB197,AB198,AB199,AB199,AB200,AB201<>""),AVERAGE(AB176:AB206),"") -> 6.458520479 | AC207: =IF(OR(AC176,AC177,AC178,AC179,AC180,AC181,AC182,AC183,AC184,AC185,AC186,AC187,AC188,AC189,AC190,AC191,AC192,AC193,AC194,AC195,AC196,AC197,AC198,AC199,AC199,AC200,AC201<>""),AVERAGE(AC176:AC206),"") -> 8.528571429 | AD207: =IF(OR(AD176,AD177,AD178,AD179,AD180,AD181,AD182,AD183,AD184,AD185,AD186,AD187,AD188,AD189,AD190,AD191,AD192,AD193,AD194,AD195,AD196,AD197,AD198,AD199,AD199,AD200,AD201<>""),AVERAGE(AD176:AD206),"") -> 904.4285714 | AE207: =IF(OR(AE176,AE177,AE178,AE179,AE180,AE181,AE182,AE183,AE184,AE185,AE186,AE187,AE188,AE189,AE190,AE191,AE192,AE193,AE194,AE195,AE196,AE197,AE198,AE199,AE199,AE200,AE201<>""),AVERAGE(AE176:AE206),"") -> 55.9 | AF207: =IF(OR(AF176,AF177,AF178,AF179,AF180,AF181,AF182,AF183,AF184,AF185,AF186,AF187,AF188,AF189,AF190,AF191,AF192,AF193,AF194,AF195,AF196,AF197,AF198,AF199,AF199,AF200,AF201<>""),AVERAGE(AF176:AF206),"") ->  | AI207: =IF(OR(AI176,AI177,AI178,AI179,AI180,AI181,AI182,AI183,AI184,AI185,AI186,AI187,AI188,AI189,AI190,AI191,AI192,AI193,AI194,AI195,AI196,AI197,AI198,AI199,AI199,AI200,AI201<>""),AVERAGE(AI176:AI206),"") -> 40.49877944 | AJ207: 36.58571429 | AK207: 194 | AL207: 82.85714286 | AM207: 59.42857143 | AN207: 0.3142857143 | AO207: 4.511428571 | AP207: 7.583428571 | AQ207: 836.8571429 | AR207: 35.34285714 | AT207: 23.82857143 | AU207: 12525.80645 | AX207: =IF(OR(AX176,AX177,AX178,AX179,AX180,AX181,AX182,AX183,AX184,AX185,AX186,AX187,AX188,AX189,AX190,AX191,AX192,AX193,AX194,AX195,AX196,AX197,AX198,AX199,AX199,AX200,AX201<>""),AVERAGE(AX176:AX206),"") -> 523.9187969 | AY207: 19.52857143 | AZ207: 1.428571429 | BA207: 1.571428571 | BC207: 7.139 | BF207: =IF(OR(BF176,BF177,BF178,BF179,BF180,BF181,BF182,BF183,BF184,BF185,BF186,BF187,BF188,BF189,BF190,BF191,BF192,BF193,BF194,BF195,BF196,BF197,BF198,BF199,BF199,BF200,BF201<>""),AVERAGE(BF176:BF206),"") -> 1.717010494 | BG207: =IF(OR(BG176,BG177,BG178,BG179,BG180,BG181,BG182,BG183,BG184,BG185,BG186,BG187,BG188,BG189,BG190,BG191,BG192,BG193,BG194,BG195,BG196,BG197,BG198,BG199,BG199,BG200,BG201<>""),AVERAGE(BG176:BG206),"") -> 1.755714286 | BJ207: =IF(OR(BJ176,BJ177,BJ178,BJ179,BJ180,BJ181,BJ182,BJ183,BJ184,BJ185,BJ186,BJ187,BJ188,BJ189,BJ190,BJ191,BJ192,BJ193,BJ194,BJ195,BJ196,BJ197,BJ198,BJ199,BJ199,BJ200,BJ201<>""),AVERAGE(BJ176:BJ206),"") -> 8.873221901 | BM207: =IF(OR(BM176,BM177,BM178,BM179,BM180,BM181,BM182,BM183,BM184,BM185,BM186,BM187,BM188,BM189,BM190,BM191,BM192,BM193,BM194,BM195,BM196,BM197,BM198,BM199,BM199,BM200,BM201<>""),AVERAGE(BM176:BM206),"") -> 11.86288522 | BN207: =IF(OR(BN176,BN177,BN178,BN179,BN180,BN181,BN182,BN183,BN184,BN185,BN186,BN187,BN188,BN189,BN190,BN191,BN192,BN193,BN194,BN195,BN196,BN197,BN198,BN199,BN199,BN200,BN201<>""),AVERAGE(BN176:BN206),"") -> 693.5714286 | BO207: =IF(OR(BO176,BO177,BO178,BO179,BO180,BO181,BO182,BO183,BO184,BO185,BO186,BO187,BO188,BO189,BO190,BO191,BO192,BO193,BO194,BO195,BO196,BO197,BO198,BO199,BO199,BO200,BO201<>""),AVERAGE(BO176:BO206),"") -> 9.442857143 | BP207: =IF(OR(BP176,BP177,BP178,BP179,BP180,BP181,BP182,BP183,BP184,BP185,BP186,BP187,BP188,BP189,BP190,BP191,BP192,BP193,BP194,BP195,BP196,BP197,BP198,BP199,BP199,BP200,BP201<>""),AVERAGE(BP176:BP206),"") ->  | BS207: =IF(OR(BS176,BS177,BS178,BS179,BS180,BS181,BS182,BS183,BS184,BS185,BS186,BS187,BS188,BS189,BS190,BS191,BS192,BS193,BS194,BS195,BS196,BS197,BS198,BS199,BS199,BS200,BS201<>""),AVERAGE(BS176:BS206),"") -> 1.036354377 | BT207: 0.6208571429 | BU207: 96.96666667 | BV207: 30 | BW207: 56 | BX207: 0.4333333333 | BY207: 0.9066666667 | BZ207: 7.411666667 | CA207: 290 | CB207: 7.066666667 | CD207: 2.763333333
B208: Skupno: | J208: =IF(OR(J176,J177,J178,J179,J180,J181,J182,J183,J184,J185,J186,J187,J188,J189,J190,J191,J192,J193,J194,J195,J196,J197,J198,J199,J199,J200,J201<>""),SUM(J176:J206),"") -> 415880 | N208: =IF(OR(N176,N177,N178,N179,N180,N181,N182,N183,N184,N185,N186,N187,N188,N189,N190,N191,N192,N193,N194,N195,N196,N197,N198,N199,N199,N200,N201<>""),SUM(N176:N206),"") -> 0 | AU208: =IF(OR(AU176,AU177,AU178,AU179,AU180,AU181,AU182,AU183,AU184,AU185,AU186,AU187,AU188,AU189,AU190,AU191,AU192,AU193,AU194,AU195,AU196,AU197,AU198,AU199,AU199,AU200,AU201<>""),SUM(AU176:AU206),"") -> 388300
B209: Min: | J209: =IF(OR(J176,J177,J178,J179,J180,J181,J182,J183,J184,J185,J186,J187,J188,J189,J190,J191,J192,J193,J194,J195,J196,J197,J198,J199,J199,J200,J201<>""),MIN(J176:J206),"") -> 9800 | K209: 16.93672825 | L209: 631.1969508 | M209: 510.1216866 | N209: 0 | O209: 321 | P209: 150 | Q209: 193 | R209: 9.5 | S209: 7.353656173 | T209: 9.775764513 | U209: 9.030003641 | V209: 7.456912168 | W209: 8.044503355 | X209: 7.79238776 | Y209: 7.43 | Z209: 0.4531767209 | AA209: 4.9540658 | AB209: 2.317244917 | AC209: 4.97 | AD209: 533 | AE209: 30.4 | AG209: 4.212753208 | AH209: 29.30619513 | AI209: 21.68375304 | AJ209: 15.1 | AK209: =IF(OR(AK176,AK177,AK178,AK179,AK180,AK181,AK182,AK183,AK184,AK185,AK186,AK187,AK188,AK189,AK190,AK191,AK192,AK193,AK194,AK195,AK196,AK197,AK198,AK199,AK199,AK200,AK201<>""),MIN(AK176:AK206),"") -> 111 | AL209: =IF(OR(AL176,AL177,AL178,AL179,AL180,AL181,AL182,AL183,AL184,AL185,AL186,AL187,AL188,AL189,AL190,AL191,AL192,AL193,AL194,AL195,AL196,AL197,AL198,AL199,AL199,AL200,AL201<>""),MIN(AL176:AL206),"") -> 40 | AM209: 50 | AN209: 0 | AO209: 2.77 | AP209: 7.47 | AQ209: 741 | AR209: 24.5 | AT209: 14.5 | AU209: 8100 | AV209: 111.9429759 | AW209: 448.5857666 | AX209: 338.9764247 | AY209: 14.8 | AZ209: 1 | BA209: 0 | BC209: 6.777 | BD209: 1.065884387 | BE209: 1.599335392 | BF209: 1.240387541 | BG209: 1.37 | BH209: 6.025260417 | BI209: 7.319010417 | BJ209: 6.640028212 | BK209: 0.09075023333 | BL209: 6.768703683 | BM209: 5.152005393 | BN209: 506 | BO209: 6.03 | BQ209: 0.001401111369 | BR209: 0.9275763134 | BS209: 0.2814458209 | BT209: 0.13 | BU209: 38.6 | BV209: =IF(OR(BV176,BV177,BV178,BV179,BV180,BV181,BV182,BV183,BV184,BV185,BV186,BV187,BV188,BV189,BV190,BV191,BV192,BV193,BV194,BV195,BV196,BV197,BV198,BV199,BV199,BV200,BV201<>""),MIN(BV176:BV206),"") -> 8 | BW209: 20 | BX209: 0 | BY209: 0.36 | BZ209: 7.121 | CA209: 237 | CB209: 4 | CD209: 1.74
B210: Max: | J210: =IF(OR(J176,J177,J178,J179,J180,J181,J182,J183,J184,J185,J186,J187,J188,J189,J190,J191,J192,J193,J194,J195,J196,J197,J198,J199,J199,J200,J201<>""),MAX(J176:J206),"") -> 19416 | K210: 841.9704803 | L210: 1231.025749 | M210: 1011.00682 | N210: 0 | O210: 851 | P210: 450 | Q210: 480 | R210: 15 | S210: 11.49386319 | T210: 13.12613177 | U210: 12.06889753 | V210: 7.941017254 | W210: 8.621421719 | X210: 8.107427121 | Y210: 7.813 | Z210: 8.009103457 | AA210: 29.96782583 | AB210: 10.44049801 | AC210: 11.9 | AD210: 1163 | AE210: 77.9 | AG210: 41.71669725 | AH210: 92.19635824 | AI210: 66.28961031 | AJ210: 52 | AK210: =IF(OR(AK176,AK177,AK178,AK179,AK180,AK181,AK182,AK183,AK184,AK185,AK186,AK187,AK188,AK189,AK190,AK191,AK192,AK193,AK194,AK195,AK196,AK197,AK198,AK199,AK199,AK200,AK201<>""),MAX(AK176:AK206),"") -> 276 | AL210: =IF(OR(AL176,AL177,AL178,AL179,AL180,AL181,AL182,AL183,AL184,AL185,AL186,AL187,AL188,AL189,AL190,AL191,AL192,AL193,AL194,AL195,AL196,AL197,AL198,AL199,AL199,AL200,AL201<>""),MAX(AL176:AL206),"") -> 140 | AM210: 68 | AN210: 0.8 | AO210: 6.25 | AP210: 7.802 | AQ210: 1086 | AR210: 44.9 | AT210: 33.4 | AU210: 19700 | AV210: 686.6138204 | AW210: 997.0883504 | AX210: 819.3396651 | AY210: 22.3 | AZ210: 2 | BA210: 3 | BC210: 7.332 | BD210: 1.780412654 | BE210: 2.298102228 | BF210: 1.950616929 | BG210: 2.08 | BH210: 9.915364583 | BI210: 53.84973958 | BJ210: 13.43385417 | BK210: 17.52501691 | BL210: 24.73992354 | BM210: 21.93163993 | BN210: 808 | BO210: 15 | BQ210: 1.088400428 | BR210: 5.435583814 | BS210: 3.111834736 | BT210: 2.14 | BU210: 188 | BV210: =IF(OR(BV176,BV177,BV178,BV179,BV180,BV181,BV182,BV183,BV184,BV185,BV186,BV187,BV188,BV189,BV190,BV191,BV192,BV193,BV194,BV195,BV196,BV197,BV198,BV199,BV199,BV200,BV201<>""),MAX(BV176:BV206),"") -> 70 | BW210: 98 | BX210: 1.2 | BY210: 1.49 | BZ210: 7.591 | CA210: 349 | CB210: 10.8 | CD210: 3.53
J212: Vtok | K212: Septika | L212: FeCl3 na dotok | M212: FeCl3 na iztok | N212: Primarni usedalnik | O212: Biološka stopna odvedeno blato | P212: Iztok | Q212: Zalogovnik zgoščenega blata | R212: Strojno predzgoščanje 1 | T212: Strojno predzgoščanje 2 | V212: Strojno predzgoščanje 3 | X212: Dehidracija 1 | Z212: Dehidracija 2 | AB212: Dehidracija 3 | AD212: Plinohran iztok | AE212: Plinohran dotok | AF212: Kogeneracija 1 | AG212: Kogeneracija 2
A213: Slovenčeva 95, 1000 Ljubljana Slovenia | R213: Blato | S213: Polielektrolit | T213: Blato | U213: Polielektrolit | V213: Blato | W213: Polielektrolit | X213: Blato | Y213: Polielektrolit | Z213: Blato | AA213: Polielektrolit | AB213: Blato | AC213: Polielektrolit
I215: Tag: | J215: LT 05.01 in LT 05.02 | K215: FT 15.01 | L215: Izračun | M215: Izračun | N215: FT 06.05 | O215: FT 17.05 | P215: FT 13.01 | Q215: FT 16.01 | R215: FT 17.02 | S215: FT 17.01 | T215: FT 17.04 | U215: FT 17.03 | V215: FT 17.05 | W215: FT 17.07 | X215: FT 19.19 | Y215: FT 19.22 | Z215: FT 19.20 | AA215: FT 19.23 | AB215: FT 19.21 | AC215: FT 19.24 | AD215: FT 29.16 | AE215: FT 29.19 | AF215: FT 19.40 | AG215: FT 19.41
I216: Enote | J216: m³ | K216: m³ | L216: l | M216: l | N216: m³ | O216: m³ | P216: m³ | Q216: m³ | R216: m³ | S216: m³ | T216: m³ | U216: m³ | V216: m³ | W216: m³ | X216: m³ | Y216: m³ | Z216: m³ | AA216: m³ | AB216: m³ | AC216: m³ | AD216: m³ | AE216: m³ | AF216: m³ | AG216: m³
A220: Datum | B220: Dan | J220: Kumulativa | K220: Kumulativa | L220: Kumulativa | M220: Kumulativa | N220: Kumulativa | O220: Kumulativa | P220: Kumulativa | Q220: Kumulativa | R220: Kumulativa | S220: Kumulativa | T220: Kumulativa | U220: Kumulativa | V220: Kumulativa | W220: Kumulativa | X220: Kumulativa | Y220: Kumulativa | Z220: Kumulativa | AA220: Kumulativa | AB220: Kumulativa | AC220: Kumulativa | AD220: Kumulativa | AE220: Kumulativa | AF220: Kumulativa | AG220: Kumulativa
A221: =[5]Kumulative!A10 -> 2024-04-01 | B221: =[5]Kumulative!B10 -> 2024-04-01 | J221: 14880 | K221: 0 | L221: 0 | M221: 110 | N221: 114 | O221: 334 | P221: 13500 | Q221: 81.65625 | R221: 70 | S221: 9 | T221: 52 | U221: 11 | V221: 0 | W221: 0 | X221: 0 | Y221: 0 | Z221: 0 | AA221: 0 | AB221: 0 | AC221: 0 | AD221: 1920 | AE221: 1760 | AF221: 598 | AG221: 1264
A222: =[5]Kumulative!A11 -> 2024-04-02 | B222: =[5]Kumulative!B11 -> 2024-04-02 | J222: 13056 | K222: 0 | L222: 0 | M222: 390 | N222: 109 | O222: 371 | P222: 11900 | Q222: 94.6875 | R222: 95 | S222: 13 | T222: 41 | U222: 9 | V222: 0 | W222: 0 | X222: 0 | Y222: 0 | Z222: 0 | AA222: 0 | AB222: 61 | AC222: 7 | AD222: 1510 | AE222: 1440 | AF222: 213 | AG222: 1251
A223: =[5]Kumulative!A12 -> 2024-04-03 | B223: =[5]Kumulative!B12 -> 2024-04-03 | J223: 11128 | K223: 0 | L223: 0 | M223: 570 | N223: 148 | O223: 317 | P223: 9700 | Q223: 89.53125 | R223: 87 | S223: 12 | T223: 50 | U223: 11 | V223: 0 | W223: 0 | X223: 0 | Y223: 0 | Z223: 0 | AA223: 0 | AB223: 153 | AC223: 17 | AD223: 1870 | AE223: 1570 | AF223: 637 | AG223: 1187
A224: =[5]Kumulative!A13 -> 2024-04-04 | B224: =[5]Kumulative!B13 -> 2024-04-04 | J224: 11064 | K224: 0 | L224: 0 | M224: 100 | N224: 134 | O224: 406 | P224: 9300 | Q224: 124.96875 | R224: 101 | S224: 14 | T224: 63 | U224: 13 | V224: 0 | W224: 0 | X224: 0 | Y224: 0 | Z224: 0 | AA224: 0 | AB224: 232 | AC224: 25 | AD224: 2230 | AE224: 2050 | AF224: 950 | AG224: 1238
A225: =[5]Kumulative!A14 -> 2024-04-05 | B225: =[5]Kumulative!B14 -> 2024-04-05 | J225: 10480 | K225: 0 | L225: 0 | M225: 110 | N225: 135 | O225: 407 | P225: 8700 | Q225: 90.28125 | R225: 120 | S225: 16 | T225: 57 | U225: 12 | V225: 0 | W225: 0 | X225: 0 | Y225: 0 | Z225: 0 | AA225: 0 | AB225: 57 | AC225: 6 | AD225: 2010 | AE225: 1870 | AF225: 716 | AG225: 1247
A226: =[5]Kumulative!A15 -> 2024-04-06 | B226: =[5]Kumulative!B15 -> 2024-04-06 | J226: 10496 | K226: 0 | L226: 0 | M226: 130 | N226: 133 | O226: 357 | P226: 8600 | Q226: 71.53125 | R226: 88 | S226: 12 | T226: 57 | U226: 12 | V226: 0 | W226: 0 | X226: 0 | Y226: 0 | Z226: 0 | AA226: 0 | AB226: 0 | AC226: 0 | AD226: 1970 | AE226: 1870 | AF226: 645 | AG226: 1261
A227: =[5]Kumulative!A16 -> 2024-04-07 | B227: =[5]Kumulative!B16 -> 2024-04-07 | J227: 10152 | K227: 0 | L227: 0 | M227: 120 | N227: 131 | O227: 337 | P227: 8400 | Q227: 78.09375 | R227: 92 | S227: 12 | T227: 68 | U227: 14 | V227: 0 | W227: 0 | X227: 0 | Y227: 0 | Z227: 0 | AA227: 0 | AB227: 0 | AC227: 0 | AD227: 2060 | AE227: 1810 | AF227: 755 | AG227: 1262
A228: =[5]Kumulative!A17 -> 2024-04-08 | B228: =[5]Kumulative!B17 -> 2024-04-08 | J228: 10048 | K228: 0 | L228: 0 | M228: 130 | N228: 122 | O228: 348 | P228: 8200 | Q228: 74.53125 | R228: 102 | S228: 14 | T228: 45 | U228: 9 | V228: 0 | W228: 0 | X228: 0 | Y228: 0 | Z228: 0 | AA228: 0 | AB228: 223 | AC228: 23 | AD228: 2000 | AE228: 1770 | AF228: 686 | AG228: 1265
A229: =[5]Kumulative!A18 -> 2024-04-09 | B229: =[5]Kumulative!B18 -> 2024-04-09 | J229: 9912 | K229: 0 | L229: 0 | M229: 60 | N229: 154 | O229: 339 | P229: 8200 | Q229: 70.03125 | R229: 90 | S229: 14 | T229: 72 | U229: 15 | V229: 0 | W229: 0 | X229: 0 | Y229: 0 | Z229: 0 | AA229: 0 | AB229: 154 | AC229: 16 | AD229: 1810 | AE229: 1620 | AF229: 299 | AG229: 1267
A230: =[5]Kumulative!A19 -> 2024-04-10 | B230: =[5]Kumulative!B19 -> 2024-04-10 | J230: 10072 | K230: 0 | L230: 0 | M230: 0 | N230: 229 | O230: 160 | P230: 8500 | Q230: 49.6875 | R230: 66 | S230: 10 | T230: 82 | U230: 15 | V230: 0 | W230: 0 | X230: 0 | Y230: 0 | Z230: 0 | AA230: 0 | AB230: 232 | AC230: 22 | AD230: 1640 | AE230: 1190 | AF230: 409 | AG230: 1000
A231: =[5]Kumulative!A20 -> 2024-04-11 | B231: =[5]Kumulative!B20 -> 2024-04-11 | J231: 11824 | K231: 0 | L231: 0 | M231: 430 | N231: 151 | O231: 0 | P231: 11800 | Q231: 95.53125 | R231: 33 | S231: 4 | T231: 32 | U231: 5 | V231: 0 | W231: 0 | X231: 0 | Y231: 0 | Z231: 0 | AA231: 0 | AB231: 232 | AC231: 21 | AD231: 1670 | AE231: 1600 | AF231: 416 | AG231: 1238
A232: =[5]Kumulative!A21 -> 2024-04-12 | B232: =[5]Kumulative!B21 -> 2024-04-12 | J232: 10472 | K232: 0 | L232: 0 | M232: 310 | N232: 130 | O232: 278 | P232: 9200 | Q232: 106.78125 | R232: 88 | S232: 11 | T232: 60 | U232: 10 | V232: 0 | W232: 0 | X232: 0 | Y232: 0 | Z232: 0 | AA232: 0 | AB232: 259 | AC232: 19 | AD232: 2250 | AE232: 1930 | AF232: 919 | AG232: 1232
A233: =[5]Kumulative!A22 -> 2024-04-13 | B233: =[5]Kumulative!B22 -> 2024-04-13 | J233: 9360 | K233: 0 | L233: 0 | M233: 490 | N233: 123 | O233: 247 | P233: 7600 | Q233: 90.46875 | R233: 98 | S233: 12 | T233: 48 | U233: 8 | V233: 0 | W233: 0 | X233: 0 | Y233: 0 | Z233: 0 | AA233: 0 | AB233: 0 | AC233: 0 | AD233: 2360 | AE233: 1900 | AF233: 915 | AG233: 1242
A234: =[5]Kumulative!A23 -> 2024-04-14 | B234: =[5]Kumulative!B23 -> 2024-04-14 | J234: 9648 | K234: 0 | L234: 0 | M234: 330 | N234: 112 | O234: 206 | P234: 7900 | Q234: 62.4375 | R234: 51 | S234: 7 | T234: 54 | U234: 10 | V234: 0 | W234: 0 | X234: 0 | Y234: 0 | Z234: 0 | AA234: 0 | AB234: 0 | AC234: 0 | AD234: 2040 | AE234: 1800 | AF234: 786 | AG234: 1251
A235: =[5]Kumulative!A24 -> 2024-04-15 | B235: =[5]Kumulative!B24 -> 2024-04-15 | J235: 9176 | K235: 0 | L235: 0 | M235: 280 | N235: 128 | O235: 301 | P235: 7500 | Q235: 107.0625 | R235: 84 | S235: 10 | T235: 58 | U235: 10 | V235: 0 | W235: 0 | X235: 0 | Y235: 0 | Z235: 0 | AA235: 0 | AB235: 81 | AC235: 7 | AD235: 2400 | AE235: 1840 | AF235: 1059 | AG235: 1267
A236: =[5]Kumulative!A25 -> 2024-04-16 | B236: =[5]Kumulative!B25 -> 2024-04-16 | J236: 13312 | K236: 0 | L236: 0 | M236: 580 | N236: 139 | O236: 408 | P236: 12600 | Q236: 103.6875 | R236: 125 | S236: 16 | T236: 74 | U236: 13 | V236: 0 | W236: 0 | X236: 0 | Y236: 0 | Z236: 0 | AA236: 0 | AB236: 157 | AC236: 12 | AD236: 2460 | AE236: 2080 | AF236: 1213 | AG236: 1253
A237: =[5]Kumulative!A26 -> 2024-04-17 | B237: =[5]Kumulative!B26 -> 2024-04-17 | J237: 13672 | K237: 0 | L237: 0 | M237: 610 | N237: 125 | O237: 408 | P237: 13600 | Q237: 105.09375 | R237: 96 | S237: 12 | T237: 56 | U237: 10 | V237: 0 | W237: 0 | X237: 0 | Y237: 0 | Z237: 0 | AA237: 0 | AB237: 216 | AC237: 16 | AD237: 2650 | AE237: 2140 | AF237: 1228 | AG237: 1257
A238: =[5]Kumulative!A27 -> 2024-04-18 | B238: =[5]Kumulative!B27 -> 2024-04-18 | J238: 12112 | K238: 0 | L238: 0 | M238: 880 | N238: 147 | O238: 408 | P238: 11200 | Q238: 138.09375 | R238: 106 | S238: 13 | T238: 54 | U238: 9 | V238: 0 | W238: 0 | X238: 0 | Y238: 0 | Z238: 0 | AA238: 0 | AB238: 263 | AC238: 16 | AD238: 2440 | AE238: 2160 | AF238: 1203 | AG238: 1241
A239: =[5]Kumulative!A28 -> 2024-04-19 | B239: =[5]Kumulative!B28 -> 2024-04-19 | J239: 10064 | K239: 0 | L239: 0 | M239: 130 | N239: 148 | O239: 408 | P239: 8800 | Q239: 121.59375 | R239: 95 | S239: 12 | T239: 68 | U239: 13 | V239: 0 | W239: 0 | X239: 0 | Y239: 0 | Z239: 0 | AA239: 0 | AB239: 255 | AC239: 14 | AD239: 2510 | AE239: 2190 | AF239: 1200 | AG239: 1237
A240: =[5]Kumulative!A29 -> 2024-04-20 | B240: =[5]Kumulative!B29 -> 2024-04-20 | J240: 9232 | K240: 0 | L240: 0 | M240: 90 | N240: 150 | O240: 407 | P240: 8000 | Q240: 112.59375 | R240: 113 | S240: 15 | T240: 61 | U240: 11 | V240: 0 | W240: 0 | X240: 0 | Y240: 0 | Z240: 0 | AA240: 0 | AB240: 0 | AC240: 0 | AD240: 2470 | AE240: 2060 | AF240: 1221 | AG240: 1251
A241: =[5]Kumulative!A30 -> 2024-04-21 | B241: =[5]Kumulative!B30 -> 2024-04-21 | J241: 9056 | K241: 0 | L241: 0 | M241: 140 | N241: 122 | O241: 409 | P241: 7700 | Q241: 104.8125 | R241: 81 | S241: 10 | T241: 61 | U241: 12 | V241: 0 | W241: 0 | X241: 0 | Y241: 0 | Z241: 0 | AA241: 0 | AB241: 0 | AC241: 0 | AD241: 2080 | AE241: 1840 | AF241: 835 | AG241: 1239
A242: =[5]Kumulative!A31 -> 2024-04-22 | B242: =[5]Kumulative!B31 -> 2024-04-22 | J242: 9936 | K242: 0 | L242: 0 | M242: 180 | N242: 132 | O242: 363 | P242: 8300 | Q242: 162.1875 | R242: 0 | S242: 0 | T242: 97 | U242: 18 | V242: 0 | W242: 0 | X242: 0 | Y242: 0 | Z242: 0 | AA242: 0 | AB242: 85 | AC242: 6 | AD242: 2280 | AE242: 1860 | AF242: 1048 | AG242: 1229
A243: =[5]Kumulative!A32 -> 2024-04-23 | B243: =[5]Kumulative!B32 -> 2024-04-23 | J243: 20264 | K243: 0 | L243: 0 | M243: 370 | N243: 108 | O243: 298 | P243: 19700 | Q243: 205.40625 | R243: 111 | S243: 15 | T243: 90 | U243: 17 | V243: 0 | W243: 0 | X243: 0 | Y243: 0 | Z243: 0 | AA243: 0 | AB243: 153 | AC243: 11 | AD243: 2240 | AE243: 1940 | AF243: 1026 | AG243: 1221
A244: =[5]Kumulative!A33 -> 2024-04-24 | B244: =[5]Kumulative!B33 -> 2024-04-24 | J244: 16032 | K244: 0 | L244: 0 | M244: 0 | N244: 115 | O244: 408 | P244: 15600 | Q244: 163.96875 | R244: 123 | S244: 16 | T244: 15 | U244: 3 | V244: 0 | W244: 0 | X244: 0 | Y244: 0 | Z244: 0 | AA244: 0 | AB244: 244 | AC244: 16 | AD244: 2480 | AE244: 1920 | AF244: 1190 | AG244: 1241
A245: =[5]Kumulative!A34 -> 2024-04-25 | B245: =[5]Kumulative!B34 -> 2024-04-25 | J245: 16456 | K245: 0 | L245: 0 | M245: 0 | N245: 151 | O245: 408 | P245: 16000 | Q245: 139.40625 | R245: 115 | S245: 15 | T245: 33 | U245: 6 | V245: 0 | W245: 0 | X245: 0 | Y245: 0 | Z245: 0 | AA245: 0 | AB245: 238 | AC245: 17 | AD245: 2060 | AE245: 1700 | AF245: 822 | AG245: 1236
A246: =[5]Kumulative!A35 -> 2024-04-26 | B246: =[5]Kumulative!B35 -> 2024-04-26 | J246: 12752 | K246: 0 | L246: 0 | M246: 570 | N246: 180 | O246: 408 | P246: 11700 | Q246: 94.125 | R246: 58 | S246: 13 | T246: 50 | U246: 10 | V246: 0 | W246: 0 | X246: 0 | Y246: 0 | Z246: 0 | AA246: 0 | AB246: 230 | AC246: 15 | AD246: 1920 | AE246: 1610 | AF246: 667 | AG246: 1239
A247: =[5]Kumulative!A36 -> 2024-04-27 | B247: =[5]Kumulative!B36 -> 2024-04-27 | J247: 11448 | K247: 0 | L247: 0 | M247: 140 | N247: 124 | O247: 258 | P247: 10100 | Q247: 71.71875 | R247: 0 | S247: 15 | T247: 86 | U247: 16 | V247: 0 | W247: 0 | X247: 0 | Y247: 0 | Z247: 0 | AA247: 0 | AB247: 0 | AC247: 0 | AD247: 1530 | AE247: 1240 | AF247: 272 | AG247: 1237
A248: =[5]Kumulative!A37 -> 2024-04-28 | B248: =[5]Kumulative!B37 -> 2024-04-28 | J248: 9144 | K248: 0 | L248: 0 | M248: 110 | N248: 127 | O248: 178 | P248: 7500 | Q248: 80.15625 | R248: 0 | S248: 5 | T248: 96 | U248: 18 | V248: 0 | W248: 0 | X248: 0 | Y248: 0 | Z248: 0 | AA248: 0 | AB248: 0 | AC248: 0 | AD248: 1620 | AE248: 1380 | AF248: 369 | AG248: 1241
A249: =[5]Kumulative!A38 -> 2024-04-29 | B249: =[5]Kumulative!B38 -> 2024-04-29 | J249: 9232 | K249: 0 | L249: 0 | M249: 100 | N249: 118 | O249: 232 | P249: 7400 | Q249: 99 | R249: 37 | S249: 5 | T249: 100 | U249: 21 | V249: 0 | W249: 0 | X249: 0 | Y249: 0 | Z249: 0 | AA249: 0 | AB249: 253 | AC249: 19 | AD249: 1810 | AE249: 1540 | AF249: 549 | AG249: 1246
A250: =[5]Kumulative!A39 -> 2024-04-30 | B250: =[5]Kumulative!B39 -> 2024-04-30 | J250: 8992 | K250: 0 | L250: 0 | M250: 280 | N250: 126 | O250: 408 | P250: 6800 | Q250: 116.25 | R250: 156 | S250: 22 | T250: 71 | U250: 16 | V250: 0 | W250: 0 | X250: 0 | Y250: 0 | Z250: 0 | AA250: 0 | AB250: 263 | AC250: 18 | AD250: 2320 | AE250: 2060 | AF250: 1064 | AG250: 1245
A251: =IF('[5]Vtok-Iztok'!A251<>"",'[5]Vtok-Iztok'!A251,"") ->  | B251: =IF(A251>0,A251,"") -> 
B252: Povprečje | J252: =IF(OR(J221,J222,J223,J224,J225,J226,J227,J228,J229,J230,J231,J232,J233,J234,J235,J236,J237,J238,J239,J240,J241,J242,J243,J244,J244,J245,J246<>""),AVERAGE(J221:J251),"") -> 11449.06667 | K252: =IF(OR(K221,K222,K223,K224,K225,K226,K227,K228,K229,K230,K231,K232,K233,K234,K235,K236,K237,K238,K239,K240,K241,K242,K243,K244,K244,K245,K246<>""),AVERAGE(K221:K251),"") -> 0 | L252: 0 | M252: 258 | N252: =IF(OR(N221,N222,N223,N224,N225,N226,N227,N228,N229,N230,N231,N232,N233,N234,N235,N236,N237,N238,N239,N240,N241,N242,N243,N244,N244,N245,N246<>""),AVERAGE(N221:N251),"") -> 135.5 | O252: 327.2333333 | P252: =IF(OR(P221,P222,P223,P224,P225,P226,P227,P228,P229,P230,P231,P232,P233,P234,P235,P236,P237,P238,P239,P240,P241,P242,P243,P244,P244,P245,P246<>""),AVERAGE(P221:P251),"") -> 10133.33333 | Q252: 103.5125 | R252: 82.7 | S252: 11.8 | T252: 61.7 | U252: 11.9 | V252: 0 | W252: 0 | X252: 0 | Y252: 0 | Z252: 0 | AA252: 0 | AB252: 134.7 | AC252: 10.76666667 | AD252: 2087 | AE252: 1791.333333 | AF252: 797 | AG252: 1236.166667
B253: Skupno: | J253: =IF(OR(J221,J222,J223,J224,J225,J226,J227,J228,J229,J230,J231,J232,J233,J234,J235,J236,J237,J238,J239,J240,J241,J242,J243,J244,J244,J245,J246<>""),SUM(J221:J251),"") -> 343472 | K253: =IF(OR(K221,K222,K223,K224,K225,K226,K227,K228,K229,K230,K231,K232,K233,K234,K235,K236,K237,K238,K239,K240,K241,K242,K243,K244,K244,K245,K246<>""),SUM(K221:K251),"") -> 0 | L253: 0 | M253: 7740 | N253: =IF(OR(N221,N222,N223,N224,N225,N226,N227,N228,N229,N230,N231,N232,N233,N234,N235,N236,N237,N238,N239,N240,N241,N242,N243,N244,N244,N245,N246<>""),SUM(N221:N251),"") -> 4065 | O253: 9817 | P253: =IF(OR(P221,P222,P223,P224,P225,P226,P227,P228,P229,P230,P231,P232,P233,P234,P235,P236,P237,P238,P239,P240,P241,P242,P243,P244,P244,P245,P246<>""),SUM(P221:P251),"") -> 304000 | Q253: 3105.375 | R253: 2481 | S253: 354 | T253: 1851 | U253: 357 | V253: 0 | W253: 0 | X253: 0 | Y253: 0 | Z253: 0 | AA253: 0 | AB253: 4041 | AC253: 323 | AD253: 62610 | AE253: 53740 | AF253: 23910 | AG253: 37085
B254: Min: | J254: =IF(OR(J221,J222,J223,J224,J225,J226,J227,J228,J229,J230,J231,J232,J233,J234,J235,J236,J237,J238,J239,J240,J241,J242,J243,J244,J244,J245,J246<>""),MIN(J221:J251),"") -> 8992 | K254: =IF(OR(K221,K222,K223,K224,K225,K226,K227,K228,K229,K230,K231,K232,K233,K234,K235,K236,K237,K238,K239,K240,K241,K242,K243,K244,K244,K245,K246<>""),MIN(K221:K251),"") -> 0 | L254: 0 | M254: 0 | N254: =IF(OR(N221,N222,N223,N224,N225,N226,N227,N228,N229,N230,N231,N232,N233,N234,N235,N236,N237,N238,N239,N240,N241,N242,N243,N244,N244,N245,N246<>""),MIN(N221:N251),"") -> 108 | O254: 0 | P254: =IF(OR(P221,P222,P223,P224,P225,P226,P227,P228,P229,P230,P231,P232,P233,P234,P235,P236,P237,P238,P239,P240,P241,P242,P243,P244,P244,P245,P246<>""),MIN(P221:P251),"") -> 6800 | Q254: 49.6875 | R254: 0 | S254: 0 | T254: 15 | U254: 3 | V254: 0 | W254: 0 | X254: 0 | Y254: 0 | Z254: 0 | AA254: 0 | AB254: 0 | AC254: 0 | AD254: 1510 | AE254: 1190 | AF254: 213 | AG254: 1000
... 319 more rows

Sheet Pooblastilo

Sheet KČN (hidden)
A1: Ime KČN | D1: Ime | E1: AGLO_ID | F1: AGLO_IME | G1: PE_SKUPAJ | J1: Dodatno čiščenje | L1: ID občine | M1: Ime občine
A3: AJDOVŠČINA | D3: 29 - Maribor 2019 | E3: 29 | F3: Maribor 2019 | G3: 136133 | J3: UV dezinfekcija | L3: 1 | M3: Ajdovščina
A4: APAČE | D4: 57 - Osluševci – Cvetkovci 2019 | E4: 57 | F4: Osluševci – Cvetkovci 2019 | G4: 538 | J4: Membranska filtracija | L4: 213 | M4: Ankaran
A5: BISTRICA | D5: 101 - Sveti Tomaž 2019 | E5: 101 | F5: Sveti Tomaž 2019 | G5: 347 | J5: Ozonizacija | L5: 195 | M5: Apače
A6: BLED | D6: 129 - Podgorci – Velika Nedelja 2019 | E6: 129 | F6: Podgorci – Velika Nedelja 2019 | G6: 1385 | J6: Absorbcija na aktivno oglje | L6: 2 | M6: Beltinci
A7: BOHINJSKA BISTRICA | D7: 197 - Ormož – Hardek 2019 | E7: 197 | F7: Ormož – Hardek 2019 | G7: 3696 | J7: Rastlinska greda | L7: 148 | M7: Benedikt
A8: BOROVNICA | D8: 210 - Ivanjkovci 2019 | E8: 210 | F8: Ivanjkovci 2019 | G8: 184 | J8: Drugi način dodatnega čiščenja | L8: 149 | M8: Bistrica ob Sotli
A9: BOVEC | D9: 370 - Središče ob Dravi 2019 | E9: 370 | F9: Središče ob Dravi 2019 | G9: 1979 | L9: 3 | M9: Bled
A10: BRESTANICA | D10: 455 - Cezanjevci 2019 | E10: 455 | F10: Cezanjevci 2019 | G10: 175 | L10: 150 | M10: Bloke
A11: BREŽICE | D11: 458 - Šalinci 2019 | E11: 458 | F11: Šalinci 2019 | G11: 395 | L11: 4 | M11: Bohinj
A12: BROD | D12: 482 - Krapje 2019 | E12: 482 | F12: Krapje 2019 | G12: 130 | L12: 5 | M12: Borovnica
A13: CELJE | D13: 493 - Ljutomer 2019 | E13: 493 | F13: Ljutomer 2019 | G13: 6927 | L13: 6 | M13: Bovec
A14: CERKNICA | D14: 501 - Podgradje 2019 | E14: 501 | F14: Podgradje 2019 | G14: 162 | L14: 151 | M14: Braslovče
A15: CERKNO | D15: 507 - Cven 2019 | E15: 507 | F15: Cven 2019 | G15: 662 | L15: 7 | M15: Brda
A16: ČRENŠOVCI | D16: 518 - Mota 2019 | E16: 518 | F16: Mota 2019 | G16: 345 | L16: 8 | M16: Brezovica
A17: ČRNA NA KOROŠKEM | D17: 535 - Razkrižje 2019 | E17: 535 | F17: Razkrižje 2019 | G17: 951 | L17: 9 | M17: Brežice
A18: ČRNUČE | D18: 538 - Lucija 2019 | E18: 538 | F18: Lucija 2019 | G18: 26569 | L18: 152 | M18: Cankova
A19: DIVAČA | D19: 540 - Seča 2019 | E19: 540 | F19: Seča 2019 | G19: 1394 | L19: 11 | M19: Celje
A20: DOBRNA | D20: 554 - Sečovlje 2019 | E20: 554 | F20: Sečovlje 2019 | G20: 588 | L20: 12 | M20: Cerklje na Gorenjskem
A21: DOBROVNIK | D21: 575 - Dragonja spodnji del 2019 | E21: 575 | F21: Dragonja spodnji del 2019 | G21: 261 | L21: 13 | M21: Cerknica
A22: DOBROVO (VINSKA KLET) | D22: 597 - Sveti Peter 2019 | E22: 597 | F22: Sveti Peter 2019 | G22: 312 | L22: 14 | M22: Cerkno
A23: DOL PRI LJUBLJANI | D23: 598 - Padna 2019 | E23: 598 | F23: Padna 2019 | G23: 171 | L23: 153 | M23: Cerkvenjak
A24: DOLENJSKE TOPLICE | D24: 603 - Nova vas nad Dragonjo 2019 | E24: 603 | F24: Nova vas nad Dragonjo 2019 | G24: 173 | L24: 196 | M24: Cirkulane
A25: DOMŽALE-KAMNIK | D25: 643 - Sveti Jurij ob Ščavnici 2019 | E25: 643 | F25: Sveti Jurij ob Ščavnici 2019 | G25: 357 | L25: 15 | M25: Črenšovci
A26: DORNAVA | D26: 678 - Vučja vas 2019 | E26: 678 | F26: Vučja vas 2019 | G26: 173 | L26: 16 | M26: Črna na Koroškem
A27: DRAVOGRAD | D27: 702 - Stara Nova vas 2019 | E27: 702 | F27: Stara Nova vas 2019 | G27: 2376 | L27: 17 | M27: Črnomelj
A28: FORMIN | D28: 704 - Lukavci 2019 | E28: 704 | F28: Lukavci 2019 | G28: 321 | L28: 18 | M28: Destrnik
A29: GLOBOVNICA (LENART-STARA) | D29: 705 - Banovci 2019 | E29: 705 | F29: Banovci 2019 | G29: 236 | L29: 19 | M29: Divača
A30: GORENJA VAS | D30: 706 - Veržej 2019 | E30: 706 | F30: Veržej 2019 | G30: 984 | L30: 154 | M30: Dobje pri Planini
A31: GORIŠNICA | D31: 945 - Prešnica 2019 | E31: 945 | F31: Prešnica 2019 | G31: 194 | L31: 20 | M31: Dobrepolje
A32: GORNJA RADGONA | D32: 953 - Tublje pri Hrpeljah 2019 | E32: 953 | F32: Tublje pri Hrpeljah 2019 | G32: 159 | L32: 155 | M32: Dobrna
A33: GROSUPLJE | D33: 955 - Kozina 2019 | E33: 955 | F33: Kozina 2019 | G33: 2099 | L33: 21 | M33: Dobrova - Polhov Gradec
A34: HRASTNIK | D34: 962 - Rodik 2019 | E34: 962 | F34: Rodik 2019 | G34: 348 | L34: 156 | M34: Dobrovnik
A35: IDRIJA | D35: 965 - Dane pri Divači 2019 | E35: 965 | F35: Dane pri Divači 2019 | G35: 74 | L35: 22 | M35: Dol pri Ljubljani
A36: IG | D36: 967 - Kačiče – Pared 2019 | E36: 967 | F36: Kačiče – Pared 2019 | G36: 107 | L36: 157 | M36: Dolenjske Toplice
A37: ILIRSKA BISTRICA | D37: 968 - Dolnje Ležeče 2019 | E37: 968 | F37: Dolnje Ležeče 2019 | G37: 258 | L37: 23 | M37: Domžale
A38: IVANČNA GORICA | D38: 969 - Divača 2019 | E38: 969 | F38: Divača 2019 | G38: 1715 | L38: 24 | M38: Dornava
A39: JESENICE | D39: 970 - Senadole 2019 | E39: 970 | F39: Senadole 2019 | G39: 64 | L39: 25 | M39: Dravograd
A40: KANAL | D40: 990 - Slivje 2019 | E40: 990 | F40: Slivje 2019 | G40: 109 | L40: 26 | M40: Duplek
A41: KIDRIČEVO | D41: 993 - Markovščina 2019 | E41: 993 | F41: Markovščina 2019 | G41: 102 | L41: 27 | M41: Gorenja vas - Poljane
A42: KOBARID | D42: 994 - Gradišče pri Materiji 2019 | E42: 994 | F42: Gradišče pri Materiji 2019 | G42: 127 | L42: 28 | M42: Gorišnica
A43: KOČEVJE | D43: 995 - Javorje 2019 | E43: 995 | F43: Javorje 2019 | G43: 99 | L43: 207 | M43: Gorje
A44: KOMEN | D44: 997 - Obrov 2019 | E44: 997 | F44: Obrov 2019 | G44: 205 | L44: 29 | M44: Gornja Radgona
A45: KOPER | D45: 1005 - Škoflje 2019 | E45: 1005 | F45: Škoflje 2019 | G45: 127 | L45: 30 | M45: Gornji Grad
A46: KOSTANJEVICA NA KRKI | D46: 1013 - Vremski Britof 2019 | E46: 1013 | F46: Vremski Britof 2019 | G46: 98 | L46: 31 | M46: Gornji Petrovci
A47: KOZINA | D47: 1015 - Gornje Vreme 2019 | E47: 1015 | F47: Gornje Vreme 2019 | G47: 78 | L47: 158 | M47: Grad
A48: KRANJ | D48: 1016 - Barka 2019 | E48: 1016 | F48: Barka 2019 | G48: 109 | L48: 32 | M48: Grosuplje
A49: KROPA | D49: 1019 - Laže 2019 | E49: 1019 | F49: Laže 2019 | G49: 90 | L49: 159 | M49: Hajdina
A50: LAŠKO (STRENSKO) | D50: 1020 - Senožeče 2019 | E50: 1020 | F50: Senožeče 2019 | G50: 817 | L50: 160 | M50: Hoče-Slivnica
A51: LENDAVA | D51: 1024 - Opatje Selo 2019 | E51: 1024 | F51: Opatje Selo 2019 | G51: 471 | L51: 161 | M51: Hodoš
A52: LITIJA | D52: 1025 - Lokvica 2019 | E52: 1025 | F52: Lokvica 2019 | G52: 91 | L52: 162 | M52: Horjul
A53: LJUBLJANA (ZALOG) | D53: 1031 - Sela na Krasu 2019 | E53: 1031 | F53: Sela na Krasu 2019 | G53: 158 | L53: 34 | M53: Hrastnik
A54: LJUTOMER | D54: 1033 - Miren 2019 | E54: 1033 | F54: Miren 2019 | G54: 2150 | L54: 35 | M54: Hrpelje-Kozina
A55: LOGATEC | D55: 1034 - Brestovica pri Komnu 2019 | E55: 1034 | F55: Brestovica pri Komnu 2019 | G55: 109 | L55: 36 | M55: Idrija
A56: LOVRENC NA POHORJU | D56: 1036 - Bilje 2019 | E56: 1036 | F56: Bilje 2019 | G56: 1305 | L56: 37 | M56: Ig
A57: LUKAČEVCI | D57: 1038 - Kostanjevica na Krasu 2019 | E57: 1038 | F57: Kostanjevica na Krasu 2019 | G57: 284 | L57: 38 | M57: Ilirska Bistrica
A58: LUKOVICA | D58: 1042 - Vojščica 2019 | E58: 1042 | F58: Vojščica 2019 | G58: 222 | L58: 39 | M58: Ivančna Gorica
A59: MARIBOR | D59: 1044 - Temnica 2019 | E59: 1044 | F59: Temnica 2019 | G59: 175 | L59: 40 | M59: Izola
A60: MARKOVCI | D60: 1050 - Prelože pri Lokvi 2019 | E60: 1050 | F60: Prelože pri Lokvi 2019 | G60: 91 | L60: 41 | M60: Jesenice
A61: MELINCI (BELTINCI) | D61: 1051 - Lokev 2019 | E61: 1051 | F61: Lokev 2019 | G61: 778 | L61: 163 | M61: Jezersko
A62: METLIKA | D62: 1052 - Sežana 2019 | E62: 1052 | F62: Sežana 2019 | G62: 6059 | L62: 42 | M62: Juršinci
A63: MEŽICA | D63: 1057 - Orlek 2019 | E63: 1057 | F63: Orlek 2019 | G63: 199 | L63: 43 | M63: Kamnik
A64: MIRNA | D64: 1063 - Dane pri Sežani 2019 | E64: 1063 | F64: Dane pri Sežani 2019 | G64: 444 | L64: 44 | M64: Kanal ob Soči
A65: MISLINJA | D65: 1064 - Šmarje pri Sežani 2019 | E65: 1064 | F65: Šmarje pri Sežani 2019 | G65: 282 | L65: 45 | M65: Kidričevo
A66: MOZIRJE | D66: 1065 - Povir 2019 | E66: 1065 | F66: Povir 2019 | G66: 327 | L66: 46 | M66: Kobarid
A67: MURSKA SOBOTA | D67: 1070 - Merče 2019 | E67: 1070 | F67: Merče 2019 | G67: 88 | L67: 47 | M67: Kobilje
A68: MURSKI ČRNCI | D68: 1071 - Gorenje pri Divači 2019 | E68: 1071 | F68: Gorenje pri Divači 2019 | G68: 131 | L68: 48 | M68: Kočevje
A69: MUTA - VUZENICA | D69: 1073 - Štorje 2019 | E69: 1073 | F69: Štorje 2019 | G69: 344 | L69: 49 | M69: Komen
A70: NOVA GORICA | D70: 1074 - Žirje 2019 | E70: 1074 | F70: Žirje 2019 | G70: 98 | L70: 164 | M70: Komenda
A71: NOVO MESTO (LOČNA) | D71: 1078 - Gabrovica pri Komnu 2019 | E71: 1078 | F71: Gabrovica pri Komnu 2019 | G71: 124 | L71: 50 | M71: Koper
A72: OBREŽJE | D72: 1079 - Pliskovica 2019 | E72: 1079 | F72: Pliskovica 2019 | G72: 241 | L72: 197 | M72: Kostanjevica na Krki
A73: ORMOŽ | D73: 1080 - Veliki Dol 2019 | E73: 1080 | F73: Veliki Dol 2019 | G73: 134 | L73: 165 | M73: Kostel
A74: PALOMA SLADKOGORSKA | D74: 1081 - Volčji Grad 2019 | E74: 1081 | F74: Volčji Grad 2019 | G74: 86 | L74: 51 | M74: Kozje
A75: PIRAN | D75: 1083 - Gorjansko 2019 | E75: 1083 | F75: Gorjansko 2019 | G75: 287 | L75: 52 | M75: Kranj
A76: PIVKA | D76: 1093 - Komen 2019 | E76: 1093 | F76: Komen 2019 | G76: 664 | L76: 53 | M76: Kranjska Gora
A77: PODPEČ-PRESERJE | D77: 1094 - Sveto 2019 | E77: 1094 | F77: Sveto 2019 | G77: 146 | L77: 166 | M77: Križevci pri Ljutomeru
A78: POSTOJNA | D78: 1100 - Škrbina 2019 | E78: 1100 | F78: Škrbina 2019 | G78: 150 | L78: 54 | M78: Krško
A79: PRAGERSKO | D79: 1108 - Dutovlje 2019 | E79: 1108 | F79: Dutovlje 2019 | G79: 362 | L79: 55 | M79: Kungota
A80: PREDDVOR | D80: 1114 - Šepulje 2019 | E80: 1114 | F80: Šepulje 2019 | G80: 1557 | L80: 56 | M80: Kuzma
A81: PREVALJE | D81: 1115 - Tomaj 2019 | E81: 1115 | F81: Tomaj 2019 | G81: 235 | L81: 57 | M81: Laško
A82: PRVAČINA-DORNBERK | D82: 1117 - Kopriva 2019 | E82: 1117 | F82: Kopriva 2019 | G82: 207 | L82: 58 | M82: Lenart
A83: PTUJ | D83: 1121 - Avber 2019 | E83: 1121 | F83: Avber 2019 | G83: 102 | L83: 59 | M83: Lendava
A84: PUCONCI | D84: 1122 - Ponikve – Križ 2019 | E84: 1122 | F84: Ponikve – Križ 2019 | G84: 145 | L84: 60 | M84: Litija
A85: RAČE | D85: 1128 - Kazlje 2019 | E85: 1128 | F85: Kazlje 2019 | G85: 98 | L85: 61 | M85: Ljubljana
A86: RADEČE | D86: 1143 - Štanjel 2019 | E86: 1143 | F86: Štanjel 2019 | G86: 364 | L86: 62 | M86: Ljubno
A87: RADENCI | D87: 1144 - Hruševica 2019 | E87: 1144 | F87: Hruševica 2019 | G87: 160 | L87: 63 | M87: Ljutomer
A88: RADLJE OB DRAVI | D88: 1146 - Tupelče 2019 | E88: 1146 | F88: Tupelče 2019 | G88: 246 | L88: 64 | M88: Logatec
A89: RADOVLJICA | D89: 1150 - Kobdilj 2019 | E89: 1150 | F89: Kobdilj 2019 | G89: 158 | L89: 208 | M89: Log-Dragomer
A90: RAKEK | D90: 1152 - Trpčane 2019 | E90: 1152 | F90: Trpčane 2019 | G90: 136 | L90: 65 | M90: Loška dolina
A91: RAVNE NA KOROŠKEM | D91: 1156 - Hrušica – Podgrad 2019 | E91: 1156 | F91: Hrušica – Podgrad 2019 | G91: 264 | L91: 66 | M91: Loški Potok
A92: RAZKRIŽJE | D92: 1160 - Huje 2019 | E92: 1160 | F92: Huje 2019 | G92: 92 | L92: 167 | M92: Lovrenc na Pohorju
A93: RETEČE | D93: 1167 - Račice 2019 | E93: 1167 | F93: Račice 2019 | G93: 172 | L93: 67 | M93: Luče
A94: RIBNICA | D94: 1168 - Podgrad – Obrov 2019 | E94: 1168 | F94: Podgrad – Obrov 2019 | G94: 671 | L94: 68 | M94: Lukovica
A95: ROGAŠKA SLATINA | D95: 1172 - Sabonje 2019 | E95: 1172 | F95: Sabonje 2019 | G95: 75 | L95: 69 | M95: Majšperk
A96: ROGLA | D96: 1173 - Jelšane 2019 | E96: 1173 | F96: Jelšane 2019 | G96: 349 | L96: 198 | M96: Makole
A97: SEČOVLJE | D97: 1174 - Novokračine 2019 | E97: 1174 | F97: Novokračine 2019 | G97: 179 | L97: 70 | M97: Maribor
A98: SELNICA OB DRAVI | D98: 1175 - Dolenje pri Jelšanah 2019 | E98: 1175 | F98: Dolenje pri Jelšanah 2019 | G98: 199 | L98: 168 | M98: Markovci
A99: SEMIČ | D99: 1181 - Gornji Zemon 2019 | E99: 1181 | F99: Gornji Zemon 2019 | G99: 96 | L99: 71 | M99: Medvode
A100: ŠENTJERNEJ | D100: 1184 - Zarečica 2019 | E100: 1184 | F100: Zarečica 2019 | G100: 126 | L100: 72 | M100: Mengeš
A101: ŠENTJUR | D101: 1186 - Podbeže 2019 | E101: 1186 | F101: Podbeže 2019 | G101: 97 | L101: 73 | M101: Metlika
A102: SEVNICA | D102: 1188 - Harije 2019 | E102: 1188 | F102: Harije 2019 | G102: 298 | L102: 74 | M102: Mežica
A103: SEŽANA | D103: 1196 - Pregarje 2019 | E103: 1196 | F103: Pregarje 2019 | G103: 183 | L103: 169 | M103: Miklavž na Dravskem polju
A104: ŠKOFJA LOKA | D104: 1197 - Topolc 2019 | E104: 1197 | F104: Topolc 2019 | G104: 331 | L104: 75 | M104: Miren-Kostanjevica
A105: ŠKOFJA VAS | D105: 1199 - Zarečje 2019 | E105: 1199 | F105: Zarečje 2019 | G105: 162 | L105: 212 | M105: Mirna
A106: SLOVENJ GRADEC | D106: 1205 - Smrje 2019 | E106: 1205 | F106: Smrje 2019 | G106: 118 | L106: 170 | M106: Mirna Peč
A107: SLOVENSKA BISTRICA | D107: 1206 - Prem 2019 | E107: 1206 | F107: Prem 2019 | G107: 152 | L107: 76 | M107: Mislinja
A108: SLOVENSKE KONJICE | D108: 1207 - Dolnji Zemon 2019 | E108: 1207 | F108: Dolnji Zemon 2019 | G108: 254 | L108: 199 | M108: Mokronog-Trebelno
A109: ŠMARJE PRI JELŠAH | D109: 1208 - Dolnji Zemon – Zemonska vaga 2019 | E109: 1208 | F109: Dolnji Zemon – Zemonska vaga 2019 | G109: 243 | L109: 77 | M109: Moravče
A110: ŠMARJEŠKE TOPLICE | D110: 1210 - Ilirska Bistrica 2019 | E110: 1210 | F110: Ilirska Bistrica 2019 | G110: 5176 | L110: 78 | M110: Moravske Toplice
A111: ŠOŠTANJ (ŠALEŠKE DOLINE) | D111: 1214 - Velika Bukovica 2019 | E111: 1214 | F111: Velika Bukovica 2019 | G111: 227 | L111: 79 | M111: Mozirje
A112: SPODNJA IDRIJA | D112: 1215 - Jablanica 2019 | E112: 1215 | F112: Jablanica 2019 | G112: 158 | L112: 80 | M112: Murska Sobota
A113: SREDIŠČE OB DRAVI | D113: 1216 - Vrbovo – Vrbica 2019 | E113: 1216 | F113: Vrbovo – Vrbica 2019 | G113: 501 | L113: 81 | M113: Muta
A114: STARI TRG (LOŽ) | D114: 1217 - Šembije 2019 | E114: 1217 | F114: Šembije 2019 | G114: 251 | L114: 82 | M114: Naklo
A115: STRAŽA (SELA PRI STRAŽI) | D115: 1220 - Neverke 2019 | E115: 1220 | F115: Neverke 2019 | G115: 459 | L115: 83 | M115: Nazarje
A116: TABRE (KRANJSKA GORA) | D116: 1221 - Ostrožno Brdo 2019 | E116: 1221 | F116: Ostrožno Brdo 2019 | G116: 88 | L116: 84 | M116: Nova Gorica
A117: TERME ČATEŽ | D117: 1223 - Gornja Košana 2019 | E117: 1223 | F117: Gornja Košana 2019 | G117: 154 | L117: 85 | M117: Novo mesto
A118: TOLMIN | D118: 1237 - Kal 2019 | E118: 1237 | F118: Kal 2019 | G118: 325 | L118: 86 | M118: Odranci
A119: TRBOJE | D119: 1239 - Nova sušica 2019 | E119: 1239 | F119: Nova sušica 2019 | G119: 106 | L119: 171 | M119: Oplotnica
A120: TRBOVLJE | D120: 1242 - Parje 2019 | E120: 1242 | F120: Parje 2019 | G120: 129 | L120: 87 | M120: Ormož
A121: TREBNJE | D121: 1243 - Narin 2019 | E121: 1243 | F121: Narin 2019 | G121: 232 | L121: 88 | M121: Osilnica
A122: TRŽIČ | D122: 1247 - Bač 2019 | E122: 1247 | F122: Bač 2019 | G122: 516 | L122: 89 | M122: Pesnica
A123: TURNIŠČE | D123: 1248 - Knežak 2019 | E123: 1248 | F123: Knežak 2019 | G123: 424 | L123: 90 | M123: Piran
A124: VELIKA POLANA | D124: 1249 - Koritnice 2019 | E124: 1249 | F124: Koritnice 2019 | G124: 144 | L124: 91 | M124: Pivka
A125: VIDEM PRI PTUJU | D125: 1250 - Drskovče 2019 | E125: 1250 | F125: Drskovče 2019 | G125: 113 | L125: 92 | M125: Podčetrtek
A126: VIPAP | D126: 1251 - Zagorje 2019 | E126: 1251 | F126: Zagorje 2019 | G126: 406 | L126: 172 | M126: Podlehnik
A127: VIPAVA | D127: 1252 - Jurišče 2019 | E127: 1252 | F127: Jurišče 2019 | G127: 167 | L127: 93 | M127: Podvelka
A128: VIPAVA (AGROIND) | D128: 1254 - Klenik 2019 | E128: 1254 | F128: Klenik 2019 | G128: 181 | L128: 200 | M128: Poljčane
A129: VNANJE GORICE | D129: 1258 - Pivka 2019 | E129: 1258 | F129: Pivka 2019 | G129: 2684 | L129: 173 | M129: Polzela
A130: VOJNA VAS (ČRNOMELJ) | D130: 1259 - Selce 2019 | E130: 1259 | F130: Selce 2019 | G130: 243 | L130: 94 | M130: Postojna
A131: VRHNIKA (TOJNICE) | D131: 1261 - Palčje 2019 | E131: 1261 | F131: Palčje 2019 | G131: 215 | L131: 174 | M131: Prebold
A132: ZAGORJE OB SAVI | D132: 1262 - Trnje – Pivka 2019 | E132: 1262 | F132: Trnje – Pivka 2019 | G132: 163 | L132: 95 | M132: Preddvor
A133: ŽALEC (KASAZE) | D133: 1264 - Sušak 2019 | E133: 1264 | F133: Sušak 2019 | G133: 99 | L133: 175 | M133: Prevalje
A134: ŽELEZNIKI | D134: 1265 - Zabiče – Podgraje 2019 | E134: 1265 | F134: Zabiče – Podgraje 2019 | G134: 615 | L134: 96 | M134: Ptuj
A135: ŽIRI | D135: 1266 - Kuteževo 2019 | E135: 1266 | F135: Kuteževo 2019 | G135: 204 | L135: 97 | M135: Puconci
A136: ZREČE | D136: 1276 - Male Žablje 2019 | E136: 1276 | F136: Male Žablje 2019 | G136: 493 | L136: 98 | M136: Rače-Fram
A137: ŽUŽEMBERK | D137: 1277 - Podraga 2019 | E137: 1277 | F137: Podraga 2019 | G137: 373 | L137: 99 | M137: Radeče
D138: 1280 - Poreče 2019 | E138: 1280 | F138: Poreče 2019 | G138: 729 | L138: 100 | M138: Radenci
D139: 1281 - Orehovica – Podbreg 2019 | E139: 1281 | F139: Orehovica – Podbreg 2019 | G139: 177 | L139: 101 | M139: Radlje ob Dravi
D140: 1282 - Ustje 2019 | E140: 1282 | F140: Ustje 2019 | G140: 322 | L140: 102 | M140: Radovljica
D141: 1283 - Gaberje 2019 | E141: 1283 | F141: Gaberje 2019 | G141: 181 | L141: 103 | M141: Ravne na Koroškem
D142: 1284 - Zavino 2019 | E142: 1284 | F142: Zavino 2019 | G142: 100 | L142: 176 | M142: Razkrižje
D143: 1287 - Brje 2019 | E143: 1287 | F143: Brje 2019 | G143: 177 | L143: 209 | M143: Rečica ob Savinji
D144: 1292 - Tevče 2019 | E144: 1292 | F144: Tevče 2019 | G144: 151 | L144: 201 | M144: Renče-Vogrsko
D145: 1297 - Šmarje – Vrtovče 2019 | E145: 1297 | F145: Šmarje – Vrtovče 2019 | G145: 143 | L145: 104 | M145: Ribnica
D146: 1298 - Velike Žablje 2019 | E146: 1298 | F146: Velike Žablje 2019 | G146: 345 | L146: 177 | M146: Ribnica na Pohorju
D147: 1300 - Lože 2019 | E147: 1300 | F147: Lože 2019 | G147: 231 | L147: 106 | M147: Rogaška Slatina
D148: 1301 - Manče 2019 | E148: 1301 | F148: Manče 2019 | G148: 153 | L148: 105 | M148: Rogašovci
D149: 1302 - Slap pri Vipavi 2019 | E149: 1302 | F149: Slap pri Vipavi 2019 | G149: 426 | L149: 107 | M149: Rogatec
D150: 1303 - Goče 2019 | E150: 1303 | F150: Goče 2019 | G150: 187 | L150: 108 | M150: Ruše
D151: 1307 - Vipava 2019 | E151: 1307 | F151: Vipava 2019 | G151: 2787 | L151: 178 | M151: Selnica ob Dravi
D152: 1314 - Dolenje 2019 | E152: 1314 | F152: Dolenje 2019 | G152: 66 | L152: 109 | M152: Semič
D153: 1315 - Planina – Marci 2019 | E153: 1315 | F153: Planina – Marci 2019 | G153: 385 | L153: 110 | M153: Sevnica
D154: 1317 - Planina – Britih 2019 | E154: 1317 | F154: Planina – Britih 2019 | G154: 79 | L154: 111 | M154: Sežana
D155: 1318 - Sanabor 2019 | E155: 1318 | F155: Sanabor 2019 | G155: 84 | L155: 112 | M155: Slovenj Gradec
D156: 1319 - Vrhpolje 2019 | E156: 1319 | F156: Vrhpolje 2019 | G156: 645 | L156: 113 | M156: Slovenska Bistrica
D157: 1321 - Budanje 2019 | E157: 1321 | F157: Budanje 2019 | G157: 1272 | L157: 114 | M157: Slovenske Konjice
D158: 1324 - Selo 2019 | E158: 1324 | F158: Selo 2019 | G158: 882 | L158: 179 | M158: Sodražica
D159: 1326 - Batuje 2019 | E159: 1326 | F159: Batuje 2019 | G159: 345 | L159: 180 | M159: Solčava
D160: 1332 - Črniče 2019 | E160: 1332 | F160: Črniče 2019 | G160: 445 | L160: 202 | M160: Središče ob Dravi
D161: 1334 - Ajdovščina 2019 | E161: 1334 | F161: Ajdovščina 2019 | G161: 10506 | L161: 115 | M161: Starše
D162: 1335 - Lokavec – Čohi 2019 | E162: 1335 | F162: Lokavec – Čohi 2019 | G162: 284 | L162: 203 | M162: Straža
D163: 1337 - Skrilje 2019 | E163: 1337 | F163: Skrilje 2019 | G163: 288 | L163: 181 | M163: Sveta Ana
D164: 1339 - Dobravlje – Pikči 2019 | E164: 1339 | F164: Dobravlje – Pikči 2019 | G164: 428 | L164: 204 | M164: Sveta Trojica v Slovenskih goricah
D165: 1342 - Kamnje 2019 | E165: 1342 | F165: Kamnje 2019 | G165: 213 | L165: 182 | M165: Sveti Andraž v Slovenskih goricah
D166: 1344 - Vrtovin – Potoče 2019 | E166: 1344 | F166: Vrtovin – Potoče 2019 | G166: 203 | L166: 116 | M166: Sveti Jurij ob Ščavnici
D167: 1345 - Vrtovin 2019 | E167: 1345 | F167: Vrtovin 2019 | G167: 322 | L167: 210 | M167: Sveti Jurij v Slovenskih goricah
D168: 1348 - Plače 2019 | E168: 1348 | F168: Plače 2019 | G168: 262 | L168: 205 | M168: Sveti Tomaž
D169: 1349 - Lokavec 2019 | E169: 1349 | F169: Lokavec 2019 | G169: 832 | L169: 33 | M169: Šalovci
D170: 1352 - Cesta v občini Ajdovščina 2019 | E170: 1352 | F170: Cesta v občini Ajdovščina 2019 | G170: 505 | L170: 183 | M170: Šempeter-Vrtojba
D171: 1354 - Stomaž 2019 | E171: 1354 | F171: Stomaž 2019 | G171: 219 | L171: 117 | M171: Šenčur
D172: 1360 - Dolga Poljana 2019 | E172: 1360 | F172: Dolga Poljana 2019 | G172: 353 | L172: 118 | M172: Šentilj
D173: 1364 - Lokavec – Gorenje 2019 | E173: 1364 | F173: Lokavec – Gorenje 2019 | G173: 74 | L173: 119 | M173: Šentjernej
D174: 1409 - Col 2019 | E174: 1409 | F174: Col 2019 | G174: 535 | L174: 120 | M174: Šentjur
D175: 1410 - Žagolič 2019 | E175: 1410 | F175: Žagolič 2019 | G175: 124 | L175: 211 | M175: Šentrupert
D176: 1411 - Prestranek 2019 | E176: 1411 | F176: Prestranek 2019 | G176: 1621 | L176: 121 | M176: Škocjan
D177: 1416 - Slavina 2019 | E177: 1416 | F177: Slavina 2019 | G177: 235 | L177: 122 | M177: Škofja Loka
D178: 1418 - Veliko Ubeljsko 2019 | E178: 1418 | F178: Veliko Ubeljsko 2019 | G178: 101 | L178: 123 | M178: Škofljica
D179: 1419 - Razdrto 2019 | E179: 1419 | F179: Razdrto 2019 | G179: 183 | L179: 124 | M179: Šmarje pri Jelšah
D180: 1423 - Hruševje 2019 | E180: 1423 | F180: Hruševje 2019 | G180: 374 | L180: 206 | M180: Šmarješke Toplice
D181: 1429 - Šmihel pod Nanosom 2019 | E181: 1429 | F181: Šmihel pod Nanosom 2019 | G181: 199 | L181: 125 | M181: Šmartno ob Paki
D182: 1431 - Višnje 2019 | E182: 1431 | F182: Višnje 2019 | G182: 111 | L182: 194 | M182: Šmartno pri Litiji
D183: 1435 - Podkraj 2019 | E183: 1435 | F183: Podkraj 2019 | G183: 326 | L183: 126 | M183: Šoštanj
D184: 1445 - Orehek 2019 | E184: 1445 | F184: Orehek 2019 | G184: 224 | L184: 127 | M184: Štore
D185: 1447 - Hrašče 2019 | E185: 1447 | F185: Hrašče 2019 | G185: 398 | L185: 184 | M185: Tabor
D186: 1448 - Goriče 2019 | E186: 1448 | F186: Goriče 2019 | G186: 90 | L186: 10 | M186: Tišina
D187: 1449 - Postojna 2019 | E187: 1449 | F187: Postojna 2019 | G187: 11378 | L187: 128 | M187: Tolmin
D188: 1455 - Hrenovice 2019 | E188: 1455 | F188: Hrenovice 2019 | G188: 109 | L188: 129 | M188: Trbovlje
D189: 1461 - Zagon 2019 | E189: 1461 | F189: Zagon 2019 | G189: 169 | L189: 130 | M189: Trebnje
D190: 1468 - Belsko 2019 | E190: 1468 | F190: Belsko 2019 | G190: 232 | L190: 185 | M190: Trnovska vas
D191: 1470 - Bukovje 2019 | E191: 1470 | F191: Bukovje 2019 | G191: 195 | L191: 186 | M191: Trzin
D192: 1473 - Strmca 2019 | E192: 1473 | F192: Strmca 2019 | G192: 90 | L192: 131 | M192: Tržič
D193: 1474 - Studeno 2019 | E193: 1474 | F193: Studeno 2019 | G193: 298 | L193: 132 | M193: Turnišče
D194: 1478 - Planina 2019 | E194: 1478 | F194: Planina 2019 | G194: 753 | L194: 133 | M194: Velenje
D195: 1492 - Šempeter pri Gorici 2019 | E195: 1492 | F195: Šempeter pri Gorici 2019 | G195: 1933 | L195: 187 | M195: Velika Polana
D196: 1515 - Nova Gorica 2019 | E196: 1515 | F196: Nova Gorica 2019 | G196: 33081 | L196: 134 | M196: Velike Lašče
D197: 1518 - Renčne zahod 2019 | E197: 1518 | F197: Renčne zahod 2019 | G197: 1237 | L197: 188 | M197: Veržej
D198: 1535 - Grgar 2019 | E198: 1535 | F198: Grgar 2019 | G198: 702 | L198: 135 | M198: Videm
D199: 1536 - Renče vzhod 2019 | E199: 1536 | F199: Renče vzhod 2019 | G199: 469 | L199: 136 | M199: Vipava
D200: 1543 - Grgar – Zagorje 2019 | E200: 1543 | F200: Grgar – Zagorje 2019 | G200: 65 | L200: 137 | M200: Vitanje
D201: 1547 - Banjšice 2019 | E201: 1547 | F201: Banjšice 2019 | G201: 71 | L201: 138 | M201: Vodice
... 1334 more rows

Sheet Izvajalci_JS (hidden)
A1: Naziv | B1: Ulica | C1: Št. pošte | D1: pošta | E1: davčna št. | F1: kontaktna os. | G1: tel. | H1: fax | I1: e-mail
A3: AGJ, D.O.O. | B3: POT NA KAMENŠAK 17 | C3: 2230 | D3: LENART V SLOV. GORICAH | E3: 84014598 | G3: 031 663 810 | H3: / | I3: agj@triera.net | J3: 215
A4: ČISTA NARAVA, JAVNO KOMUNALNO PODJETJE D.O.O. | B4: TEŠANOVCI 20 | C4: 9226 | D4: MORAVSKE TOPLICE | E4: 39046923 | F4: Dragica Piv, Števančec Andrej | G4: (02)5381617; (041)803793 (g. Števančec); (031)388510 (g. Šrok) | H4: (02)5381613 | I4: racunovodstvo.cn@siol.net | J4: 68
A5: EKO-PARK D.O.O. LENDAVA | B5: GLAVNA ULICA 109 | C5: 9220 | D5: LENDAVA | E5: 87430401 | F5: Stanko Gjekeš | G5: 02 577 62 80 | H5: 02 577 62 84 | I5: stanko.gjerkes@eko-park.si | J5: 188
A6: GRADNJE STARŠE, JAVNO PODJETJE D.O.O. | B6: STARŠE 93 | C6: 2205 | D6: STARŠE | E6: 17124328 | G6: 02/686 48 00 | H6: 02/686 48 10 | I6: obcina@starse.si | J6: 197
A7: JAVNO KOMUNALNO PODJETJE BREZOVICA D.O.O. | B7: KAMNIK POD KRIMOM 6 | C7: 1352 | D7: PRESERJE | E7: 22513434 | F7: Gorazd Kompič | G7: 01 363 30 20 | I7: kanalizacija@jkp-brezovica.si | J7: 102
A8: JAVNO KOMUNALNO PODJETJE DRAVOGRAD D.O.O. | B8: MEŽA 143 | C8: 2370 | D8: DRAVOGRAD | E8: 72013257 | F8: Irena Petelin | G8: (02)8721121 | H8: (02)8721129 | I8: irena.petelin@jkp-dravograd.si | J8: 18
A9: JAVNO KOMUNALNO PODJETJE GROSUPLJE D.O.O. | B9: CESTA NA KRKO 7 | C9: 1290 | D9: GROSUPLJE | E9: 65119037 | F9: Matija Kastelic | G9: (01)7888932 | H9: (01)7888913 | I9: matija.kastelic@jkpg.si | J9: 8
A10: JAVNO KOMUNALNO PODJETJE KOMUNALA KOČEVJE D.O.O. | B10: TESARSKA ULICA 10 | C10: 1330 | D10: KOČEVJE | E10: 10626271 | F10: Bojana Klepac, Aleš Marolt (obč. Kostel) | G10: (01)8950340; (01)8952395 in (041)556339 (ga. Klepac) | H10: (01)8951697 | I10: bojana.klepac@siol.net; ursa.butala@komunala-kocevje.si | J10: 12
A11: JAVNO KOMUNALNO PODJETJE KOMUNALA RIBNICA D.O.O. | B11: GORIČA VAS 11 A | C11: 1310 | D11: RIBNICA | E11: 81322496 | F11: Metka Dobovšek Jerbič | G11: (01)8361138; (051)682 405 (g. Zakrajšek) | H11: (01)8361138 | I11: metka@komunala-ribnica.si | J11: 9
A12: JAVNO KOMUNALNO PODJETJE LOG D.O.O. | B12: DOBJA VAS 187 | C12: 2390 | D12: RAVNE NA KOROŠKEM | E12: 23002107 | F12: Bernarda Gradišnik | G12: 041 769376 | I12: bernarda.gradisnik@jkp-log.si; info@jkp-log.si | J12: 23
A13: JAVNO KOMUNALNO PODJETJE PRODNIK D.O.O. | B13: SAVSKA CESTA 34 | C13: 1230 | D13: DOMŽALE | E13: 54471656 | F13: Špela Pirnat(do 1.7.10); Sabina Zupan,Stane Grmek | G13: (01)7295430 ali 460; 031 690 609 (ga. Zupan) | H13: (01)7295450 | I13: info@jkp-prodnik.si; spela.pirnat@jkp-prodnik.si | J13: 2
A14: JAVNO KOMUNALNO PODJETJE RADLJE OB DRAVI D.O.O. | B14: MARIBORSKA CESTA 3 | C14: 2360 | D14: RADLJE OB DRAVI | E14: 64562999 | F14: Toni Potnik | G14: 059 935 440 | I14: info@jpkic-radlje.si | J14: 14
A15: JAVNO KOMUNALNO PODJETJE RAVNE NA KOROŠKEM, D.O.O. | B15: GAČNIKOVA POT 5 | C15: 2390 | D15: RAVNE NA KOROŠKEM | E15: 20356846 | G15: (02) 82 15 483 | I15: info@jkpravne.si | J15: 213
A16: JAVNO KOMUNALNO PODJETJE ŽALEC, D.O.O. | B16: ULICA NADE CILENŠEK 5 | C16: 3310 | D16: ŽALEC | E16: 94086362 | F16: Florjana Završnik Semiprimožnik | G16: 03 713 6000 | H16: 03 713 6796 | I16: cvetka.semiprimoznik@jkp-zalec.si | J16: 26
A17: JAVNO PODJETJE - AZIENDA PUBBLICA MARJETICA KOPER, D.O.O.-S.R.L. | B17: ULICA 15. MAJA 4 | C17: 6000 | D17: KOPER | E17: 32375204 | F17: Nataša Đukić Vasić, univ.dipl.inž.grad. | G17: (05)6633761; (05)6633760 (Štrancar) | H17: (05)6633706 | I17: goran.strancar@marjeticakoper.si | J17: 51
A18: JAVNO PODJETJE KANALIZACIJA IN ČISTILNA NAPRAVA RADLJE, D.O.O. | B18: MARIBORSKA CESTA 007 | C18: 2360 | D18: RADLJE OB DRAVI | E18: 67401961 | F18: Andrej Podlesnik | G18: 02 88 71 105 | I18: andrej.podlesnik@jkp-radlje.si | J18: 209
A19: JAVNO PODJETJE KOMUNALA BREŽICE D.O.O. | B19: CESTA BRATOV MILAVCEV 42 | C19: 8250 | D19: BREŽICE | E19: 21101906 | F19: Miha Pšeničnik | G19: 07/620-92-55; 031 809 834 | I19: miha.psenicnik@komunala-brezice.si | J19: 199
A20: JAVNO PODJETJE KOMUNALA CERKNICA D.O.O. CERKNICA | B20: NOTRANJSKA CESTA 44 | C20: 1380 | D20: CERKNICA | E20: 77038037 | F20: Katarina Vavtar Kovač | G20: (01)7097917; 051 441 565 | I20: katarina.kovac@komunala-cerknica.si; info@komunala-cerknica.si | J20: 11
A21: JAVNO PODJETJE KOMUNALA ČRNOMELJ D.O.O. | B21: BELOKRANJSKA CESTA 24 | C21: 8340 | D21: ČRNOMELJ | E21: 66111889 | F21: Marija Mušič | G21: (07)3061660; (07)3061666 (Mušič) | H21: (07)3061697 | I21: komunala.crnomelj@siol.net; marija.music@komunala-crnomelj.si | J21: 57
A22: JAVNO PODJETJE KOMUNALA D.O.O. MOZIRJE | B22: PRAPROTNIKOVA ULICA 36 | C22: 3330 | D22: MOZIRJE | E22: 25344650 | F22: Rok Jamnikar | G22: 031610621 | I22: rok@komunala-mozirje.si | J22: 24
A23: JAVNO PODJETJE KOMUNALA D.O.O. SEVNICA | B23: NASELJE HEROJA MAROKA 17 | C23: 8290 | D23: SEVNICA | E23: 90581121 | F23: Stojan Žulič; Urška Jamšek | G23: (07)8164707, 041 889682; 07 8164710 | H23: (07)8164711 | I23: stojan.zulic@komunala-sevnica.si; urska.jamsek@komunala-sevnica.si | J23: 56
A24: JAVNO PODJETJE KOMUNALA HRASTNIK D.O.O. | B24: CESTA 3. JULIJA 7 | C24: 1430 | D24: HRASTNIK | E24: 16477448 | F24: Ernest Gričar | G24: (03)5642310; (03)5642315 | H24: (03)5644000 | I24: ernest.gricar@komunala-hrastnik.si | J24: 4
A25: JAVNO PODJETJE KOMUNALA ILIRSKA BISTRICA, D.O.O. | B25: PREŠERNOVA ULICA 7 | C25: 6250 | D25: ILIRSKA BISTRICA | E25: 37819127 | F25: Sandi Jagodnik | G25: (05)7110680; (05)7110671 | I25: sandi.jagodnik@kp-ilb.si | J25: 49
A26: JAVNO PODJETJE KOMUNALA IZOLA, D.O.O. AZIENDA PUBBLICA KOMUNALA ISOLA, S.R.L. | B26: INDUSTRIJSKA CESTA 8 | C26: 6310 | D26: IZOLA | E26: 70981515 | F26: Dorian Kaligarič | G26: (05)6634935, 031 650 375 | H26: (05)6634949 | I26: dorian.kaligaric@komunala-izola.si | J26: 47
A27: JAVNO PODJETJE KOMUNALA RADEČE D.O.O. | B27: TITOVA ULICA 107 | C27: 1433 | D27: RADEČE | E27: 30080070 | F27: Boris Knavs | G27: (03)5680240 | H27: (03)5680242 | I27: komunala.radece@siol.net | J27: 55
A28: JAVNO PODJETJE KOMUNALA SLOVENJ GRADEC D.O.O. | B28: PAMEČE 177 A | C28: 2380 | D28: SLOVENJ GRADEC | E28: 53440978 | F28: Gregor Mlakar | G28: 031626568 | I28: gregor.mlakar@komusg.si | J28: 16
A29: JAVNO PODJETJE KOMUNALA ŠENTILJ D.O.O. | B29: MAISTROVA ULICA 2 | C29: 2212 | D29: ŠENTILJ V SLOV. GORICAH | E29: TOMI ŠOŠTARIČ | F29: Mirko Horvat | G29: 82018430 | H29: / | I29: prokurist@jp-kos.si | J29: 221
A30: JAVNO PODJETJE KOMUNALA ŠKOFJA LOKA D.O.O. | B30: KIDRIČEVA CESTA 43 A | C30: 4220 | D30: ŠKOFJA LOKA | E30: 67105874 | F30: Anže Sodnik | G30: 041 750 043 | H30: 04 50 23 513 | I30: anze.sodnik@komunalaskofjaloka.si | J30: 219
A31: JAVNO PODJETJE KOMUNALA TRBOVLJE D.O.O. | B31: SAVINJSKA CESTA 11 A | C31: 1420 | D31: TRBOVLJE | E31: 40870057 | F31: Janez Žlak | G31: 03 56 53 101 | I31: javno.podjetje@komunala-trbovlje.si | J31: 1
A32: JAVNO PODJETJE KOMUNALA VODICE, D.O.O. | B32: KOPITARJEV TRG 1 | C32: 1217 | D32: VODICE | E32: 85158640 | F32: Miha Brgant | G32: (01)8332500 | H32: (01)8332509 | I32: sprejemna@jpk-vodice.si | J32: 139
A33: JAVNO PODJETJE KOMUNALA ZAGORJE, D.O.O. | B33: CESTA ZMAGE 57 | C33: 1410 | D33: ZAGORJE OB SAVI | E33: 82253536 | F33: Blanka Povše | G33: 03 56 67 700; (03)5667704 | H33: (03)5667714 | I33: blanka.povse@komunala-zagorje.si | J33: 6
A34: JAVNO PODJETJE KOMUNALNO PODJETJE VRHNIKA, D.O.O. | B34: POT NA TOJNICE 40 | C34: 1360 | D34: VRHNIKA | E34: 75879611 | F34: Mojca Plečnik | G34: (01)7505062; (041)760398 | H34: (01)7552013 | I34: mojca.plecnik@kpv.si; info@kpv.si | J34: 3
A35: JAVNO PODJETJE KOMUNALNO STANOVANJSKO PODJETJE LITIJA, D.O.O. | B35: PONOVIŠKA CESTA 15 | C35: 1270 | D35: LITIJA | E35: 84245956 | F35: Milan Klinc, Karmen Potisek | G35: (01)8900010; (01)8900015 (g. Klinc) | H35: (01)8900020 | I35: milan.klinc@ksp-litija.si; karmen.potisek@ksp-litija.si | J35: 10
A36: JAVNO PODJETJE KOVOD POSTOJNA, VODOVOD, KANALIZACIJA, D.O.O. | B36: JERŠICE 3 | C36: 6230 | D36: POSTOJNA | E36: 17322057 | F36: Tjaša Smrdel | G36: 051 209 054 | I36: tjasa.smrdel@kovodpostojna.si | J36: 48
A37: JAVNO PODJETJE NIGRAD, KOMUNALNO PODJETJE D.O.O. | B37: ZAGREBŠKA CESTA 30 | C37: 2000 | D37: MARIBOR | E37: 71083715 | F37: Dejan Tacer | G37: (02)4500300; (02)4500367 in 041 662 812 (g.Tacer direktna) | H37: (02)4500360 | I37: dejan.tacer@nigrad.si | J37: 20
A38: JAVNO PODJETJE OKOLJE PIRAN D.O.O. | B38: ARZE 1 B | C38: 6330 | D38: PIRAN | E38: 73819174 | F38: Danijela Kleva Švagelj | G38: (05)6175044; (041)632926 (Švagelj) | H38: (05)6175015 | I38: danijela.svagelj@okoljepiran.si; info@okoljepiran.si | J38: 52
A39: JAVNO PODJETJE PRLEKIJA D.O.O. | B39: BABINSKA CESTA 2 A | C39: 9240 | D39: LJUTOMER | E39: 34813144 | F39: Barbara Zemljak | G39: 02 58 58 240 | H39: / | I39: info@jp-prlekija.si | J39: 186
A40: JAVNO PODJETJE VODOVOD KANALIZACIJA SNAGA D.O.O. (LJUBLJANA) | B40: VODOVODNA CESTA 90 | C40: 1000 | D40: LJUBLJANA | E40: 64520463 | F40: Boštjan Mišmaš | G40: 01 5808 215 | I40: bostjan.mismas@vo-ka.si | J40: 13
A41: JEKO, JAVNO KOMUNALNO PODJETJE, D.O.O., JESENICE | B41: CESTA MARŠALA TITA 51 | C41: 4270 | D41: JESENICE | E41: 67496717 | F41: Uroš Bučar | G41: 045810412 | I41: uros.bucar@jeko.si | J41: 36
A42: JKP ŠENTJUR, JAVNO KOMUNALNO PODJETJE, D.O.O. | B42: CESTA LEONA DOBROTINŠKA 18 | C42: 3230 | D42: ŠENTJUR | E42: 54691877 | F42: Roman Voga | G42: 03 74 71 644 | I42: roman.voga@jkp-sentjur.si | J42: 27
A43: JKP, JAVNO KOMUNALNO PODJETJE D.O.O. SLOVENSKE KONJICE | B43: CELJSKA CESTA 3 | C43: 3210 | D43: SLOVENSKE KONJICE | E43: 85452360 | F43: Maja Škruba | G43: (03)7580420 | I43: maja.skruba@jkp-konjice.si | J43: 21
A44: JP EDŠ, D.O.O. ŠENTJERNEJ | B44: TRUBARJEVA CESTA 5 | C44: 8310 | D44: ŠENTJERNEJ | E44: 90170296 | F44: Uroš Jerič | G44: 051 494 633 | H44: / | I44: uros.jeric@jp-eds.si | J44: 218
A45: JP VARAŠ, PODJETJE ZA KOMUNALNE IN DRUGE STORITVE D.O.O. | B45: ULICA ŠTEFANA KOVAČA 73 | C45: 9224 | D45: TURNIŠČE | E45: 97308285 | F45: Stanislav Sobočan | G45: 041816299 | I45: s.sobocan@varas.si | J45: 195
A46: KOMUNA, JAVNO KOMUNALNO PODJETJE BELTINCI D.O.O. | B46: MLADINSKA ULICA 2 | C46: 9231 | D46: BELTINCI | E46: 32876858 | F46: Dejan Klemenčič | G46: 02 541 30 00 | H46: / | I46: dejan-klemencic@komuna-beltinci.si | J46: 193
A47: KOMUNALA D.O.O. (IDRIJA) | B47: CARL JAKOBA ULICA 4 | C47: 5280 | D47: IDRIJA | E47: 13286218 | F47: Ana Knap | G47: (05)3727211 | I47: ana.knap@komunalaidrija.si | J47: 45
A48: KOMUNALA JAVNO KOMUNALNO PODJETJE D.O.O. GORNJI GRAD | B48: KOCBEKOVA CESTA 23 | C48: 3342 | D48: GORNJI GRAD | E48: 43444954 | F48: Dominik Pečečnik | G48: 03 83 83 010 | I48: info@komunala-gg.si | J48: 29
A49: KOMUNALA KRANJ, JAVNO PODJETJE, D.O.O. | B49: ULICA MIRKA VADNOVA 1 | C49: 4000 | D49: KRANJ | E49: 72495421 | F49: Marko Margetič | G49: 041 343 134 | I49: marko.margetic@komunala-kranj.si | J49: 40
A50: KOMUNALA METLIKA D.O.O. | B50: CESTA XV. BRIGADE 4 | C50: 8330 | D50: METLIKA | E50: 38241528 | F50: Marjan Končar | G50: (07)3637200; (07)3637203; (031)367120 | H50: (07)3637210 | I50: koncar@komunala-metlika.si | J50: 58
A51: KOMUNALA MEŽICA JAVNO KOMUNALNO PODJETJE D.O.O. | B51: TRG SVOBODE 1 | C51: 2392 | D51: MEŽICA | E51: 73310948 | F51: Ambrož Blatnik | G51: (02)8279362; (031)364544 | I51: ambroz.blatnik@mezica.si | J51: 109
A52: KOMUNALA NOVO MESTO D.O.O. | B52: PODBEVŠKOVA ULICA 12 | C52: 8000 | D52: NOVO MESTO | E52: 13503766 | F52: Jordan Hrvatin, Andreja Gorše | G52: 07 3932494 (Hrvatin); 07 3932495 (Gorše) | H52: (07)3932505 | I52: jordan.hrvatin@komunala-nm.si; andreja.gorse@komunala-nm.si | J52: 60
A53: KOMUNALA ODTOK D.O.O. | B53: TRŽAŠKA CESTA 39 | C53: 2000 | D53: MARIBOR | E53: 65843487 | F53: Sandi Podgoršek | G53: 02 300 70 60 | H53: / | I53: info@odtok.si | J53: 214
A54: KOMUNALA RADGONA, JAVNO PODJETJE D.O.O. | B54: PARTIZANSKA CESTA 13 | C54: 9250 | D54: GORNJA RADGONA | E54: 69673195 | F54: Tadeja Zupančič | G54: 02 5644800 | H54: 02 5644808 | I54: tadeja.zupancic@komunala-radgona.si | J54: 141
A55: KOMUNALA RADOVLJICA, JAVNO PODJETJE ZA KOMUNALNO DEJAVNOST, D.O.O. | B55: LJUBLJANSKA CESTA 27 | C55: 4240 | D55: RADOVLJICA | E55: 98605275 | F55: Bojan Gašperin | G55: 04 537 01 25 | I55: bojan.gasperin@komunala-radovljica.si | J55: 33
A56: KOMUNALA SLOVENSKA BISTRICA PODJETJE ZA KOMUNALNE IN DRUGE STORITVE D.O.O. | B56: ULICA POHORSKEGA BATALJONA 12 | C56: 2310 | D56: SLOVENSKA BISTRICA | E56: 32621213 | F56: Jerneja Zorko | G56: (02)8055419 | H56: (02)8055410 | I56: jerneja.zorko@komunala-slb.si | J56: 22
A57: KOMUNALA TOLMIN JAVNO PODJETJE D.O.O. | B57: POLJUBINJ 89 H | C57: 5220 | D57: TOLMIN | E57: 97143499 | F57: Antonija Panjan | G57: (05)3819303 | I57: antonija.panjan@komunala-tolmin.si | J57: 41
A58: KOMUNALA TREBNJE D.O.O. | B58: METELKOVA ULICA 30 | C58: 8210 | D58: TREBNJE | E58: 96907436 | F58: Tone Gričar, Španger Mitja | G58: (07)3481260; (07)3481264 in (051)372871 (g. Gričar); (07)3481266 (ga. Judež) | H58: (07)3481282 | I58: investicije@komunala-trebnje.si | J58: 54
A59: KOMUNALA TRŽIČ D.O.O. | B59: MLAKA 6 | C59: 4290 | D59: TRŽIČ | E59: 45105138 | F59: Tina Božič | G59: (04)5971300 | H59: (04)5971320 | I59: info@komunala-trzic.si | J59: 39
A60: KOMUNALA VITANJE, JAVNO PODJETJE D.O.O. | B60: GRAJSKI TRG 6 | C60: 3205 | D60: VITANJE | E60: 85712990 | F60: Gorazd Fric | G60: (03)7525060; (041)668656 (g. Fric) | H60: (03)7520561 | I60: komunalavitanje@gmail.com | J60: 125
A61: KOMUNALA, JAVNO PODJETJE D.O.O. (MURSKA SOBOTA) | B61: KOPALIŠKA ULICA 2 | C61: 9000 | D61: MURSKA SOBOTA | E61: 61364576 | F61: Vasja Bugar, Boštjan Gorza | G61: (02)5213700; (02)5213748 in (051)633588 (g. Bugar); (02)5213756 in (041)800837 (g. Gorza) | H61: (02)5213740 | I61: vasjab@komunalams.si; bostjan.gorza@komunalams.si | J61: 66
A62: KOMUNALA, JAVNO PODJETJE, KRANJSKA GORA, D.O.O. | B62: SPODNJE RUTE 50 | C62: 4282 | D62: GOZD MARTULJEK | E62: 43632319 | F62: Mateja Žumer | G62: 041 711 807 | I62: mateja.zumer@komunala-kg.si | J62: 37
A63: KOMUNALNO PODJETJE KAMNIK D.O.O. | B63: CANKARJEVA CESTA 11 | C63: 1241 | D63: KAMNIK | E63: 96465883 | F63: Gregor Ulčar | G63: (01)8391731; (041)262623 (g. Ulčar); (041)349478 (g. Klemen) | H63: (01)8391303 | I63: gregor.ulcar@kpk-kamnik.si | J63: 7
A64: KOMUNALNO PODJETJE LOGATEC D.O.O. | B64: TRŽAŠKA CESTA 27 | C64: 1370 | D64: LOGATEC | E64: 88743926 | F64: Rezka Mlakar | G64: (01)7508119, 031 243941 | H64: (01)7508111 | I64: rezka.mlakar@kp-logatec.si | J64: 5
A65: KOMUNALNO PODJETJE ORMOŽ D.O.O. | B65: HARDEK 21 C | C65: 2270 | D65: ORMOŽ | E65: 66338441 | F65: Ludvik Hriberšek | G65: (02)7410640; g. Hriberšek (02)7410647 ali (041)649737 | H65: (02)7410650 | I65: odpadki@kp-ormoz.si | J65: 15
A66: KOMUNALNO PODJETJE PTUJ D.D. | B66: PUHOVA ULICA 10 | C66: 2250 | D66: PTUJ | E66: 65735676 | F66: Jernej Šömen | G66: (02)7805460 | H66: (02)7805467 | I66: jernej.somen@komunala-ptuj.si | J66: 19
A67: KOMUNALNO PODJETJE VELENJE D.O.O. | B67: KOROŠKA CESTA 37 B | C67: 3320 | D67: VELENJE | E67: 55713998 | F67: Nataša Uranjek | G67: (03)898 94 16 | I67: natasa.uranjek@kp-velenje.si | J67: 28
A68: KOMUNALNO STANOVANJSKA DRUŽBA D.O.O. AJDOVŠČINA | B68: GORIŠKA CESTA 23 B | C68: 5270 | D68: AJDOVŠČINA | E68: 68647336 | F68: Barbara Štravs | G68: 05 365 97 12 | I68: barbara.stravs@ksda.si | J68: 42
A69: KOSTAK KOMUNALNO IN GRADBENO PODJETJE D.D. | B69: LESKOVŠKA CESTA 2 A | C69: 8270 | D69: KRŠKO | E69: 82719241 | F69: Željko Horvat | G69: (07)4817201, (07)4817232 (Horvat) | H69: (07)4817250 | I69: zeljko.horvat@kostak.si; kostak@kostak.si | J69: 59
A70: KRAŠKI VODOVOD SEŽANA, D.O.O. | B70: BAZOVIŠKA CESTA 6 | C70: 6210 | D70: SEŽANA | E70: 89997271 | F70: Peter Švagelj | G70: (05)7311660 | H70: (05)7311640 | I70: info@kraski-vodovod.si; peter.svagelj@kraski-vodovod.si | J70: 164
A71: OBČINA BLOKE - REŽIJSKI OBRAT | B71: NOVA VAS 4 A | C71: 1385 | D71: NOVA VAS | E71: 47254629 | F71: David Hiti | G71: 031 422 793 | I71: david.hiti@bloke.si | J71: 107
A72: OBČINA BOHINJ - REŽIJSKI OBRAT | B72: TRIGLAVSKA CESTA 35 | C72: 4264 | D72: BOHINJSKA BISTRICA | E72: 43302904 | F72: Srečko Čemažar | G72: 045770102 | I72: srecko.cemazar@obcina.bohinj.si | J72: 82
A73: OBČINA CERKNO - REŽIJSKI OBRAT | B73: BEVKOVA ULICA 9 | C73: 5282 | D73: CERKNO | E73: 54677696 | F73: Vanja Mavri Zajc | G73: (05)3734648 | I73: vanja.mavrizajc@cerkno.si | J73: 46
A74: OBČINA CERKVENJAK - REŽIJSKI OBRAT | B74: CERKVENJAK 25 | C74: 2236 | D74: CERKVENJAK | E74: 78110475 | G74: 02/729 57 00 | H74: / | I74: obcina@cerkvenjak.si | J74: 203
A75: OBČINA ČRENŠOVCI - REŽIJSKI OBRAT | B75: ULICA PREKMURSKE ČETE 20 | C75: 9232 | D75: ČRENŠOVCI | E75: 23656484 | F75: Stanko Lebar | G75: (02)5735750; (02)5735756 | H75: (02)5735758 | I75: info@obcina-crensovci.si; stanko@obcina-crensovci.si | J75: 63
A76: OBČINA ČRNA NA KOROŠKEM - REŽIJSKI OBRAT | B76: CENTER 101 | C76: 2393 | D76: ČRNA NA KOROŠKEM | E76: 44743548 | F76: Nada Vačun | G76: (02)8704816 | H76: (02)8704821 | I76: obcina@crna.si; mojca.dimnik@crna.si | J76: 17
A77: OBČINA DESTRNIK - REŽIJSKI OBRAT | B77: VINTAROVCI 50 | C77: 2253 | D77: DESTRNIK | E77: 76286193 | G77: 02 761 92 50 | H77: 02 761 92 52 | I77: obcina.destrnik@destrnik.si | J77: 207
A78: OBČINA DOBJE - REŽIJSKI OBRAT | B78: DOBJE PRI PLANINI 26 | C78: 3224 | D78: DOBJE PRI PLANINI | E78: 22084665 | F78: Franc Leskovšek | G78: (03)7466030; (03)7466034 (g. Leskovšek) | H78: (03)7466035 | I78: obcinadobje@siol.net | J78: 116
A79: OBČINA DOBROVNIK - REŽIJSKI OBRAT | B79: DOBROVNIK 297 | C79: 9223 | D79: DOBROVNIK | E79: 72637706 | F79: Jernej Kuzmič, Tanja Tkalec (računovodkinja) | G79: (02)5776880 | H79: (02)5776887 | I79: obcina@dobrovnik.si; tanja.tkalec@dobrovnik.si | J79: 80
A80: OBČINA DUPLEK - REŽIJSKI OBRAT | B80: CESTA 4. JULIJA 106 | C80: 2241 | D80: SPODNJI DUPLEK | E80: 41316819 | G80: 02 684 09 11 | H80: / | I80: obcina.duplek@duplek.si | J80: 200
A81: OBČINA GORENJA VAS - POLJANE - REŽIJSKI OBRAT | B81: POLJANSKA CESTA 87 | C81: 4224 | D81: GORENJA VAS | E81: 63943026 | F81: Kristina Knific | G81: (04)5183112 | H81: (04)5183101 | I81: kristina.knific@obcina-gvp.si | J81: 38
A82: OBČINA GORNJI PETROVCI - REŽIJSKI OBRAT | B82: GORNJI PETROVCI 31 D | C82: 9203 | D82: PETROVCI | E82: 69366144 | G82: (02)5569000 | H82: (02)5569001 | I82: obcinagp@gornji-petrovci.si | J82: 212
A83: OBČINA GRAD - REŽIJSKI OBRAT | B83: GRAD 172 | C83: 9264 | D83: GRAD | E83: 70454540 | F83: Lidija Krpič | G83: (02)5518884 | H83: (02)5518886 | I83: lidija.krpic@obcina-grad.si | J83: 115
A84: OBČINA HODOŠ - REŽIJSKI OBRAT | B84: HODOŠ 52 | C84: 9205 | D84: HODOŠ | E84: 73790141 | F84: Katalin Bunderla | G84: (02)5598021 | H84: (02)5598020 | I84: obcina-hodos-kozseg@siol.net | J84: 78
A85: OBČINA IG - REŽIJSKI OBRAT | B85: GOVEKARJEVA CESTA 6 | C85: 1292 | D85: IG | E85: 47731206 | F85: Katja Ivanuš | G85: (01)2802300 | H85: (01)2802322 | I85: info@obcina-ig.si | J85: 179
A86: OBČINA KANAL OB SOČI - REŽIJSKI OBRAT | B86: TRG SVOBODE 23 | C86: 5213 | D86: KANAL | E86: 88524671 | F86: Kristina Marinčič | G86: (05)3981200 | I86: kristina.marincic@obcina-kanal.si; obcina.kanal@obcina-kanal.si | J86: 44
A87: OBČINA KOBILJE - REŽIJSKI OBRAT | B87: KOBILJE 35 | C87: 9227 | D87: KOBILJE | E87: 47774720 | F87: Sabina Toplak | G87: (02)5799220 | H87: (02)5799220 | I87: obcina.kobilje@siol.net | J87: 65
A88: OBČINA KOMENDA - REŽIJSKI OBRAT | B88: ZAJČEVA CESTA 23 | C88: 1218 | D88: KOMENDA | E88: 22332570 | F88: Bernarda Pavlinič, Slavko Poglajen | G88: (01)7247400; (041)799176 - g. Poglajen | H88: (01)8341323 | I88: slavko.poglajen@komenda.si; obcina@komenda.si | J88: 126
A89: OBČINA KUZMA - REŽIJSKI OBRAT | B89: KUZMA 60 C | C89: 9263 | D89: KUZMA | E89: 64854302 | F89: Milan Matiš | G89: (02)5558016 | H89: (02)5558018 | I89: milan.matis@obcina-kuzma.si | J89: 117
A90: OBČINA LAŠKO - REŽIJSKI OBRAT | B90: MESTNA ULICA 2 | C90: 3270 | D90: LAŠKO | E90: 11734612 | F90: Luka Picej | G90: (03)7338800; (03)7338714 (g. Picej); (041)704118 (g. Picej) | H90: (03)7338740 | I90: luka.picej@lasko.si | J90: 25
A91: OBČINA LENART- REŽIJSKI OBRAT | B91: TRG OSVOBODITVE 7 | C91: 2230 | D91: LENART V SLOVENSKIH GORICAH | E91: 68458509 | F91: Avgust Zavernik | G91: 051 315 002 | H91: 02 720 73 52 | I91: avgust.zavernik@lenart.si | J91: 85
A92: OBČINA LOVRENC NA POHORJU - REŽIJSKI OBRAT | B92: SPODNJI TRG 8 | C92: 2344 | D92: LOVRENC NA POHORJU | E92: 11392657 | F92: Albina Pajtler | G92: (02)6300550; (02)6300557 | H92: (02)6300560 | I92: albina.pajtler@lovrenc.si | J92: 140
A93: OBČINA ODRANCI - REŽIJSKI OBRAT | B93: PANONSKA ULICA 33 | C93: 9233 | D93: ODRANCI | E93: 20765762 | F93: Matija Kikel | G93: (02)5773480 | H93: (02)5773486 | I93: obcina.odranci@siol.net | J93: 62
A94: OBČINA OSILNICA - REŽIJSKI OBRAT | B94: OSILNICA 11 | C94: 1337 | D94: OSILNICA | E94: 27549887 | F94: Sanja Janeš | G94: 01-89-41-505 Gsm 041 319 575 | H94: (01)8941038 | I94: obcina@osilnica.si | J94: 75
A95: OBČINA RADENCI | B95: RADGONSKA CESTA 9 | C95: 9252 | D95: RADENCI | E95: 53944640 | F95: Roman Leljak | G95: 02 566 96 10 | H95: / | I95: obcina@radenci.si | J95: 216
A96: OBČINA ROGAŠOVCI - REŽIJSKI OBRAT | B96: ROGAŠOVCI 14 B | C96: 9262 | D96: ROGAŠOVCI | E96: 61143707 | G96: 02 5588 816 | H96: 02 5588812 | I96: obcina.rogasovci@siol.net | J96: 198
A97: OBČINA SOLČAVA - REŽIJSKI OBRAT | B97: SOLČAVA 16 | C97: 3335 | D97: SOLČAVA | E97: 78412447 | F97: Rudi Jezernik | G97: (03)8392750; (03)8392755 | H97: (03)8392750; (03)8392755 | I97: obcina.solcava@siol.net | J97: 178
A98: OBČINA SVETA ANA - REŽIJSKI OBRAT | B98: SV. ANA V SLOV. GORICAH 17 | C98: 2233 | D98: SVETA ANA V SLOVENSKIH GORICAH | E98: 59385081 | G98: 02/7295880 | H98: / | I98: obcina@sv-ana.si | J98: 204
A99: OBČINA SVETA TROJICA V SLOVENSKIH GORICAH - REŽIJSKI OBRAT | B99: MARIBORSKA CESTA 1 | C99: 2235 | D99: SVETA TROJICA V SLOVENSKIH GORICAH | E99: 58878734 | F99: župan: Valentin Južnič | G99: 01/8948-006 | H99: 01/8948-007 | J99: 194
A100: OBČINA SVETI JURIJ V SLOVENSKIH GORICAH - REŽIJSKI OBRAT | B100: JUROVSKI DOL 70 B | C100: 2223 | D100: JUROVSKI DOL | E100: 58481435 | G100: 02 729 52 50 | H100: 02 729 52 55 | I100: obcina@obcinajurij.si | J100: 206
A101: OBČINA ŠALOVCI - REŽIJSKI OBRAT | B101: ŠALOVCI 162 | C101: 9204 | D101: ŠALOVCI | E101: 83272631 | G101: 02 559 80 50 | H101: 02 559 80 54 | I101: info@salovci.si | J101: 211
A102: OBČINA TIŠINA - REŽIJSKI OBRAT | B102: TIŠINA 4 | C102: 9251 | D102: TIŠINA | E102: 43730361 | F102: Daniel Cedula | G102: (02)5391713 | I102: daniel.cedula@tisina.si | J102: 73
A103: OBČINA VELIKA POLANA - REŽIJSKI OBRAT | B103: VELIKA POLANA 111 | C103: 9225 | D103: VELIKA POLANA | E103: 35407727 | F103: Metka Horvat, Lidija Vučko Bukovec (na porodniški) | G103: (02)5776750; (02)5776755 (ga. Bukovec) | H103: (02)5776752 | I103: obcina@velika-polana.si; finance@velika-polana.si | J103: 124
A104: OBČINA ZREČE - REŽIJSKI OBRAT | B104: CESTA NA ROGLO 13 B | C104: 3214 | D104: ZREČE | E104: 35536519 | F104: Nina Petelinek, Štefan Posilovič | G104: (03)7571700 | H104: (03)5762498 | I104: nina.petelinek@zrece.si; info@zrece.eu | J104: 74
A105: OBČINA ŽELEZNIKI - REŽIJSKI OBRAT | B105: ČEŠNJICA 48 | C105: 4228 | D105: ŽELEZNIKI | E105: 59920327 | F105: Saša Lazar | G105: (04)5000022 (Lazar); (04)5000018 (Tušek) | H105: (04)5000020 | I105: sasa.lazar@obcina.zelezniki.si; cirila.tusek@obcina.zelezniki.si | J105: 81
A106: OBČINA ŽIRI - REŽIJSKI OBRAT | B106: LOŠKA CESTA 1 | C106: 4226 | D106: ŽIRI | E106: 69533768 | F106: Andrej Poljanšek | G106: (04)5050700 | H106: (04)5105444 | I106: andrej.poljansek@obcina.ziri.si | J106: 35
A107: OKP JAVNO PODJETJE ZA KOMUNALNE STORITVE ROGAŠKA SLATINA D.O.O. | B107: CELJSKA CESTA 12 | C107: 3250 | D107: ROGAŠKA SLATINA | E107: 43438806 | F107: Anita Staroveški | G107: (03)8121411 | I107: anita.staroveski@okp.si | J107: 32
A108: PETROL D.D. | B108: DUNAJSKA CESTA 50 | C108: 1000 | D108: LJUBLJANA | E108: Damjan Gruden | F108: 051 306 705 | H108: / | I108: damjan.gruden@petrol.si | J108: 220
A109: PÜNGRAD JAVNO KOMUNALNO PODJETJE D.O.O. | B109: BODONCI 127 A | C109: 9265 | D109: BODONCI | E109: 71583475 | F109: Anton Lang | G109: (02)5496026 | H109: (02)5496027 | I109: pungrad@siol.net | J109: 114
A110: VODOVODI IN KANALIZACIJA NOVA GORICA D.D. | B110: CESTA 25. JUNIJA 1 B | C110: 5000 | D110: NOVA GORICA | E110: 91503027 | F110: Mojca Lapajne | G110: 05 33 91 100 | I110: mojca.lapajne@vik-ng.si | J110: 43
A111: VODOVOD-KANALIZACIJA JAVNO PODJETJE D.O.O. (CELJE) | B111: LAVA 2 A | C111: 3000 | D111: CELJE | E111: 45804109 | F111: Urša Drugovič | G111: (03)4277650 | I111: ursa.drugovic@vo-ka-celje.si, cncelje@siol.net | J111: 31
A112: VZDRŽEVANJE IN GRADNJE, JAVNO PODJETJE KIDRIČEVO | B112: ULICA BORISA KRAIGHERJA 25 | C112: 2325 | D112: KIDRIČEVO | E112: 26675714 | F112: Beno Gregorec | G112: 02 799 06 26, 031 649 027 | H112: / | I112: beno.gregorec@kidricevo.si | J112: 201
A113: WTE WASSERTECHNIK GMBH PODRUŽNICA KRANJSKA GORA | B113: NASELJE SLAVKA ČERNETA 034 | C113: 4280 | D113: KRANJSKA GORA | E113: 57713596 | F113: Robert Bizjak | G113: (04)5885070; (041)721561 (g. Bizjak) | H113: (04)5885071 | I113: info@wte.si | J113: 108

Sheet sifrant (hidden)
A1: ID | B1: Naziv | H1: Šifra | I1: Opis
A2: 0 | D2: obratovalnem monitoringu
A3: 800 | B3: ALS | D3: prvih meritvah | H3: 01 | I3: Kmetijska proizvodnja in lov ter z njima povezane storitve
A4: 60 | B4: Bioinstitut d.o.o. | H4: 011 | I4: Pridelovanje netrajnih rastlin
A5: 3 | B5: CINKARNA Celje, d.d. | H5: 0111 | I5: Pridelovanje žit (razen riža), stročnic in oljnic
A6: 4 | B6: EKO d.o.o. | H6: 01110 | I6: Pridelovanje žit (razen riža), stročnic in oljnic
A7: 101 | B7: Eurofins Croatiakontrola d.o.o. | H7: 0112 | I7: Pridelovanje riža
A8: 802 | B8: Eurofins GfA Lab Service GmbH | H8: 01120 | I8: Pridelovanje riža
A9: 5 | B9: Eurofins raziskave okolja Slovenija d.o.o. | H9: 0113 | I9: Pridelovanje zelenjadnic in melon, korenovk in gomoljnic
A10: 801 | B10: Eurofins Umvelt Ost GmbH | H10: 01130 | I10: Pridelovanje zelenjadnic in melon, korenovk in gomoljnic
A11: 61 | B11: Euroinspekt Croatiakontrola d.o.o. | H11: 0114 | I11: Pridelovanje sladkornega trsa
A12: 7 | B12: Gorenje d.o.o. | H12: 01140 | I12: Pridelovanje sladkornega trsa
A13: 10 | B13: IKEMA d.o.o. | H13: 0115 | I13: Pridelovanje tobaka
A14: 23 | B14: Javno podjetje Nigrad, d.o.o. | H14: 01150 | I14: Pridelovanje tobaka
A15: 17 | B15: JP VOKA SNAGA d.o.o | H15: 0116 | I15: Pridelovanje rastlin za vlakna
A16: 24 | B16: KOMUNALA PTUJ d.d. | H16: 01160 | I16: Pridelovanje rastlin za vlakna
A17: 59 | B17: NLZOH | H17: 0119 | I17: Pridelovanje cvetja in drugih enoletnih rastlin
A18: 5901 | B18: NLZOH Celje | H18: 01190 | I18: Pridelovanje cvetja in drugih enoletnih rastlin
A19: 5902 | B19: NLZOH Koper | H19: 012 | I19: Gojenje trajnih nasadov
A20: 5903 | B20: NLZOH Kranj | H20: 0121 | I20: Vinogradništvo
A21: 5907 | B21: NLZOH Ljubljana | H21: 01210 | I21: Vinogradništvo
A22: 5904 | B22: NLZOH Maribor | H22: 0122 | I22: Gojenje tropskega in subtropskega sadja
A23: 5905 | B23: NLZOH Nova Gorica | H23: 01220 | I23: Gojenje tropskega in subtropskega sadja
A24: 5906 | B24: NLZOH Novo mesto | H24: 0123 | I24: Gojenje citrusov
A25: 56 | B25: RTCZ d.o.o. | H25: 01230 | I25: Gojenje citrusov
A26: 39 | B26: SIJ ACRONI d.o.o. | H26: 0124 | I26: Gojenje pečkatega in koščičastega sadja
A27: 100 | B27: TAB-IPM d.o.o. | H27: 01240 | I27: Gojenje pečkatega in koščičastega sadja
A28: 57 | B28: TALUM INŠTITUT d.o.o. | H28: 0125 | I28: Gojenje drugih sadnih dreves in grmovnic
A29: 9 | B29: VIPAP VIDEM KRŠKO d.d. | H29: 01250 | I29: Gojenje drugih sadnih dreves in grmovnic
H30: 0126 | I30: Pridelovanje oljnih sadežev
H31: 01260 | I31: Pridelovanje oljnih sadežev
H32: 0127 | I32: Gojenje rastlin za izdelavo napitkov
H33: 01270 | I33: Gojenje rastlin za izdelavo napitkov
H34: 0128 | I34: Gojenje začimbnih, aromatskih in zdravilnih rastlin
H35: 01280 | I35: Gojenje začimbnih, aromatskih in zdravilnih rastlin
H36: 0129 | I36: Gojenje drugih trajnih nasadov
H37: 01290 | I37: Gojenje drugih trajnih nasadov
H38: 013 | I38: Razmnoževanje rastlin
H39: 0130 | I39: Razmnoževanje rastlin
H40: 01300 | I40: Razmnoževanje rastlin
H41: 014 | I41: Živinoreja
H42: 0141 | I42: Prireja mleka
H43: 01410 | I43: Prireja mleka
H44: 0142 | I44: Druga govedoreja
H45: 01420 | I45: Druga govedoreja
H46: 0143 | I46: Konjereja
H47: 01430 | I47: Konjereja
H48: 0144 | I48: Reja kamel
H49: 01440 | I49: Reja kamel
H50: 0145 | I50: Reja drobnice
H51: 01450 | I51: Reja drobnice
H52: 0146 | I52: Prašičereja
H53: 01460 | I53: Prašičereja
H54: 0147 | I54: Reja perutnine
H55: 01470 | I55: Reja perutnine
H56: 0149 | I56: Reja drugih živali
H57: 01490 | I57: Reja drugih živali
H58: 015 | I58: Mešano kmetijstvo
H59: 0150 | I59: Mešano kmetijstvo
H60: 01500 | I60: Mešano kmetijstvo
H61: 016 | I61: Storitve za kmetijsko proizvodnjo, priprava pridelkov
H62: 0161 | I62: Storitve za rastlinsko pridelavo
H63: 01610 | I63: Storitve za rastlinsko pridelavo
H64: 0162 | I64: Storitve za živinorejo, razen veterinarskih
H65: 01620 | I65: Storitve za živinorejo, razen veterinarskih
H66: 0163 | I66: Priprava pridelkov
H67: 01630 | I67: Priprava pridelkov
H68: 0164 | I68: Obdelava semen
H69: 01640 | I69: Obdelava semen
H70: 017 | I70: Lovstvo
H71: 0170 | I71: Lovstvo
H72: 01700 | I72: Lovstvo
H73: 02 | I73: Gozdarstvo
H74: 021 | I74: Gojenje gozdov in druge gozdarske dejavnosti
H75: 0210 | I75: Gojenje gozdov in druge gozdarske dejavnosti
H76: 02100 | I76: Gojenje gozdov in druge gozdarske dejavnosti
H77: 022 | I77: Sečnja
H78: 0220 | I78: Sečnja
H79: 02200 | I79: Sečnja
H80: 023 | I80: Nabiranje gozdnih dobrin, razen lesa
H81: 0230 | I81: Nabiranje gozdnih dobrin, razen lesa
H82: 02300 | I82: Nabiranje gozdnih dobrin, razen lesa
H83: 024 | I83: Storitve za gozdarstvo
H84: 0240 | I84: Storitve za gozdarstvo
H85: 02400 | I85: Storitve za gozdarstvo
H86: 03 | I86: Ribištvo in gojenje vodnih organizmov
H87: 031 | I87: Ribištvo
H88: 0311 | I88: Morsko ribištvo
H89: 03110 | I89: Morsko ribištvo
H90: 0312 | I90: Sladkovodno ribištvo
H91: 03120 | I91: Sladkovodno ribištvo
H92: 032 | I92: Gojenje vodnih organizmov
H93: 0321 | I93: Gojenje morskih organizmov
H94: 03210 | I94: Gojenje morskih organizmov
H95: 0322 | I95: Gojenje sladkovodnih organizmov
H96: 03220 | I96: Gojenje sladkovodnih organizmov
H97: 05 | I97: Pridobivanje premoga
H98: 051 | I98: Pridobivanje črnega premoga
H99: 0510 | I99: Pridobivanje črnega premoga
H100: 05100 | I100: Pridobivanje črnega premoga
H101: 052 | I101: Pridobivanje rjavega premoga in lignita
H102: 0520 | I102: Pridobivanje rjavega premoga in lignita
H103: 05200 | I103: Pridobivanje rjavega premoga in lignita
H104: 06 | I104: Pridobivanje surove nafte in zemeljskega plina
H105: 061 | I105: Pridobivanje surove nafte
H106: 0610 | I106: Pridobivanje surove nafte
H107: 06100 | I107: Pridobivanje surove nafte
H108: 062 | I108: Pridobivanje zemeljskega plina
H109: 0620 | I109: Pridobivanje zemeljskega plina
H110: 06200 | I110: Pridobivanje zemeljskega plina
H111: 07 | I111: Pridobivanje rud
H112: 071 | I112: Pridobivanje železove rude
H113: 0710 | I113: Pridobivanje železove rude
H114: 07100 | I114: Pridobivanje železove rude
H115: 072 | I115: Pridobivanje rud neželeznih kovin
H116: 0721 | I116: Pridobivanje uranove in torijeve rude
H117: 07210 | I117: Pridobivanje uranove in torijeve rude
H118: 0729 | I118: Pridobivanje rud drugih neželeznih kovin
H119: 07290 | I119: Pridobivanje rud drugih neželeznih kovin
H120: 08 | I120: Pridobivanje rudnin in kamnin
H121: 081 | I121: Pridobivanje kamna, peska in gline
H122: 0811 | I122: Pridobivanje kamna
H123: 08110 | I123: Pridobivanje kamna
H124: 0812 | I124: Pridobivanje gramoza, peska, gline
H125: 08120 | I125: Pridobivanje gramoza, peska, gline
H126: 089 | I126: Pridobivanje drugih rudnin in kamnin
H127: 0891 | I127: Pridobivanje mineralov za kemikalije in gnojila
H128: 08910 | I128: Pridobivanje mineralov za kemikalije in gnojila
H129: 0892 | I129: Pridobivanje šote
H130: 08920 | I130: Pridobivanje šote
H131: 0893 | I131: Pridobivanje soli
H132: 08930 | I132: Pridobivanje soli
H133: 0899 | I133: Drugo pridobivanje rudnin in kamnin
H134: 08990 | I134: Drugo pridobivanje rudnin in kamnin
H135: 09 | I135: Storitve za rudarstvo
H136: 091 | I136: Storitve za pridobivanje nafte in zemeljskega plina
H137: 0910 | I137: Storitve za pridobivanje nafte in zemeljskega plina
H138: 09100 | I138: Storitve za pridobivanje nafte in zemeljskega plina
H139: 099 | I139: Storitve za drugo rudarjenje
H140: 0990 | I140: Storitve za drugo rudarjenje
H141: 09900 | I141: Storitve za drugo rudarjenje
H142: 10 | I142: Proizvodnja živil
H143: 101 | I143: Proizvodnja mesa in mesnih izdelkov
H144: 1011 | I144: Proizvodnja mesa, razen perutninskega
H145: 10110 | I145: Proizvodnja mesa, razen perutninskega
H146: 1012 | I146: Proizvodnja perutninskega mesa
H147: 10120 | I147: Proizvodnja perutninskega mesa
H148: 1013 | I148: Proizvodnja mesnih izdelkov
H149: 10130 | I149: Proizvodnja mesnih izdelkov
H150: 102 | I150: Predelava in konzerviranje rib, rakov in mehkužcev
H151: 1020 | I151: Predelava in konzerviranje rib, rakov in mehkužcev
H152: 10200 | I152: Predelava in konzerviranje rib, rakov in mehkužcev
H153: 103 | I153: Predelava in konzerviranje sadja in zelenjave
H154: 1031 | I154: Predelava in konzerviranje krompirja
H155: 10310 | I155: Predelava in konzerviranje krompirja
H156: 1032 | I156: Proizvodnja sadnih in zelenjavnih sokov
H157: 10320 | I157: Proizvodnja sadnih in zelenjavnih sokov
H158: 1039 | I158: Druga predelava in konzerviranje sadja in zelenjave
H159: 10390 | I159: Druga predelava in konzerviranje sadja in zelenjave
H160: 104 | I160: Proizvodnja rastlinskih in živalskih olj in maščob
H161: 1041 | I161: Proizvodnja olja in maščob
H162: 10410 | I162: Proizvodnja olja in maščob
H163: 1042 | I163: Proizvodnja margarine in podobnih jedilnih maščob
H164: 10420 | I164: Proizvodnja margarine in podobnih jedilnih maščob
H165: 105 | I165: Predelava mleka
H166: 1051 | I166: Mlekarstvo in sirarstvo
H167: 10510 | I167: Mlekarstvo in sirarstvo
H168: 1052 | I168: Proizvodnja sladoleda
H169: 10520 | I169: Proizvodnja sladoleda
H170: 106 | I170: Mlinarstvo, proizvodnja škroba in škrobnih izdelkov
H171: 1061 | I171: Mlinarstvo
H172: 10610 | I172: Mlinarstvo
H173: 1062 | I173: Proizvodnja škroba in škrobnih izdelkov
H174: 10620 | I174: Proizvodnja škroba in škrobnih izdelkov
H175: 107 | I175: Proizvodnja pekarskih izdelkov in testenin
H176: 1071 | I176: Proizvodnja kruha, svežega peciva in slaščic
H177: 10710 | I177: Proizvodnja kruha, svežega peciva in slaščic
H178: 1072 | I178: Proizvodnja prepečenca in piškotov; proizvodnja trajnega peciva in slaščic
H179: 10720 | I179: Proizvodnja prepečenca in piškotov; proizvodnja trajnega peciva in slaščic
H180: 1073 | I180: Proizvodnja testenin
H181: 10730 | I181: Proizvodnja testenin
H182: 108 | I182: Proizvodnja drugih prehrambenih izdelkov
H183: 1081 | I183: Proizvodnja sladkorja
H184: 10810 | I184: Proizvodnja sladkorja
H185: 1082 | I185: Proizvodnja kakava, čokolade in sladkornih izdelkov
H186: 10820 | I186: Proizvodnja kakava, čokolade in sladkornih izdelkov
H187: 1083 | I187: Predelava čaja in kave
H188: 10830 | I188: Predelava čaja in kave
H189: 1084 | I189: Proizvodnja začimb, dišav in drugih dodatkov
H190: 10840 | I190: Proizvodnja začimb, dišav in drugih dodatkov
H191: 1085 | I191: Proizvodnja pripravljenih jedi in obrokov
H192: 10850 | I192: Proizvodnja pripravljenih jedi in obrokov
H193: 1086 | I193: Proizvodnja homogeniziranih in dietetičnih živil
H194: 10860 | I194: Proizvodnja homogeniziranih in dietetičnih živil
H195: 1089 | I195: Proizvodnja drugih prehrambenih izdelkov, drugje nerazvrščenih
H196: 10890 | I196: Proizvodnja drugih prehrambenih izdelkov, drugje nerazvrščenih
H197: 109 | I197: Proizvodnja krmil in hrane za hišne živali
H198: 1091 | I198: Proizvodnja krmil
H199: 10910 | I199: Proizvodnja krmil
H200: 1092 | I200: Proizvodnja hrane za hišne živali
... 1425 more rows

Sheet Izvajalci_mon (hidden)
A1: Naziv | B1: Naselje | C1: Ulica | D1: Hišna številka | E1: Št. pošte | F1: pošta | G1: davčna št. | H1: kontaktna os. | I1: tel. | J1: fax | K1: e-mail | L1: ID_IzvajalcaMonitoringa
A3: ALS | C3: Na Harfe | D3: 336/9 | E3: 19000 | F3: Praga | G3: 0 | L3: 800
A4: Bioinstitut d.o.o. | C4: Rudolfa Steinerja | D4: 7 | E4: 40000 | F4: Čakovec | G4: 68643934 | L4: 60
A5: CINKARNA Celje, d.d. | C5: Kidričeva ulica | D5: 26 | E5: 3000 | F5: Celje | G5: 15280373 | L5: 3
A6: EKO d.o.o. | C6: Koroška cesta | D6: 14 | E6: 2390 | F6: Ravne na Koroškem | G6: 38599996 | L6: 4
A7: Eurofins Croatiakontrola d.o.o. | C7: Karlovačka cesta | D7: 4L | E7: 10000 | F7: Zagreb | G7: 0 | L7: 101
A8: Eurofins GfA Lab Service GmbH | C8: Neulander Gewerbepark | D8: 4 | E8: 21079 | F8: Hamburg | G8: 0 | L8: 802
A9: Eurofins raziskave okolja Slovenija d.o.o. | B9: Velenje | C9: Koroška cesta | D9: 58 | E9: 3320 | F9: Velenje | G9: 63543877 | L9: 5
A10: Eurofins Umvelt Ost GmbH | C10: Loebstedter Strasse | D10: 78 | E10: 7749 | F10: Jena | G10: 0 | L10: 801
A11: Euroinspekt Croatiakontrola d.o.o. | C11: Karlovačka cesta | D11: 4L | E11: 10000 | F11: Zagreb | G11: 0 | L11: 61
A12: Gorenje d.o.o. | B12: Velenje | C12: Partizanska cesta | D12: 12 | E12: 3503 | F12: Velenje | G12: 72615320 | L12: 7
A13: IKEMA d.o.o. | C13: Lovrenc na Dravskem polju | D13: 4 | E13: 2324 | F13: Lovrenc na Dravskem polju | G13: 99144620 | L13: 10
A14: Javno podjetje Nigrad, d.o.o. | B14: Maribor | C14: Zagrebška cesta | D14: 30 | E14: 2000 | F14: Maribor | G14: 71083715 | L14: 23
A15: JP VOKA SNAGA d.o.o | B15: Ljubljana | C15: Vodovodna cesta | D15: 90 | E15: 1000 | F15: Ljubljana | G15: 64520463 | L15: 17
A16: KOMUNALA PTUJ d.d. | C16: Puhova ulica | D16: 10 | E16: 2250 | F16: Ptuj | G16: 65735676 | L16: 24
A17: NLZOH | C17: Prvomajska ulica | D17: 1 | E17: 2000 | F17: Maribor | G17: 9651295 | L17: 59
A18: NLZOH Celje | C18: Ipavčeva ulica | D18: 18 | E18: 3000 | F18: Celje | G18: 19651295 | L18: 5901
A19: NLZOH Koper | C19: Vojkovo nabrežje | D19: 10 | E19: 6000 | F19: Koper | G19: 19651295 | L19: 5902
A20: NLZOH Kranj | C20: Gosposvetska ulica | D20: 12 | E20: 4000 | F20: Kranj | G20: 19651295 | L20: 5903
A21: NLZOH Ljubljana | C21: Grablovičeva ulica | D21: 44 | E21: 1000 | F21: Ljubljana | G21: 19651295 | L21: 5907
A22: NLZOH Maribor | C22: Prvomajska ulica | D22: 1 | E22: 2000 | F22: Maribor | G22: 19651295 | L22: 5904
A23: NLZOH Nova Gorica | C23: Vipavska cesta | D23: 13 | E23: 5000 | F23: Nova Gorica | G23: 19651295 | L23: 5905
A24: NLZOH Novo mesto | C24: Dalmatinova ulica | D24: 2 | E24: 8000 | F24: Novo mesto | G24: 19651295 | L24: 5906
A25: RTCZ d.o.o. | B25: Hrastnik | C25: Naselje Aleša Kaple | D25: 9A | E25: 1430 | F25: Hrastnik | G25: 69351953 | L25: 56
A26: SIJ ACRONI d.o.o. | B26: Koroška Bela | C26: Cesta Borisa Kidriča | D26: 44 | E26: 4270 | F26: Jesenice | G26: 25840754 | L26: 39
A27: TAB-IPM d.o.o. | C27: Žerjav | D27: 79 | E27: 2393 | F27: Črna na Koroškem | G27: 75781166 | L27: 100
A28: TALUM INŠTITUT d.o.o. | C28: Tovarniška cesta | D28: 10 | E28: 2325 | F28: Kidričevo | G28: 20310676 | L28: 57
A29: VIPAP VIDEM KRŠKO d.d. | C29: Tovarniška ulica | D29: 18 | E29: 8270 | F29: Krško | G29: 23087226 | L29: 9
